Workbook

Sheet StageConfig
A1: ID[csknu] | B1: roles[csna] | C1: rolesPos[cna] | D1: rolesTime[cna] | E1: time[cn] | F1: summonType[cn] | G1: hurtRate[cn] | H1: rewardId[csna] | I1: trigger[cn] | J1: tipType[cn] | K1: energy[cna] | L1: additional[cna] | M1: extraRoles[cna] | N1: position[cna] | O1: addNum[cna]
A2: 波数id （关卡*100+波数） | B2: 角色id数组 | C2: 角色位置数组 | D2: 角色创建时间轴 | E2: 波数时间轴 | F2: 刷怪类型 | G2: 环境伤害倍率 | H2: 关卡奖励道具ID道具数量数组 | I2: 触发下一大波间隔参数 | J2: 波数提示类型 | K2: 能量掉落 | L2: 触发额外刷怪参数 | M2: 额外刷新怪物 | N2: 刷新位置 | O2: 怪物数量
A3: 101 | B3: ='1'!Q13 -> 60011^60011^60011^60011^60011^60011^60011^60011^60011^60011^60011^60011^60011^60011^60011^60011^60011^60011^60011 | C3: ='1'!Q35 -> 1^2^1^2^1^2^3^2^1^3^2^3^2^1^3^4^2^3^5 | D3: ='1'!Q48 -> 5^15^15^25^25^37^37^50^50^50^65^65^80^80^80^100^100^100^100 | E3: 0 | F3: 2 | G3: 0 | H3: 21001 | I3: 0 | J3: 0 | K3: 0 | L3: 0 | M3: 0 | N3: 0 | O3: 0
A4: 201 | B4: ='1'!Q63 -> 60021^60021^60021^60021^60022^60021^60021^60021^60021^60022^60021^60022^60021^60021^60021^60021^60021^60021^60021^60021^60022^60022^60021^60021^60022^60021^60021^60021^60021^60021 | C4: ='1'!Q85 -> 1^2^3^4^1^5^4^2^1^5^4^1^5^4^1^5^2^1^3^4^2^3^5^4^1^5^2^1^3^5 | D4: ='1'!Q98 -> 5^17^17^29^29^29^42^42^42^42^55^55^55^70^70^70^85^85^85^100^100^100^100^120^120^120^140^140^140^140 | E4: 1 | F4: 2 | G4: 0 | H4: 21002 | I4: 0 | J4: 0 | K4: 130003^1 | L4: 0 | M4: 0 | N4: 0 | O4: 0
A5: 301 | B5: ='1'!Q114 -> 60031|60031|60031^60032|60031|60031^60033|60031^60032|60031^60032|60031^60032|60031^60032|60031^60033|60031 | C5: ='1'!Q136 -> 0|0|0^0|0|0^0|0^0|0^0|0^0|0^0|0^0|0 | D5: ='1'!Q150 -> 5|5|5^2|5|6^2|6^2|6^2|7^2|7^2|7^2|10 | E5: 10 | F5: 3 | G5: 0 | H5: 21003 | I5: 0 | J5: 0 | K5: 130003^1 | L5: 0 | M5: 0 | N5: 0 | O5: 0
A6: 401 | B6: ='1'!Q166 -> 60041|60041^60042|60041^60042|60043^60041|60041^60042|60041|60041^60042|60041^60043|60042^60041|60042^60041|60043 | C6: ='1'!Q188 -> 0|0^0|0^0|0^0|0^0|0|0^0|0^0|0^0|0^0|0 | D6: ='1'!Q202 -> 4|4^2|4^2|3^4|5^2|7|7^2|8^2|2^8|2^8|5 | E6: 12 | F6: 3 | G6: 0 | H6: 21004 | I6: 0 | J6: 0 | K6: 130003^1 | L6: 4^10 | M6: 60044^60044 | N6: 100^100 | O6: 3^5
A7: 501 | B7: ='1'!Q218 -> 60051|60051^60052|60051^60052|60051^60053|60051^60053^60052|60051^60054|60055^60051|60053^60052|60051^60052|60051^60054|60053^60051 | C7: ='1'!Q241 -> 0|0^0|0^0|0^0|0^0^0|0^0|100^0|0^0|0^0|0^0|0^0 | D7: ='1'!Q255 -> 4|4^2|5^2|5^2|2^4^2|6^4|3^3|4^3|7^3|8^2|3^8 | E7: 12 | F7: 3 | G7: 0 | H7: 21005 | I7: 5 | J7: 0 | K7: 130003^1 | L7: 4^10 | M7: 60055^60055 | N7: 100^100 | O7: 3^6
A8: 502 | B8: ='1'!AE218 -> 60051|60051^60052|60051^60055|60051^60053|60052^60051^60053|60051^60054|60051^60052|60052^60053|60052^60051|60051^60054|60053^60051 | C8: ='1'!AE240 -> 0|0^0|0^100|0^0|0^0^0|0^0|0^0|0^0|0^0|0^0|0^0 | D8: ='1'!AE254 -> 15|7^2|8^2|7^3|2^7^2|9^4|10^2|6^4|2^10|12^2|5^12 | E8: 12 | F8: 3 | G8: 0 | H8: 21005 | I8: 0 | J8: 1 | K8: 130003^1|130004^1 | L8: 5^10 | M8: 60055^60055 | N8: 100^100 | O8: 5^8
A9: 601 | B9: ='2'!P14 -> 60061|60063^60062|60061^60062|60061^60063|60064^60061^60062|60061^60064|60063^60062^60061|60064^60065|60063^60061|60062^60064^60061|60063^60061^60062 | C9: ='2'!P37 -> 0|0^0|0^0|0^0|0^0^0|0^0|0^0^0|0^100|0^0|0^0^0|0^0^0 | D9: ='2'!P51 -> 4|2^4|5^2|6^2|2^6^2|8^2|2^3^5|3^3|3^7|4^2^5|2^6^3 | E9: 12 | F9: 3 | G9: 0 | H9: 21006 | I9: 0 | J9: 0 | K9: 130003^1 | L9: 4^10 | M9: 60065^60065 | N9: 100^100 | O9: 3^5
A10: 602 | B10: ='2'!AD14 -> 60061|60065^60061|60063^60062|60062^60061^60064|60063^60062|60061^60062^60063|60062^60064|60063^60061^60062 | C10: ='2'!AD36 -> 0|0^0|0^0|0^0^0|0^0|0^0^0|0^0|0^0^0 | D10: ='2'!AD50 -> 20|3^8|2^4|4^6^2|3^4|6^4^2|4^3|2^6^4 | E10: 11 | F10: 3 | G10: 0 | H10: 21006 | I10: 0 | J10: 1 | K10: 130003^1 | L10: 5^10 | M10: 60065^60065 | N10: 100^100 | O10: 5^8
A11: 701 | B11: ='2'!P67 -> 60072|60072^60071|60073^60072|60074^60073^60072|60071^60072|60074^60073|60071^60072|60074^60071^60072|60071|60072^60071|60071^60072^60073 | C11: ='2'!P90 -> 0|0^0|0^0|0^0^0|0^0|0^0|0^0|0^0^0|0|0^0|0^0^0 | D11: ='2'!P104 -> 4|2^7|3^4|2^2^4|8^3|3^3|7^4|3^7^3|9|3^7|7^4^2 | E11: 12 | F11: 3 | G11: 0 | H11: 21007 | I11: 5 | J11: 0 | K11: 130003^1|130004^1 | L11: 5^10 | M11: 60075^60075 | N11: 100^100 | O11: 4^6
A12: 702 | B12: ='2'!AD67 -> 60071|60071^60072|60074^60071|60072^60073^60071|60074^60072|60073^60072|60071^60072|60071|60073^60072 | C12: ='2'!AD89 -> 0|0^0|0^0|0^0^0|0^0|0^0|0^0|0|0^0 | D12: ='2'!AD103 -> 25|7^3|2^8|4^2^6|3^4|3^4|8^2|10|3^4 | E12: 12 | F12: 3 | G12: 0 | H12: 21007 | I12: 0 | J12: 1 | K12: 130003^2 | L12: 6^10 | M12: 60075^60075 | N12: 100^100 | O12: 5^8
A13: 801 | B13: ='2'!P120 -> 60082^60081^60082^60081^60081^60081^60084^60083^60083^60082^60083^60082^60083^60082^60081^60082^60084^60082^60081^60082^60083^60081^60083^60081^60083^60082^60082^60081^60083^60081^60084^60081^60083^60082^60082^60082^60083^60081^60081^60083^60081^60082^60081^60083^60081^60081^60081^60082^60084^60082^60081^60081^60084^60083^60082^60083^60084^60083^60082 | C13: ='2'!P143 -> 1^2^1^3^4^2^1^3^5^4^2^1^3^5^6^2^1^3^7^6^4^2^1^3^5^7^6^2^1^3^7^6^4^2^1^3^5^7^6^4^2^1^3^5^7^8^6^4^1^5^7^9^6^4^2^1^3^5^7 | D13: ='2'!P157 -> 5^15^15^15^25^25^25^25^25^35^35^35^35^35^45^45^45^45^45^55^55^55^55^55^55^55^65^65^65^65^65^75^75^75^75^75^75^75^85^85^85^85^85^85^85^90^90^90^90^90^90^90^100^100^100^100^100^100^100 | E13: 0 | F13: 1 | G13: 0 | H13: 21008 | I13: 5 | J13: 0 | K13: 130003^1|130004^1 | L13: 5^10 | M13: 60085^60085 | N13: 100^100 | O13: 4^6
A14: 802 | B14: ='2'!AD120 -> 60081^60081^60081^60081^60082^60082^60084^60084^60081^60081^60083^60083^60081^60081^60082^60082^60084^60081^60081^60082^60081^60081^60081^60082^60083^60083^60083^60084^60084 | C14: ='2'!AD142 -> 2^1^3^5^4^2^3^5^6^4^2^1^3^5^4^2^1^3^5^4^2^1^3^5^4^1^5^2^3 | D14: ='2'!AD156 -> 1^1^1^1^3^3^3^3^6^6^6^6^6^6^10^10^10^10^10^15^15^15^15^15^20^20^20^25^25 | E14: 0 | F14: 1 | G14: 0 | H14: 21008 | I14: 0 | J14: 1 | K14: 130003^2 | L14: 6^10 | M14: 60085^60085 | N14: 100^100 | O14: 5^8
A15: 901 | B15: ='2'!P173 -> 60091^60092|60091^60094|60091^60092|60093^60091^60094|60091^60092|60093^60092|60094^60092^60091|60093^60092^60091|60094^60091^60092|60092^60091|60093^60092 | C15: ='2'!P196 -> 0^0|0^0|0^0|0^0^0|0^0|0^0|0^0^0|0^0^0|0^0^0|0^0|0^0 | D15: ='2'!P210 -> 4^2|7^2|7^4|2^6^2|8^3|2^4|2^2^6|2^3^5|2^5^3|3^6|3^4 | E15: 12 | F15: 3 | G15: 0 | H15: 21009 | I15: 5 | J15: 0 | K15: 130003^1|130004^1 | L15: 5^10 | M15: 60095^60095 | N15: 100^100 | O15: 4^6
A16: 902 | B16: ='2'!AD173 -> 60091^60092|60094^60093|60091^60092|60093^60092^60091|60091^60092^60094|60093^60091|60092^60091|60093^60092^60094 | C16: ='2'!AD195 -> 0^0|0^0|0^0|0^0^0|0^0^0|0^0|0^0|0^0^0 | D16: ='2'!AD209 -> 20^10|2^3|5^4|2^2^6|5^3^2|3^6|3^8|2^7^2 | E16: 10 | F16: 3 | G16: 0 | H16: 21009 | I16: 0 | J16: 1 | K16: 130003^2 | L16: 6^10 | M16: 60095^60095 | N16: 100^100 | O16: 5^8
A17: 1001 | B17: ='2'!P226 -> 60101|60101^60102|60101^60104|60101^60102^60103|60104^60102^60103|60101^60102|60101^60103^60104|60101^60102^60103|60101^60102|60101^60103^60104|60105^60102 | C17: ='2'!P249 -> 0|0^0|0^0|0^0^0|0^0^0|0^0|0^0^0|0^0^0|0^0|0^0^0|0^0 | D17: ='2'!P263 -> 7|8^2|9^2|6^3^2|2^4^3|10^2|6^3^2|7^3^2|8^4|8^3^2|1^4 | E17: 12 | F17: 3 | G17: 0 | H17: 21010 | I17: 10 | J17: 0 | K17: 130003^1|130004^1 | L17: 4^10 | M17: 60107^60107 | N17: 100^100 | O17: 4^6
A18: 1002 | B18: ='2'!AD226 -> 60101^60101^60101^60101^60102^60102^60102^60104^60103^60104^60102^60101^60101^60101^60102^60103^60103^60103^60101^60101^60104^60101^60101^60102^60102^60102^60101^60101^60101^60101^60101^60101^60102^60103^60103^60102^60102^60104^60102^60104^60102 | C18: ='2'!AD248 -> 4^2^3^5^4^1^5^6^1^7^4^2^1^3^5^2^1^3^4^2^1^3^5^4^1^5^6^4^2^3^5^7^6^1^3^7^4^2^1^3^5 | D18: ='2'!AD262 -> 2^2^2^2^4^1^4^8^8^8^14^14^14^14^14^20^20^20^30^30^30^30^30^42^42^42^55^55^55^55^55^55^65^65^65^65^75^75^75^75^75 | E18: 0 | F18: 1 | G18: 0 | H18: 21010 | I18: 0 | J18: 1 | K18: 130003^2 | L18: 5^10 | M18: 60107^60107 | N18: 100^100 | O18: 5^8
A19: 1101 | B19: ='3'!P15 -> 60111|60111^60112|60114^60111^60112|60111^60113|60114^60111^60112|60113^60114|60112^60111|60111^60113|60114^60111^60112|60114^60112^60111|60113^60112^60114 | C19: ='3'!P38 -> 0|0^0|0^0^0|0^0|0^0^0|0^0|0^0|0^0|0^0^0|0^0^0|0^0^0 | D19: ='3'!P52 -> 6|6^3|2^6^3|8^2|2^5^4|6^3|4^6|8^2|2^7^3|2^4^7|2^8^2 | E19: 10 | F19: 3 | G19: 0 | H19: 21011 | I19: 3 | J19: 0 | K19: 130003^1|130004^1 | L19: 5^10 | M19: 60115^60115 | N19: 100^100 | O19: 4^6
A20: 1102 | B20: ='3'!AD15 -> 60111|60112^60114|60113^60112|60111^60112|60112^60113^60111|60114^60111|60112^60111|60111^60114|60113^60112^60111|60112^60111^60114 | C20: ='3'!AD37 -> 0|0^0|0^0|0^0|0^0^0|0^0|0^0|0^0|0^0^0|0^0^0 | D20: ='3'!AD51 -> 25|6^3|3^6|7^3|3^2^6|2^9|4^8|10^2|2^3^6|4^7^2 | E20: 10 | F20: 3 | G20: 0 | H20: 21011 | I20: 0 | J20: 1 | K20: 130003^2 | L20: 6^10 | M20: 60115^60115 | N20: 100^100 | O20: 5^8
A21: 1201 | B21: ='3'!P68 -> 60121^60122|60122^60124|60121^60122|60123^60122^60121|60121^60124|60123^60122^60121|60124^60122^60121|60121^60124|60123^60122|60124^60122^60121|60123^60124 | C21: ='3'!P91 -> 0^0|0^0|0^0|0^0^0|0^0|0^0^0|0^0^0|0^0|0^0|0^0^0|0^0 | D21: ='3'!P105 -> 5^2|4^2|8^4|3^3^6|10^2|3^3^7|2^4^8|8^3|3^8|2^4^8|4^3 | E21: 10 | F21: 3 | G21: 0 | H21: 21012 | I21: 5 | J21: 0 | K21: 130003^1|130004^1 | L21: 5^10 | M21: 60125^60125 | N21: 100^100 | O21: 4^6
A22: 1202 | B22: ='3'!AD68 -> 60121^60124|60122^60121|60123^60121|60122^60121|60124^60123^60121|60124^60121^60122|60123^60122|60124^60122^60121|60121^60122|60124^60123^60121^60122 | C22: ='3'!AD90 -> 0^0|0^0|0^0|0^0|0^0^0|0^0^0|0^0|0^0^0|0^0|0^0^0^0 | D22: ='3'!AD104 -> 25^4|4^6|3^8|4^8|2^3^9|2^6^4|4^6|2^3^8|9^4|2^2^7^3 | E22: 10 | F22: 3 | G22: 0 | H22: 21012 | I22: 0 | J22: 1 | K22: 130003^2 | L22: 6^10 | M22: 60125^60125 | N22: 100^100 | O22: 5^8
A23: 1301 | B23: ='3'!P121 -> 60131^60131^60131^60132^60134^60132^60132^60131^60133^60133^60131^60132^60133^60134^60131^60131^60134^60133^60132^60131^60131^60131^60131^60131^60132^60134^60133^60132^60133^60134^60131^60132^60132^60131^60132^60132^60131^60131^60131^60133^60133^60133^60131^60131^60132^60131^60131^60134^60131^60131^60132^60134^60132^60132^60132^60134^60132^60133^60133^60133^60132 | C23: ='3'!P144 -> 2^1^3^4^1^5^6^4^2^3^5^7^6^4^2^3^5^7^8^4^2^1^3^5^9^6^4^1^5^7^6^4^2^1^3^5^7^6^4^2^1^3^5^7^8^4^2^1^3^5^9^4^2^1^3^5^6^4^1^5^7 | D23: ='3'!P158 -> 3^3^3^8^8^8^14^14^14^14^14^14^20^20^20^20^20^20^30^30^30^30^30^30^30^35^35^35^35^35^45^45^45^45^45^45^45^55^55^55^55^55^55^55^65^65^65^65^65^65^65^70^70^70^70^70^80^80^80^80^80 | E23: 0 | F23: 1 | G23: 0 | H23: 21013 | I23: 4 | J23: 0 | K23: 130003^2|130004^1 | L23: 5^10 | M23: 60135^60135 | N23: 100^100 | O23: 5^6
A24: 1302 | B24: ='3'!AD121 -> 60131^60132|60132^60134|60131^60133|60131^60132|60131^60133^60134|60131^60132|60133^60132^60134|60131^60134|60131^60132^60133|60131^60132^60134 | C24: ='3'!AD143 -> 0^0|0^0|0^0|0^0|0^0^0|0^0|0^0^0|0^0|0^0^0|0^0^0 | D24: ='3'!AD157 -> 22^8|6^4|8^3|8^4|9^3^2|8^4|3^6^2|9^3|8^4^3|10^4^2 | E24: 8 | F24: 3 | G24: 0 | H24: 21013 | I24: 0 | J24: 1 | K24: 130003^2 | L24: 6^10 | M24: 60135^60135 | N24: 100^100 | O24: 5^8
A25: 1401 | B25: ='3'!P174 -> 60142^60141|60141^60142^60144|60143^60141^60142|60141^60144|60143^60142|60144^60143^60141|60141^60142|60143^60144^60141|60141^60142|60144^60142^60141|60143^60142^60144 | C25: ='3'!P197 -> 0^0|0^0^0|0^0^0|0^0|0^0|0^0^0|0^0|0^0^0|0^0|0^0^0|0^0^0 | D25: ='3'!P211 -> 2^4|6^3^2|2^7^3|9^2|4^6|2^2^8|8^4|2^2^9|8^4|2^3^7|4^5^3 | E25: 11 | F25: 3 | G25: 0 | H25: 21014 | I25: 4 | J25: 0 | K25: 130003^2|130004^1 | L25: 6^10 | M25: 60145^60145 | N25: 0^0 | O25: 6^10
A26: 1402 | B26: ='3'!AD174 -> 60142^60144^60141|60141^60143|60143^60142|60141^60142|60141^60143^60144|60141^60142|60143^60141^60142|60141^60144|60142^60141|60143^60142^60144 | C26: ='3'!AD196 -> 0^0^0|0^0|0^0|0^0|0^0^0|0^0|0^0^0|0^0|0^0|0^0^0 | D26: ='3'!AD210 -> 10^5^20|10^2|3^6|8^4|7^2^2|9^4|2^7^4|9^2|4^10|4^6^2 | E26: 10 | F26: 3 | G26: 0 | H26: 21014 | I26: 0 | J26: 1 | K26: 130003^2 | L26: 7^10 | M26: 60145^60145 | N26: 0^0 | O26: 8^10
A27: 1501 | B27: ='3'!P227 -> 60152^60151^60152^60151^60151^60154^60151^60151^60152^60151^60153^60151^60152^60154^60152^60153^60153^60152^60154^60152^60151^60151^60151^60151^60152^60154^60153^60151^60153^60151^60153^60154^60151^60151^60152^60152^60152^60151^60151^60151^60151^60153^60155^60153^60151^60151^60152^60151^60151^60154^60151^60151^60152^60151^60151^60152^60152^60152^60151^60151^60153^60153^60154^60152^60152 | C27: ='3'!P250 -> 2^1^3^4^2^1^3^5^6^2^1^3^7^8^4^2^3^5^9^6^4^2^3^5^7^6^4^2^1^3^5^7^8^6^2^1^3^7^9^8^6^4^1^5^7^9^8^4^2^1^3^5^9^8^6^2^1^3^7^9^4^2^1^3^5 | D27: ='3'!P264 -> 3^3^3^6^6^6^6^6^10^10^10^10^10^15^15^15^15^15^15^20^20^20^20^20^20^26^26^26^26^26^26^26^33^33^33^33^33^33^33^40^40^40^40^40^40^40^48^48^48^48^48^48^48^55^55^55^55^55^55^55^60^60^60^60^60 | E27: 0 | F27: 1 | G27: 0 | H27: 21015 | I27: 3 | J27: 0 | K27: 130003^2|130004^1 | L27: 6^10 | M27: 60156^60156 | N27: 0^0 | O27: 6^10
A28: 1502 | B28: ='3'!AD227 -> 60152^60151^60151^60151^60151^60151^60152^60154^60152^60152^60152^60154^60153^60152^60153^60152^60153^60152^60151^60151^60151^60152^60154^60153^60152^60153^60154^60151^60151^60151^60151^60151^60151^60151^60152^60153^60154^60153^60152 | C28: ='3'!AD249 -> 8^4^2^1^3^5^9^6^4^1^5^7^4^2^1^3^5^6^2^1^3^7^8^2^1^3^9^6^4^2^1^3^5^7^6^4^1^5^7 | D28: ='3'!AD263 -> 2^2^2^2^2^2^2^5^5^5^5^5^10^10^10^10^10^15^15^15^15^15^21^21^21^21^21^27^27^27^27^27^27^27^35^35^35^35^35 | E28: 0 | F28: 1 | G28: 0 | H28: 21015 | I28: 4 | J28: 0 | K28: 130003^2|130004^1 | L28: 7^10 | M28: 60156^60156 | N28: 0^0 | O28: 8^10
A29: 1503 | B29: ='3'!AR227 -> 60151^60151^60155^60151^60151^60152^60152^60152^60153^60153^60153^60152^60151^60151^60151^60152^60154^60153^60153^60153^60154^60151^60151^60151^60151^60151^60151^60152^60152^60152 | C29: ='3'!AR249 -> 4^2^1^3^5^4^1^5^4^1^5^6^2^1^3^7^4^2^1^3^5^6^4^2^3^5^7^4^1^5 | D29: ='3'!AR263 -> 1^1^1^1^1^3^3^3^6^6^6^10^10^10^10^10^15^15^15^15^15^25^25^25^25^25^25^30^30^30 | E29: 0 | F29: 1 | G29: 0 | H29: 21015 | I29: 0 | J29: 1 | K29: 130003^2|130004^1 | L29: 6^10 | M29: 60156^60156 | N29: 0^0 | O29: 8^12
A30: 1601 | B30: ='4'!P15 -> 60164^60162|60162^60161|60162^60161|60163^60161^60164|60162^60161|60162^60163^60164|60161^60162|60162^60163^60161|60161^60164^60162 | C30: ='4'!P38 -> 0^0|0^0|0^0|0^0^0|0^0|0^0^0|0^0|0^0^0|0^0^0 | D30: ='4'!P50 -> 2^4|3^8|4^8|2^8^2|4^8|4^4^4|9^4|4^3^7|8^2^4 | E30: 12 | F30: 3 | G30: 0 | H30: 21016 | I30: 4 | J30: 0 | K30: 130003^2|130004^1 | L30: 6^10 | M30: 60166^60166 | N30: 0^0 | O30: 6^10
A31: 1602 | B31: ='4'!AD15 -> 60161^60164^60163|60162^60161|60163^60161^60162|60164^60161^60162|60163^60162^60164|60161^60165|60163^60162^60164 | C31: ='4'!AD37 -> 0^0^0|0^0|0^0^0|0^0^0|0^0^0|0^0|0^0^0 | D31: ='4'!AD50 -> 20^6^4|6^8|3^7^4|3^8^4|4^4^4|15^1|4^4^2 | E31: 12 | F31: 3 | G31: 0 | H31: 21016 | I31: 2 | J31: 0 | K31: 130003^2|130004^1 | L31: 7^10 | M31: 60166^60166 | N31: 0^0 | O31: 8^10
A32: 1603 | B32: ='4'!AR15 -> 60164^60161^60161^60164^60163^60163^60163^60162^60162^60162^60162^60164^60164^60162^60161^60163^60163^60163^60161^60161^60161^60162^60162^60161^60161^60161^60162^60162^60162^60161 | C32: ='4'!AR37 -> 4^2^3^5^2^1^3^2^1^3^6^4^5^7^4^2^1^3^5^6^4^2^3^5^7^6^4^1^5^7 | D32: ='4'!AR50 -> 2^2^2^2^4^4^4^8^8^8^14^14^14^14^20^20^20^20^20^25^25^25^25^25^25^30^30^30^30^30 | E32: 0 | F32: 1 | G32: 0 | H32: 21016 | I32: 0 | J32: 1 | K32: 130004^2 | L32: 6^10 | M32: 60166^60166 | N32: 0^0 | O32: 8^12
A33: 1701 | B33: ='4'!P67 -> 60171^60172|60171^60174|60173^60171^60172|60173^60172^60174|60171^60172|60173^60174^60172|60171^60172|60174^60173^60171|60173^60172^60174 | C33: ='4'!P90 -> 0^0|0^0|0^0^0|0^0^0|0^0|0^0^0|0^0|0^0^0|0^0^0 | D33: ='4'!P102 -> 5^2|8^3|2^7^4|3^8^2|8^4|4^4^4|10^3|2^3^8|4^4^4 | E33: 12 | F33: 3 | G33: 0 | H33: 21017 | I33: 5 | J33: 0 | K33: 130003^2|130004^1 | L33: 6^10 | M33: 60175^60175 | N33: 0^0 | O33: 6^10
A34: 1702 | B34: ='4'!AD67 -> 60171^60172|60171^60172|60173^60174^60172|60171^60172|60173^60174^60172|60172^60171|60173^60172^60174 | C34: ='4'!AD89 -> 0^0|0^0|0^0^0|0^0|0^0^0|0^0|0^0^0 | D34: ='4'!AD102 -> 22^8|8^6|4^2^4|9^3|3^2^5|4^10|3^4^3 | E34: 12 | F34: 3 | G34: 0 | H34: 21017 | I34: 4 | J34: 0 | K34: 130003^2|130004^1 | L34: 7^10 | M34: 60175^60175 | N34: 0^0 | O34: 8^10
A35: 1703 | B35: ='4'!AR67 -> 60174^60171^60171^60174^60172^60172^60173^60173^60173^60172^60171^60174^60171^60172^60172^60173^60171^60173^60172^60172^60174^60171^60171^60174^60172^60171^60173^60172^60173^60171 | C35: ='4'!AR89 -> 4^2^3^5^2^3^4^1^5^6^2^1^3^7^4^2^1^3^5^8^6^4^5^7^9^6^4^1^5^7 | D35: ='4'!AR102 -> 1^1^1^1^2^2^5^5^5^10^10^10^10^10^17^17^17^17^17^27^27^27^27^27^27^42^42^42^42^42 | E35: 0 | F35: 1 | G35: 0 | H35: 21017 | I35: 0 | J35: 1 | K35: 130004^2 | L35: 6^10 | M35: 60175^60175 | N35: 0^0 | O35: 8^12
A36: 1801 | B36: ='4'!P119 -> 60182^60184^60182^60181^60181^60181^60181^60181^60182^60182^60183^60184^60183^60182^60182^60182^60181^60181^60183^60181^60181^60182^60185^60185^60185^60185^60185^60184^60182^60183^60183^60183^60182^60184^60182^60181^60181^60181^60182^60182^60182^60183^60184^60183^60182^60182^60185^60185^60185^60185^60185^60182^60181^60183^60184^60183^60181^60182 | C36: ='4'!P146 -> 4^1^5^4^2^1^3^5^8^6^2^1^3^7^9^8^6^4^1^5^7^9^101^102^103^104^105^6^4^2^1^3^5^7^6^2^1^3^7^8^6^4^1^5^7^9^101^102^103^104^105^6^4^2^1^3^5^7 | D36: ='4'!P160 -> 4^4^4^10^10^10^10^10^17^17^17^17^17^17^17^25^25^25^25^25^25^25^30^30^30^30^30^40^40^40^40^40^40^40^50^50^50^50^50^60^60^60^60^60^60^60^65^65^65^65^65^75^75^75^75^75^75^75 | E36: 0 | F36: 1 | G36: 0 | H36: 20001^21018 | I36: 4 | J36: 0 | K36: 130003^2|130004^1 | L36: 6^10 | M36: 60185^60185 | N36: 100^100 | O36: 6^12
A37: 1802 | B37: ='4'!AD119 -> 60181^60182^60184|60183^60185^60186|60181^60182^60183|60181^60182^60184|60183^60185|60181^60182|60183^60182^60184 | C37: ='4'!AD146 -> 0^0^0|0^100^0|0^0^0|0^0^0|0^100|0^0|0^0^0 | D37: ='4'!AD159 -> 20^6^3|3^6^1|6^5^3|6^4^3|3^8|7^5|4^4^3 | E37: 11 | F37: 3 | G37: 0 | H37: 20001^21018 | I37: 4 | J37: 0 | K37: 130003^2|130004^1 | L37: 7^10 | M37: 60185^60185 | N37: 100^100 | O37: 6^12
A38: 1803 | B38: ='4'!AR119 -> 60181^60184^60181^60182^60182^60182^60183^60183^60183^60182^60181^60182^60181^60182^60184^60183^60182^60183^60184^60181^60181^60182^60182^60181^60181^60184^60182^60183^60183^60182^60184 | C38: ='4'!AR146 -> 2^1^3^4^1^5^4^1^5^6^2^1^3^7^4^2^1^3^5^6^4^2^3^5^7^8^6^2^3^7^9 | D38: ='4'!AR159 -> 2^2^2^4^4^4^8^8^8^16^16^16^16^16^25^25^25^25^25^40^40^40^40^40^40^50^50^50^50^50^50 | E38: 0 | F38: 1 | G38: 0 | H38: 20001^21018 | I38: 0 | J38: 1 | K38: 130004^2 | L38: 6^10 | M38: 60185^60185 | N38: 100^100 | O38: 8^12
A39: 1901 | B39: ='4'!P175 -> 60191^60194|60192^60191|60193^60191^60192|60193^60192^60194|60195^60191|60191^60193^60192|60192^60191|60194^60193^60191^60192|60195|60194^60192^60191 | C39: ='4'!P202 -> 0^0|0^0|0^0^0|0^0^0|100^0|0^0^0|0^0|0^0^0^0|100|0^0^0 | D39: ='4'!P216 -> 5^2|3^8|2^7^3|3^4^3|6^6|8^2^4|4^7|2^3^7^3|6|2^4^7 | E39: 12 | F39: 3 | G39: 0 | H39: 20001^21019 | I39: 5 | J39: 0 | K39: 130003^2|130004^1 | L39: 6^10 | M39: 60195^60195 | N39: 100^100 | O39: 6^12
A40: 1902 | B40: ='4'!AD175 -> 60192^60191|60194^60192|60192^60193^60194|60194^60191^60192|60195^60196|60193^60191^60192|60193^60192^60194 | C40: ='4'!AD202 -> 0^0|0^0|0^0^0|0^0^0|100^0|0^0^0|0^0^0 | D40: ='4'!AD215 -> 8^20|4^6|4^3^2|2^8^3|7^1|2^8^3|3^4^3 | E40: 11 | F40: 3 | G40: 0 | H40: 20001^21019 | I40: 4 | J40: 0 | K40: 130003^2|130004^1 | L40: 7^10 | M40: 60195^60195 | N40: 100^100 | O40: 6^12
A41: 1903 | B41: ='4'!AR175 -> 60192^60194^60192^60191^60191^60191^60193^60193^60193^60195^60195^60192^60194^60193^60193^60194^60192^60191^60191^60191^60191^60191^60191^60192^60193^60192^60193^60192 | C41: ='4'!AR202 -> 4^1^5^2^1^3^4^1^5^102^104^6^4^2^3^5^7^6^4^2^3^5^7^4^2^1^3^5 | D41: ='4'!AR215 -> 3^3^3^5^5^5^8^8^8^12^12^20^20^20^20^20^20^35^35^35^35^35^35^50^50^50^50^50 | E41: 0 | F41: 1 | G41: 0 | H41: 20001^21019 | I41: 0 | J41: 1 | K41: 130004^2 | L41: 6^10 | M41: 60195^60195 | N41: 100^100 | O41: 8^12
A42: 2001 | B42: ='4'!P233 -> 60204^60201^60201^60202^60202^60204^60202^60202^60201^60203^60203^60201^60202^60204^60202^60201^60203^60201^60202^60204^60205^60205^60205^60205^60205^60202^60204^60203^60203^60203^60204^60202^60201^60201^60202^60202^60202^60201^60201^60201^60201^60203^60204^60203^60201^60201^60205^60205^60205^60205^60205^60204^60202^60206^60207^60204 | C42: ='4'!P260 -> 4^2^3^5^2^1^3^6^4^2^3^5^7^8^6^2^1^3^7^9^101^102^103^104^105^8^6^2^3^5^7^9^6^4^2^1^3^5^7^8^6^4^1^5^7^9^101^102^103^104^105^6^4^1^5^7 | D42: ='4'!P274 -> 5^5^5^5^10^10^10^17^17^17^17^17^17^25^25^25^25^25^25^25^30^30^30^30^30^38^38^38^38^38^38^38^46^46^46^46^46^46^46^55^55^55^55^55^55^55^60^60^60^60^60^70^70^70^70^70 | E42: 0 | F42: 1 | G42: 0 | H42: 20001^21020 | I42: 0 | J42: 0 | K42: 130003^2|130004^1 | L42: 6^10 | M42: 60205^60205 | N42: 100^100 | O42: 6^12
A43: 2002 | B43: ='4'!AD233 -> 60204^60201^60202|60202^60201|60202^60203^60204|60202^60201|60205^60207|60201^60204|60203^60201^60202 | C43: ='4'!AD260 -> 0^0^0|0^0|0^0^0|0^0|100^0|0^0|0^0^0 | D43: ='4'!AD273 -> 6^18^6|4^10|4^4^4|4^11|8^1|12^2|3^8^4 | E43: 10 | F43: 3 | G43: 0 | H43: 20001^21020 | I43: 3 | J43: 0 | K43: 130003^2|130004^1 | L43: 7^10 | M43: 60205^60205 | N43: 100^100 | O43: 6^12
A44: 2003 | B44: ='4'!AR233 -> 60204^60201^60201^60201^60204^60202^60202^60202^60205^60205^60205^60201^60203^60203^60203^60201^60202^60204^60203^60207^60203^60204^60202^60202^60201^60201^60201^60201^60202^60204^60202^60202^60202^60204 | C44: ='4'!AR260 -> 4^2^1^3^5^4^1^5^102^103^104^4^2^1^3^5^6^4^2^1^3^5^7^6^4^2^3^5^7^6^4^1^5^7 | D44: ='4'!AR273 -> 2^2^2^2^2^5^5^5^9^9^9^14^14^14^14^14^25^25^25^25^25^25^25^35^35^35^35^35^35^45^45^45^45^45 | E44: 0 | F44: 1 | G44: 0 | H44: 20001^21020 | I44: 0 | J44: 1 | K44: 130003^2|130004^1 | L44: 6^10 | M44: 60205^60205 | N44: 100^100 | O44: 8^12
A45: 2101 | B45: ='5'!P15 -> 60211|60212^60211|60214^60213^60212|60213^60211^60212^60214|60211^60212|60215|60213^60212^60214|60214^60211^60212|60215|60213^60211^60214 | C45: ='5'!P42 -> 0|0^0|0^0^0|0^0^0^0|0^0|100|0^0^0|0^0^0|100|0^0^0 | D45: ='5'!P56 -> 7|3^6|2^3^4|2^6^3^2|8^4|7|4^4^2|2^8^3|8|4^8^2 | E45: 11 | F45: 3 | G45: 0 | H45: 20001^21021 | I45: 4 | J45: 0 | K45: 130003^2|130004^2 | L45: 6^10 | M45: 60215^60215 | N45: 100^100 | O45: 7^12
A46: 2102 | B46: ='5'!AD15 -> 60214^60211^60213|60212^60211|60213^60211^60214|60212^60211|60215|60214^60211^60212|60213^60211^60212 | C46: ='5'!AD42 -> 0^0^0|0^0|0^0^0|0^0|100|0^0^0|0^0^0 | D46: ='5'!AD55 -> 6^22^4|4^7|3^8^2|4^8|7|2^9^3|2^8^4 | E46: 11 | F46: 3 | G46: 0 | H46: 20001^21021 | I46: 3 | J46: 0 | K46: 130003^2|130004^2 | L46: 7^10 | M46: 60215^60215 | N46: 100^100 | O46: 7^12
A47: 2103 | B47: ='5'!AR15 -> 60214^60211^60211^60214^60212^60212^60212^60215^60215^60215^60211^60213^60213^60211^60212^60214^60213^60213^60214^60212^60212^60211^60211^60211^60211^60212^60214^60212^60212^60212^60214 | C47: ='5'!AR42 -> 4^2^3^5^4^1^5^102^103^104^4^2^3^5^6^4^2^3^5^7^6^4^2^3^5^7^6^4^1^5^7 | D47: ='5'!AR55 -> 3^3^3^3^5^5^5^9^9^9^15^15^15^15^23^23^23^23^23^23^30^30^30^30^30^30^40^40^40^40^40 | E47: 0 | F47: 1 | G47: 0 | H47: 20001^21021 | I47: 0 | J47: 1 | K47: 130003^2|130004^2 | L47: 6^10 | M47: 60215^60215 | N47: 100^100 | O47: 8^12
A48: 2201 | B48: ='5'!P73 -> 60224^60221|60222^60221|60224^60223^60221|60224^60222^60221|60221^60222^60223|60225|60223^60221^60222|60222^60221|60225^60226|60223^60221^60222 | C48: ='5'!P100 -> 0^0|0^0|0^0^0|0^0^0|0^0^0|100|0^0^0|0^0|100^0|0^0^0 | D48: ='5'!P114 -> 2^5|4^5|2^2^6|2^3^6|7^3^3|7|4^6^3|4^8|8^1|3^8^3 | E48: 12 | F48: 3 | G48: 0 | H48: 20001^21022 | I48: 4 | J48: 0 | K48: 130003^2|130004^2 | L48: 6^10 | M48: 60225^60225 | N48: 100^100 | O48: 7^12
A49: 2202 | B49: ='5'!AD73 -> 60224^60222^60221|60221^60222|60223^60221^60222|60222^60224^60226|60225|60221^60222|60223^60222^60224 | C49: ='5'!AD100 -> 0^0^0|0^0|0^0^0|0^0^0|100|0^0|0^0^0 | D49: ='5'!AD113 -> 6^8^18|6^4|3^8^3|6^3^2|7|7^4|3^4^2 | E49: 11 | F49: 3 | G49: 0 | H49: 20001^21022 | I49: 3 | J49: 0 | K49: 130003^2|130004^2 | L49: 7^10 | M49: 60225^60225 | N49: 100^100 | O49: 7^12
A50: 2203 | B50: ='5'!AR73 -> 60224^60222^60222^60224^60221^60221^60221^60225^60225^60222^60223^60226^60223^60222^60222^60224^60221^60221^60221^60224^60222^60222^60221^60221^60221^60221^60222^60224^60222^60222^60222^60224 | C50: ='5'!AR100 -> 4^2^3^5^4^1^5^102^104^4^2^1^3^5^6^4^2^1^3^5^7^6^4^2^3^5^7^6^4^1^5^7 | D50: ='5'!AR113 -> 4^4^4^4^6^6^6^10^10^15^15^15^15^15^20^20^20^20^20^20^20^25^25^25^25^25^25^30^30^30^30^30 | E50: 0 | F50: 1 | G50: 0 | H50: 20001^21022 | I50: 0 | J50: 1 | K50: 130003^2|130004^2 | L50: 6^10 | M50: 60225^60225 | N50: 100^100 | O50: 8^12
A51: 2301 | B51: ='5'!P131 -> 60232^60231^60231^60231^60232^60234^60232^60232^60234^60232^60233^60234^60233^60232^60234^60232^60231^60231^60231^60232^60234^60232^60231^60231^60231^60232^60235^60235^60235^60235^60235^60234^60232^60233^60233^60232^60234^60232^60231^60231^60232^60231^60231^60232^60234^60232^60233^60236^60233^60232^60234^60235^60235^60235^60235^60235 | C51: ='5'!P158 -> 4^2^1^3^5^4^2^3^5^8^2^1^3^9^6^4^2^1^3^5^7^4^2^1^3^5^101^102^103^104^105^6^4^2^3^5^7^6^4^2^1^3^5^7^8^6^2^1^3^7^9^101^102^103^104^105 | D51: ='5'!P172 -> 5^5^5^5^5^10^10^10^10^16^16^16^16^16^23^23^23^23^23^23^23^30^30^30^30^30^35^35^35^35^35^43^43^43^43^43^43^52^52^52^52^52^52^52^60^60^60^60^60^60^60^65^65^65^65^65 | E51: 0 | F51: 1 | G51: 0 | H51: 20001^21023 | I51: 4 | J51: 0 | K51: 130003^2|130004^2 | L51: 6^10 | M51: 60235^60235 | N51: 100^100 | O51: 7^12
A52: 2302 | B52: ='5'!AD131 -> 60232^60231^60231^60231^60231^60232^60232^60233^60232^60234^60232^60233^60234^60231^60233^60236^60233^60231^60234^60231^60231^60232^60232^60231^60231^60235^60235^60235^60235^60235^60231^60234^60231^60231^60231^60234^60231^60232^60231^60233^60233^60233^60231^60232 | C52: ='5'!AD158 -> 6^4^2^1^3^5^7^4^2^1^3^5^6^4^2^1^3^5^7^6^4^2^3^5^7^101^102^103^104^105^6^4^2^1^3^5^7^6^4^2^1^3^5^7 | D52: ='5'!AD171 -> 3^3^3^3^3^3^3^7^7^7^7^7^13^13^13^13^13^13^13^20^20^20^20^20^20^25^25^25^25^25^32^32^32^32^32^32^32^40^40^40^40^40^40^40 | E52: 0 | F52: 1 | G52: 0 | H52: 20001^21023 | I52: 4 | J52: 0 | K52: 130003^2|130004^2 | L52: 7^10 | M52: 60235^60235 | N52: 100^100 | O52: 7^12
A53: 2303 | B53: ='5'!AR131 -> 60231^60232|60234^60232^60233|60235|60232^60233^60231|60231^60232^60234|60233^60231^60232|60232^60234 | C53: ='5'!AR158 -> 0^0|0^0^0|100|0^0^0|0^0^0|0^0^0|0^0 | D53: ='5'!AR171 -> 25^8|2^4^4|8|3^3^7|6^4^2|3^8^3|6^4 | E53: 10 | F53: 3 | G53: 0 | H53: 20001^21023 | I53: 0 | J53: 1 | K53: 130003^2|130004^2 | L53: 6^10 | M53: 60235^60235 | N53: 100^100 | O53: 8^12
A54: 2401 | B54: ='5'!P189 -> 60242^60244|60241^60242|60244^60242^60243|60241^60242^60244|60242^60243^60241|60245|60241^60242^60244|60244^60243^60241^60242|60245^60246|60242^60243^60241^60244 | C54: ='5'!P216 -> 0^0|0^0|0^0^0|0^0^0|0^0^0|100|0^0^0|0^0^0^0|100^0|0^0^0^0 | D54: ='5'!P230 -> 4^2|6^3|2^4^3|7^3^2|3^2^8|7|8^2^2|2^2^7^2|7^1|2^3^6^2 | E54: 11 | F54: 3 | G54: 0 | H54: 20001^21024 | I54: 5 | J54: 0 | K54: 130003^2|130004^2 | L54: 6^10 | M54: 60245^60245 | N54: 100^100 | O54: 7^12
A55: 2402 | B55: ='5'!AD189 -> 60241^60244^60241^60246^60241^60244^60241^60242^60243^60242^60243^60242^60242^60244^60242^60243^60243^60243^60242^60244^60242^60242^60241^60244^60241^60242^60242^60245^60245^60245^60245^60245^60242^60241^60241^60244^60241^60241^60242^60242^60241^60243^60243^60243^60241^60242 | C55: ='5'!AD216 -> 6^4^2^1^3^5^7^4^2^1^3^5^9^6^4^2^1^3^5^7^6^4^2^1^3^5^7^101^102^103^104^105^6^4^2^1^3^5^7^6^4^2^1^3^5^7 | D55: ='5'!AD229 -> 3^3^3^3^3^3^3^10^10^10^10^10^10^25^25^25^25^25^25^25^40^40^40^40^40^40^40^45^45^45^45^45^60^60^60^60^60^60^60^75^75^75^75^75^75^75 | E55: 1 | F55: 2 | G55: 0 | H55: 20001^21024 | I55: 4 | J55: 0 | K55: 130003^2|130004^2 | L55: 7^10 | M55: 60245^60245 | N55: 100^100 | O55: 7^12
A56: 2403 | B56: ='5'!AR189 -> 60244^60242^60242^60242^60244^60241^60242^60241^60242^60241^60245^60245^60245^60245^60245^60242^60243^60246^60243^60242^60241^60241^60243^60242^60243^60241^60241^60244^60242^60241^60241^60241^60242^60244^60243^60242^60242^60244^60242^60242^60243 | C56: ='5'!AR216 -> 4^2^1^3^5^6^2^1^3^7^101^102^103^104^105^4^2^1^3^5^6^4^2^1^3^5^7^8^6^2^1^3^7^9^6^4^2^1^3^5^7 | D56: ='5'!AR229 -> 3^3^3^3^3^5^5^5^5^5^10^10^10^10^10^15^15^15^15^15^21^21^21^21^21^21^21^28^28^28^28^28^28^28^35^35^35^35^35^35^35 | E56: 0 | F56: 1 | G56: 0 | H56: 20001^21024 | I56: 0 | J56: 1 | K56: 130003^2|130004^2 | L56: 6^10 | M56: 60245^60245 | N56: 100^100 | O56: 8^12
A57: 2501 | B57: ='5'!P247 -> 60252^60251^60251^60252^60252^60254^60252^60254^60252^60252^60253^60254^60254^60253^60252^60254^60252^60251^60251^60251^60252^60254^60255^60255^60255^60255^60255^60252^60251^60253^60254^60253^60251^60252^60255^60255^60255^60255^60255^60254^60252^60251^60253^60253^60251^60252^60254^60255^60255^60255^60255^60255^60254^60252^60253^60256^60253^60252^60254 | C57: ='5'!P274 -> 6^2^3^7^4^2^1^3^5^6^4^2^3^5^7^8^6^2^1^3^7^9^101^102^103^104^105^8^4^2^1^3^5^9^101^102^103^104^105^8^6^4^2^3^5^7^9^101^102^103^104^105^6^4^2^1^3^5^7 | D57: ='5'!P288 -> 5^5^5^5^10^10^10^10^10^16^16^16^16^16^16^23^23^23^23^23^23^23^30^30^30^30^30^37^37^37^37^37^37^37^45^45^45^45^45^55^55^55^55^55^55^55^55^60^60^60^60^60^70^70^70^70^70^70^70 | E57: 0 | F57: 1 | G57: 0 | H57: 20001^21025 | I57: 4 | J57: 0 | K57: 130003^2|130004^2|130005^1 | L57: 6^10 | M57: 60255^60255 | N57: 100^100 | O57: 7^12
A58: 2502 | B58: ='5'!AD247 -> 60252^60254^60251|60251^60253|60255^60256|60253^60252^60254|60255|60254^60251^60252|60253^60251^60252|60251^60252^60254^60256 | C58: ='5'!AD274 -> 0^0^0|0^0|100^0|0^0^0|100|0^0^0|0^0^0|0^0^0^0 | D58: ='5'!AD287 -> 6^4^20|8^3|7^1|4^4^2|8|2^9^3|4^8^3|9^4^2^1 | E58: 11 | F58: 3 | G58: 0 | H58: 20001^21025 | I58: 4 | J58: 0 | K58: 130003^2|130004^2|130005^1 | L58: 7^10 | M58: 60255^60255 | N58: 100^100 | O58: 7^12
A59: 2503 | B59: ='5'!AR247 -> 60254^60251^60251^60251^60254^60252^60252^60252^60252^60255^60255^60255^60255^60255^60252^60251^60253^60256^60253^60251^60252^60254^60252^60251^60251^60251^60252^60254^60255^60255^60255^60255^60255^60252^60251^60253^60253^60253^60251^60252^60254^60252^60252^60252^60252^60254 | C59: ='5'!AR274 -> 4^2^1^3^5^4^2^3^5^101^102^103^104^105^6^4^2^1^3^5^7^8^6^2^1^3^7^9^101^102^103^104^105^8^4^2^1^3^5^9^6^4^2^3^5^7 | D59: ='5'!AR287 -> 2^2^2^2^2^5^5^5^5^9^9^9^9^9^14^14^14^14^14^14^14^20^20^20^20^20^20^20^25^25^25^25^25^32^32^32^32^32^32^32^40^40^40^40^40^40 | E59: 0 | F59: 1 | G59: 0 | H59: 20001^21025 | I59: 0 | J59: 1 | K59: 130003^2|130004^2|130005^1 | L59: 6^10 | M59: 60255^60255 | N59: 100^100 | O59: 8^12
A60: 2601 | B60: ='6'!P15 -> 60261^60264|60261^60262|60264^60263^60262|60262^60261^60264|60265|60264^60263^60262|60262^60261^60264|60264^60263^60262|60265|60263^60262^60264 | C60: ='6'!P42 -> 0^0|0^0|0^0^0|0^0^0|100|0^0^0|0^0^0|0^0^0|100|0^0^0 | D60: ='6'!P56 -> 5^2|7^4|2^3^5|3^7^2|8|2^3^5|3^8^2|2^4^5|9|3^6^2 | E60: 11 | F60: 3 | G60: 0 | H60: 20002^21026 | I60: 4 | J60: 0 | K60: 130003^2|130004^2 | L60: 6^10 | M60: 60265^60265 | N60: 100^100 | O60: 7^12
A61: 2602 | B61: ='6'!AD15 -> 60261^60264^60266|60262^60261|60265|60263^60262^60264|60264^60261^60262|60263^60261^60262|60265|60262^60261^60264 | C61: ='6'!AD42 -> 0^0^0|0^0|100|0^0^0|0^0^0|0^0^0|100|0^0^0 | D61: ='6'!AD55 -> 18^6^1|3^8|9|3^5^2|2^7^3|2^8^3|10|3^9^2 | E61: 11 | F61: 3 | G61: 0 | H61: 20002^21026 | I61: 4 | J61: 0 | K61: 130003^2|130004^2 | L61: 7^10 | M61: 60265^60265 | N61: 100^100 | O61: 7^12
A62: 2603 | B62: ='6'!AR15 -> 60263^60263^60264^60264^60261^60261^60261^60261^60262^60262^60262^60262^60264^60262^60261^60263^60261^60262^60264^60262^60261^60263^60263^60261^60262^60265^60265^60265^60265^60264^60262^60263^60263^60262^60264 | C62: ='6'!AR42 -> 2^3^4^5^4^2^3^5^6^4^5^7^8^6^4^1^5^7^9^6^2^1^3^5^9^101^102^104^105^6^4^2^3^5^7 | D62: ='6'!AR55 -> 3^3^5^5^8^8^8^8^13^13^13^13^20^20^20^20^20^20^20^30^30^30^30^30^30^35^35^35^35^45^45^45^45^45^45 | E62: 0 | F62: 1 | G62: 0 | H62: 20002^21026 | I62: 0 | J62: 1 | K62: 130003^2|130004^2 | L62: 6^10 | M62: 60265^60265 | N62: 100^100 | O62: 8^12
A63: 2701 | B63: ='6'!P73 -> 60271^60272|60272^60274|60274^60273^60271|60275|60271^60274^60272|60274^60273^60271^60272|60274^60272|60271^60272|60273^60272^60274|60275^60276 | C63: ='6'!P100 -> 0^0|0^0|0^0^0|100|0^0^0|0^0^0^0|0^0|0^0|0^0^0|100^0 | D63: ='6'!P114 -> 5^2|5^3|3^2^7|9|8^2^3|2^3^7^3|3^5|9^3|2^8^2|8^1 | E63: 11 | F63: 3 | G63: 0 | H63: 20002^21027 | I63: 4 | J63: 0 | K63: 130003^2|130004^2 | L63: 6^10 | M63: 60275^60275 | N63: 100^100 | O63: 7^12
A64: 2702 | B64: ='6'!AD73 -> 60271^60272^60272^60272^60271^60274^60272^60273^60272^60274^60275^60275^60275^60275^60275^60274^60272^60273^60272^60273^60272^60274^60272^60271^60271^60272^60271^60271^60272^60275^60275^60275^60275^60275^60272^60271^60273^60272^60273^60271^60272^60274^60271^60272^60276^60272^60271^60274 | C64: ='6'!AD100 -> 4^2^1^3^5^4^2^1^3^5^101^102^103^104^105^6^4^2^1^3^5^7^8^4^2^1^3^5^9^101^102^103^104^105^6^4^2^1^3^5^7^8^6^2^1^3^7^9 | D64: ='6'!AD113 -> 4^4^4^4^4^10^10^10^10^10^15^15^15^15^15^25^25^25^25^25^25^25^35^35^35^35^35^35^35^40^40^40^40^40^50^50^50^50^50^50^50^60^60^60^60^60^60^60 | E64: 0 | F64: 1 | G64: 0 | H64: 20002^21027 | I64: 4 | J64: 0 | K64: 130003^2|130004^2 | L64: 7^10 | M64: 60275^60275 | N64: 100^100 | O64: 7^12
A65: 2703 | B65: ='6'!AR73 -> 60273^60273^60275^60275^60275^60274^60274^60271^60271^60271^60271^60272^60272^60272^60272^60272^60271^60273^60274^60273^60271^60272^60272^60271^60273^60273^60271^60272^60274^60272^60271^60271^60272^60274^60275^60275^60275^60275 | C65: ='6'!AR100 -> 2^3^101^103^105^2^3^4^2^3^5^6^4^5^7^6^4^2^1^3^5^7^8^4^2^3^5^9^6^4^2^3^5^7^101^102^104^105 | D65: ='6'!AR113 -> 2^2^4^4^4^8^8^14^14^14^14^20^20^20^20^30^30^30^30^30^30^30^40^40^40^40^40^40^50^50^50^50^50^50^55^55^55^55 | E65: 0 | F65: 1 | G65: 0 | H65: 20002^21027 | I65: 0 | J65: 1 | K65: 130003^2|130004^2 | L65: 6^10 | M65: 60275^60275 | N65: 100^100 | O65: 8^12
A66: 2801 | B66: ='6'!P131 -> 60284^60282^60282^60284^60281^60281^60284^60281^60281^60282^60283^60283^60283^60282^60284^60282^60281^60281^60281^60282^60284^60285^60285^60285^60285^60285^60282^60284^60281^60283^60281^60284^60282^60285^60285^60285^60285^60285^60284^60282^60281^60283^60283^60281^60282^60284^60285^60285^60285^60285^60285^60284^60282^60283^60286^60283^60282^60284 | C66: ='6'!P158 -> 4^2^3^5^6^4^1^5^7^6^2^1^3^7^8^6^4^1^5^7^9^101^102^103^104^105^8^6^2^1^3^7^9^101^102^103^104^105^8^6^4^2^3^5^7^9^101^102^103^104^105^6^4^2^1^3^5^7 | D66: ='6'!P172 -> 5^5^5^5^10^10^10^10^10^18^18^18^18^18^28^28^28^28^28^28^28^35^35^35^35^35^45^45^45^45^45^45^45^50^50^50^50^50^60^60^60^60^60^60^60^60^65^65^65^65^65^75^75^75^75^75^75^75 | E66: 0 | F66: 1 | G66: 0 | H66: 20002^21028 | I66: 4 | J66: 0 | K66: 130003^2|130004^2 | L66: 6^10 | M66: 60285^60285 | N66: 100^100 | O66: 7^12
A67: 2802 | B67: ='6'!AD131 -> 60282^60283^60281|60283^60281|60285|60282^60283^60283|60283^60281^60282|60285^60286|60283^60283^60282|60283^60282^60281 | C67: ='6'!AD158 -> 0^0^0|0^0|100|0^0^0|0^0^0|100^0|0^0^0|0^0^0 | D67: ='6'!AD171 -> 6^4^15|3^8|8|4^3^3|2^7^3|9^1|3^3^4|2^3^8 | E67: 10 | F67: 3 | G67: 0 | H67: 20002^21028 | I67: 4 | J67: 0 | K67: 130003^2|130004^2 | L67: 7^10 | M67: 60285^60285 | N67: 100^100 | O67: 7^12
A68: 2803 | B68: ='6'!AR131 -> 60282^60284^60282^60285^60285^60285^60283^60283^60283^60281^60281^60281^60281^60284^60282^60283^60281^60283^60282^60284^60285^60285^60285^60285^60285^60282^60284^60281^60282^60281^60284^60282^60284^60282^60283^60283^60283^60282^60284^60282^60281^60281^60281^60281^60282 | C68: ='6'!AR158 -> 2^1^3^101^103^105^2^1^3^6^4^5^7^8^6^2^1^3^7^9^101^102^103^104^105^8^6^4^1^5^7^9^6^4^2^1^3^5^7^6^4^2^3^5^7 | D68: ='6'!AR171 -> 3^3^3^5^5^5^9^9^9^15^15^15^15^23^23^23^23^23^23^23^30^30^30^30^30^40^40^40^40^40^40^40^50^50^50^50^50^50^50^60^60^60^60^60^60 | E68: 0 | F68: 1 | G68: 0 | H68: 20002^21028 | I68: 0 | J68: 1 | K68: 130003^2|130004^2 | L68: 6^10 | M68: 60285^60285 | N68: 100^100 | O68: 8^12
A69: 2901 | B69: ='6'!P189 -> 60291^60291^60291^60291^60292^60294^60294^60292^60292^60293^60294^60293^60292^60295^60295^60295^60295^60295^60292^60291^60293^60294^60293^60291^60292^60294^60292^60291^60291^60291^60291^60292^60294^60293^60291^60292^60296^60292^60291^60293^60295^60295^60295^60295^60295^60294^60292^60291^60293^60293^60291^60292^60294^60294^60292^60293^60292^60293^60292^60294 | C69: ='6'!P216 -> 2^1^3^5^4^2^1^3^6^4^1^5^7^101^102^103^104^105^6^4^2^1^3^5^7^8^6^4^2^3^5^7^9^6^4^2^1^3^5^7^101^102^103^104^105^8^6^4^2^3^5^7^9^6^4^2^1^3^5^7 | D69: ='6'!P230 -> 5^5^5^5^10^10^10^10^16^16^16^16^16^20^20^20^20^20^30^30^30^30^30^30^30^40^40^40^40^40^40^40^40^50^50^50^50^50^50^50^55^55^55^55^55^65^65^65^65^65^65^65^65^75^75^75^75^75^75^75 | E69: 0 | F69: 1 | G69: 0 | H69: 20002^21029 | I69: 3 | J69: 0 | K69: 130003^2|130004^2 | L69: 6^10 | M69: 60295^60295 | N69: 100^100 | O69: 7^12
A70: 2902 | B70: ='6'!AD189 -> 60295^60295^60295^60295^60295^60294^60292^60292^60292^60294^60291^60291^60291^60291^60291^60292^60294^60291^60293^60293^60291^60294^60292^60291^60292^60292^60292^60291^60295^60295^60295^60295^60295^60292^60291^60293^60296^60293^60291^60292^60294^60291^60292^60292^60292^60291^60294 | C70: ='6'!AD216 -> 101^102^103^104^105^4^2^1^3^5^4^2^1^3^5^8^6^4^2^3^5^7^9^4^2^1^3^5^101^102^103^104^105^6^4^2^1^3^5^7^8^6^2^1^3^7^9 | D70: ='6'!AD229 -> 4^4^4^4^4^8^8^8^8^8^14^14^14^14^14^30^30^30^30^30^30^30^30^47^47^47^47^47^50^50^50^50^50^65^65^65^65^65^65^65^80^80^80^80^80^80^80 | E70: 0 | F70: 1 | G70: 0 | H70: 20002^21029 | I70: 4 | J70: 0 | K70: 130003^2|130004^2 | L70: 7^10 | M70: 60295^60295 | N70: 100^100 | O70: 7^12
A71: 2903 | B71: ='6'!AR189 -> 60292^60294^60292^60293^60293^60293^60291^60291^60291^60291^60295^60295^60295^60295^60295^60292^60291^60293^60296^60293^60291^60292^60294^60291^60292^60292^60292^60291^60294^60292^60291^60293^60293^60291^60292^60294^60292^60291^60291^60292^60294^60292^60291^60293^60292^60293^60291^60292 | C71: ='6'!AR216 -> 2^1^3^4^1^5^6^4^5^7^101^102^103^104^105^6^4^2^1^3^5^7^6^4^2^1^3^5^7^6^4^2^1^3^5^4^2^1^3^5^7^6^4^2^1^3^5^7 | D71: ='6'!AR229 -> 3^3^3^5^5^5^8^8^8^8^12^12^12^12^12^18^18^18^18^18^18^18^25^25^25^25^25^25^25^33^33^33^33^33^33^40^40^40^40^40^40^50^50^50^50^50^50^50 | E71: 0 | F71: 1 | G71: 0 | H71: 20002^21029 | I71: 0 | J71: 1 | K71: 130003^2|130004^2 | L71: 6^10 | M71: 60295^60295 | N71: 100^100 | O71: 8^12
A72: 3001 | B72: ='6'!P247 -> 60301^60304|60301^60302|60303^60301^60302|60301^60302^60304|60305^60304|60303^60301^60302|60305^60302|60303^60301^60302^60304|60305^60301^60307|60302^60304^60303 | C72: ='6'!P274 -> 0^0|0^0|0^0^0|0^0^0|100^0|0^0^0|100^0|0^0^0^0|100^0^0|0^0^0 | D72: ='6'!P288 -> 6^2|7^4|2^7^3|7^4^2|7^2|2^8^3|6^3|2^6^3^2|6^4^1|4^2^3 | E72: 10 | F72: 3 | G72: 0 | H72: 20002^21030 | I72: 4 | J72: 0 | K72: 130003^2|130004^2|130005^1 | L72: 7^10^15 | M72: 60305^60305^60305 | N72: 100^100^100 | O72: 8^12^15
A73: 3002 | B73: ='6'!AD247 -> 60301^60301^60301^60301^60301^60304^60304^60304^60302^60302^60302^60302^60305^60305^60305^60305^60305^60303^60303^60303^60304^60302^60301^60307^60301^60302^60304^60302^60301^60303^60302^60303^60301^60302^60305^60305^60305^60305^60305 | C73: ='6'!AD274 -> 4^2^1^3^5^4^1^5^6^4^5^7^101^102^103^104^105^4^1^5^8^6^4^1^5^7^9^6^4^2^1^3^5^7^101^102^103^104^105 | D73: ='6'!AD287 -> 5^5^5^5^5^10^10^10^15^15^15^15^20^20^20^20^20^25^25^25^32^32^32^32^32^32^32^40^40^40^40^40^40^40^45^45^45^45^45 | E73: 0 | F73: 1 | G73: 0 | H73: 20002^21030 | I73: 4 | J73: 0 | K73: 130003^2|130004^2|130005^1 | L73: 7^10^15 | M73: 60305^60305^60305 | N73: 100^100^100 | O73: 8^12^15
A74: 3003 | B74: ='6'!AR247 -> 60302^60302^60302^60302^60305^60305^60305^60305^60305^60301^60301^60301^60301^60301^60303^60303^60303^60304^60302^60301^60301^60301^60302^60304^60302^60301^60303^60307^60303^60301^60302^60304^60302^60302^60302^60302^60304^60305^60305^60305^60305^60305 | C74: ='6'!AR274 -> 6^2^3^7^101^102^103^104^105^6^4^1^5^7^4^1^5^8^6^2^1^3^7^9^8^4^2^1^3^5^9^6^4^2^3^5^7^101^102^103^104^105 | D74: ='6'!AR287 -> 3^3^3^3^5^5^5^5^5^9^9^9^9^9^14^14^14^20^20^20^20^20^20^20^27^27^27^27^27^27^27^35^35^35^35^35^35^40^40^40^40^40 | E74: 0 | F74: 1 | G74: 0 | H74: 20002^21030 | I74: 4 | J74: 0 | K74: 130003^2|130004^2|130005^1 | L74: 6^10 | M74: 60305^60305 | N74: 100^100 | O74: 8^12
A75: 3004 | B75: ='6'!BF247 -> 60303^60303^60303^60302^60302^60302^60304^60304^60301^60301^60301^60301^60305^60305^60305^60305^60305^60304^60302^60303^60306^60303^60302^60304^60302^60302^60301^60304^60301^60302^60302^60305^60305^60305^60305^60305 | C75: ='6'!BF274 -> 2^1^3^4^1^5^2^3^6^4^5^7^101^102^103^104^105^6^4^2^1^3^5^7^6^4^2^1^3^5^7^101^102^103^104^105 | D75: ='6'!BF287 -> 2^2^2^4^4^4^6^6^9^9^9^9^12^12^12^12^12^20^20^20^20^20^20^20^30^30^30^30^30^30^30^35^35^35^35^35 | E75: 0 | F75: 1 | G75: 0 | H75: 20002^21030 | I75: 0 | J75: 1 | K75: 130003^2|130004^2|130005^1 | L75: 8 | M75: 60305 | N75: 100 | O75: 10
A76: 3101 | B76: ='7'!P14 -> 60311|60311^60312|60313^60314^60312|60311^60312^60314|60315^60312|60313^60311^60312|60314^60311^60312|60313^60311^60312^60314|60312^60311|60315^60312^60314 | C76: ='7'!P41 -> 0|0^0|0^0^0|0^0^0|100^0|0^0^0|0^0^0|0^0^0^0|0^0|100^0^0 | D76: ='7'!P55 -> 8|7^3|3^2^4|7^3^2|7^3|2^7^4|2^9^3|2^7^3^2|4^9|6^3^2 | E76: 13 | F76: 3 | G76: 0 | H76: 20002^21031 | I76: 4 | J76: 0 | K76: 130003^3|130004^2 | L76: 7^10^15 | M76: 60315^60315^60315 | N76: 100^100^100 | O76: 8^12^15
A77: 3102 | B77: ='7'!AD14 -> 60312^60314^60311|60313^60311|60311^60312|60315^60314^60316|60313^60311^60312|60313^60311^60312^60314|60313^60311^60312|60313^60311^60312^60314 | C77: ='7'!AD41 -> 0^0^0|0^0|0^0|100^0^0|0^0^0|0^0^0^0|0^0^0|0^0^0^0 | D77: ='7'!AD54 -> 6^4^15|2^8|7^4|7^2^1|2^8^4|2^6^3^2|2^8^3|2^6^4^2 | E77: 13 | F77: 3 | G77: 0 | H77: 20002^21031 | I77: 4 | J77: 0 | K77: 130003^3|130004^2 | L77: 7^10^15 | M77: 60315^60315^60315 | N77: 100^100^100 | O77: 8^12^15
A78: 3103 | B78: ='7'!AR14 -> 60315^60314^60313|60312^60311|60311^60314|60313^60312|60311^60312^60314|60314^60313^60311^60312|60311^60312|60313^60311^60312^60314 | C78: ='7'!AR41 -> 100^0^0|0^0|0^0|0^0|0^0^0|0^0^0^0|0^0|0^0^0^0 | D78: ='7'!AR54 -> 10^4^4|4^8|9^2|3^5|8^3^2|2^2^6^3|8^4|2^9^3^2 | E78: 13 | F78: 3 | G78: 0 | H78: 20002^21031 | I78: 3 | J78: 0 | K78: 130003^3|130004^2 | L78: 6^10 | M78: 60315^60315 | N78: 100^100 | O78: 8^12
A79: 3104 | B79: ='7'!BF14 -> 60313^60313^60312^60312^60312^60314^60314^60311^60311^60311^60311^60315^60315^60315^60315^60314^60312^60313^60313^60312^60314^60312^60312^60311^60314^60311^60312^60312^60312^60312^60311^60311^60311^60311^60312^60312 | C79: ='7'!BF41 -> 2^3^4^1^5^2^3^6^4^5^7^101^102^104^105^6^4^2^3^5^7^6^4^2^1^3^5^7^8^6^4^2^3^5^7^9 | D79: ='7'!BF54 -> 2^2^4^4^4^6^6^8^8^8^8^10^10^10^10^20^20^20^20^20^20^30^30^30^30^30^30^30^40^40^40^40^40^40^40^40 | E79: 0 | F79: 1 | G79: 0 | H79: 20002^21031 | I79: 0 | J79: 1 | K79: 130003^3|130004^2 | L79: 8 | M79: 60315^60315^60315 | N79: 100 | O79: 10
A80: 3201 | B80: ='7'!P72 -> 60322^60324|60321^60322|60323^60322^60324|60325^60321|60322^60321|60323^60321^60322^60324|60321^60322|60325^60322|60324^60321^60322|60323^60321^60322^60324 | C80: ='7'!P99 -> 0^0|0^0|0^0^0|100^0|0^0|0^0^0^0|0^0|100^0|0^0^0|0^0^0^0 | D80: ='7'!P113 -> 5^2|8^3|4^5^2|8^4|4^8|2^7^3^2|8^4|8^4|2^8^3|2^7^3^2 | E80: 12 | F80: 3 | G80: 0 | H80: 20002^21032 | I80: 4 | J80: 0 | K80: 130003^3|130004^2 | L80: 7^10^15 | M80: 60325^60325^60325 | N80: 100^100^100 | O80: 8^12^15
A81: 3202 | B81: ='7'!AD72 -> 60325^60325^60325^60325^60322^60322^60322^60323^60323^60323^60324^60321^60326^60321^60324^60322^60321^60321^60321^60321^60322^60324^60322^60321^60323^60323^60321^60322^60324^60322^60321^60322^60324^60322^60321^60322^60325^60325^60325^60325^60325 | C81: ='7'!AD99 -> 101^102^104^105^4^1^5^6^1^7^4^2^1^3^5^6^4^2^3^5^7^8^6^4^2^3^5^7^9^6^4^2^1^3^5^7^101^102^103^104^105 | D81: ='7'!AD112 -> 5^5^5^5^10^10^10^15^15^15^20^20^20^20^20^30^30^30^30^30^30^40^40^40^40^40^40^40^40^50^50^50^50^50^50^50^55^55^55^55^55 | E81: 0 | F81: 1 | G81: 0 | H81: 20002^21032 | I81: 4 | J81: 0 | K81: 130003^3|130004^2 | L81: 7^10^15 | M81: 60325^60325^60325 | N81: 100^100^100 | O81: 8^12^15
A82: 3203 | B82: ='7'!AR72 -> 60323^60321|60322^60324|60321^60322|60325^60322|60322^60321^60324|60324^60323^60321|60321^60322|60323^60321^60322^60324 | C82: ='7'!AR99 -> 0^0|0^0|0^0|100^0|0^0^0|0^0^0|0^0|0^0^0^0 | D82: ='7'!AR112 -> 5^13|6^4|8^2|8^3|3^7^2|2^2^8|8^4|2^7^3^2 | E82: 12 | F82: 3 | G82: 0 | H82: 20002^21032 | I82: 3 | J82: 0 | K82: 130003^3|130004^2 | L82: 6^10 | M82: 60325^60325 | N82: 100^100 | O82: 8^12
A83: 3204 | B83: ='7'!BF72 -> 60321^60321^60326^60321^60321^60322^60322^60322^60324^60324^60325^60325^60325^60325^60323^60323^60323^60324^60321^60321^60321^60321^60324^60322^60322^60322^60322^60322^60322^60322^60321^60323^60323^60321^60322^60322 | C83: ='7'!BF99 -> 4^2^1^3^5^4^1^5^2^3^101^102^104^105^4^1^5^6^4^2^3^5^7^6^4^1^5^7^8^6^4^2^3^5^7^9 | D83: ='7'!BF112 -> 2^2^2^2^2^4^4^4^6^6^8^8^8^8^10^10^10^20^20^20^20^20^20^30^30^30^30^30^40^40^40^40^40^40^40^40 | E83: 0 | F83: 1 | G83: 0 | H83: 20002^21032 | I83: 0 | J83: 1 | K83: 130003^3|130004^2 | L83: 8 | M83: 60325^60325^60325 | N83: 100 | O83: 10
A84: 3301 | B84: ='7'!P130 -> 60331^60331^60331^60331^60334^60332^60332^60332^60334^60332^60331^60333^60333^60331^60332^60332^60331^60331^60334^60331^60331^60332^60334^60332^60333^60332^60333^60332^60334^60335^60335^60335^60335^60335^60331^60331^60332^60332^60332^60331^60331^60334^60332^60331^60333^60333^60331^60332^60334^60332^60331^60333^60336^60333^60331^60332^60335^60335^60335^60335^60335 | C84: ='7'!P157 -> 4^2^3^5^6^2^1^3^7^8^4^2^3^5^9^6^4^2^1^3^5^7^8^6^2^1^3^7^9^101^102^103^104^105^8^6^4^1^5^7^9^8^6^4^2^3^5^7^9^6^4^2^1^3^5^7^101^102^103^104^105 | D84: ='7'!P171 -> 5^5^5^5^10^10^10^10^10^17^17^17^17^17^17^25^25^25^25^25^25^25^35^35^35^35^35^35^35^40^40^40^40^40^50^50^50^50^50^50^50^60^60^60^60^60^60^60^60^70^70^70^70^70^70^70^75^75^75^75^75 | E84: 0 | F84: 1 | G84: 0 | H84: 20002^21033 | I84: 4 | J84: 0 | K84: 130003^3|130004^2 | L84: 7^10^15 | M84: 60335^60335^60335 | N84: 100^100^100 | O84: 8^12^15
A85: 3302 | B85: ='7'!AD130 -> 60334^60332^60332^60334^60331^60331^60331^60331^60333^60333^60333^60335^60335^60335^60335^60334^60332^60331^60331^60332^60334^60332^60331^60333^60334^60333^60331^60332^60334^60331^60332^60332^60332^60331^60334^60335^60335^60335^60335^60335 | C85: ='7'!AD157 -> 6^2^3^7^4^2^3^5^4^1^5^101^102^104^105^6^4^2^3^5^7^6^4^2^1^3^5^7^8^6^2^1^3^7^9^101^102^103^104^105 | D85: ='7'!AD170 -> 5^5^5^5^10^10^10^10^15^15^15^20^20^20^20^30^30^30^30^30^30^40^40^40^40^40^40^40^50^50^50^50^50^50^50^55^55^55^55^55 | E85: 0 | F85: 1 | G85: 0 | H85: 20002^21033 | I85: 4 | J85: 0 | K85: 130003^3|130004^2 | L85: 7^10^15 | M85: 60335^60335^60335 | N85: 100^100^100 | O85: 8^12^15
A86: 3303 | B86: ='7'!AR130 -> 60333^60333^60336^60333^60333^60334^60332^60332^60332^60334^60335^60335^60335^60335^60335^60332^60331^60333^60332^60333^60331^60332^60334^60332^60331^60331^60331^60332^60334^60331^60331^60332^60332^60332^60331^60331^60332^60331^60333^60334^60333^60331^60332^60335^60335^60335^60335^60335 | C86: ='7'!AR157 -> 4^2^1^3^5^6^2^1^3^7^101^102^103^104^105^6^4^2^1^3^5^7^8^6^2^1^3^7^9^8^6^4^1^5^7^9^6^4^2^1^3^5^7^101^102^103^104^105 | D86: ='7'!AR170 -> 2^2^2^2^2^5^5^5^5^5^10^10^10^10^10^20^20^20^20^20^20^20^30^30^30^30^30^30^30^40^40^40^40^40^40^40^50^50^50^50^50^50^50^55^55^55^55^55 | E86: 0 | F86: 1 | G86: 0 | H86: 20002^21033 | I86: 3 | J86: 0 | K86: 130003^3|130004^2 | L86: 6^10 | M86: 60335^60335 | N86: 100^100 | O86: 8^12
A87: 3304 | B87: ='7'!BF130 -> 60335^60335^60335^60332^60332^60332^60334^60333^60334^60331^60331^60331^60331^60332^60331^60333^60333^60331^60332^60334^60331^60332^60332^60332^60331^60334^60332^60331^60333^60334^60333^60331^60332^60332^60332^60331^60333^60331^60332^60332 | C87: ='7'!BF157 -> 101^103^105^2^1^3^6^1^7^4^2^3^5^6^4^2^3^5^7^8^4^2^1^3^5^9^6^4^2^1^3^5^7^8^4^2^1^3^5^9 | D87: ='7'!BF170 -> 3^3^3^5^5^5^8^8^8^12^12^12^12^18^18^18^18^18^18^25^25^25^25^25^25^25^35^35^35^35^35^35^35^45^45^45^45^45^45^45 | E87: 0 | F87: 1 | G87: 0 | H87: 20002^21033 | I87: 0 | J87: 1 | K87: 130003^3|130004^2 | L87: 8 | M87: 60335 | N87: 100 | O87: 10
A88: 3401 | B88: ='7'!P188 -> 60342^60344|60341^60342|60343^60342^60344|60342^60341|60345^60342|60342^60341^60344|60343^60342^60341|60342^60341^60344|60345^60344^60347|60344^60343^60341^60342 | C88: ='7'!P215 -> 0^0|0^0|0^0^0|0^0|100^0|0^0^0|0^0^0|0^0^0|100^0^0|0^0^0^0 | D88: ='7'!P229 -> 4^3|8^3|3^4^3|4^8|8^4|3^8^2|2^3^8|3^9^2|8^2^8|2^2^7^3 | E88: 12 | F88: 3 | G88: 0 | H88: 20002^21034 | I88: 4 | J88: 0 | K88: 130003^3|130004^2 | L88: 7^10^15 | M88: 60345^60345^60345 | N88: 100^100^100 | O88: 8^12^15
A89: 3402 | B89: ='7'!AD188 -> 60344^60341^60341^60341^60344^60342^60342^60342^60342^60342^60345^60345^60345^60345^60345^60343^60341^60343^60341^60343^60344^60342^60341^60341^60341^60342^60344^60342^60341^60343^60342^60343^60341^60342^60344^60342^60341^60341^60347^60341^60341^60342^60344^60345^60345^60345^60345^60345 | C89: ='7'!AD215 -> 4^2^1^3^5^6^2^1^3^7^101^102^103^104^105^4^2^1^3^5^8^4^2^1^3^5^9^8^4^2^1^3^5^9^8^6^4^2^1^3^5^7^9^101^102^103^104^105 | D89: ='7'!AD228 -> 5^5^5^5^5^10^10^10^10^10^15^15^15^15^15^22^22^22^22^22^30^30^30^30^30^30^30^40^40^40^40^40^40^40^50^50^50^50^50^50^50^50^50^55^55^55^55^55 | E89: 0 | F89: 1 | G89: 0 | H89: 20002^21034 | I89: 3 | J89: 0 | K89: 130003^3|130004^2 | L89: 7^10^15 | M89: 60345^60345^60345 | N89: 100^100^100 | O89: 8^12^15
A90: 3403 | B90: ='7'!AR188 -> 60345^60342^60343|60342^60344|60341^60343|60343^60341^60342|60342^60341^60344|60343^60341^60342|60345^60342|60343^60341^60342^60344 | C90: ='7'!AR215 -> 100^0^0|0^0|0^0|0^0^0|0^0^0|0^0^0|100^0|0^0^0^0 | D90: ='7'!AR228 -> 10^4^4|5^4|9^2|2^8^3|3^8^2|2^8^3|8^3|2^7^3^2 | E90: 12 | F90: 3 | G90: 0 | H90: 20002^21034 | I90: 3 | J90: 0 | K90: 130003^3|130004^2 | L90: 6^10 | M90: 60345^60345 | N90: 100^100 | O90: 8^12
A91: 3404 | B91: ='7'!BF188 -> 60343^60343^60343^60342^60342^60342^60344^60344^60341^60341^60341^60341^60345^60345^60345^60345^60344^60342^60343^60343^60342^60344^60342^60341^60341^60344^60341^60341^60342^60342^60344^60342^60343^60343^60342^60344^60342 | C91: ='7'!BF215 -> 4^1^5^6^1^7^2^3^4^2^3^5^101^102^104^105^8^6^2^3^7^9^6^4^2^1^3^5^7^8^6^4^2^3^5^7^9 | D91: ='7'!BF228 -> 3^3^3^5^5^5^8^8^12^12^12^12^20^20^20^20^30^30^30^30^30^30^40^40^40^40^40^40^40^50^50^50^50^50^50^50^50 | E91: 0 | F91: 1 | G91: 0 | H91: 20002^21034 | I91: 0 | J91: 1 | K91: 130003^3|130004^2 | L91: 8 | M91: 60345 | N91: 100 | O91: 10
A92: 3501 | B92: ='7'!P246 -> 60354^60351^60351^60351^60354^60352^60352^60352^60352^60352^60351^60353^60353^60351^60352^60355^60355^60355^60355^60354^60352^60351^60351^60351^60352^60354^60354^60352^60353^60352^60353^60352^60354^60352^60351^60351^60351^60351^60351^60351^60352^60354^60352^60353^60352^60353^60352^60354^60355^60355^60355^60355^60355^60352^60352^60353^60359^60353^60352^60352 | C92: ='7'!P273 -> 6^2^1^3^7^4^2^3^5^8^6^2^3^7^9^101^102^104^105^8^6^2^1^3^7^9^8^4^2^1^3^5^9^8^6^4^2^3^5^7^9^6^4^2^1^3^5^7^101^102^103^104^105^8^6^2^1^3^7^9 | D92: ='7'!P287 -> 5^5^5^5^5^10^10^10^10^17^17^17^17^17^17^21^21^21^21^28^28^28^28^28^28^28^35^35^35^35^35^35^35^45^45^45^45^45^45^45^45^55^55^55^55^55^55^55^60^60^60^60^60^70^70^70^70^70^70^70 | E92: 0 | F92: 1 | G92: 0 | H92: 20002^21035 | I92: 4 | J92: 0 | K92: 130003^2|130004^2|130005^1 | L92: 7^10^15 | M92: 60355^60355^60355 | N92: 100^100^100 | O92: 8^12^15
A93: 3502 | B93: ='7'!AD246 -> 60355^60352^60353|60352^60351|60353^60351^60354|60351^60352^60354|60354^60353^60352|60353^60351^60352|60355^60351|60356^60352^60354^60353^60359 | C93: ='7'!AD273 -> 100^0^0|0^0|0^0^0|0^0^0|0^0^0|0^0^0|100^0|0^0^0^0^0 | D93: ='7'!AD286 -> 10^6^3|4^7|2^8^2|8^3^2|2^3^4|2^8^3|6^6|1^3^3^3^1 | E93: 12 | F93: 3 | G93: 0 | H93: 20002^21035 | I93: 3 | J93: 0 | K93: 130003^2|130004^2|130005^1 | L93: 7^10^15 | M93: 60355^60355^60355 | N93: 100^100^100 | O93: 8^12^15
A94: 3503 | B94: ='7'!AR246 -> 60354^60352^60352^60352^60354^60353^60351^60353^60351^60353^60355^60355^60355^60355^60355^60354^60352^60353^60352^60353^60352^60354^60352^60351^60351^60352^60351^60351^60352^60355^60355^60355^60355^60355^60354^60352^60353^60352^60353^60352^60354^60352^60352^60351^60353^60351^60352^60352 | C94: ='7'!AR273 -> 4^2^1^3^5^4^2^1^3^5^101^102^103^104^105^6^4^2^1^3^5^7^6^4^2^1^3^5^7^101^102^103^104^105^8^4^2^1^3^5^9^8^6^2^1^3^7^9 | D94: ='7'!AR286 -> 3^3^3^3^3^5^5^5^5^5^10^10^10^10^10^20^20^20^20^20^20^20^30^30^30^30^30^30^30^35^35^35^35^35^45^45^45^45^45^45^45^55^55^55^55^55^55^55 | E94: 0 | F94: 1 | G94: 0 | H94: 20002^21035 | I94: 3 | J94: 0 | K94: 130003^2|130004^2|130005^2 | L94: 6^10 | M94: 60355^60355 | N94: 100^100 | O94: 8^12
A95: 3504 | B95: ='7'!BF246 -> 60354^60353^60359^60353^60354^60352^60352^60352^60355^60355^60355^60355^60351^60351^60351^60351^60351^60354^60352^60353^60353^60352^60354^60352^60351^60351^60354^60351^60351^60352^60352^60351^60351^60353^60351^60351^60352^60354^60352^60351^60353^60353^60351^60352^60354 | C95: ='7'!BF273 -> 4^2^1^3^5^6^1^7^101^102^104^105^6^4^1^5^7^6^4^2^3^5^7^8^4^2^1^3^5^9^6^4^2^1^3^5^7^8^6^4^2^3^5^7^9 | D95: ='7'!BF286 -> 3^3^3^3^3^5^5^5^8^8^8^8^12^12^12^12^12^20^20^20^20^20^20^30^30^30^30^30^30^30^40^40^40^40^40^40^40^50^50^50^50^50^50^50^50 | E95: 0 | F95: 1 | G95: 0 | H95: 20002^21035 | I95: 0 | J95: 1 | K95: 130003^2|130004^2|130005^2 | L95: 8 | M95: 60355 | N95: 100 | O95: 10
A96: 3601 | B96: ='8'!P14 -> 60361^60361^60362^60363^60364^60362^60361^60362^60364^60365^60361^60363^60361^60362^60364^60361^60362^60363^60361^60362^60364^60362^60361^60365^60362^60366 | C96: ='8'!P41 -> 0^0^0^0^0^0^0^0^0^100^0^0^0^0^0^0^0^0^0^0^0^0^0^100^0^0 | D96: ='8'!P55 -> 8^7^4^3^2^4^8^3^2^6^7^2^8^4^2^8^4^2^7^3^2^4^9^8^4^1 | E96: 12 | F96: 3 | G96: 0 | H96: 20003^21036 | I96: 4 | J96: 0 | K96: 130003^3|130004^2 | L96: 7^10^15 | M96: 60365^60365^60365 | N96: 100^100^100 | O96: 8^12^15
A97: 3602 | B97: ='8'!AD14 -> 60364^60362^60362^60364^60363^60363^60363^60361^60361^60361^60361^60365^60365^60365^60365^60362^60361^60363^60363^60361^60362^60364^60362^60361^60363^60361^60362^60364^60362^60361^60363^60364^60363^60361^60362^60364^60362^60361^60363^60366^60363^60361^60362^60364 | C97: ='8'!AD41 -> 4^2^3^5^4^1^5^6^4^5^7^101^102^104^105^6^4^2^3^5^7^8^6^4^1^5^7^9^6^4^2^1^3^5^7^8^6^4^2^1^3^5^7^9 | D97: ='8'!AD54 -> 5^5^5^5^10^10^10^15^15^15^15^20^20^20^20^27^27^27^27^27^27^35^35^35^35^35^35^35^45^45^45^45^45^45^45^55^55^55^55^55^55^55^55^55 | E97: 0 | F97: 1 | G97: 0 | H97: 20003^21036 | I97: 3 | J97: 0 | K97: 130003^3|130004^2 | L97: 7^10^15 | M97: 60365^60365^60365 | N97: 100^100^100 | O97: 8^12^15
A98: 3603 | B98: ='8'!AR14 -> 60365^60362^60363^60362^60361^60361^60363^60363^60362^60361^60362^60363^60363^60363^60361^60362^60361^60362^60363^60361^60362^60363 | C98: ='8'!AR41 -> 100^0^0^0^0^0^0^0^0^0^0^0^0^0^0^0^0^0^0^0^0^0 | D98: ='8'!AR54 -> 10^6^3^4^7^8^2^3^6^7^3^2^2^2^6^3^8^3^2^7^3^2 | E98: 11 | F98: 3 | G98: 0 | H98: 20003^21036 | I98: 3 | J98: 0 | K98: 130003^3|130004^2 | L98: 6^10 | M98: 60365^60365 | N98: 100^100 | O98: 8^12
A99: 3604 | B99: ='8'!BF14 -> 60363^60363^60362^60362^60362^60364^60364^60361^60361^60361^60361^60365^60365^60365^60365^60364^60362^60363^60363^60362^60364^60362^60362^60361^60364^60361^60362^60362^60362^60362^60361^60361^60361^60361^60362^60362 | C99: ='8'!BF41 -> 2^3^4^1^5^2^3^6^4^5^7^101^102^104^105^6^4^2^3^5^7^6^4^2^1^3^5^7^8^6^4^2^3^5^7^9 | D99: ='8'!BF54 -> 2^2^4^4^4^6^6^8^8^8^8^10^10^10^10^15^15^15^15^15^15^25^25^25^25^25^25^25^35^35^35^35^35^35^35^35 | E99: 0 | F99: 1 | G99: 0 | H99: 20003^21036 | I99: 0 | J99: 1 | K99: 130003^3|130004^2 | L99: 8 | M99: 60365 | N99: 100 | O99: 10
A100: 3701 | B100: ='8'!P72 -> 60374^60372^60372^60374^60371^60371^60371^60371^60371^60374^60372^60373^60372^60373^60372^60374^60375^60375^60375^60375^60375^60372^60371^60371^60372^60371^60371^60372^60374^60372^60371^60373^60373^60371^60372^60374^60372^60372^60371^60371^60371^60372^60372^60375^60375^60375^60375^60375^60372^60371^60371^60374^60371^60371^60372^60374^60372^60371^60373^60376^60373^60371^60372^60374 | C100: ='8'!P99 -> 4^2^3^5^6^4^1^5^7^6^4^2^1^3^5^7^101^102^103^104^105^6^4^2^1^3^5^7^8^6^4^2^3^5^7^9^6^4^2^1^3^5^7^101^102^103^104^105^6^4^2^1^3^5^7^8^6^4^2^1^3^5^7^9 | D100: ='8'!P113 -> 5^5^5^5^10^10^10^10^10^16^16^16^16^16^16^16^22^22^22^22^22^30^30^30^30^30^30^30^40^40^40^40^40^40^40^40^50^50^50^50^50^50^50^55^55^55^55^55^65^65^65^65^65^65^65^75^75^75^75^75^75^75^75^75 | E100: 0 | F100: 1 | G100: 0 | H100: 20003^21037 | I100: 4 | J100: 0 | K100: 130003^3|130004^2 | L100: 7^10^15 | M100: 60375^60375^60375 | N100: 100^100^100 | O100: 8^12^15
A101: 3702 | B101: ='8'!AD72 -> 60375^60375^60375^60375^60372^60372^60372^60373^60373^60373^60374^60371^60371^60374^60372^60371^60371^60371^60371^60372^60374^60372^60371^60373^60373^60371^60372^60374^60372^60371^60372^60376^60372^60371^60372^60375^60375^60375^60375^60375 | C101: ='8'!AD99 -> 101^102^104^105^4^1^5^6^1^7^4^2^3^5^6^4^2^3^5^7^8^6^4^2^3^5^7^9^6^4^2^1^3^5^7^101^102^103^104^105 | D101: ='8'!AD112 -> 5^5^5^5^10^10^10^15^15^15^20^20^20^20^27^27^27^27^27^27^35^35^35^35^35^35^35^35^45^45^45^45^45^45^45^50^50^50^50^50 | E101: 0 | F101: 1 | G101: 0 | H101: 20003^21037 | I101: 3 | J101: 0 | K101: 130003^3|130004^2 | L101: 7^10^15 | M101: 60375^60375^60375 | N101: 100^100^100 | O101: 8^12^15
A102: 3703 | B102: ='8'!AR72 -> 60373^60372^60373^60372^60373^60374^60372^60371^60371^60371^60372^60374^60371^60371^60372^60372^60372^60371^60371^60375^60375^60375^60375^60375^60374^60372^60371^60372^60371^60372^60374^60373^60371^60373^60376^60373^60371^60373^60372^60372^60371^60371^60371^60372^60372^60374^60372^60371^60373^60373^60371^60372^60374 | C102: ='8'!AR99 -> 4^2^1^3^5^8^6^2^1^3^7^9^6^4^2^1^3^5^7^101^102^103^104^105^6^4^2^1^3^5^7^6^4^2^1^3^5^7^6^4^2^1^3^5^7^8^6^4^2^3^5^7^9 | D102: ='8'!AR112 -> 4^4^4^4^4^6^6^6^6^6^6^6^10^10^10^10^10^10^10^15^15^15^15^15^22^22^22^22^22^22^22^30^30^30^30^30^30^30^40^40^40^40^40^40^40^50^50^50^50^50^50^50^50 | E102: 0 | F102: 1 | G102: 0 | H102: 20003^21037 | I102: 3 | J102: 0 | K102: 130003^3|130004^2 | L102: 6^10 | M102: 60375^60375 | N102: 100^100 | O102: 8^12
A103: 3704 | B103: ='8'!BF72 -> 60371^60371^60371^60371^60372^60372^60372^60374^60374^60375^60375^60375^60375^60373^60373^60373^60374^60371^60371^60371^60371^60374^60372^60372^60372^60372^60372^60372^60372^60371^60373^60373^60371^60372^60372 | C103: ='8'!BF99 -> 4^2^3^5^4^1^5^2^3^101^102^104^105^4^1^5^6^4^2^3^5^7^6^4^1^5^7^8^6^4^2^3^5^7^9 | D103: ='8'!BF112 -> 2^2^2^2^4^4^4^6^6^8^8^8^8^10^10^10^15^15^15^15^15^15^25^25^25^25^25^35^35^35^35^35^35^35^35 | E103: 0 | F103: 1 | G103: 0 | H103: 20003^21037 | I103: 0 | J103: 1 | K103: 130003^3|130004^2 | L103: 8 | M103: 60375 | N103: 100 | O103: 10
A104: 3801 | B104: ='8'!P130 -> 60381^60381^60382^60381^60381^60384^60382^60382^60382^60384^60382^60381^60383^60382^60383^60381^60382^60382^60381^60381^60384^60381^60381^60382^60384^60382^60383^60382^60383^60382^60384^60385^60385^60385^60385^60385^60381^60381^60382^60382^60382^60381^60381^60384^60382^60381^60383^60383^60381^60382^60384^60382^60381^60381^60383^60381^60381^60382^60385^60385^60385^60385^60385 | C104: ='8'!P157 -> 4^2^1^3^5^6^2^1^3^7^8^4^2^1^3^5^9^6^4^2^1^3^5^7^8^6^2^1^3^7^9^101^102^103^104^105^8^6^4^1^5^7^9^8^6^4^2^3^5^7^9^6^4^2^1^3^5^7^101^102^103^104^105 | D104: ='8'!P171 -> 5^5^5^5^5^10^10^10^10^10^17^17^17^17^17^17^17^25^25^25^25^25^25^25^35^35^35^35^35^35^35^40^40^40^40^40^50^50^50^50^50^50^50^60^60^60^60^60^60^60^60^70^70^70^70^70^70^70^75^75^75^75^75 | E104: 0 | F104: 1 | G104: 0 | H104: 20003^21038 | I104: 4 | J104: 0 | K104: 130003^3|130004^2 | L104: 7^10^15 | M104: 60385^60385^60385 | N104: 100^100^100 | O104: 8^12^15
A105: 3802 | B105: ='8'!AD130 -> 60382^60381^60384^60387^60382^60381^60383^60381^60385^60384^60381^60382^60384^60384^60383^60381^60382^60382^60381^60384^60385^60383 | C105: ='8'!AD157 -> 0^0^0^0^0^0^0^0^100^0^0^0^0^0^0^0^0^0^0^0^100^0 | D105: ='8'!AD170 -> 6^14^4^1^4^8^2^9^8^2^7^3^2^2^2^6^3^4^5^2^8^3 | E105: 11 | F105: 3 | G105: 0 | H105: 20003^21038 | I105: 3 | J105: 0 | K105: 130003^3|130004^2 | L105: 7^10^15 | M105: 60385^60385^60385 | N105: 100^100^100 | O105: 8^12^15
A106: 3803 | B106: ='8'!AR130 -> 60383^60383^60383^60384^60382^60382^60384^60385^60385^60385^60385^60382^60381^60383^60387^60383^60381^60382^60384^60382^60381^60381^60381^60382^60384^60381^60381^60382^60382^60382^60381^60381^60382^60381^60383^60384^60383^60381^60382^60385^60385^60385^60385 | C106: ='8'!AR157 -> 4^1^5^6^2^3^7^101^102^104^105^6^4^2^1^3^5^7^8^6^2^1^3^7^9^8^6^4^1^5^7^9^6^4^2^1^3^5^7^101^102^104^105 | D106: ='8'!AR170 -> 4^4^4^10^10^10^10^15^15^15^15^22^22^22^22^22^22^22^30^30^30^30^30^30^30^40^40^40^40^40^40^40^50^50^50^50^50^50^50^55^55^55^55 | E106: 0 | F106: 1 | G106: 0 | H106: 20003^21038 | I106: 3 | J106: 0 | K106: 130003^3|130004^2 | L106: 6^10 | M106: 60385^60385 | N106: 100^100 | O106: 8^12
A107: 3804 | B107: ='8'!BF130 -> 60385^60385^60385^60382^60382^60382^60384^60383^60384^60381^60381^60381^60381^60382^60381^60383^60383^60381^60382^60384^60381^60382^60382^60382^60381^60384^60382^60381^60383^60384^60383^60381^60382^60382^60382^60381^60383^60381^60382^60382 | C107: ='8'!BF157 -> 101^103^105^2^1^3^6^1^7^4^2^3^5^6^4^2^3^5^7^8^4^2^1^3^5^9^6^4^2^1^3^5^7^8^4^2^1^3^5^9 | D107: ='8'!BF170 -> 3^3^3^5^5^5^8^8^8^12^12^12^12^18^18^18^18^18^18^25^25^25^25^25^25^25^35^35^35^35^35^35^35^45^45^45^45^45^45^45 | E107: 0 | F107: 1 | G107: 0 | H107: 20003^21038 | I107: 0 | J107: 1 | K107: 130003^3|130004^2 | L107: 8 | M107: 60385 | N107: 100 | O107: 10
A108: 3901 | B108: ='8'!P188 -> 60392^60391^60394^60391^60392^60393^60392^60394^60392^60391^60395^60391^60392^60391^60394^60393^60392^60391^60392^60391^60394^60395^60393^60397^60394^60393^60391^60392 | C108: ='8'!P215 -> 0^0^0^0^0^0^0^0^0^0^100^0^0^0^0^0^0^0^0^0^0^100^0^0^0^0^0^0 | D108: ='8'!P229 -> 2^5^2^8^3^3^4^2^3^9^6^6^3^7^2^2^3^8^4^7^2^8^2^1^2^2^6^3 | E108: 12 | F108: 3 | G108: 0 | H108: 20003^21039 | I108: 4 | J108: 0 | K108: 130003^3|130004^2 | L108: 7^10^15 | M108: 60395^60395^60395 | N108: 100^100^100 | O108: 8^12^15
A109: 3902 | B109: ='8'!AD188 -> 60394^60391^60391^60394^60392^60392^60392^60395^60395^60395^60395^60393^60393^60393^60394^60392^60391^60391^60392^60394^60392^60391^60393^60397^60393^60391^60392^60394^60392^60391^60391^60391^60391^60392^60394^60395^60395^60395^60395 | C109: ='8'!AD215 -> 4^2^3^5^6^1^7^101^102^104^105^4^1^5^8^4^2^3^5^9^8^4^2^1^3^5^9^8^6^4^2^3^5^7^9^101^102^104^105 | D109: ='8'!AD228 -> 5^5^5^5^10^10^10^15^15^15^15^22^22^22^30^30^30^30^30^30^40^40^40^40^40^40^40^50^50^50^50^50^50^50^50^55^55^55^55 | E109: 0 | F109: 1 | G109: 0 | H109: 20003^21039 | I109: 3 | J109: 0 | K109: 130003^3|130004^2 | L109: 7^10^15 | M109: 60395^60395^60395 | N109: 100^100^100 | O109: 8^12^15
A110: 3903 | B110: ='8'!AR188 -> 60395^60394^60393^60394^60392^60391^60391^60393^60393^60391^60392^60392^60391^60394^60393^60391^60392^60395^60392^60397^60393^60391^60392^60394 | C110: ='8'!AR215 -> 100^0^0^0^0^0^0^0^0^0^0^0^0^0^0^0^0^100^0^0^0^0^0^0 | D110: ='8'!AR228 -> 12^6^4^2^4^5^9^2^2^8^3^3^9^2^2^9^3^8^2^1^2^7^3^2 | E110: 11 | F110: 3 | G110: 0 | H110: 20003^21039 | I110: 3 | J110: 0 | K110: 130003^3|130004^2 | L110: 6^10 | M110: 60395^60395 | N110: 100^100 | O110: 8^12
A111: 3904 | B111: ='8'!BF188 -> 60393^60393^60393^60392^60392^60392^60394^60394^60391^60391^60391^60391^60395^60395^60395^60395^60394^60392^60393^60393^60392^60394^60392^60391^60391^60394^60391^60391^60392^60392^60394^60392^60393^60393^60392^60394^60392 | C111: ='8'!BF215 -> 4^1^5^6^1^7^2^3^4^2^3^5^101^102^104^105^8^6^2^3^7^9^6^4^2^1^3^5^7^8^6^4^2^3^5^7^9 | D111: ='8'!BF228 -> 3^3^3^5^5^5^8^8^12^12^12^12^18^18^18^18^25^25^25^25^25^25^35^35^35^35^35^35^35^45^45^45^45^45^45^45^45 | E111: 0 | F111: 1 | G111: 0 | H111: 20003^21039 | I111: 0 | J111: 1 | K111: 130003^3|130004^2 | L111: 8 | M111: 60395 | N111: 100 | O111: 10
A112: 4001 | B112: ='8'!P246 -> 60404^60401^60401^60401^60404^60401^60402^60402^60402^60402^60401^60402^60401^60403^60402^60403^60401^60402^60405^60405^60405^60405^60405^60404^60402^60401^60401^60401^60402^60404^60404^60402^60403^60402^60403^60402^60404^60402^60401^60401^60401^60402^60401^60401^60401^60402^60404^60402^60403^60402^60403^60402^60404^60405^60405^60405^60405^60405^60402^60402^60403^60409^60403^60402^60402 | C112: ='8'!P273 -> 6^2^1^3^7^6^4^2^3^5^7^8^6^2^1^3^7^9^101^102^103^104^105^8^6^2^1^3^7^9^8^4^2^1^3^5^9^8^6^4^2^1^3^5^7^9^6^4^2^1^3^5^7^101^102^103^104^105^8^6^2^1^3^7^9 | D112: ='8'!P287 -> 5^5^5^5^5^10^10^10^10^10^10^16^16^16^16^16^16^16^20^20^20^20^20^27^27^27^27^27^27^27^35^35^35^35^35^35^35^45^45^45^45^45^45^45^45^45^55^55^55^55^55^55^55^60^60^60^60^60^70^70^70^70^70^70^70 | E112: 0 | F112: 1 | G112: 0 | H112: 20003^21040 | I112: 4 | J112: 0 | K112: 130003^2|130004^2|130005^1 | L112: 7^10^15 | M112: 60405^60405^60405 | N112: 100^100^100 | O112: 8^12^15
A113: 4002 | B113: ='8'!AD246 -> 60405^60405^60405^60405^60402^60402^60402^60404^60403^60403^60404^60404^60402^60401^60401^60402^60404^60402^60402^60403^60404^60403^60402^60402^60402^60401^60403^60402^60403^60401^60402^60405^60405^60405^60405^60405^60404^60402^60406^60409^60404 | C113: ='8'!AD273 -> 101^102^104^105^6^1^7^6^2^3^7^8^4^2^3^5^9^6^4^2^1^3^5^7^8^4^2^1^3^5^9^101^102^103^104^105^6^4^1^5^7 | D113: ='8'!AD286 -> 5^5^5^5^10^10^10^15^15^15^15^21^21^21^21^21^21^28^28^28^28^28^28^28^35^35^35^35^35^35^35^40^40^40^40^40^50^50^50^50^50 | E113: 0 | F113: 1 | G113: 0 | H113: 20003^21040 | I113: 3 | J113: 0 | K113: 130003^2|130004^2|130005^1 | L113: 7^10^15 | M113: 60405^60405^60405 | N113: 100^100^100 | O113: 8^12^15
A114: 4003 | B114: ='8'!AR246 -> 60402^60404^60401^60403^60401^60405^60402^60403^60402^60404^60402^60401^60405^60404^60409^60404^60403^60402^60403^60401^60402 | C114: ='8'!AR273 -> 0^0^0^0^0^100^0^0^0^0^0^0^100^0^0^0^0^0^0^0^0 | D114: ='8'!AR286 -> 6^3^14^3^8^8^3^3^4^2^4^7^8^2^2^2^3^4^2^8^3 | E114: 12 | F114: 3 | G114: 0 | H114: 20003^21040 | I114: 3 | J114: 0 | K114: 130003^2|130004^2|130005^2 | L114: 6^10 | M114: 60405^60405 | N114: 100^100 | O114: 8^12
A115: 4004 | B115: ='8'!BF246 -> 60404^60403^60403^60404^60402^60402^60402^60405^60405^60405^60405^60401^60401^60401^60401^60401^60404^60402^60403^60403^60402^60404^60402^60401^60401^60404^60401^60401^60402^60402^60401^60401^60404^60401^60401^60402^60404^60402^60401^60403^60403^60401^60402^60404 | C115: ='8'!BF273 -> 4^2^3^5^6^1^7^101^102^104^105^6^4^1^5^7^6^4^2^3^5^7^8^4^2^1^3^5^9^6^4^2^1^3^5^7^8^6^4^2^3^5^7^9 | D115: ='8'!BF286 -> 3^3^3^3^5^5^5^8^8^8^8^12^12^12^12^12^18^18^18^18^18^18^25^25^25^25^25^25^25^35^35^35^35^35^35^35^45^45^45^45^45^45^45^45 | E115: 0 | F115: 1 | G115: 0 | H115: 20003^21040 | I115: 0 | J115: 1 | K115: 130003^2|130004^2|130005^2 | L115: 8 | M115: 60405 | N115: 100 | O115: 10
A116: 4101 | B116: ='9'!P14 -> 60411^60412^60412^60411^60413^60414^60412^60411^60412^60414^60415^60411^60413^60411^60412^60414^60411^60412^60413^60411^60412^60414^60412^60411^60415^60414^60416 | C116: ='9'!P41 -> 0^0^0^0^0^0^0^0^0^0^100^0^0^0^0^0^0^0^0^0^0^0^0^0^100^0^0 | D116: ='9'!P55 -> 7^2^4^8^3^2^5^9^2^2^7^7^2^9^3^2^10^3^2^8^2^2^3^10^8^2^1 | E116: 11 | F116: 3 | G116: 0 | H116: 20003^21041 | I116: 4 | J116: 0 | K116: 130003^3|130004^2 | L116: 7^10^15 | M116: 60415^60415^60415 | N116: 100^100^100 | O116: 8^12^15
A117: 4102 | B117: ='9'!AD14 -> 60414^60412^60412^60414^60413^60413^60413^60411^60411^60411^60411^60415^60415^60415^60415^60412^60411^60413^60411^60413^60411^60412^60414^60412^60411^60413^60411^60412^60414^60412^60411^60413^60416^60413^60411^60412^60414^60412^60411^60413^60413^60411^60412^60414 | C117: ='9'!AD41 -> 4^2^3^5^4^1^5^6^4^5^7^101^102^104^105^6^4^2^1^3^5^7^8^6^4^1^5^7^9^6^4^2^1^3^5^7^8^6^4^2^3^5^7^9 | D117: ='9'!AD54 -> 5^5^5^5^10^10^10^15^15^15^15^20^20^20^20^27^27^27^27^27^27^27^35^35^35^35^35^35^35^45^45^45^45^45^45^45^55^55^55^55^55^55^55^55 | E117: 0 | F117: 1 | G117: 0 | H117: 20003^21041 | I117: 3 | J117: 0 | K117: 130003^3|130004^2 | L117: 7^10^15 | M117: 60415^60415^60415 | N117: 100^100^100 | O117: 8^12^15
A118: 4103 | B118: ='9'!AR14 -> 60415^60415^60415^60415^60415^60412^60411^60412^60411^60412^60414^60411^60411^60411^60414^60412^60413^60413^60413^60412^60414^60412^60411^60412^60411^60412^60414^60412^60411^60413^60414^60413^60411^60412^60412^60412^60411^60411^60411^60412^60412^60414^60412^60411^60413^60413^60411^60412^60414 | C118: ='9'!AR41 -> 101^102^103^104^105^6^2^1^3^7^4^2^1^3^5^6^4^1^5^7^8^6^4^1^5^7^9^6^4^2^1^3^5^7^6^4^2^1^3^5^7^8^6^4^2^3^5^7^9 | D118: ='9'!AR54 -> 3^3^3^3^3^5^5^5^5^5^8^8^8^8^8^12^12^12^12^12^20^20^20^20^20^20^20^30^30^30^30^30^30^30^40^40^40^40^40^40^40^50^50^50^50^50^50^50^50 | E118: 0 | F118: 1 | G118: 0 | H118: 20003^21041 | I118: 3 | J118: 0 | K118: 130003^3|130004^2 | L118: 6^10 | M118: 60415^60415 | N118: 100^100 | O118: 8^12
A119: 4104 | B119: ='9'!BF14 -> 60413^60413^60412^60412^60412^60414^60414^60411^60411^60411^60411^60415^60415^60415^60415^60414^60412^60413^60413^60412^60414^60412^60412^60411^60414^60411^60412^60412^60412^60412^60411^60411^60411^60411^60412^60412 | C119: ='9'!BF41 -> 2^3^4^1^5^2^3^6^4^5^7^101^102^104^105^6^4^2^3^5^7^6^4^2^1^3^5^7^8^6^4^2^3^5^7^9 | D119: ='9'!BF54 -> 2^2^4^4^4^6^6^8^8^8^8^10^10^10^10^17^17^17^17^17^17^25^25^25^25^25^25^25^35^35^35^35^35^35^35^35 | E119: 0 | F119: 1 | G119: 0 | H119: 20003^21041 | I119: 0 | J119: 1 | K119: 130003^3|130004^2 | L119: 8 | M119: 60415 | N119: 100 | O119: 10
A120: 4201 | B120: ='9'!P72 -> 60424^60422^60422^60424^60421^60421^60421^60421^60421^60421^60421^60424^60422^60423^60422^60423^60422^60424^60425^60425^60425^60425^60425^60422^60421^60421^60422^60421^60421^60422^60424^60422^60421^60423^60423^60421^60422^60424^60422^60422^60421^60421^60421^60422^60422^60425^60425^60425^60425^60425^60422^60421^60421^60426^60421^60421^60422^60424^60422^60421^60423^60423^60421^60422^60424 | C120: ='9'!P99 -> 4^2^3^5^6^4^2^1^3^5^7^6^4^2^1^3^5^7^101^102^103^104^105^6^4^2^1^3^5^7^8^6^4^2^3^5^7^9^6^4^2^1^3^5^7^101^102^103^104^105^6^4^2^1^3^5^7^8^6^4^2^3^5^7^9 | D120: ='9'!P113 -> 5^5^5^5^10^10^10^10^10^10^10^16^16^16^16^16^16^16^20^20^20^20^20^30^30^30^30^30^30^30^40^40^40^40^40^40^40^40^50^50^50^50^50^50^50^55^55^55^55^55^65^65^65^65^65^65^65^75^75^75^75^75^75^75^75 | E120: 0 | F120: 1 | G120: 0 | H120: 20003^21042 | I120: 4 | J120: 0 | K120: 130003^3|130004^2 | L120: 7^10^15 | M120: 60425^60425^60425 | N120: 100^100^100 | O120: 8^12^15
A121: 4202 | B121: ='9'!AD72 -> 60425^60424^60422^60422^60421^60423^60421^60422^60421^60424^60421^60422^60423^60421^60422^60424^60424^60422^60421^60425^60422^60426 | C121: ='9'!AD99 -> 100^0^0^0^0^0^0^0^0^0^0^0^0^0^0^0^0^0^0^100^0^0 | D121: ='9'!AD112 -> 10^3^4^4^8^2^8^3^10^2^10^3^2^7^3^2^2^3^9^8^3^2 | E121: 12 | F121: 3 | G121: 0 | H121: 20003^21042 | I121: 3 | J121: 0 | K121: 130003^3|130004^2 | L121: 7^10^15 | M121: 60425^60425^60425 | N121: 100^100^100 | O121: 8^12^15
A122: 4203 | B122: ='9'!AR72 -> 60423^60421^60421^60422^60424^60421^60422^60425^60423^60421^60422^60424^60424^60423^60421^60421^60422^60423^60421^60422^60424 | C122: ='9'!AR99 -> 0^0^0^0^0^0^0^100^0^0^0^0^0^0^0^0^0^0^0^0^0 | D122: ='9'!AR112 -> 4^17^6^3^2^9^3^8^2^10^3^2^2^2^11^12^3^2^9^3^2 | E122: 11 | F122: 3 | G122: 0 | H122: 20003^21042 | I122: 3 | J122: 0 | K122: 130003^3|130004^2 | L122: 6^10 | M122: 60425^60425 | N122: 100^100 | O122: 8^12
A123: 4204 | B123: ='9'!BF72 -> 60421^60421^60421^60421^60422^60422^60422^60424^60424^60425^60425^60425^60425^60423^60423^60423^60424^60421^60421^60421^60421^60424^60422^60422^60422^60422^60422^60422^60422^60421^60423^60423^60421^60422^60422 | C123: ='9'!BF99 -> 4^2^3^5^4^1^5^2^3^101^102^104^105^4^1^5^6^4^2^3^5^7^6^4^1^5^7^8^6^4^2^3^5^7^9 | D123: ='9'!BF112 -> 2^2^2^2^4^4^4^6^6^8^8^8^8^10^10^10^17^17^17^17^17^17^25^25^25^25^25^35^35^35^35^35^35^35^35 | E123: 0 | F123: 1 | G123: 0 | H123: 20003^21042 | I123: 0 | J123: 1 | K123: 130003^3|130004^2 | L123: 8 | M123: 60425 | N123: 100 | O123: 10
A124: 4301 | B124: ='9'!P130 -> 60431^60431^60431^60431^60434^60432^60432^60432^60434^60432^60431^60433^60432^60433^60431^60432^60432^60431^60431^60434^60431^60431^60432^60434^60432^60433^60433^60433^60432^60434^60435^60435^60435^60435^60435^60431^60431^60432^60432^60432^60431^60431^60434^60432^60431^60433^60433^60431^60432^60434^60432^60431^60431^60438^60431^60431^60432^60435^60435^60435^60435^60435 | C124: ='9'!P157 -> 4^2^3^5^6^2^1^3^7^8^4^2^1^3^5^9^6^4^2^1^3^5^7^8^6^2^1^3^7^9^101^102^103^104^105^8^6^4^1^5^7^9^8^6^4^2^3^5^7^9^6^4^2^1^3^5^7^101^102^103^104^105 | D124: ='9'!P171 -> 5^5^5^5^10^10^10^10^10^17^17^17^17^17^17^17^25^25^25^25^25^25^25^35^35^35^35^35^35^35^40^40^40^40^40^50^50^50^50^50^50^50^60^60^60^60^60^60^60^60^70^70^70^70^70^70^70^75^75^75^75^75 | E124: 0 | F124: 1 | G124: 0 | H124: 20003^21043 | I124: 4 | J124: 0 | K124: 130003^3|130004^2 | L124: 7^10^15 | M124: 60435^60435^60435 | N124: 100^100^100 | O124: 8^12^15
A125: 4302 | B125: ='9'!AD130 -> 60432^60434^60431^60431^60432^60433^60431^60435^60434^60437^60431^60432^60434^60434^60433^60431^60432^60432^60431^60434^60435^60432 | C125: ='9'!AD157 -> 0^0^0^0^0^0^0^100^0^0^0^0^0^0^0^0^0^0^0^0^100^0 | D125: ='9'!AD170 -> 4^3^15^8^4^2^10^8^2^1^8^3^2^2^2^8^3^3^10^2^8^3 | E125: 12 | F125: 3 | G125: 0 | H125: 20003^21043 | I125: 3 | J125: 0 | K125: 130003^3|130004^2 | L125: 7^10^15 | M125: 60435^60435^60435 | N125: 100^100^100 | O125: 8^12^15
A126: 4303 | B126: ='9'!AR130 -> 60433^60431^60433^60431^60433^60434^60432^60432^60432^60434^60435^60435^60435^60435^60435^60432^60431^60433^60432^60433^60431^60432^60434^60432^60431^60431^60431^60432^60434^60431^60431^60432^60432^60432^60431^60431^60432^60438^60433^60434^60433^60437^60432^60435^60435^60435^60435^60435 | C126: ='9'!AR157 -> 4^2^1^3^5^6^2^1^3^7^101^102^103^104^105^6^4^2^1^3^5^7^8^6^2^1^3^7^9^8^6^4^1^5^7^9^6^4^2^1^3^5^7^101^102^103^104^105 | D126: ='9'!AR170 -> 3^2^1^3^3^5^5^5^5^5^10^10^10^10^10^17^17^17^17^17^17^17^25^25^25^25^25^25^25^35^35^35^35^35^35^35^45^45^45^45^45^45^45^50^50^50^50^50 | E126: 0 | F126: 1 | G126: 0 | H126: 20003^21043 | I126: 3 | J126: 0 | K126: 130003^3|130004^2 | L126: 6^10 | M126: 60435^60435 | N126: 100^100 | O126: 8^12
A127: 4304 | B127: ='9'!BF130 -> 60435^60435^60435^60432^60432^60432^60434^60433^60434^60431^60431^60431^60431^60432^60431^60433^60433^60431^60432^60434^60431^60432^60432^60432^60431^60434^60432^60431^60433^60434^60433^60431^60432^60432^60432^60431^60433^60431^60432^60432 | C127: ='9'!BF157 -> 101^103^105^2^1^3^6^1^7^4^2^3^5^6^4^2^3^5^7^8^4^2^1^3^5^9^6^4^2^1^3^5^7^8^4^2^1^3^5^9 | D127: ='9'!BF170 -> 3^3^3^5^5^5^8^8^8^12^12^12^12^17^17^17^17^17^17^25^25^25^25^25^25^25^35^35^35^35^35^35^35^45^45^45^45^45^45^45 | E127: 0 | F127: 1 | G127: 0 | H127: 20003^21043 | I127: 0 | J127: 1 | K127: 130003^3|130004^2 | L127: 8 | M127: 60435 | N127: 100 | O127: 10
A128: 4401 | B128: ='9'!P188 -> 60442^60444^60441^60441^60442^60443^60442^60444^60441^60442^60441^60445^60443^60442^60441^60444^60443^60442^60441^60442^60441^60444^60445^60442^60447^60444^60443^60441^60442 | C128: ='9'!P215 -> 0^0^0^0^0^0^0^0^0^0^0^100^0^0^0^0^0^0^0^0^0^0^100^0^0^0^0^0^0 | D128: ='9'!P229 -> 2^2^5^8^4^2^3^2^6^3^10^8^3^3^9^2^2^3^11^3^11^2^8^3^1^2^2^9^3 | E128: 11 | F128: 3 | G128: 0 | H128: 20003^21044 | I128: 4 | J128: 0 | K128: 130003^3|130004^2 | L128: 7^10^15 | M128: 60445^60445^60445 | N128: 100^100^100 | O128: 8^12^15
A129: 4402 | B129: ='9'!AD188 -> 60444^60441^60441^60444^60442^60442^60442^60445^60445^60445^60445^60445^60443^60443^60443^60444^60442^60441^60441^60442^60444^60442^60441^60443^60448^60443^60441^60442^60444^60442^60441^60441^60441^60441^60442^60444^60445^60445^60445^60445 | C129: ='9'!AD215 -> 4^2^3^5^6^1^7^101^102^103^104^105^4^1^5^8^4^2^3^5^9^8^4^2^1^3^5^9^8^6^4^2^3^5^7^9^101^102^104^105 | D129: ='9'!AD228 -> 5^5^5^5^10^10^10^15^15^15^15^15^22^22^22^30^30^30^30^30^30^40^40^40^40^40^40^40^50^50^50^50^50^50^50^50^55^55^55^55 | E129: 0 | F129: 1 | G129: 0 | H129: 20003^21044 | I129: 3 | J129: 0 | K129: 130003^3|130004^2 | L129: 7^10^15 | M129: 60445^60445^60445 | N129: 100^100^100 | O129: 8^12^15
A130: 4403 | B130: ='9'!AR188 -> 60445^60445^60445^60445^60445^60444^60442^60442^60442^60444^60441^60441^60441^60441^60441^60442^60441^60443^60443^60443^60441^60442^60444^60441^60442^60442^60442^60441^60444^60442^60441^60447^60441^60448^60441^60442^60445^60445^60445^60445^60445^60444^60442^60441^60443^60441^60442^60444 | C130: ='9'!AR215 -> 101^102^103^104^105^6^2^1^3^7^4^2^1^3^5^8^4^2^1^3^5^9^8^6^4^1^5^7^9^6^4^2^1^3^5^7^101^102^103^104^105^8^6^2^1^3^7^9 | D130: ='9'!AR228 -> 4^4^4^4^4^10^10^10^10^10^16^16^16^16^16^23^23^23^23^23^23^23^30^30^30^30^30^30^30^40^40^40^40^40^40^40^45^45^45^45^45^55^55^55^55^55^55^55 | E130: 0 | F130: 1 | G130: 0 | H130: 20003^21044 | I130: 3 | J130: 0 | K130: 130003^3|130004^2 | L130: 6^10 | M130: 60445^60445 | N130: 100^100 | O130: 8^12
A131: 4404 | B131: ='9'!BF188 -> 60443^60443^60443^60442^60442^60442^60444^60444^60441^60441^60441^60441^60445^60445^60445^60445^60444^60442^60443^60443^60442^60444^60442^60441^60441^60444^60441^60441^60442^60442^60444^60442^60443^60443^60442^60444^60442 | C131: ='9'!BF215 -> 4^1^5^6^1^7^2^3^4^2^3^5^101^102^104^105^8^6^2^3^7^9^6^4^2^1^3^5^7^8^6^4^2^3^5^7^9 | D131: ='9'!BF228 -> 3^3^3^5^5^5^8^8^12^12^12^12^18^18^18^18^25^25^25^25^25^25^35^35^35^35^35^35^35^45^45^45^45^45^45^45^45 | E131: 0 | F131: 1 | G131: 0 | H131: 20003^21044 | I131: 0 | J131: 1 | K131: 130003^3|130004^2 | L131: 8 | M131: 60445 | N131: 100 | O131: 10
A132: 4501 | B132: ='9'!P246 -> 60451^60454^60452^60451^60453^60451^60452^60455^60451^60451^60452^60454^60452^60453^60454^60451^60452^60452^60453^60454^60451^60455^60452^60459^60454^60453^60452^60451 | C132: ='9'!P273 -> 0^0^0^0^0^0^0^100^0^0^0^0^0^0^0^0^0^0^0^0^0^100^0^0^0^0^0^0 | D132: ='9'!P287 -> 9^2^3^10^2^9^3^7^8^10^3^2^5^3^3^12^2^3^2^2^9^8^4^1^2^2^3^10 | E132: 10 | F132: 3 | G132: 0 | H132: 20003^21045 | I132: 4 | J132: 0 | K132: 130003^2|130004^2|130005^1 | L132: 7^10^15 | M132: 60455^60455^60455 | N132: 100^100^100 | O132: 8^12^15
A133: 4502 | B133: ='9'!AD246 -> 60455^60455^60455^60455^60452^60452^60452^60454^60453^60453^60454^60454^60452^60451^60451^60451^60452^60454^60452^60452^60453^60454^60453^60452^60452^60452^60451^60453^60451^60453^60451^60452^60455^60455^60455^60455^60455^60454^60459^60456^60452^60454 | C133: ='9'!AD273 -> 101^102^104^105^6^1^7^6^2^3^7^8^4^2^1^3^5^9^6^4^2^1^3^5^7^8^4^2^1^3^5^9^101^102^103^104^105^6^4^1^5^7 | D133: ='9'!AD286 -> 5^5^5^5^10^10^10^15^15^15^15^22^22^22^22^22^22^22^30^30^30^30^30^30^30^40^40^40^40^40^40^40^45^45^45^45^45^55^55^55^55^55 | E133: 0 | F133: 1 | G133: 0 | H133: 20003^21045 | I133: 3 | J133: 0 | K133: 130003^2|130004^2|130005^1 | L133: 7^10^15 | M133: 60455^60455^60455 | N133: 100^100^100 | O133: 8^12^15
A134: 4503 | B134: ='9'!AR246 -> 60452^60454^60451^60453^60451^60455^60452^60453^60452^60454^60451^60452^60451^60455^60454^60459^60453^60452^60451^60453^60451^60452^60454 | C134: ='9'!AR273 -> 0^0^0^0^0^100^0^0^0^0^0^0^0^100^0^0^0^0^0^0^0^0^0 | D134: ='9'!AR286 -> 5^5^16^3^10^8^3^2^3^2^7^3^11^9^2^2^2^3^10^2^10^2^2 | E134: 11 | F134: 3 | G134: 0 | H134: 20003^21045 | I134: 3 | J134: 0 | K134: 130003^2|130004^2|130005^2 | L134: 6^10 | M134: 60455^60455 | N134: 100^100 | O134: 8^12
A135: 4504 | B135: ='9'!BF246 -> 60454^60453^60453^60454^60452^60452^60452^60455^60455^60455^60455^60451^60451^60451^60451^60451^60454^60452^60453^60453^60452^60454^60452^60451^60451^60454^60451^60451^60452^60452^60451^60451^60453^60451^60451^60452^60454^60452^60451^60453^60453^60451^60452^60454 | C135: ='9'!BF273 -> 4^2^3^5^6^1^7^101^102^104^105^6^4^1^5^7^6^4^2^3^5^7^8^4^2^1^3^5^9^6^4^2^1^3^5^7^8^6^4^2^3^5^7^9 | D135: ='9'!BF286 -> 3^3^3^3^5^5^5^8^8^8^8^12^12^12^12^12^20^20^20^20^20^20^30^30^30^30^30^30^30^40^40^40^40^40^40^40^45^45^45^45^45^45^45^45 | E135: 0 | F135: 1 | G135: 0 | H135: 20003^21045 | I135: 0 | J135: 1 | K135: 130003^2|130004^2|130005^2 | L135: 8 | M135: 60455 | N135: 100 | O135: 10
A136: 4601 | B136: ='10'!P14 -> 60461^60464^60461^60462^60463^60464^60462^60461^60462^60464^60465^60461^60463^60461^60462^60464^60461^60462^60463^60461^60462^60464^60461^60462^60465^60462 | C136: ='10'!P41 -> 0^0^0^0^0^0^0^0^0^0^100^0^0^0^0^0^0^0^0^0^0^0^0^0^100^0 | D136: ='10'!P55 -> 8^2^9^3^4^2^5^8^3^2^7^7^2^10^3^2^11^3^3^8^3^2^12^3^8^4 | E136: 11 | F136: 3 | G136: 0 | H136: 20004^21046 | I136: 4 | J136: 0 | K136: 130003^2|130004^2|130005^1 | L136: 7^10^15 | M136: 60465^60465^60465 | N136: 100^100^100 | O136: 8^12^15
A137: 4602 | B137: ='10'!AD14 -> 60464^60462^60462^60464^60463^60463^60463^60461^60461^60461^60461^60461^60465^60465^60465^60465^60465^60462^60461^60463^60462^60463^60461^60462^60464^60462^60461^60463^60461^60462^60464^60462^60461^60463^60464^60463^60461^60462^60464^60462^60461^60463^60463^60461^60462^60464 | C137: ='10'!AD41 -> 4^2^3^5^4^1^5^6^4^1^5^7^101^102^103^104^105^6^4^2^1^3^5^7^8^6^4^1^5^7^9^6^4^2^1^3^5^7^8^6^4^2^3^5^7^9 | D137: ='10'!AD54 -> 3^3^3^3^6^6^6^10^10^10^10^10^15^15^15^15^15^25^25^25^25^25^25^25^35^35^35^35^35^35^35^45^45^45^45^45^45^45^55^55^55^55^55^55^55^55 | E137: 0 | F137: 1 | G137: 0 | H137: 20004^21046 | I137: 3 | J137: 0 | K137: 130003^2|130004^2|130005^1 | L137: 7^10^15 | M137: 60465^60465^60465 | N137: 100^100^100 | O137: 8^12^15
A138: 4603 | B138: ='10'!AR14 -> 60465^60464^60463^60462^60461^60461^60464^60463^60462^60461^60461^60462^60464^60464^60463^60461^60462^60461^60462^60463^60461^60462^60464 | C138: ='10'!AR41 -> 100^0^0^0^0^0^0^0^0^0^0^0^0^0^0^0^0^0^0^0^0^0^0 | D138: ='10'!AR54 -> 10^4^4^4^8^10^3^2^3^9^11^3^2^2^2^9^3^12^3^2^10^3^2 | E138: 10 | F138: 3 | G138: 0 | H138: 20004^21046 | I138: 3 | J138: 0 | K138: 130003^2|130004^2|130005^1 | L138: 6^10 | M138: 60465^60465 | N138: 100^100 | O138: 8^12
A139: 4604 | B139: ='10'!BF14 -> 60463^60463^60462^60462^60462^60464^60464^60461^60461^60461^60461^60465^60465^60465^60465^60464^60462^60463^60463^60462^60464^60462^60462^60461^60464^60461^60462^60462^60462^60462^60461^60461^60461^60461^60462^60462 | C139: ='10'!BF41 -> 2^3^4^1^5^2^3^6^4^5^7^101^102^104^105^6^4^2^3^5^7^6^4^2^1^3^5^7^8^6^4^2^3^5^7^9 | D139: ='10'!BF54 -> 2^2^4^4^4^6^6^8^8^8^8^10^10^10^10^17^17^17^17^17^17^25^25^25^25^25^25^25^35^35^35^35^35^35^35^35 | E139: 0 | F139: 1 | G139: 0 | H139: 20004^21046 | I139: 0 | J139: 1 | K139: 130003^2|130004^2|130005^1 | L139: 8 | M139: 60465 | N139: 100 | O139: 10
A140: 4701 | B140: ='10'!P72 -> 60474^60472^60472^60472^60474^60471^60471^60471^60471^60471^60474^60472^60473^60472^60473^60472^60474^60475^60475^60475^60475^60475^60472^60471^60471^60472^60471^60471^60472^60474^60472^60471^60473^60473^60471^60472^60474^60472^60472^60471^60471^60471^60472^60472^60475^60475^60475^60475^60475^60472^60471^60471^60474^60471^60471^60472^60474^60472^60471^60473^60473^60471^60472^60474 | C140: ='10'!P99 -> 4^2^1^3^5^6^4^1^5^7^6^4^2^1^3^5^7^101^102^103^104^105^6^4^2^1^3^5^7^8^6^4^2^3^5^7^9^6^4^2^1^3^5^7^101^102^103^104^105^6^4^2^1^3^5^7^8^6^4^2^3^5^7^9 | D140: ='10'!P113 -> 5^5^5^5^5^10^10^10^10^10^16^16^16^16^16^16^16^20^20^20^20^20^30^30^30^30^30^30^30^40^40^40^40^40^40^40^40^50^50^50^50^50^50^50^55^55^55^55^55^65^65^65^65^65^65^65^75^75^75^75^75^75^75^75 | E140: 0 | F140: 1 | G140: 0 | H140: 20004^21047 | I140: 4 | J140: 0 | K140: 130003^2|130004^2|130005^1 | L140: 7^10^15 | M140: 60475^60475^60475 | N140: 100^100^100 | O140: 8^12^15
A141: 4702 | B141: ='10'!AD72 -> 60475^60474^60471^60472^60471^60473^60471^60471^60474^60472^60471^60472^60473^60471^60472^60474^60474^60472^60471^60475^60472^60473 | C141: ='10'!AD99 -> 100^0^0^0^0^0^0^0^0^0^0^0^0^0^0^0^0^0^0^100^0^0 | D141: ='10'!AD112 -> 10^4^10^3^9^3^10^9^2^3^10^4^2^8^3^2^2^3^11^8^3^3 | E141: 11 | F141: 3 | G141: 0 | H141: 20004^21047 | I141: 3 | J141: 0 | K141: 130003^2|130004^2|130005^1 | L141: 7^10^15 | M141: 60475^60475^60475 | N141: 100^100^100 | O141: 8^12^15
A142: 4703 | B142: ='10'!AR72 -> 60473^60473^60473^60474^60472^60472^60474^60471^60471^60471^60471^60475^60475^60475^60475^60474^60472^60471^60472^60471^60472^60474^60473^60471^60473^60474^60473^60471^60473^60472^60472^60471^60471^60471^60472^60472^60474^60472^60471^60473^60473^60471^60472^60474 | C142: ='10'!AR99 -> 4^1^5^8^6^7^9^6^4^5^7^101^102^104^105^6^4^2^1^3^5^7^6^4^2^1^3^5^7^6^4^2^1^3^5^7^8^6^4^2^3^5^7^9 | D142: ='10'!AR112 -> 4^4^4^6^6^6^6^10^10^10^10^15^15^15^15^22^22^22^22^22^22^22^30^30^30^30^30^30^30^40^40^40^40^40^40^40^50^50^50^50^50^50^50^50 | E142: 0 | F142: 1 | G142: 0 | H142: 20004^21047 | I142: 3 | J142: 0 | K142: 130003^2|130004^2|130005^1 | L142: 6^10 | M142: 60475^60475 | N142: 100^100 | O142: 8^12
A143: 4704 | B143: ='10'!BF72 -> 60471^60471^60471^60471^60472^60472^60472^60474^60474^60475^60475^60475^60475^60473^60473^60473^60474^60471^60471^60471^60471^60474^60472^60472^60472^60472^60472^60472^60472^60471^60473^60473^60471^60472^60472 | C143: ='10'!BF99 -> 4^2^3^5^4^1^5^2^3^101^102^104^105^4^1^5^6^4^2^3^5^7^6^4^1^5^7^8^6^4^2^3^5^7^9 | D143: ='10'!BF112 -> 2^2^2^2^4^4^4^6^6^8^8^8^8^10^10^10^17^17^17^17^17^17^25^25^25^25^25^35^35^35^35^35^35^35^35 | E143: 0 | F143: 1 | G143: 0 | H143: 20004^21047 | I143: 0 | J143: 1 | K143: 130003^2|130004^2|130005^1 | L143: 8 | M143: 60475 | N143: 100 | O143: 10
A144: 4801 | B144: ='10'!P130 -> 60481^60482^60482^60484^60481^60483^60481^60482^60484^60481^60482^60483^60482^60484^60485^60481^60482^60481^60483^60481^60482^60484^60483^60481^60482^60485^60482 | C144: ='10'!P157 -> 0^0^0^0^0^0^0^0^0^0^0^0^0^0^100^0^0^0^0^0^0^0^0^0^0^100^0 | D144: ='10'!P171 -> 9^2^3^2^7^2^8^3^2^10^3^3^5^2^7^8^3^11^2^9^3^2^3^10^3^8^4 | E144: 11 | F144: 3 | G144: 0 | H144: 20004^21048 | I144: 4 | J144: 0 | K144: 130003^2|130004^2|130005^1 | L144: 7^10^15 | M144: 60485^60485^60485 | N144: 100^100^100 | O144: 8^12^15
A145: 4802 | B145: ='10'!AD130 -> 60484^60482^60482^60482^60484^60481^60481^60481^60481^60481^60483^60482^60483^60482^60483^60485^60485^60485^60485^60485^60484^60482^60481^60482^60481^60482^60484^60482^60481^60483^60484^60483^60481^60482^60484^60481^60482^60482^60482^60481^60484^60485^60485^60485^60485^60485 | C145: ='10'!AD157 -> 6^2^1^3^7^4^2^1^3^5^4^2^1^3^5^101^102^103^104^105^6^4^2^1^3^5^7^6^4^2^1^3^5^7^8^6^2^1^3^7^9^101^102^103^104^105 | D145: ='10'!AD170 -> 5^5^5^5^5^10^10^10^10^10^15^15^15^15^15^22^22^22^22^22^30^30^30^30^30^30^30^40^40^40^40^40^40^40^50^50^50^50^50^50^50^55^55^55^55^55 | E145: 0 | F145: 1 | G145: 0 | H145: 20004^21048 | I145: 3 | J145: 0 | K145: 130003^2|130004^2|130005^1 | L145: 7^10^15 | M145: 60485^60485^60485 | N145: 100^100^100 | O145: 8^12^15
A146: 4803 | B146: ='10'!AR130 -> 60483^60483^60483^60484^60482^60482^60484^60485^60485^60485^60485^60482^60481^60483^60483^60481^60482^60484^60482^60481^60481^60481^60482^60484^60481^60481^60482^60482^60482^60481^60481^60482^60481^60483^60484^60483^60481^60482^60485^60485^60485^60485 | C146: ='10'!AR157 -> 4^1^5^6^2^3^7^101^102^104^105^6^4^2^3^5^7^8^6^2^1^3^7^9^8^6^4^1^5^7^9^6^4^2^1^3^5^7^101^102^104^105 | D146: ='10'!AR170 -> 3^3^3^5^5^5^5^10^10^10^10^17^17^17^17^17^17^25^25^25^25^25^25^25^35^35^35^35^35^35^35^45^45^45^45^45^45^45^50^50^50^50 | E146: 0 | F146: 1 | G146: 0 | H146: 20004^21048 | I146: 3 | J146: 0 | K146: 130003^2|130004^2|130005^1 | L146: 6^10 | M146: 60485^60485 | N146: 100^100 | O146: 8^12
A147: 4804 | B147: ='10'!BF130 -> 60485^60485^60485^60482^60482^60482^60484^60483^60484^60481^60481^60481^60481^60482^60481^60483^60483^60481^60482^60484^60481^60482^60482^60482^60481^60484^60482^60481^60483^60484^60483^60481^60482^60482^60482^60481^60483^60481^60482^60482 | C147: ='10'!BF157 -> 101^103^105^2^1^3^6^1^7^4^2^3^5^6^4^2^3^5^7^8^4^2^1^3^5^9^6^4^2^1^3^5^7^8^4^2^1^3^5^9 | D147: ='10'!BF170 -> 3^3^3^5^5^5^8^8^8^12^12^12^12^18^18^18^18^18^18^25^25^25^25^25^25^25^35^35^35^35^35^35^35^45^45^45^45^45^45^45 | E147: 0 | F147: 1 | G147: 0 | H147: 20004^21048 | I147: 0 | J147: 1 | K147: 130003^2|130004^2|130005^1 | L147: 8 | M147: 60485 | N147: 100 | O147: 10
A148: 4901 | B148: ='10'!P188 -> 60494^60492^60492^60492^60494^60491^60491^60491^60491^60491^60494^60492^60493^60493^60492^60494^60492^60491^60491^60492^60491^60491^60492^60495^60495^60495^60495^60495^60494^60491^60492^60492^60492^60491^60494^60491^60491^60492^60493^60493^60492^60491^60491^60494^60492^60491^60492^60491^60492^60494^60495^60495^60495^60495^60495^60492^60491^60493^60494^60493^60491^60492 | C148: ='10'!P215 -> 6^2^1^3^7^6^2^1^3^7^6^4^2^3^5^7^8^4^2^1^3^5^9^101^102^103^104^105^8^6^2^1^3^7^9^8^6^4^2^3^5^7^9^8^6^4^1^5^7^9^101^102^103^104^105^6^4^2^1^3^5^7 | D148: ='10'!P229 -> 5^5^5^5^5^15^15^15^15^15^30^30^30^30^30^30^45^45^45^45^45^45^45^50^50^50^50^50^65^65^65^65^65^65^65^81^81^81^81^81^81^81^81^98^98^98^98^98^98^98^105^105^105^105^105^120^120^120^120^120^120^120 | E148: 0 | F148: 1 | G148: 0 | H148: 20004^21049 | I148: 4 | J148: 0 | K148: 130003^2|130004^2|130005^1 | L148: 7^10^15 | M148: 60495^60495^60495 | N148: 100^100^100 | O148: 8^12^15
A149: 4902 | B149: ='10'!AD188 -> 60491^60494^60492^60492^60491^60495^60494^60493^60492^60491^60491^60492^60494^60492^60493^60491^60491^60492^60494^60495^60492 | C149: ='10'!AD215 -> 0^0^0^0^0^100^0^0^0^0^0^0^0^0^0^0^0^0^0^100^0 | D149: ='10'!AD228 -> 18^3^4^3^9^8^2^3^3^8^10^3^2^3^3^11^10^4^2^8^4 | E149: 10 | F149: 3 | G149: 0 | H149: 20004^21049 | I149: 3 | J149: 0 | K149: 130003^2|130004^2|130005^1 | L149: 7^10^15 | M149: 60495^60495^60495 | N149: 100^100^100 | O149: 8^12^15
A150: 4903 | B150: ='10'!AR188 -> 60495^60495^60495^60495^60495^60494^60492^60492^60492^60494^60491^60491^60491^60491^60491^60492^60491^60493^60491^60493^60491^60492^60494^60491^60492^60492^60492^60491^60494^60492^60491^60493^60493^60493^60491^60492^60495^60495^60495^60495^60495^60494^60492^60491^60493^60491^60492^60494 | C150: ='10'!AR215 -> 101^102^103^104^105^6^2^1^3^7^4^2^1^3^5^8^4^2^1^3^5^9^8^6^4^1^5^7^9^6^4^2^1^3^5^7^101^102^103^104^105^8^6^2^1^3^7^9 | D150: ='10'!AR228 -> 3^3^3^3^3^6^6^6^6^6^10^10^10^10^10^15^15^15^15^15^15^15^25^25^25^25^25^25^25^35^35^35^35^35^35^35^40^40^40^40^40^50^50^50^50^50^50^50 | E150: 0 | F150: 1 | G150: 0 | H150: 20004^21049 | I150: 3 | J150: 0 | K150: 130003^2|130004^2|130005^1 | L150: 6^10 | M150: 60495^60495 | N150: 100^100 | O150: 8^12
A151: 4904 | B151: ='10'!BF188 -> 60493^60493^60493^60492^60492^60492^60494^60494^60491^60491^60491^60491^60495^60495^60495^60495^60494^60492^60493^60493^60492^60494^60492^60491^60491^60494^60491^60491^60492^60492^60494^60492^60493^60493^60492^60494^60492 | C151: ='10'!BF215 -> 4^1^5^6^1^7^2^3^4^2^3^5^101^102^104^105^8^6^2^3^7^9^6^4^2^1^3^5^7^8^6^4^2^3^5^7^9 | D151: ='10'!BF228 -> 3^3^3^5^5^5^8^8^12^12^12^12^18^18^18^18^25^25^25^25^25^25^35^35^35^35^35^35^35^45^45^45^45^45^45^45^45 | E151: 0 | F151: 1 | G151: 0 | H151: 20004^21049 | I151: 0 | J151: 1 | K151: 130003^2|130004^2|130005^1 | L151: 8 | M151: 60495 | N151: 100 | O151: 10
A152: 5001 | B152: ='10'!P246 -> 60504^60501^60501^60501^60504^60502^60502^60502^60502^60502^60501^60503^60503^60501^60502^60505^60505^60505^60505^60504^60502^60501^60501^60501^60502^60504^60504^60502^60503^60502^60503^60502^60504^60502^60501^60501^60501^60501^60501^60501^60502^60504^60502^60503^60502^60503^60502^60504^60505^60505^60505^60505^60505^60502^60502^60503^60504^60503^60502^60502 | C152: ='10'!P273 -> 6^2^1^3^7^4^2^3^5^8^6^2^3^7^9^101^102^104^105^8^6^2^1^3^7^9^8^4^2^1^3^5^9^8^6^4^2^3^5^7^9^6^4^2^1^3^5^7^101^102^103^104^105^8^6^2^1^3^7^9 | D152: ='10'!P287 -> 5^5^5^5^5^10^10^10^10^16^16^16^16^16^16^20^20^20^20^30^30^30^30^30^30^30^40^40^40^40^40^40^40^50^50^50^50^50^50^50^50^60^60^60^60^60^60^60^65^65^65^65^65^75^75^75^75^75^75^75 | E152: 0 | F152: 1 | G152: 0 | H152: 20004^21050 | I152: 4 | J152: 0 | K152: 130003^2|130004^2|130005^1 | L152: 7^10^15 | M152: 60505^60505^60505 | N152: 100^100^100 | O152: 8^12^15
A153: 5002 | B153: ='10'!AD246 -> 60505^60505^60505^60505^60502^60502^60502^60502^60504^60503^60503^60504^60504^60502^60501^60501^60502^60504^60502^60502^60503^60504^60503^60502^60502^60502^60501^60503^60503^60501^60502^60505^60505^60505^60505^60505^60504^60502^60506^60502^60504 | C153: ='10'!AD273 -> 101^102^104^105^6^1^3^7^6^2^3^7^8^4^2^3^5^9^6^4^2^1^3^5^7^8^4^2^3^5^9^101^102^103^104^105^6^4^1^5^7 | D153: ='10'!AD286 -> 3^3^3^3^6^6^6^6^10^10^10^10^15^15^15^15^15^15^25^25^25^25^25^25^25^35^35^35^35^35^35^40^40^40^40^40^50^50^50^50^50 | E153: 0 | F153: 1 | G153: 0 | H153: 20004^21050 | I153: 3 | J153: 0 | K153: 130003^2|130004^2|130005^1 | L153: 7^10^15 | M153: 60505^60505^60505 | N153: 100^100^100 | O153: 8^12^15
A154: 5003 | B154: ='10'!AR246 -> 60501^60502^60504^60503^60501^60505^60502^60503^60502^60504^60502^60501^60505^60503^60503^60502^60504^60503^60501^60502 | C154: ='10'!AR273 -> 0^0^0^0^0^100^0^0^0^0^0^0^100^0^0^0^0^0^0^0 | D154: ='10'!AR286 -> 17^5^3^4^9^8^4^4^5^2^2^12^8^3^3^6^2^2^12^2 | E154: 10 | F154: 3 | G154: 0 | H154: 20004^21050 | I154: 3 | J154: 0 | K154: 130003^2|130004^2|130005^1 | L154: 6^10 | M154: 60505^60505 | N154: 100^100 | O154: 8^12
A155: 5004 | B155: ='10'!BF246 -> 60504^60503^60503^60504^60502^60502^60502^60505^60505^60505^60505^60501^60501^60501^60501^60501^60504^60502^60503^60503^60502^60504^60502^60501^60501^60504^60501^60501^60502^60502^60501^60501^60503^60501^60501^60502^60504^60502^60501^60503^60503^60501^60502^60504 | C155: ='10'!BF273 -> 4^2^3^5^6^1^7^101^102^104^105^6^4^1^5^7^6^4^2^3^5^7^8^4^2^1^3^5^9^6^4^2^1^3^5^7^8^6^4^2^3^5^7^9 | D155: ='10'!BF286 -> 3^3^3^3^5^5^5^8^8^8^8^12^12^12^12^12^17^17^17^17^17^17^25^25^25^25^25^25^25^35^35^35^35^35^35^35^45^45^45^45^45^45^45^45 | E155: 0 | F155: 1 | G155: 0 | H155: 20004^21050 | I155: 0 | J155: 1 | K155: 130003^2|130004^2|130005^1 | L155: 8 | M155: 60505 | N155: 100 | O155: 10
A156: 5101 | B156: ='11'!P14 -> 60511^60512^60512^60511^60513^60514^60512^60511^60512^60514^60515^60513^60513^60511^60512^60514^60511^60512^60513^60511^60512^60514^60512^60511^60515^60512 | C156: ='11'!P41 -> 0^0^0^0^0^0^0^0^0^0^100^0^0^0^0^0^0^0^0^0^0^0^0^0^100^0 | D156: ='11'!P55 -> 9^2^3^9^3^2^5^8^3^2^8^3^2^8^3^2^9^3^2^8^2^2^3^12^8^4 | E156: 11 | F156: 3 | G156: 0 | H156: 20004^21051 | I156: 4 | J156: 0 | K156: 130003^2|130004^2|130005^1 | L156: 7^10^15 | M156: 60515^60515^60515 | N156: 100^100^100 | O156: 8^12^15
A157: 5102 | B157: ='11'!AD14 -> 60514^60512^60512^60514^60513^60513^60513^60511^60511^60511^60511^60511^60515^60515^60515^60515^60512^60511^60513^60513^60511^60512^60514^60512^60511^60513^60511^60512^60514^60512^60511^60513^60514^60513^60511^60512^60514^60512^60511^60513^60513^60511^60512^60514 | C157: ='11'!AD41 -> 4^2^3^5^4^1^5^6^4^1^5^7^101^102^104^105^6^4^2^3^5^7^8^6^4^1^5^7^9^6^4^2^1^3^5^7^8^6^4^2^3^5^7^9 | D157: ='11'!AD54 -> 3^3^3^3^6^6^6^10^10^10^10^10^15^15^15^15^25^25^25^25^25^25^35^35^35^35^35^35^35^45^45^45^45^45^45^45^55^55^55^55^55^55^55^55 | E157: 0 | F157: 1 | G157: 0 | H157: 20004^21051 | I157: 3 | J157: 0 | K157: 130003^2|130004^2|130005^1 | L157: 7^10^15 | M157: 60515^60515^60515 | N157: 100^100^100 | O157: 8^12^15
A158: 5103 | B158: ='11'!AR14 -> 60515^60511^60512^60511^60511^60514^60513^60512^60511^60511^60512^60514^60514^60513^60511^60512^60511^60512^60513^60511^60512^60514 | C158: ='11'!AR41 -> 100^0^0^0^0^0^0^0^0^0^0^0^0^0^0^0^0^0^0^0^0^0 | D158: ='11'!AR54 -> 12^12^4^10^12^3^2^3^9^10^3^2^2^2^8^3^10^4^2^8^4^2 | E158: 11 | F158: 3 | G158: 0 | H158: 20004^21051 | I158: 3 | J158: 0 | K158: 130003^2|130004^2|130005^1 | L158: 6^10 | M158: 60515^60515 | N158: 100^100 | O158: 8^12
A159: 5104 | B159: ='11'!BF14 -> 60513^60513^60512^60512^60512^60514^60514^60511^60511^60511^60511^60515^60515^60515^60515^60514^60512^60513^60513^60512^60514^60512^60512^60511^60514^60511^60512^60512^60512^60512^60511^60511^60511^60511^60512^60512 | C159: ='11'!BF41 -> 2^3^4^1^5^2^3^6^4^5^7^101^102^104^105^6^4^2^3^5^7^6^4^2^1^3^5^7^8^6^4^2^3^5^7^9 | D159: ='11'!BF54 -> 2^2^4^4^4^6^6^8^8^8^8^10^10^10^10^15^15^15^15^15^15^25^25^25^25^25^25^25^35^35^35^35^35^35^35^35 | E159: 0 | F159: 1 | G159: 0 | H159: 20004^21051 | I159: 0 | J159: 1 | K159: 130003^2|130004^2|130005^1 | L159: 8 | M159: 60515 | N159: 100 | O159: 10
A160: 5201 | B160: ='11'!P72 -> 60524^60522^60522^60522^60524^60521^60521^60521^60521^60521^60524^60522^60523^60523^60522^60524^60525^60525^60525^60525^60525^60522^60521^60521^60522^60521^60521^60522^60524^60522^60521^60523^60523^60521^60522^60524^60522^60522^60521^60521^60521^60522^60522^60525^60525^60525^60525^60525^60522^60521^60521^60524^60521^60521^60522^60524^60522^60521^60523^60523^60521^60522^60524 | C160: ='11'!P99 -> 4^2^1^3^5^6^4^1^5^7^6^4^2^3^5^7^101^102^103^104^105^6^4^2^1^3^5^7^8^6^4^2^3^5^7^9^6^4^2^1^3^5^7^101^102^103^104^105^6^4^2^1^3^5^7^8^6^4^2^3^5^7^9 | D160: ='11'!P113 -> 5^5^5^5^5^10^10^10^10^10^17^17^17^17^17^17^20^20^20^20^20^30^30^30^30^30^30^30^40^40^40^40^40^40^40^40^50^50^50^50^50^50^50^55^55^55^55^55^65^65^65^65^65^65^65^75^75^75^75^75^75^75^75 | E160: 0 | F160: 1 | G160: 0 | H160: 20004^21052 | I160: 4 | J160: 0 | K160: 130003^2|130004^2|130005^1 | L160: 7^10^15 | M160: 60525^60525^60525 | N160: 100^100^100 | O160: 8^12^15
A161: 5202 | B161: ='11'!AD72 -> 60525^60522^60523^60522^60521^60523^60521^60522^60521^60524^60521^60522^60523^60521^60522^60524^60524^60522^60521^60525^60522 | C161: ='11'!AD99 -> 100^0^0^0^0^0^0^0^0^0^0^0^0^0^0^0^0^0^0^100^0 | D161: ='11'!AD112 -> 14^6^4^4^10^3^12^3^10^2^12^3^2^9^3^2^2^3^10^8^4 | E161: 10 | F161: 3 | G161: 0 | H161: 20004^21052 | I161: 3 | J161: 0 | K161: 130003^2|130004^2|130005^1 | L161: 7^10^15 | M161: 60525^60525^60525 | N161: 100^100^100 | O161: 8^12^15
A162: 5203 | B162: ='11'!AR72 -> 60523^60523^60523^60524^60522^60522^60524^60521^60521^60521^60521^60525^60525^60525^60525^60524^60522^60521^60522^60521^60522^60524^60523^60523^60524^60523^60523^60522^60522^60521^60521^60521^60522^60522^60524^60522^60521^60523^60523^60521^60522^60524 | C162: ='11'!AR99 -> 4^1^5^8^6^7^9^6^4^5^7^101^102^104^105^6^4^2^1^3^5^7^6^2^1^3^7^6^4^2^1^3^5^7^8^6^4^2^3^5^7^9 | D162: ='11'!AR112 -> 4^4^4^6^6^6^6^10^10^10^10^15^15^15^15^22^22^22^22^22^22^22^30^30^30^30^30^40^40^40^40^40^40^40^50^50^50^50^50^50^50^50 | E162: 0 | F162: 1 | G162: 0 | H162: 20004^21052 | I162: 3 | J162: 0 | K162: 130003^2|130004^2|130005^1 | L162: 6^10 | M162: 60525^60525 | N162: 100^100 | O162: 8^12
A163: 5204 | B163: ='11'!BF72 -> 60521^60521^60521^60521^60522^60522^60522^60524^60524^60525^60525^60525^60525^60523^60523^60523^60524^60521^60521^60521^60521^60524^60522^60522^60522^60522^60522^60522^60522^60521^60523^60523^60521^60522^60522 | C163: ='11'!BF99 -> 4^2^3^5^4^1^5^2^3^101^102^104^105^4^1^5^6^4^2^3^5^7^6^4^1^5^7^8^6^4^2^3^5^7^9 | D163: ='11'!BF112 -> 2^2^2^2^4^4^4^6^6^8^8^8^8^10^10^10^16^16^16^16^16^16^25^25^25^25^25^35^35^35^35^35^35^35^35 | E163: 0 | F163: 1 | G163: 0 | H163: 20004^21052 | I163: 0 | J163: 1 | K163: 130003^2|130004^2|130005^1 | L163: 8 | M163: 60525 | N163: 100 | O163: 10
A164: 5301 | B164: ='11'!P130 -> 60531^60532^60532^60534^60531^60533^60531^60532^60534^60531^60532^60533^60532^60534^60535^60531^60532^60531^60533^60531^60532^60534^60533^60531^60532^60535^60532 | C164: ='11'!P157 -> 0^0^0^0^0^0^0^0^0^0^0^0^0^0^100^0^0^0^0^0^0^0^0^0^0^100^0 | D164: ='11'!P171 -> 8^4^3^2^8^2^9^3^2^10^3^3^5^2^7^8^4^12^2^9^3^2^2^11^3^8^3 | E164: 10 | F164: 3 | G164: 0 | H164: 20004^21053 | I164: 4 | J164: 0 | K164: 130003^2|130004^2|130005^1 | L164: 7^10^15 | M164: 60535^60535^60535 | N164: 100^100^100 | O164: 8^12^15
A165: 5302 | B165: ='11'!AD130 -> 60534^60532^60532^60532^60534^60531^60531^60531^60531^60531^60533^60532^60533^60532^60533^60535^60535^60535^60535^60535^60534^60532^60531^60532^60531^60532^60534^60532^60531^60533^60534^60533^60531^60532^60534^60531^60532^60532^60532^60531^60534^60535^60535^60535^60535^60535 | C165: ='11'!AD157 -> 6^2^1^3^7^4^2^1^3^5^4^2^1^3^5^101^102^103^104^105^6^4^2^1^3^5^7^6^4^2^1^3^5^7^8^6^2^1^3^7^9^101^102^103^104^105 | D165: ='11'!AD170 -> 5^5^5^5^5^10^10^10^10^10^15^15^15^15^15^22^22^22^22^22^30^30^30^30^30^30^30^40^40^40^40^40^40^40^50^50^50^50^50^50^50^55^55^55^55^55 | E165: 0 | F165: 1 | G165: 0 | H165: 20004^21053 | I165: 3 | J165: 0 | K165: 130003^2|130004^2|130005^1 | L165: 7^10^15 | M165: 60535^60535^60535 | N165: 100^100^100 | O165: 8^12^15
A166: 5303 | B166: ='11'!AR130 -> 60533^60531^60531^60532^60534^60535^60534^60533^60531^60532^60531^60532^60534^60532^60531^60534^60533^60531^60532^60535^60532 | C166: ='11'!AR157 -> 0^0^0^0^0^100^0^0^0^0^0^0^0^0^0^0^0^0^0^100^0 | D166: ='11'!AR170 -> 6^19^8^3^2^8^2^2^9^3^10^3^2^4^9^2^2^8^3^8^4 | E166: 10 | F166: 3 | G166: 0 | H166: 20004^21053 | I166: 3 | J166: 0 | K166: 130003^2|130004^2|130005^1 | L166: 6^10 | M166: 60535^60535 | N166: 100^100 | O166: 8^12
A167: 5304 | B167: ='11'!BF130 -> 60535^60535^60535^60532^60532^60532^60534^60533^60534^60531^60531^60531^60531^60532^60531^60533^60533^60531^60532^60534^60531^60532^60532^60532^60531^60534^60532^60531^60533^60534^60533^60531^60532^60532^60532^60531^60533^60531^60532^60532 | C167: ='11'!BF157 -> 101^103^105^2^1^3^6^1^7^4^2^3^5^6^4^2^3^5^7^8^4^2^1^3^5^9^6^4^2^1^3^5^7^8^4^2^1^3^5^9 | D167: ='11'!BF170 -> 3^3^3^5^5^5^8^8^8^12^12^12^12^20^20^20^20^20^20^30^30^30^30^30^30^30^40^40^40^40^40^40^40^50^50^50^50^50^50^50 | E167: 0 | F167: 1 | G167: 0 | H167: 20004^21053 | I167: 0 | J167: 1 | K167: 130003^2|130004^2|130005^1 | L167: 8 | M167: 60535 | N167: 100 | O167: 10
A168: 5401 | B168: ='11'!P188 -> 60544^60542^60542^60542^60544^60541^60541^60541^60541^60541^60544^60542^60543^60543^60542^60544^60542^60541^60541^60542^60541^60541^60542^60545^60545^60545^60545^60545^60544^60541^60542^60542^60542^60541^60544^60541^60541^60542^60543^60543^60542^60541^60541^60544^60542^60541^60541^60542^60541^60541^60542^60544^60545^60545^60545^60545^60545^60542^60541^60543^60544^60543^60541^60542 | C168: ='11'!P215 -> 6^2^1^3^7^6^2^1^3^7^6^4^2^3^5^7^8^4^2^1^3^5^9^101^102^103^104^105^8^6^2^1^3^7^9^8^6^4^2^3^5^7^9^8^6^4^2^1^3^5^7^9^101^102^103^104^105^6^4^2^1^3^5^7 | D168: ='11'!P229 -> 5^5^5^5^5^10^10^10^10^10^17^17^17^17^17^17^25^25^25^25^25^25^25^30^30^30^30^30^40^40^40^40^40^40^40^50^50^50^50^50^50^50^50^60^60^60^60^60^60^60^60^60^65^65^65^65^65^75^75^75^75^75^75^75 | E168: 0 | F168: 1 | G168: 0 | H168: 20004^21054 | I168: 4 | J168: 0 | K168: 130003^2|130004^2|130005^1 | L168: 7^10^15 | M168: 60545^60545^60545 | N168: 100^100^100 | O168: 8^12^15
A169: 5402 | B169: ='11'!AD188 -> 60541^60544^60542^60541^60545^60542^60543^60541^60544^60541^60542^60544^60542^60543^60541^60541^60542^60544^60545^60542 | C169: ='11'!AD215 -> 0^0^0^0^100^0^0^0^0^0^0^0^0^0^0^0^0^0^100^0 | D169: ='11'!AD228 -> 19^6^3^9^8^4^2^10^2^11^3^2^3^2^12^12^3^2^8^4 | E169: 10 | F169: 3 | G169: 0 | H169: 20004^21054 | I169: 3 | J169: 0 | K169: 130003^2|130004^2|130005^1 | L169: 7^10^15 | M169: 60545^60545^60545 | N169: 100^100^100 | O169: 8^12^15
A170: 5403 | B170: ='11'!AR188 -> 60545^60545^60545^60545^60544^60542^60542^60544^60541^60541^60541^60541^60541^60542^60541^60543^60543^60541^60542^60544^60541^60542^60542^60542^60541^60544^60542^60541^60543^60543^60541^60542^60545^60545^60545^60545^60545^60544^60542^60541^60543^60541^60542^60544 | C170: ='11'!AR215 -> 101^102^104^105^6^2^3^7^4^2^1^3^5^8^4^2^3^5^9^8^6^4^1^5^7^9^6^4^2^3^5^7^101^102^103^104^105^8^6^2^1^3^7^9 | D170: ='11'!AR228 -> 3^3^3^3^5^5^5^5^10^10^10^10^10^17^17^17^17^17^17^25^25^25^25^25^25^25^35^35^35^35^35^35^40^40^40^40^40^50^50^50^50^50^50^50 | E170: 0 | F170: 1 | G170: 0 | H170: 20004^21054 | I170: 3 | J170: 0 | K170: 130003^2|130004^2|130005^1 | L170: 6^10 | M170: 60545^60545 | N170: 100^100 | O170: 8^12
A171: 5404 | B171: ='11'!BF188 -> 60543^60543^60543^60542^60542^60542^60544^60544^60541^60541^60541^60541^60545^60545^60545^60545^60544^60542^60543^60543^60542^60544^60542^60541^60541^60544^60541^60541^60542^60542^60544^60542^60543^60543^60542^60544^60542 | C171: ='11'!BF215 -> 4^1^5^6^1^7^2^3^4^2^3^5^101^102^104^105^8^6^2^3^7^9^6^4^2^1^3^5^7^8^6^4^2^3^5^7^9 | D171: ='11'!BF228 -> 3^3^3^5^5^5^8^8^12^12^12^12^18^18^18^18^25^25^25^25^25^25^35^35^35^35^35^35^35^45^45^45^45^45^45^45^45 | E171: 0 | F171: 1 | G171: 0 | H171: 20004^21054 | I171: 0 | J171: 1 | K171: 130003^2|130004^2|130005^1 | L171: 8 | M171: 60545 | N171: 100 | O171: 10
A172: 5501 | B172: ='11'!P246 -> 60551^60554^60552^60551^60553^60551^60552^60555^60553^60551^60552^60554^60552^60553^60554^60551^60551^60552^60552^60553^60554^60551^60555^60552^60554^60553^60552^60551 | C172: ='11'!P273 -> 0^0^0^0^0^0^0^100^0^0^0^0^0^0^0^0^0^0^0^0^0^0^100^0^0^0^0^0 | D172: ='11'!P287 -> 9^3^3^10^2^9^3^8^3^11^3^2^3^2^2^9^12^3^3^2^2^10^8^4^2^2^3^11 | E172: 10 | F172: 3 | G172: 0 | H172: 20004^21055 | I172: 4 | J172: 0 | K172: 130003^2|130004^2|130005^1 | L172: 7^10^15 | M172: 60555^60555^60555 | N172: 100^100^100 | O172: 8^12^15
A173: 5502 | B173: ='11'!AD246 -> 60555^60555^60555^60555^60552^60552^60552^60552^60554^60553^60553^60554^60554^60552^60551^60551^60552^60554^60553^60552^60552^60554^60552^60552^60553^60552^60551^60553^60553^60551^60552^60555^60555^60555^60555^60555^60554^60552^60556^60552^60554 | C173: ='11'!AD273 -> 101^102^104^105^6^1^3^7^6^2^3^7^8^4^2^3^5^9^6^4^2^1^3^5^7^8^4^2^3^5^9^101^102^103^104^105^6^4^1^5^7 | D173: ='11'!AD286 -> 5^5^5^5^10^10^10^10^15^15^15^15^22^22^22^22^22^22^30^30^30^30^30^30^30^40^40^40^40^40^40^45^45^45^45^45^55^55^55^55^55 | E173: 0 | F173: 1 | G173: 0 | H173: 20004^21055 | I173: 3 | J173: 0 | K173: 130003^2|130004^2|130005^1 | L173: 7^10^15 | M173: 60555^60555^60555 | N173: 100^100^100 | O173: 8^12^15
A174: 5503 | B174: ='11'!AR246 -> 60552^60554^60551^60553^60551^60555^60552^60553^60552^60554^60552^60551^60555^60554^60553^60553^60552^60554^60551^60553^60551^60552 | C174: ='11'!AR273 -> 0^0^0^0^0^100^0^0^0^0^0^0^100^0^0^0^0^0^0^0^0^0 | D174: ='11'!AR286 -> 6^4^18^3^11^8^3^3^5^2^3^12^7^2^3^3^2^2^9^3^11^2 | E174: 10 | F174: 3 | G174: 0 | H174: 20004^21055 | I174: 3 | J174: 0 | K174: 130003^2|130004^2|130005^1 | L174: 6^10 | M174: 60555^60555 | N174: 100^100 | O174: 8^12
A175: 5504 | B175: ='11'!BF246 -> 60554^60553^60553^60554^60552^60552^60552^60555^60555^60555^60555^60551^60551^60551^60551^60551^60554^60552^60553^60553^60552^60554^60553^60551^60551^60554^60551^60551^60553^60552^60551^60551^60553^60551^60551^60552^60554^60552^60551^60553^60553^60551^60552^60554 | C175: ='11'!BF273 -> 4^2^3^5^6^1^7^101^102^104^105^6^4^1^5^7^6^4^2^3^5^7^8^4^2^1^3^5^9^6^4^2^1^3^5^7^8^6^4^2^3^5^7^9 | D175: ='11'!BF286 -> 3^3^3^3^5^5^5^8^8^8^8^12^12^12^12^12^18^18^18^18^18^18^25^25^25^25^25^25^25^35^35^35^35^35^35^35^45^45^45^45^45^45^45^45 | E175: 0 | F175: 1 | G175: 0 | H175: 20004^21055 | I175: 0 | J175: 1 | K175: 130003^2|130004^2|130005^1 | L175: 8 | M175: 60555 | N175: 100 | O175: 10
A176: 5601 | B176: ='12'!P14 -> 60561^60562^60561^60562^60563^60561^60562^60563^60564^60561^60562^60565^60564^60561^60562^60563^60561^60562^60564^60561^60562^60563^60564^60561^60562^60565^60562 | C176: ='12'!P41 -> 0^0^0^0^0^0^0^0^0^0^0^100^0^0^0^0^0^0^0^0^0^0^0^0^0^100^0 | D176: ='12'!P55 -> 9^3^8^3^2^7^3^2^2^12^3^8^2^12^3^2^12^3^2^12^2^2^2^13^4^8^4 | E176: 11 | F176: 3 | G176: 0 | H176: 20004^21056 | I176: 4 | J176: 0 | K176: 130003^2|130004^2|130005^1 | L176: 7^10^15 | M176: 60565^60565^60565 | N176: 100^100^100 | O176: 8^12^15
A177: 5602 | B177: ='12'!AD14 -> 60564^60562^60562^60564^60563^60563^60563^60561^60561^60561^60561^60561^60565^60565^60565^60565^60565^60562^60561^60563^60562^60563^60561^60562^60564^60562^60561^60563^60561^60562^60564^60562^60561^60563^60564^60563^60561^60562^60564^60562^60561^60563^60563^60561^60562^60564 | C177: ='12'!AD41 -> 4^2^3^5^4^1^5^6^4^1^5^7^101^102^103^104^105^6^4^2^1^3^5^7^8^6^4^1^5^7^9^6^4^2^1^3^5^7^8^6^4^2^3^5^7^9 | D177: ='12'!AD54 -> 5^5^5^5^10^10^10^15^15^15^15^15^20^20^20^20^20^27^27^27^27^27^27^27^35^35^35^35^35^35^35^45^45^45^45^45^45^45^55^55^55^55^55^55^55^55 | E177: 0 | F177: 1 | G177: 0 | H177: 20004^21056 | I177: 3 | J177: 0 | K177: 130003^2|130004^2|130005^1 | L177: 7^10^15 | M177: 60565^60565^60565 | N177: 100^100^100 | O177: 8^12^15
A178: 5603 | B178: ='12'!AR14 -> 60565^60564^60563^60561^60562^60561^60564^60561^60562^60563^60561^60562^60564^60565^60563^60564^60561^60562^60561^60562^60563^60564 | C178: ='12'!AR41 -> 100^0^0^0^0^0^0^0^0^0^0^0^0^100^0^0^0^0^0^0^0^0 | D178: ='12'!AR54 -> 16^6^4^9^4^12^2^10^3^2^11^3^2^8^3^2^12^3^10^3^2^2 | E178: 11 | F178: 3 | G178: 0 | H178: 20004^21056 | I178: 3 | J178: 0 | K178: 130003^2|130004^2|130005^1 | L178: 6^10 | M178: 60565^60565 | N178: 100^100 | O178: 8^12
A179: 5604 | B179: ='12'!BF14 -> 60563^60563^60562^60562^60562^60564^60564^60561^60561^60561^60561^60565^60565^60565^60565^60564^60562^60563^60563^60562^60564^60562^60562^60561^60564^60561^60562^60562^60562^60562^60561^60561^60561^60561^60562^60562 | C179: ='12'!BF41 -> 2^3^4^1^5^2^3^6^4^5^7^101^102^104^105^6^4^2^3^5^7^6^4^2^1^3^5^7^8^6^4^2^3^5^7^9 | D179: ='12'!BF54 -> 2^2^4^4^4^6^6^8^8^8^8^10^10^10^10^17^17^17^17^17^17^25^25^25^25^25^25^25^35^35^35^35^35^35^35^35 | E179: 0 | F179: 1 | G179: 0 | H179: 20004^21056 | I179: 0 | J179: 1 | K179: 130003^2|130004^2|130005^1 | L179: 8 | M179: 60565 | N179: 100 | O179: 10
A180: 5701 | B180: ='12'!P72 -> 60574^60572^60572^60572^60574^60571^60571^60571^60571^60571^60574^60572^60573^60572^60573^60572^60574^60575^60575^60575^60575^60575^60572^60571^60571^60572^60571^60571^60572^60574^60572^60571^60573^60572^60573^60571^60572^60574^60572^60572^60571^60571^60571^60572^60572^60575^60575^60575^60575^60575^60572^60571^60571^60574^60571^60571^60572^60574^60572^60571^60573^60572^60573^60571^60572^60574 | C180: ='12'!P99 -> 4^2^1^3^5^6^4^1^5^7^6^4^2^1^3^5^7^101^102^103^104^105^6^4^2^1^3^5^7^8^6^4^2^1^3^5^7^9^6^4^2^1^3^5^7^101^102^103^104^105^6^4^2^1^3^5^7^8^6^4^2^1^3^5^7^9 | D180: ='12'!P113 -> 5^5^5^5^5^10^10^10^10^10^17^17^17^17^17^17^17^25^25^25^25^25^35^35^35^35^35^35^35^45^45^45^45^45^45^45^45^45^55^55^55^55^55^55^55^60^60^60^60^60^70^70^70^70^70^70^70^80^80^80^80^80^80^80^80^80 | E180: 0 | F180: 1 | G180: 0 | H180: 20004^21057 | I180: 4 | J180: 0 | K180: 130003^2|130004^2|130005^1 | L180: 7^10^15 | M180: 60575^60575^60575 | N180: 100^100^100 | O180: 8^12^15
A181: 5702 | B181: ='12'!AD72 -> 60575^60574^60572^60571^60572^60571^60573^60571^60573^60574^60571^60572^60571^60572^60573^60574^60571^60572^60574^60575^60572 | C181: ='12'!AD99 -> 100^0^0^0^0^0^0^0^0^0^0^0^0^0^0^0^0^0^0^100^0 | D181: ='12'!AD112 -> 13^6^6^9^4^11^3^10^2^2^12^4^10^3^2^2^12^3^2^8^4 | E181: 10 | F181: 3 | G181: 0 | H181: 20004^21057 | I181: 3 | J181: 0 | K181: 130003^2|130004^2|130005^1 | L181: 7^10^15 | M181: 60575^60575^60575 | N181: 100^100^100 | O181: 8^12^15
A182: 5703 | B182: ='12'!AR72 -> 60571^60573^60571^60572^60574^60571^60572^60575^60573^60571^60572^60574^60571^60573^60574^60571^60572^60571^60572^60573^60574 | C182: ='12'!AR99 -> 0^0^0^0^0^0^0^100^0^0^0^0^0^0^0^0^0^0^0^0^0 | D182: ='12'!AR112 -> 19^5^8^3^2^10^4^8^3^11^3^2^12^3^2^12^4^10^3^2^2 | E182: 10 | F182: 3 | G182: 0 | H182: 20004^21057 | I182: 3 | J182: 0 | K182: 130003^2|130004^2|130005^1 | L182: 6^10 | M182: 60575^60575 | N182: 100^100 | O182: 8^12
A183: 5704 | B183: ='12'!BF72 -> 60571^60571^60571^60571^60572^60572^60572^60574^60574^60575^60575^60575^60575^60573^60573^60573^60574^60571^60571^60571^60571^60574^60572^60572^60572^60572^60572^60572^60572^60571^60573^60573^60571^60572^60572 | C183: ='12'!BF99 -> 4^2^3^5^4^1^5^2^3^101^102^104^105^4^1^5^6^4^2^3^5^7^6^4^1^5^7^8^6^4^2^3^5^7^9 | D183: ='12'!BF112 -> 2^2^2^2^4^4^4^6^6^8^8^8^8^10^10^10^17^17^17^17^17^17^25^25^25^25^25^35^35^35^35^35^35^35^35 | E183: 0 | F183: 1 | G183: 0 | H183: 20004^21057 | I183: 0 | J183: 1 | K183: 130003^2|130004^2|130005^1 | L183: 8 | M183: 60575 | N183: 100 | O183: 10
A184: 5801 | B184: ='12'!P130 -> 60581^60581^60581^60581^60581^60584^60582^60582^60582^60584^60582^60581^60583^60583^60583^60581^60582^60582^60581^60581^60584^60581^60581^60582^60584^60582^60583^60582^60583^60582^60584^60585^60585^60585^60585^60585^60581^60581^60582^60582^60582^60581^60581^60584^60582^60581^60583^60581^60583^60581^60582^60584^60582^60581^60583^60583^60583^60581^60582^60585^60585^60585^60585^60585 | C184: ='12'!P157 -> 4^2^1^3^5^6^2^1^3^7^8^4^2^1^3^5^9^6^4^2^1^3^5^7^8^6^2^1^3^7^9^101^102^103^104^105^8^6^4^1^5^7^9^8^6^4^2^1^3^5^7^9^6^4^2^1^3^5^7^101^102^103^104^105 | D184: ='12'!P171 -> 5^5^5^5^5^10^10^10^10^10^17^17^17^17^17^17^17^25^25^25^25^25^25^25^35^35^35^35^35^35^35^40^40^40^40^40^50^50^50^50^50^50^50^60^60^60^60^60^60^60^60^60^70^70^70^70^70^70^70^75^75^75^75^75 | E184: 0 | F184: 1 | G184: 0 | H184: 20004^21058 | I184: 4 | J184: 0 | K184: 130003^2|130004^2|130005^1 | L184: 7^10^15 | M184: 60585^60585^60585 | N184: 100^100^100 | O184: 8^12^15
A185: 5802 | B185: ='12'!AD130 -> 60581^60582^60584^60581^60583^60581^60582^60585^60582^60581^60582^60584^60581^60583^60582^60584^60581^60582^60584^60585^60582^60584 | C185: ='12'!AD157 -> 0^0^0^0^0^0^0^100^0^0^0^0^0^0^0^0^0^0^0^100^0^0 | D185: ='12'!AD170 -> 18^6^5^12^3^12^4^8^5^13^3^2^12^2^3^2^13^4^2^8^4^2 | E185: 9 | F185: 3 | G185: 0 | H185: 20004^21058 | I185: 3 | J185: 0 | K185: 130003^2|130004^2|130005^1 | L185: 7^10^15 | M185: 60585^60585^60585 | N185: 100^100^100 | O185: 8^12^15
A186: 5803 | B186: ='12'!AR130 -> 60583^60582^60583^60582^60583^60584^60581^60582^60581^60582^60581^60584^60585^60585^60585^60585^60585^60582^60581^60583^60582^60583^60581^60582^60584^60582^60583^60581^60581^60581^60583^60582^60584^60581^60581^60582^60584^60582^60584^60582^60581^60581^60582^60581^60583^60584^60583^60581^60582^60585^60585^60585^60585^60585 | C186: ='12'!AR157 -> 4^2^1^3^5^6^4^2^1^3^5^7^101^102^103^104^105^6^4^2^1^3^5^7^8^6^4^2^1^3^5^7^9^8^6^4^2^1^3^5^7^9^6^4^2^1^3^5^7^101^102^103^104^105 | D186: ='12'!AR170 -> 3^3^3^3^3^5^5^5^5^5^5^5^10^10^10^10^10^17^17^17^17^17^17^17^25^25^25^25^25^25^25^25^25^35^35^35^35^35^35^35^35^35^45^45^45^45^45^45^45^50^50^50^50^50 | E186: 0 | F186: 1 | G186: 0 | H186: 20004^21058 | I186: 3 | J186: 0 | K186: 130003^2|130004^2|130005^1 | L186: 6^10 | M186: 60585^60585 | N186: 100^100 | O186: 8^12
A187: 5804 | B187: ='12'!BF130 -> 60585^60585^60585^60582^60582^60582^60584^60583^60584^60581^60581^60581^60581^60582^60581^60583^60583^60581^60582^60584^60581^60582^60582^60582^60581^60584^60582^60581^60583^60584^60583^60581^60582^60582^60582^60581^60583^60581^60582^60582 | C187: ='12'!BF157 -> 101^103^105^2^1^3^6^1^7^4^2^3^5^6^4^2^3^5^7^8^4^2^1^3^5^9^6^4^2^1^3^5^7^8^4^2^1^3^5^9 | D187: ='12'!BF170 -> 3^3^3^5^5^5^8^8^8^12^12^12^12^20^20^20^20^20^20^30^30^30^30^30^30^30^40^40^40^40^40^40^40^50^50^50^50^50^50^50 | E187: 0 | F187: 1 | G187: 0 | H187: 20004^21058 | I187: 0 | J187: 1 | K187: 130003^2|130004^2|130005^1 | L187: 8 | M187: 60585 | N187: 100 | O187: 10
A188: 5901 | B188: ='12'!P188 -> 60591^60592^60594|60591^60593|60591^60592^60593^60594|60591^60592|60595^60592|60591^60592^60593^60594|60591^60592^60593|60591^60592^60594|60595^60593^60594|60591^60592^60593 | C188: ='12'!P215 -> 0^0^0|0^0|0^0^0^0|0^0|100^0|0^0^0^0|0^0^0|0^0^0|100^0^0|0^0^0 | D188: ='12'!P229 -> 8^3^2|11^3|9^2^3^2|12^3|8^4|9^3^3^2|13^2^3|14^3^2|8^3^2|15^2^3 | E188: 9 | F188: 3 | G188: 0 | H188: 20004^21059 | I188: 4 | J188: 0 | K188: 130003^2|130004^2|130005^1 | L188: 7^10^15 | M188: 60595^60595^60595 | N188: 100^100^100 | O188: 8^12^15
A189: 5902 | B189: ='12'!AD188 -> 60594^60591^60591^60591^60594^60592^60593^60591^60592^60591^60593^60592^60595^60595^60595^60595^60595^60594^60593^60592^60593^60592^60593^60594^60594^60592^60591^60592^60591^60592^60594^60592^60591^60593^60592^60593^60591^60592^60594^60592^60591^60591^60592^60591^60591^60592^60594^60595^60595^60595^60595^60595 | C189: ='12'!AD215 -> 4^2^1^3^5^6^4^2^1^3^5^7^101^102^103^104^105^6^4^2^1^3^5^7^8^4^2^1^3^5^9^8^4^2^1^3^5^9^8^6^4^2^1^3^5^7^9^101^102^103^104^105 | D189: ='12'!AD228 -> 5^5^5^5^5^10^10^10^10^10^10^10^15^15^15^15^15^22^22^22^22^22^22^22^30^30^30^30^30^30^30^40^40^40^40^40^40^40^50^50^50^50^50^50^50^50^50^55^55^55^55^55 | E189: 0 | F189: 1 | G189: 0 | H189: 20004^21059 | I189: 3 | J189: 0 | K189: 130003^2|130004^2|130005^1 | L189: 7^10^15 | M189: 60595^60595^60595 | N189: 100^100^100 | O189: 8^12^15
A190: 5903 | B190: ='12'!AR188 -> 60595^60591^60592^60591^60592^60594^60591^60593^60591^60592^60593^60591^60592^60594^60591^60592^60593^60595^60592^60591^60592^60593^60594 | C190: ='12'!AR215 -> 100^0^0^0^0^0^0^0^0^0^0^0^0^0^0^0^0^100^0^0^0^0^0 | D190: ='12'!AR228 -> 12^6^4^10^3^2^12^3^12^3^2^13^3^2^14^2^4^8^4^14^2^3^2 | E190: 9 | F190: 3 | G190: 0 | H190: 20004^21059 | I190: 3 | J190: 0 | K190: 130003^2|130004^2|130005^1 | L190: 6^10 | M190: 60595^60595 | N190: 100^100 | O190: 8^12
A191: 5904 | B191: ='12'!BF188 -> 60593^60593^60593^60592^60592^60592^60594^60594^60591^60591^60591^60591^60595^60595^60595^60595^60594^60592^60593^60593^60592^60594^60592^60591^60591^60594^60591^60591^60592^60592^60594^60592^60593^60593^60592^60594^60592 | C191: ='12'!BF215 -> 4^1^5^6^1^7^2^3^4^2^3^5^101^102^104^105^8^6^2^3^7^9^6^4^2^1^3^5^7^8^6^4^2^3^5^7^9 | D191: ='12'!BF228 -> 3^3^3^5^5^5^8^8^12^12^12^12^17^17^17^17^25^25^25^25^25^25^35^35^35^35^35^35^35^45^45^45^45^45^45^45^45 | E191: 0 | F191: 1 | G191: 0 | H191: 20004^21059 | I191: 0 | J191: 1 | K191: 130003^2|130004^2|130005^1 | L191: 8 | M191: 60595 | N191: 100 | O191: 10
A192: 6001 | B192: ='12'!P246 -> 60604^60601^60601^60601^60604^60601^60602^60602^60602^60602^60601^60602^60601^60603^60603^60603^60601^60602^60605^60605^60605^60605^60605^60604^60602^60602^60601^60601^60601^60602^60602^60604^60604^60602^60603^60602^60603^60602^60604^60602^60601^60601^60601^60602^60601^60601^60601^60602^60604^60602^60603^60602^60603^60602^60604^60605^60605^60605^60605^60605^60602^60602^60603^60603^60604^60603^60604^60602^60602 | C192: ='12'!P273 -> 6^2^1^3^7^6^4^2^3^5^7^8^6^2^1^3^7^9^101^102^103^104^105^8^6^4^2^1^3^5^7^9^8^4^2^1^3^5^9^8^6^4^2^1^3^5^7^9^6^4^2^1^3^5^7^101^102^103^104^105^8^6^4^2^1^3^5^7^9 | D192: ='12'!P287 -> 5^5^5^5^5^15^15^15^15^15^15^30^30^30^30^30^30^30^35^35^35^35^35^50^50^50^50^50^50^50^50^50^66^66^66^66^66^66^66^83^83^83^83^83^83^83^83^83^100^100^100^100^100^100^100^105^105^105^105^105^120^120^120^120^120^120^120^120^120 | E192: 0 | F192: 1 | G192: 0 | H192: 20004^21060 | I192: 4 | J192: 0 | K192: 130003^2|130004^2|130005^1 | L192: 7^10^15 | M192: 60605^60605^60605 | N192: 100^100^100 | O192: 8^12^15
A193: 6002 | B193: ='12'!AD246 -> 60605^60605^60605^60605^60602^60602^60602^60602^60604^60603^60603^60603^60604^60604^60602^60601^60601^60602^60604^60602^60602^60603^60604^60603^60602^60602^60602^60601^60603^60602^60603^60601^60602^60605^60605^60605^60605^60605^60604^60602^60606^60602^60604 | C193: ='12'!AD273 -> 101^102^104^105^6^1^3^7^6^2^1^3^7^8^4^2^3^5^9^6^4^2^1^3^5^7^8^4^2^1^3^5^9^101^102^103^104^105^6^4^1^5^7 | D193: ='12'!AD286 -> 5^5^5^5^10^10^10^10^15^15^15^15^15^22^22^22^22^22^22^30^30^30^30^30^30^30^40^40^40^40^40^40^40^45^45^45^45^45^55^55^55^55^55 | E193: 0 | F193: 1 | G193: 0 | H193: 20004^21060 | I193: 3 | J193: 0 | K193: 130003^2|130004^2|130005^1 | L193: 7^10^15 | M193: 60605^60605^60605 | N193: 100^100^100 | O193: 8^12^15
A194: 6003 | B194: ='12'!AR246 -> 60601^60602^60604^60601^60603^60605^60602^60604^60603^60602^60604^60601^60602^60605^60601^60603^60601^60602^60603^60604^60601^60602 | C194: ='12'!AR273 -> 0^0^0^0^0^100^0^0^0^0^0^0^0^100^0^0^0^0^0^0^0^0 | D194: ='12'!AR286 -> 18^6^3^13^3^8^3^2^3^4^3^14^3^6^2^8^12^3^2^2^15^4 | E194: 8 | F194: 3 | G194: 0 | H194: 20004^21060 | I194: 3 | J194: 0 | K194: 130003^2|130004^2|130005^1 | L194: 6^10 | M194: 60605^60605 | N194: 100^100 | O194: 8^12
A195: 6004 | B195: ='12'!BF246 -> 60604^60603^60603^60604^60602^60602^60602^60605^60605^60605^60605^60601^60601^60601^60601^60601^60604^60602^60603^60603^60602^60604^60602^60601^60601^60604^60601^60601^60602^60602^60601^60601^60603^60601^60601^60602^60604^60602^60601^60603^60603^60601^60602^60604 | C195: ='12'!BF273 -> 4^2^3^5^6^1^7^101^102^104^105^6^4^1^5^7^6^4^2^3^5^7^8^4^2^1^3^5^9^6^4^2^1^3^5^7^8^6^4^2^3^5^7^9 | D195: ='12'!BF286 -> 3^3^3^3^5^5^5^8^8^8^8^12^12^12^12^12^18^18^18^18^18^18^25^25^25^25^25^25^25^35^35^35^35^35^35^35^45^45^45^45^45^45^45^45 | E195: 0 | F195: 1 | G195: 0 | H195: 20004^21060 | I195: 0 | J195: 1 | K195: 130003^2|130004^2|130005^1 | L195: 8 | M195: 60605 | N195: 100 | O195: 10
A196: 6101 | B196: ='13'!P14 -> 60611^60612^60611^60612^60613^60611^60612^60613^60614^60611^60612^60615^60614^60611^60612^60613^60611^60612^60614^60611^60612^60613^60614^60611^60612^60615^60612 | C196: ='13'!P41 -> 0^0^0^0^0^0^0^0^0^0^0^100^0^0^0^0^0^0^0^0^0^0^0^0^0^100^0 | D196: ='13'!P55 -> 8^4^8^2^3^7^3^2^2^12^3^8^2^12^3^2^12^3^2^12^2^2^2^13^4^8^4 | E196: 11 | F196: 3 | G196: 0 | H196: 20004^21061 | I196: 4 | J196: 0 | K196: 130003^2|130004^2|130005^2 | L196: 7^10^15 | M196: 60615^60615^60615 | N196: 100^100^100 | O196: 8^12^15
A197: 6102 | B197: ='13'!AD14 -> 60614^60612^60612^60612^60614^60613^60613^60613^60611^60611^60611^60611^60611^60615^60615^60615^60615^60612^60611^60613^60614^60613^60611^60612^60614^60612^60611^60613^60611^60612^60614^60612^60611^60613^60614^60613^60611^60612^60614^60612^60611^60613^60613^60611^60612^60614 | C197: ='13'!AD41 -> 4^2^1^3^5^4^1^5^6^4^1^5^7^101^102^104^105^6^4^2^1^3^5^7^8^6^4^1^5^7^9^6^4^2^1^3^5^7^8^6^4^2^3^5^7^9 | D197: ='13'!AD54 -> 5^5^5^5^5^10^10^10^15^15^15^15^15^20^20^20^20^27^27^27^27^27^27^27^35^35^35^35^35^35^35^45^45^45^45^45^45^45^55^55^55^55^55^55^55^55 | E197: 0 | F197: 1 | G197: 0 | H197: 20004^21061 | I197: 3 | J197: 0 | K197: 130003^2|130004^2|130005^2 | L197: 7^10^15 | M197: 60615^60615^60615 | N197: 100^100^100 | O197: 8^12^15
A198: 6103 | B198: ='13'!AR14 -> 60615^60614^60612^60611^60612^60611^60614^60611^60612^60613^60611^60612^60614^60615^60613^60614^60611^60612^60611^60612^60613^60614 | C198: ='13'!AR41 -> 100^0^0^0^0^0^0^0^0^0^0^0^0^100^0^0^0^0^0^0^0^0 | D198: ='13'!AR54 -> 14^5^4^9^4^12^2^10^3^2^11^3^2^8^3^2^12^3^10^3^2^2 | E198: 10 | F198: 3 | G198: 0 | H198: 20004^21061 | I198: 3 | J198: 0 | K198: 130003^2|130004^2|130005^2 | L198: 6^10 | M198: 60615^60615 | N198: 100^100 | O198: 8^12
A199: 6104 | B199: ='13'!BF14 -> 60613^60613^60612^60612^60612^60614^60614^60611^60611^60611^60611^60615^60615^60615^60615^60614^60612^60613^60613^60612^60614^60612^60612^60611^60614^60611^60612^60612^60612^60612^60611^60611^60611^60611^60612^60612 | C199: ='13'!BF41 -> 2^3^4^1^5^2^3^6^4^5^7^101^102^104^105^6^4^2^3^5^7^6^4^2^1^3^5^7^8^6^4^2^3^5^7^9 | D199: ='13'!BF54 -> 2^2^4^4^4^6^6^8^8^8^8^10^10^10^10^17^17^17^17^17^17^25^25^25^25^25^25^25^35^35^35^35^35^35^35^35 | E199: 0 | F199: 1 | G199: 0 | H199: 20004^21061 | I199: 0 | J199: 1 | K199: 130003^2|130004^2|130005^2 | L199: 8 | M199: 60615 | N199: 100 | O199: 10
A200: 6201 | B200: ='13'!P72 -> 60624^60622^60622^60622^60624^60621^60621^60621^60621^60621^60624^60622^60623^60622^60623^60622^60624^60625^60625^60625^60625^60625^60622^60621^60621^60622^60621^60621^60622^60624^60622^60621^60623^60623^60623^60621^60622^60624^60622^60622^60621^60621^60621^60622^60622^60625^60625^60625^60625^60625^60622^60621^60621^60624^60621^60621^60622^60624^60622^60621^60623^60622^60623^60621^60622^60624 | C200: ='13'!P99 -> 4^2^1^3^5^6^4^1^5^7^6^4^2^1^3^5^7^101^102^103^104^105^6^4^2^1^3^5^7^8^6^4^2^1^3^5^7^9^6^4^2^1^3^5^7^101^102^103^104^105^6^4^2^1^3^5^7^8^6^4^2^1^3^5^7^9 | D200: ='13'!P113 -> 5^5^5^5^5^10^10^10^10^10^16^16^16^16^16^16^16^20^20^20^20^20^30^30^30^30^30^30^30^40^40^40^40^40^40^40^40^40^50^50^50^50^50^50^50^55^55^55^55^55^65^65^65^65^65^65^65^75^75^75^75^75^75^75^75^75 | E200: 0 | F200: 1 | G200: 0 | H200: 20004^21062 | I200: 4 | J200: 0 | K200: 130003^2|130004^2|130005^2 | L200: 7^10^15 | M200: 60625^60625^60625 | N200: 100^100^100 | O200: 8^12^15
... 55 more rows

Sheet 1
A1: 刷怪类型： | E1: =E2-D2 -> 10 | F1: =F2-E2 -> 10 | G1: 12 | H1: 13 | I1: 15 | J1: 15 | K1: 20
A2: 2 | B2: 森林-1 | C2: 波1·怪物 | D2: 5 | E2: 15 | F2: 25 | G2: 37 | H2: 50 | I2: 65 | J2: 80 | K2: 100
B3: =K2/60 -> 1.666666667 | C3: 8 | Q3: =_xlfn.TEXTJOIN("^",,D3:D12) -> 60011
C4: 6 | Q4: =_xlfn.TEXTJOIN("^",,E3:E12) -> 60011^60011
C5: 4 | K5: 60011 | Q5: =_xlfn.TEXTJOIN("^",,F3:F12) -> 60011^60011
C6: 2 | E6: 60011 | F6: 60011 | G6: 60011 | H6: 60011 | I6: 60011 | J6: 60011 | K6: 60011 | Q6: =_xlfn.TEXTJOIN("^",,G3:G12) -> 60011^60011
C7: 1 | D7: 60011 | E7: 60011 | F7: 60011 | H7: 60011 | J7: 60011 | Q7: =_xlfn.TEXTJOIN("^",,H3:H12) -> 60011^60011^60011
C8: 3 | G8: 60011 | H8: 60011 | I8: 60011 | J8: 60011 | K8: 60011 | Q8: =_xlfn.TEXTJOIN("^",,I3:I12) -> 60011^60011
C9: 5 | K9: 60011 | Q9: =_xlfn.TEXTJOIN("^",,J3:J12) -> 60011^60011^60011
C10: 7 | Q10: =_xlfn.TEXTJOIN("^",,K3:K12) -> 60011^60011^60011^60011
C11: 9 | Q11: =_xlfn.TEXTJOIN("^",,L3:L12) -> 
Q12: =_xlfn.TEXTJOIN("^",,M3:M12) -> 
P13: 最终 | Q13: =_xlfn.TEXTJOIN("^",,Q3:Q12) -> 60011^60011^60011^60011^60011^60011^60011^60011^60011^60011^60011^60011^60011^60011^60011^60011^60011^60011^60011
C14: 8
C15: 6
C16: 4 | K16: 树精
C17: 2 | E17: 树精 | F17: 树精 | G17: 树精 | H17: 树精 | I17: 树精 | J17: 树精 | K17: 树精
C18: 1 | D18: 树精 | F18: 树精 | H18: 树精 | J18: 树精
C19: 3 | E19: 树精 | G19: 树精 | H19: 树精 | I19: 树精 | J19: 树精 | K19: 树精
C20: 5 | K20: 树精
C21: 7
C22: 9
C24: 位置 | D24: 5 | E24: 15 | F24: 25 | G24: 37 | H24: 50 | I24: 65 | J24: 80 | K24: 100
C25: 8 | Q25: =_xlfn.TEXTJOIN("^",,D25:D34) -> 1
C26: 6 | Q26: =_xlfn.TEXTJOIN("^",,E25:E34) -> 2^1
C27: 4 | K27: 4 | Q27: =_xlfn.TEXTJOIN("^",,F25:F34) -> 2^1
C28: 2 | E28: 2 | F28: 2 | G28: 2 | H28: 2 | I28: 2 | J28: 2 | K28: 2 | Q28: =_xlfn.TEXTJOIN("^",,G25:G34) -> 2^3
C29: 1 | D29: 1 | E29: 1 | F29: 1 | H29: 1 | J29: 1 | Q29: =_xlfn.TEXTJOIN("^",,H25:H34) -> 2^1^3
C30: 3 | G30: 3 | H30: 3 | I30: 3 | J30: 3 | K30: 3 | Q30: =_xlfn.TEXTJOIN("^",,I25:I34) -> 2^3
C31: 5 | K31: 5 | Q31: =_xlfn.TEXTJOIN("^",,J25:J34) -> 2^1^3
C32: 7 | Q32: =_xlfn.TEXTJOIN("^",,K25:K34) -> 4^2^3^5
C33: 9 | Q33: =_xlfn.TEXTJOIN("^",,L25:L34) -> 
Q34: =_xlfn.TEXTJOIN("^",,M25:M34) -> 
P35: 最终 | Q35: =_xlfn.TEXTJOIN("^",,Q25:Q34) -> 1^2^1^2^1^2^3^2^1^3^2^3^2^1^3^4^2^3^5
C37: 时间 | D37: 5 | E37: 15 | F37: 25 | G37: 37 | H37: 50 | I37: 65 | J37: 80 | K37: 100
C38: 8 | Q38: =_xlfn.TEXTJOIN("^",,D38:D47) -> 5
C39: 6 | Q39: =_xlfn.TEXTJOIN("^",,E38:E47) -> 15^15
C40: 4 | K40: 100 | Q40: =_xlfn.TEXTJOIN("^",,F38:F47) -> 25^25
C41: 2 | E41: 15 | F41: 25 | G41: 37 | H41: 50 | I41: 65 | J41: 80 | K41: 100 | Q41: =_xlfn.TEXTJOIN("^",,G38:G47) -> 37^37
C42: 1 | D42: 5 | E42: 15 | F42: 25 | H42: 50 | J42: 80 | Q42: =_xlfn.TEXTJOIN("^",,H38:H47) -> 50^50^50
C43: 3 | G43: 37 | H43: 50 | I43: 65 | J43: 80 | K43: 100 | Q43: =_xlfn.TEXTJOIN("^",,I38:I47) -> 65^65
C44: 5 | K44: 100 | Q44: =_xlfn.TEXTJOIN("^",,J38:J47) -> 80^80^80
C45: 7 | Q45: =_xlfn.TEXTJOIN("^",,K38:K47) -> 100^100^100^100
C46: 9 | Q46: =_xlfn.TEXTJOIN("^",,L38:L47) -> 
Q47: =_xlfn.TEXTJOIN("^",,M38:M47) -> 
P48: 最终 | Q48: =_xlfn.TEXTJOIN("^",,Q38:Q47) -> 5^15^15^25^25^37^37^50^50^50^65^65^80^80^80^100^100^100^100
E51: =E52-D52 -> 12 | F51: =F52-E52 -> 12 | G51: 13 | H51: 13 | I51: 15 | J51: 15 | K51: 15 | L51: 20 | M51: 20
A52: 2 | B52: 森林-2 | C52: 波1·怪物 | D52: 5 | E52: 17 | F52: 29 | G52: 42 | H52: 55 | I52: 70 | J52: 85 | K52: 100 | L52: 120 | M52: 140
B53: =M52/60 -> 2.333333333 | C53: 8 | Q53: =_xlfn.TEXTJOIN("^",,D53:D62) -> 60021
C54: 6 | Q54: =_xlfn.TEXTJOIN("^",,E53:E62) -> 60021^60021
C55: 4 | F55: 60021 | G55: 60021 | H55: 60021 | I55: 60021 | K55: 60021 | L55: 60021 | Q55: =_xlfn.TEXTJOIN("^",,F53:F62) -> 60021^60022^60021
C56: 2 | E56: 60021 | G56: 60021 | J56: 60021 | K56: 60022 | M56: 60021 | Q56: =_xlfn.TEXTJOIN("^",,G53:G62) -> 60021^60021^60021^60022
C57: 1 | D57: 60021 | F57: 60022 | G57: 60021 | H57: 60022 | I57: 60021 | J57: 60021 | L57: 60022 | M57: 60021 | Q57: =_xlfn.TEXTJOIN("^",,H53:H62) -> 60021^60022^60021
C58: 3 | E58: 60021 | J58: 60021 | K58: 60022 | M58: 60021 | Q58: =_xlfn.TEXTJOIN("^",,I53:I62) -> 60021^60021^60021
C59: 5 | F59: 60021 | G59: 60022 | H59: 60021 | I59: 60021 | K59: 60021 | L59: 60021 | M59: 60021 | Q59: =_xlfn.TEXTJOIN("^",,J53:J62) -> 60021^60021^60021
C60: 7 | Q60: =_xlfn.TEXTJOIN("^",,K53:K62) -> 60021^60022^60022^60021
C61: 9 | Q61: =_xlfn.TEXTJOIN("^",,L53:L62) -> 60021^60022^60021
Q62: =_xlfn.TEXTJOIN("^",,M53:M62) -> 60021^60021^60021^60021
P63: 最终 | Q63: =_xlfn.TEXTJOIN("^",,Q53:Q62) -> 60021^60021^60021^60021^60022^60021^60021^60021^60021^60022^60021^60022^60021^60021^60021^60021^60021^60021^60021^60021^60022^60022^60021^60021^60022^60021^60021^60021^60021^60021
C64: 8
C65: 6
C66: 4 | F66: 树精 | G66: 树精 | H66: 树精 | I66: 树精 | K66: 树精 | L66: 树精
C67: 2 | E67: 树精 | G67: 树精 | J67: 树精 | K67: 毒蜘蛛 | M67: 树精
C68: 1 | D68: 树精 | F68: 毒蜘蛛 | G68: 树精 | H68: 毒蜘蛛 | I68: 树精 | J68: 树精 | L68: 毒蜘蛛 | M68: 树精
C69: 3 | E69: 树精 | J69: 树精 | K69: 毒蜘蛛 | M69: 树精
C70: 5 | F70: 树精 | G70: 毒蜘蛛 | H70: 树精 | I70: 树精 | K70: 树精 | L70: 树精 | M70: 树精
C71: 7
C72: 9
C74: 位置 | D74: 5 | E74: 17 | F74: 29 | G74: 42 | H74: 55 | I74: 70 | J74: 85 | K74: 100 | L74: 120 | M74: 140
C75: 8 | Q75: =_xlfn.TEXTJOIN("^",,D75:D84) -> 1
C76: 6 | Q76: =_xlfn.TEXTJOIN("^",,E75:E84) -> 2^3
C77: 4 | F77: 4 | G77: 4 | H77: 4 | I77: 4 | K77: 4 | L77: 4 | Q77: =_xlfn.TEXTJOIN("^",,F75:F84) -> 4^1^5
C78: 2 | E78: 2 | G78: 2 | J78: 2 | K78: 2 | M78: 2 | Q78: =_xlfn.TEXTJOIN("^",,G75:G84) -> 4^2^1^5
C79: 1 | D79: 1 | F79: 1 | G79: 1 | H79: 1 | I79: 1 | J79: 1 | L79: 1 | M79: 1 | Q79: =_xlfn.TEXTJOIN("^",,H75:H84) -> 4^1^5
C80: 3 | E80: 3 | J80: 3 | K80: 3 | M80: 3 | Q80: =_xlfn.TEXTJOIN("^",,I75:I84) -> 4^1^5
C81: 5 | F81: 5 | G81: 5 | H81: 5 | I81: 5 | K81: 5 | L81: 5 | M81: 5 | Q81: =_xlfn.TEXTJOIN("^",,J75:J84) -> 2^1^3
C82: 7 | Q82: =_xlfn.TEXTJOIN("^",,K75:K84) -> 4^2^3^5
C83: 9 | Q83: =_xlfn.TEXTJOIN("^",,L75:L84) -> 4^1^5
Q84: =_xlfn.TEXTJOIN("^",,M75:M84) -> 2^1^3^5
P85: 最终 | Q85: =_xlfn.TEXTJOIN("^",,Q75:Q84) -> 1^2^3^4^1^5^4^2^1^5^4^1^5^4^1^5^2^1^3^4^2^3^5^4^1^5^2^1^3^5
C87: 时间 | D87: 5 | E87: 17 | F87: 29 | G87: 42 | H87: 55 | I87: 70 | J87: 85 | K87: 100 | L87: 120 | M87: 140
C88: 8 | Q88: =_xlfn.TEXTJOIN("^",,D88:D97) -> 5
C89: 6 | Q89: =_xlfn.TEXTJOIN("^",,E88:E97) -> 17^17
C90: 4 | F90: 29 | G90: 42 | H90: 55 | I90: 70 | K90: 100 | L90: 120 | Q90: =_xlfn.TEXTJOIN("^",,F88:F97) -> 29^29^29
C91: 2 | E91: 17 | G91: 42 | J91: 85 | K91: 100 | M91: 140 | Q91: =_xlfn.TEXTJOIN("^",,G88:G97) -> 42^42^42^42
C92: 1 | D92: 5 | F92: 29 | G92: 42 | H92: 55 | I92: 70 | J92: 85 | L92: 120 | M92: 140 | Q92: =_xlfn.TEXTJOIN("^",,H88:H97) -> 55^55^55
C93: 3 | E93: 17 | J93: 85 | K93: 100 | M93: 140 | Q93: =_xlfn.TEXTJOIN("^",,I88:I97) -> 70^70^70
C94: 5 | F94: 29 | G94: 42 | H94: 55 | I94: 70 | K94: 100 | L94: 120 | M94: 140 | Q94: =_xlfn.TEXTJOIN("^",,J88:J97) -> 85^85^85
C95: 7 | Q95: =_xlfn.TEXTJOIN("^",,K88:K97) -> 100^100^100^100
C96: 9 | Q96: =_xlfn.TEXTJOIN("^",,L88:L97) -> 120^120^120
Q97: =_xlfn.TEXTJOIN("^",,M88:M97) -> 140^140^140^140
P98: 最终 | Q98: =_xlfn.TEXTJOIN("^",,Q88:Q97) -> 5^17^17^29^29^29^42^42^42^42^55^55^55^70^70^70^85^85^85^100^100^100^100^120^120^120^140^140^140^140
E101: =E102-D102 -> 10 | F101: =F102-E102 -> 10 | G101: 10 | H101: 10 | I101: 10 | J101: 10 | K101: 10 | L101: 10 | M101: 10 | N101: 10
A102: 3 | B102: 森林-3 | C102: 波1·怪物 | D102: 10 | E102: 20 | F102: 30 | G102: 40 | H102: 50 | I102: 60 | J102: 70 | K102: 80 | L102: 90 | M102: 100 | N102: 110
B103: =N102/60 -> 1.833333333 | C103: 8 | Q103: =_xlfn.TEXTJOIN("^",,D103:D111) -> 60031
C104: 6 | Q104: =_xlfn.TEXTJOIN("^",,E103:E111) -> 60031
C105: 4 | D105: 60031 | E105: 60031 | F105: 60031 | G105: 60031 | H105: 60031 | I105: 60031 | J105: 60031 | K105: 60031 | L105: 60031 | M105: 60031 | N105: 60031 | Q105: =_xlfn.TEXTJOIN("^",,F103:F111) -> 60031^60032
C106: 2 | F106: 60032 | H106: 60033 | I106: 60032 | J106: 60032 | K106: 60032 | L106: 60032 | M106: 60033 | Q106: =_xlfn.TEXTJOIN("^",,G103:G111) -> 60031
C107: 1 | Q107: =_xlfn.TEXTJOIN("^",,H103:H111) -> 60031^60033
C108: 3 | Q108: =_xlfn.TEXTJOIN("^",,I103:I111) -> 60031^60032
C109: 5 | Q109: =_xlfn.TEXTJOIN("^",,J103:J111) -> 60031^60032
C110: 7 | Q110: =_xlfn.TEXTJOIN("^",,K103:K111) -> 60031^60032
C111: 9 | Q111: =_xlfn.TEXTJOIN("^",,L103:L111) -> 60031^60032
D112: 5 | E112: 5 | F112: 5 | G112: 5 | H112: 5 | I112: 15 | J112: 15 | K112: 15 | L112: 15 | M112: 5 | N112: 20 | Q112: =_xlfn.TEXTJOIN("^",,M103:M111) -> 60031^60033
F113: 2 | H113: 2 | I113: 5 | J113: 5 | K113: 5 | L113: 5 | M113: 2 | Q113: =_xlfn.TEXTJOIN("^",,N103:N111) -> 60031
C114: 8 | P114: 最终 | Q114: =_xlfn.TEXTJOIN("|",,Q103:Q113) -> 60031|60031|60031^60032|60031|60031^60033|60031^60032|60031^60032|60031^60032|60031^60032|60031^60033|60031
C115: 6
C116: 4
C117: 2
C118: 1 | D118: 树精 | E118: 树精 | F118: 树精 | G118: 树精 | H118: 树精 | I118: 树精 | J118: 树精 | K118: 树精 | L118: 树精 | M118: 毒蜘蛛 | N118: 树精
C119: 3 | F119: 毒蜘蛛 | H119: 哥布林 | I119: 毒蜘蛛 | J119: 毒蜘蛛 | K119: 毒蜘蛛 | L119: 毒蜘蛛 | M119: 哥布林
C120: 5
C121: 7
C122: 9
C124: 位置 | D124: 10 | E124: 20 | F124: 30 | G124: 40 | H124: 50 | I124: 60 | J124: 70 | K124: 80 | L124: 90 | M124: 100 | N124: 110
C125: 8 | Q125: =_xlfn.TEXTJOIN("^",,D125:D134) -> 0
C126: 6 | Q126: =_xlfn.TEXTJOIN("^",,E125:E134) -> 0
C127: 4 | D127: 0 | E127: 0 | F127: 0 | G127: 0 | H127: 0 | I127: 0 | J127: 0 | K127: 0 | L127: 0 | M127: 0 | N127: 0 | Q127: =_xlfn.TEXTJOIN("^",,F125:F134) -> 0^0
C128: 2 | F128: 0 | H128: 0 | I128: 0 | J128: 0 | K128: 0 | L128: 0 | M128: 0 | Q128: =_xlfn.TEXTJOIN("^",,G125:G134) -> 0
C129: 1 | Q129: =_xlfn.TEXTJOIN("^",,H125:H134) -> 0^0
C130: 3 | Q130: =_xlfn.TEXTJOIN("^",,I125:I134) -> 0^0
C131: 5 | Q131: =_xlfn.TEXTJOIN("^",,J125:J134) -> 0^0
C132: 7 | Q132: =_xlfn.TEXTJOIN("^",,K125:K134) -> 0^0
C133: 9 | Q133: =_xlfn.TEXTJOIN("^",,L125:L134) -> 0^0
Q134: =_xlfn.TEXTJOIN("^",,M125:M134) -> 0^0
Q135: =_xlfn.TEXTJOIN("^",,N125:N134) -> 0
P136: 最终 | Q136: =_xlfn.TEXTJOIN("|",,Q125:Q135) -> 0|0|0^0|0|0^0|0^0|0^0|0^0|0^0|0^0|0
C138: 数量 | D138: 10 | E138: 20 | F138: 30 | G138: 40 | H138: 50 | I138: 60 | J138: 70 | K138: 80 | L138: 90 | M138: 100 | N138: 110
C139: 8 | Q139: =_xlfn.TEXTJOIN("^",,D139:D148) -> 5
C140: 6 | Q140: =_xlfn.TEXTJOIN("^",,E139:E148) -> 5
C141: 4 | D141: 5 | E141: 5 | F141: 5 | G141: 5 | H141: 6 | I141: 6 | J141: 6 | K141: 7 | L141: 7 | M141: 7 | N141: 10 | Q141: =_xlfn.TEXTJOIN("^",,F139:F148) -> 5^2
C142: 2 | F142: 2 | H142: 2 | I142: 2 | J142: 2 | K142: 2 | L142: 2 | M142: 2 | Q142: =_xlfn.TEXTJOIN("^",,G139:G148) -> 5
C143: 1 | Q143: =_xlfn.TEXTJOIN("^",,H139:H148) -> 6^2
C144: 3 | Q144: =_xlfn.TEXTJOIN("^",,I139:I148) -> 6^2
C145: 5 | Q145: =_xlfn.TEXTJOIN("^",,J139:J148) -> 6^2
C146: 7 | Q146: =_xlfn.TEXTJOIN("^",,K139:K148) -> 7^2
C147: 9 | Q147: =_xlfn.TEXTJOIN("^",,L139:L148) -> 7^2
Q148: =_xlfn.TEXTJOIN("^",,M139:M148) -> 7^2
Q149: =_xlfn.TEXTJOIN("^",,N139:N148) -> 10
P150: 最终 | Q150: =_xlfn.TEXTJOIN("|",,Q139:Q149) -> 5|5|5^2|5|6^2|6^2|6^2|7^2|7^2|7^2|10
E153: =E154-D154 -> 12 | F153: =F154-E154 -> 12 | G153: 12 | H153: 12 | I153: 12 | J153: 12 | K153: 12 | L153: 12 | M153: 12 | N153: 12
A154: 3 | B154: 森林-4 | C154: 波1·怪物 | D154: 1 | E154: 13 | F154: 25 | G154: 37 | H154: =G154+12 -> 49 | I154: =H154+12 -> 61 | J154: 73 | K154: 85 | L154: 97 | M154: 109 | N154: =M154+12 -> 121
B155: =N154/60 -> 2.016666667 | C155: 8 | Q155: =_xlfn.TEXTJOIN("^",,D155:D163) -> 60041
C156: 6 | Q156: =_xlfn.TEXTJOIN("^",,E155:E163) -> 60041^60042
C157: 4 | F157: 60041 | H157: 60041 | I157: 60041 | J157: 60041 | K157: 60041 | L157: 60042 | M157: 60042 | N157: 60043 | Q157: =_xlfn.TEXTJOIN("^",,F155:F163) -> 60041^60042
C158: 2 | D158: 60041 | E158: 60041 | G158: 60043 | L158: 60041 | M158: 60041 | Q158: =_xlfn.TEXTJOIN("^",,G155:G163) -> 60043^60041
C159: 1 | E159: 60042 | F159: 60042 | G159: 60041 | H159: 60042 | J159: 60042 | K159: 60043 | Q159: =_xlfn.TEXTJOIN("^",,H155:H163) -> 60041^60042
C160: 3 | Q160: =_xlfn.TEXTJOIN("^",,I155:I163) -> 60041
C161: 5 | Q161: =_xlfn.TEXTJOIN("^",,J155:J163) -> 60041^60042
C162: 7 | Q162: =_xlfn.TEXTJOIN("^",,K155:K163) -> 60041^60043
C163: 9 | Q163: =_xlfn.TEXTJOIN("^",,L155:L163) -> 60042^60041
Q164: =_xlfn.TEXTJOIN("^",,M155:M163) -> 60042^60041
Q165: =_xlfn.TEXTJOIN("^",,N155:N163) -> 60043
C166: 8 | P166: 最终 | Q166: =_xlfn.TEXTJOIN("|",,Q155:Q165) -> 60041|60041^60042|60041^60042|60043^60041|60041^60042|60041|60041^60042|60041^60043|60042^60041|60042^60041|60043
C167: 6
C168: 4 | F168: 树精 | H168: 树精 | I168: 树精 | J168: 树精 | K168: 树精 | L168: 毒蜘蛛 | M168: 毒蜘蛛 | N168: 哥布林
C169: 2 | D169: 树精 | E169: 树精 | G169: 哥布林 | L169: 树精 | M169: 树精
C170: 1 | E170: 毒蜘蛛 | F170: 毒蜘蛛 | G170: 树精 | H170: 毒蜘蛛 | J170: 毒蜘蛛 | K170: 哥布林
C171: 3
C172: 5
C173: 7
C174: 9
C176: 位置 | D176: 6 | E176: 17 | F176: 32 | G176: 47 | H176: 60 | I176: 75 | J176: 90 | K176: 100 | L176: 115 | M176: 130 | N176: 150
C177: 8 | Q177: =_xlfn.TEXTJOIN("^",,D177:D186) -> 0
C178: 6 | Q178: =_xlfn.TEXTJOIN("^",,E177:E186) -> 0^0
C179: 4 | F179: 0 | H179: 0 | I179: 0 | J179: 0 | K179: 0 | L179: 0 | M179: 0 | N179: 0 | Q179: =_xlfn.TEXTJOIN("^",,F177:F186) -> 0^0
C180: 2 | D180: 0 | E180: 0 | G180: 0 | L180: 0 | M180: 0 | Q180: =_xlfn.TEXTJOIN("^",,G177:G186) -> 0^0
C181: 1 | E181: 0 | F181: 0 | G181: 0 | H181: 0 | J181: 0 | K181: 0 | Q181: =_xlfn.TEXTJOIN("^",,H177:H186) -> 0^0
C182: 3 | Q182: =_xlfn.TEXTJOIN("^",,I177:I186) -> 0
C183: 5 | Q183: =_xlfn.TEXTJOIN("^",,J177:J186) -> 0^0
C184: 7 | Q184: =_xlfn.TEXTJOIN("^",,K177:K186) -> 0^0
C185: 9 | Q185: =_xlfn.TEXTJOIN("^",,L177:L186) -> 0^0
Q186: =_xlfn.TEXTJOIN("^",,M177:M186) -> 0^0
Q187: =_xlfn.TEXTJOIN("^",,N177:N186) -> 0
P188: 最终 | Q188: =_xlfn.TEXTJOIN("|",,Q177:Q187) -> 0|0^0|0^0|0^0|0^0|0|0^0|0^0|0^0|0^0|0
C190: 时间 | D190: 6 | E190: 17 | F190: 32 | G190: 47 | H190: 60 | I190: 75 | J190: 90 | K190: 100 | L190: 115 | M190: 130 | N190: 150
C191: 8 | Q191: =_xlfn.TEXTJOIN("^",,D191:D200) -> 4
C192: 6 | Q192: =_xlfn.TEXTJOIN("^",,E191:E200) -> 4^2
C193: 4 | Q193: =_xlfn.TEXTJOIN("^",,F191:F200) -> 4^2
C194: 2 | F194: 4 | H194: 5 | I194: 7 | J194: 7 | K194: 8 | L194: 2 | M194: 2 | N194: 5 | Q194: =_xlfn.TEXTJOIN("^",,G191:G200) -> 3^4
C195: 1 | D195: 4 | E195: 4 | G195: 3 | L195: 8 | M195: 8 | Q195: =_xlfn.TEXTJOIN("^",,H191:H200) -> 5^2
C196: 3 | E196: 2 | F196: 2 | G196: 4 | H196: 2 | J196: 2 | K196: 2 | Q196: =_xlfn.TEXTJOIN("^",,I191:I200) -> 7
C197: 5 | Q197: =_xlfn.TEXTJOIN("^",,J191:J200) -> 7^2
C198: 7 | Q198: =_xlfn.TEXTJOIN("^",,K191:K200) -> 8^2
C199: 9 | Q199: =_xlfn.TEXTJOIN("^",,L191:L200) -> 2^8
Q200: =_xlfn.TEXTJOIN("^",,M191:M200) -> 2^8
Q201: =_xlfn.TEXTJOIN("^",,N191:N200) -> 5
P202: 最终 | Q202: =_xlfn.TEXTJOIN("|",,Q191:Q201) -> 4|4^2|4^2|3^4|5^2|7|7^2|8^2|2^8|2^8|5
E205: =E206-D206 -> 12 | F205: =F206-E206 -> 12 | G205: 12 | H205: 12 | I205: 12 | J205: 12 | K205: 12 | L205: 12 | M205: 12 | N205: 12 | U205: =U206-T206 -> 12 | V205: =V206-U206 -> 12 | W205: =W206-V206 -> 12 | X205: =X206-W206 -> 12 | Y205: =Y206-X206 -> 12 | Z205: =Z206-Y206 -> 12 | AA205: =AA206-Z206 -> 12 | AB205: =AB206-AA206 -> 12 | AC205: =AC206-AB206 -> 12 | AD205: =AD206-AC206 -> 12
A206: 3 | B206: 森林-5 | C206: 波1·怪物 | D206: 1 | E206: 13 | F206: 25 | G206: 37 | H206: 49 | I206: 61 | J206: 73 | K206: 85 | L206: 97 | M206: 109 | N206: 121 | S206: 波1·怪物 | T206: 1 | U206: 13 | V206: 25 | W206: 37 | X206: 49 | Y206: 61 | Z206: 73 | AA206: 85 | AB206: 97 | AC206: 109 | AD206: 121
B207: =(N206+AD206)/60 -> 4.033333333 | C207: 8 | Q207: =_xlfn.TEXTJOIN("^",,D207:D215) -> 60051 | S207: 8 | AE207: =_xlfn.TEXTJOIN("^",,T207:T216) -> 60051
C208: 6 | Q208: =_xlfn.TEXTJOIN("^",,E207:E215) -> 60051^60052 | S208: 6 | AE208: =_xlfn.TEXTJOIN("^",,U207:U216) -> 60051^60052
C209: 4 | Q209: =_xlfn.TEXTJOIN("^",,F207:F215) -> 60051^60052 | S209: 4 | AE209: =_xlfn.TEXTJOIN("^",,V207:V216) -> 60051^60055
C210: 2 | D210: 60051 | E210: 60051 | F210: 60051 | G210: 60051 | H210: 60051 | I210: 60051 | J210: 60055 | K210: 60053 | L210: 60051 | M210: 60051 | N210: 60053 | Q210: =_xlfn.TEXTJOIN("^",,G207:G215) -> 60051^60053 | S210: 2 | T210: 60051 | U210: 60051 | V210: 60051 | W210: 60051 | X210: 60052 | Y210: 60051 | Z210: 60051 | AA210: 60052 | AB210: 60052 | AC210: 60051 | AD210: 60053 | AE210: =_xlfn.TEXTJOIN("^",,W207:W216) -> 60051^60053
C211: 1 | E211: 60052 | F211: 60052 | G211: 60053 | H211: 60053 | I211: 60054 | J211: 60051 | K211: 60052 | L211: 60052 | M211: 60054 | N211: 60051 | Q211: =_xlfn.TEXTJOIN("^",,H207:H215) -> 60051^60053^60052 | S211: 1 | U211: 60052 | V211: 60055 | W211: 60053 | X211: 60051 | Y211: 60054 | Z211: 60052 | AA211: 60053 | AB211: 60051 | AC211: 60054 | AD211: 60051 | AE211: =_xlfn.TEXTJOIN("^",,X207:X216) -> 60052^60051^60053
C212: 3 | H212: 60052 | Q212: =_xlfn.TEXTJOIN("^",,I207:I215) -> 60051^60054 | S212: 3 | X212: 60053 | AE212: =_xlfn.TEXTJOIN("^",,Y207:Y216) -> 60051^60054
C213: 5 | Q213: =_xlfn.TEXTJOIN("^",,J207:J215) -> 60055^60051 | S213: 5 | AE213: =_xlfn.TEXTJOIN("^",,Z207:Z216) -> 60051^60052
C214: 7 | Q214: =_xlfn.TEXTJOIN("^",,K207:K215) -> 60053^60052 | S214: 7 | AE214: =_xlfn.TEXTJOIN("^",,AA207:AA216) -> 60052^60053
C215: 9 | Q215: =_xlfn.TEXTJOIN("^",,L207:L215) -> 60051^60052 | S215: 9 | AE215: =_xlfn.TEXTJOIN("^",,AB207:AB216) -> 60052^60051
Q216: =_xlfn.TEXTJOIN("^",,M207:M215) -> 60051^60054 | AE216: =_xlfn.TEXTJOIN("^",,AC207:AC216) -> 60051^60054
... 38 more rows

Sheet 2
E1: =E2-D2 -> 12 | F1: =F2-E2 -> 12 | G1: 15 | H1: 15 | I1: 10 | J1: 15 | K1: 10 | L1: 15 | M1: 15 | N1: 10 | T1: =T2-S2 -> 1 | U1: 3 | V1: 5 | W1: 5 | X1: 5 | Y1: 2
A2: 3 | B2: 密林-1 | C2: 波1·怪物 | D2: 6 | E2: 18 | F2: 30 | G2: 45 | H2: 60 | I2: 70 | J2: 85 | K2: 95 | L2: 110 | M2: 125 | N2: 135 | R2: 波2·怪物 | S2: 1 | T2: 2 | U2: 5 | V2: 10 | W2: 15 | X2: 20 | Y2: 22
B3: 3.5m | C3: 8 | P3: =_xlfn.TEXTJOIN("^",,D3:D12) -> 60061 | R3: 8 | AD3: =_xlfn.TEXTJOIN("^",,S3:S12) -> 60061
C4: 6 | P4: =_xlfn.TEXTJOIN("^",,E3:E12) -> 60063^60062 | R4: 6 | AD4: =_xlfn.TEXTJOIN("^",,T3:T12) -> 60065^60061
C5: 4 | P5: =_xlfn.TEXTJOIN("^",,F3:F12) -> 60061^60062 | R5: 4 | AD5: =_xlfn.TEXTJOIN("^",,U3:U12) -> 60063^60062
C6: 2 | P6: =_xlfn.TEXTJOIN("^",,G3:G12) -> 60061^60063 | R6: 2 | AD6: =_xlfn.TEXTJOIN("^",,V3:V12) -> 60062^60061^60064
C7: 1 | D7: 60061 | E7: 60063 | F7: 60061 | G7: 60061 | H7: 60064 | I7: 60061 | J7: 60063 | K7: 60064 | L7: 60063 | M7: 60062 | N7: 60063 | P7: =_xlfn.TEXTJOIN("^",,H3:H12) -> 60064^60061^60062 | R7: 1 | S7: 60061 | T7: 60065 | U7: 60063 | V7: 60062 | W7: 60063 | X7: 60061 | Y7: 60062 | Z7: 60063 | AD7: =_xlfn.TEXTJOIN("^",,W3:W12) -> 60063^60062
C8: 3 | E8: 60062 | F8: 60062 | G8: 60063 | H8: 60061 | I8: 60064 | J8: 60062 | K8: 60065 | L8: 60061 | M8: 60064 | N8: 60061 | P8: =_xlfn.TEXTJOIN("^",,I3:I12) -> 60061^60064 | R8: 3 | T8: 60061 | U8: 60062 | V8: 60061 | W8: 60062 | X8: 60062 | Y8: 60064 | Z8: 60061 | AD8: =_xlfn.TEXTJOIN("^",,X3:X12) -> 60061^60062^60063
C9: 5 | H9: 60062 | J9: 60061 | M9: 60061 | N9: 60062 | P9: =_xlfn.TEXTJOIN("^",,J3:J12) -> 60063^60062^60061 | R9: 5 | V9: 60064 | X9: 60063 | Z9: 60062 | AD9: =_xlfn.TEXTJOIN("^",,Y3:Y12) -> 60062^60064
C10: 7 | P10: =_xlfn.TEXTJOIN("^",,K3:K12) -> 60064^60065 | R10: 7 | AD10: =_xlfn.TEXTJOIN("^",,Z3:Z12) -> 60063^60061^60062
C11: 9 | P11: =_xlfn.TEXTJOIN("^",,L3:L12) -> 60063^60061 | R11: 9 | AD11: =_xlfn.TEXTJOIN("^",,AA3:AA12) -> 
P12: =_xlfn.TEXTJOIN("^",,M3:M12) -> 60062^60064^60061 | AD12: =_xlfn.TEXTJOIN("^",,AB3:AB12) -> 
P13: =_xlfn.TEXTJOIN("^",,N3:N12) -> 60063^60061^60062 | AD13: =_xlfn.TEXTJOIN("^",,AC3:AC12) -> 
O14: 最终 | P14: =_xlfn.TEXTJOIN("|",,P3:P13) -> 60061|60063^60062|60061^60062|60061^60063|60064^60061^60062|60061^60064|60063^60062^60061|60064^60065|60063^60061|60062^60064^60061|60063^60061^60062 | AC14: 最终 | AD14: =_xlfn.TEXTJOIN("|",,AD3:AD13) -> 60061|60065^60061|60063^60062|60062^60061^60064|60063^60062|60061^60062^60063|60062^60064|60063^60061^60062
C15: 8 | R15: 8
C16: 6 | R16: 6
C17: 4 | R17: 4
C18: 2 | R18: 2
C19: 1 | D19: 树精 | E19: 哥布林 | F19: 树精 | G19: 树精 | H19: 血树精 | I19: 树精 | J19: 哥布林 | K19: 血树精 | L19: 哥布林 | M19: 毒蜘蛛 | N19: 哥布林 | R19: 1 | S19: 树精 | T19: 森林蜘蛛 | U19: 哥布林 | V19: 毒蜘蛛 | W19: 哥布林 | X19: 树精 | Y19: 毒蜘蛛 | Z19: 哥布林
C20: 3 | E20: 毒蜘蛛 | F20: 毒蜘蛛 | G20: 哥布林 | H20: 树精 | I20: 血树精 | J20: 毒蜘蛛 | K20: 森林蜘蛛 | L20: 树精 | M20: 血树精 | N20: 树精 | R20: 3 | T20: 树精 | U20: 毒蜘蛛 | V20: 树精 | W20: 毒蜘蛛 | X20: 毒蜘蛛 | Y20: 血树精 | Z20: 树精
C21: 5 | H21: 毒蜘蛛 | J21: 树精 | M21: 树精 | N21: 毒蜘蛛 | R21: 5 | V21: 血树精 | X21: 哥布林 | Z21: 毒蜘蛛
C22: 7 | R22: 7
C23: 9 | R23: 9
C25: 位置 | D25: 6 | E25: 18 | F25: 30 | G25: 45 | H25: 60 | I25: 70 | J25: 85 | K25: 95 | L25: 110 | M25: 125 | N25: 135 | R25: 位置 | S25: 1 | T25: 2 | U25: 5 | V25: 10 | W25: 15 | X25: 20 | Y25: 22 | Z25: 25 | AD25: =_xlfn.TEXTJOIN("^",,S26:S34) -> 0
C26: 8 | P26: =_xlfn.TEXTJOIN("^",,D26:D35) -> 0 | R26: 8 | AD26: =_xlfn.TEXTJOIN("^",,T26:T34) -> 0^0
C27: 6 | P27: =_xlfn.TEXTJOIN("^",,E26:E35) -> 0^0 | R27: 6 | AD27: =_xlfn.TEXTJOIN("^",,U26:U34) -> 0^0
C28: 4 | P28: =_xlfn.TEXTJOIN("^",,F26:F35) -> 0^0 | R28: 4 | AD28: =_xlfn.TEXTJOIN("^",,V26:V34) -> 0^0^0
C29: 2 | P29: =_xlfn.TEXTJOIN("^",,G26:G35) -> 0^0 | R29: 2 | AD29: =_xlfn.TEXTJOIN("^",,W26:W34) -> 0^0
C30: 1 | D30: 0 | E30: 0 | F30: 0 | G30: 0 | H30: 0 | I30: 0 | J30: 0 | K30: 0 | L30: 0 | M30: 0 | N30: 0 | P30: =_xlfn.TEXTJOIN("^",,H26:H35) -> 0^0^0 | R30: 1 | S30: 0 | T30: 0 | U30: 0 | V30: 0 | W30: 0 | X30: 0 | Y30: 0 | Z30: 0 | AD30: =_xlfn.TEXTJOIN("^",,X26:X34) -> 0^0^0
C31: 3 | E31: 0 | F31: 0 | G31: 0 | H31: 0 | I31: 0 | J31: 0 | K31: 100 | L31: 0 | M31: 0 | N31: 0 | P31: =_xlfn.TEXTJOIN("^",,I26:I35) -> 0^0 | R31: 3 | T31: 0 | U31: 0 | V31: 0 | W31: 0 | X31: 0 | Y31: 0 | Z31: 0 | AD31: =_xlfn.TEXTJOIN("^",,Y26:Y34) -> 0^0
C32: 5 | H32: 0 | J32: 0 | M32: 0 | N32: 0 | P32: =_xlfn.TEXTJOIN("^",,J26:J35) -> 0^0^0 | R32: 5 | V32: 0 | X32: 0 | Z32: 0 | AD32: =_xlfn.TEXTJOIN("^",,Z26:Z34) -> 0^0^0
C33: 7 | P33: =_xlfn.TEXTJOIN("^",,K26:K35) -> 0^100 | R33: 7 | AD33: =_xlfn.TEXTJOIN("^",,AA26:AA34) -> 
C34: 9 | P34: =_xlfn.TEXTJOIN("^",,L26:L35) -> 0^0 | R34: 9 | AD34: =_xlfn.TEXTJOIN("^",,AB26:AB34) -> 
P35: =_xlfn.TEXTJOIN("^",,M26:M35) -> 0^0^0 | AD35: =_xlfn.TEXTJOIN("^",,AC26:AC34) -> 
P36: =_xlfn.TEXTJOIN("^",,N26:N35) -> 0^0^0 | AC36: 最终 | AD36: =_xlfn.TEXTJOIN("|",,AD25:AD35) -> 0|0^0|0^0|0^0^0|0^0|0^0^0|0^0|0^0^0
O37: 最终 | P37: =_xlfn.TEXTJOIN("|",,P26:P36) -> 0|0^0|0^0|0^0|0^0^0|0^0|0^0^0|0^100|0^0|0^0^0|0^0^0
C39: 时间 | D39: 6 | E39: 18 | F39: 30 | G39: 45 | H39: 60 | I39: 70 | J39: 85 | K39: 95 | L39: 110 | M39: 125 | N39: 135 | R39: 时间 | S39: 1 | T39: 2 | U39: 5 | V39: 10 | W39: 15 | X39: 20 | Y39: 22 | Z39: 24 | AD39: =_xlfn.TEXTJOIN("^",,S40:S48) -> 20
C40: 8 | P40: =_xlfn.TEXTJOIN("^",,D40:D49) -> 4 | R40: 8 | AD40: =_xlfn.TEXTJOIN("^",,T40:T48) -> 3^8
C41: 6 | P41: =_xlfn.TEXTJOIN("^",,E40:E49) -> 2^4 | R41: 6 | AD41: =_xlfn.TEXTJOIN("^",,U40:U48) -> 2^4
C42: 4 | P42: =_xlfn.TEXTJOIN("^",,F40:F49) -> 5^2 | R42: 4 | AD42: =_xlfn.TEXTJOIN("^",,V40:V48) -> 4^6^2
C43: 2 | P43: =_xlfn.TEXTJOIN("^",,G40:G49) -> 6^2 | R43: 2 | AD43: =_xlfn.TEXTJOIN("^",,W40:W48) -> 3^4
C44: 1 | D44: 4 | E44: 2 | F44: 5 | G44: 6 | H44: 2 | I44: 8 | J44: 2 | K44: 3 | L44: 3 | M44: 4 | N44: 2 | P44: =_xlfn.TEXTJOIN("^",,H40:H49) -> 2^6^2 | R44: 1 | S44: 20 | T44: 3 | U44: 2 | V44: 4 | W44: 3 | X44: 6 | Y44: 4 | Z44: 2 | AD44: =_xlfn.TEXTJOIN("^",,X40:X48) -> 6^4^2
C45: 3 | E45: 4 | F45: 2 | G45: 2 | H45: 6 | I45: 2 | J45: 3 | K45: 3 | L45: 7 | M45: 2 | N45: 6 | P45: =_xlfn.TEXTJOIN("^",,I40:I49) -> 8^2 | R45: 3 | T45: 8 | U45: 4 | V45: 6 | W45: 4 | X45: 4 | Y45: 3 | Z45: 6 | AD45: =_xlfn.TEXTJOIN("^",,Y40:Y48) -> 4^3
C46: 5 | H46: 2 | J46: 5 | M46: 5 | N46: 3 | P46: =_xlfn.TEXTJOIN("^",,J40:J49) -> 2^3^5 | R46: 5 | V46: 2 | X46: 2 | Z46: 4 | AD46: =_xlfn.TEXTJOIN("^",,Z40:Z48) -> 2^6^4
C47: 7 | P47: =_xlfn.TEXTJOIN("^",,K40:K49) -> 3^3 | R47: 7 | AD47: =_xlfn.TEXTJOIN("^",,AA40:AA48) -> 
C48: 9 | P48: =_xlfn.TEXTJOIN("^",,L40:L49) -> 3^7 | R48: 9 | AD48: =_xlfn.TEXTJOIN("^",,AB40:AB48) -> 
P49: =_xlfn.TEXTJOIN("^",,M40:M49) -> 4^2^5 | AD49: =_xlfn.TEXTJOIN("^",,AC40:AC48) -> 
P50: =_xlfn.TEXTJOIN("^",,N40:N49) -> 2^6^3 | AC50: 最终 | AD50: =_xlfn.TEXTJOIN("|",,AD39:AD49) -> 20|3^8|2^4|4^6^2|3^4|6^4^2|4^3|2^6^4
O51: 最终 | P51: =_xlfn.TEXTJOIN("|",,P40:P50) -> 4|2^4|5^2|6^2|2^6^2|8^2|2^3^5|3^3|3^7|4^2^5|2^6^3 | AD51: =SUM(S41:AB48) -> 87
P52: =SUM(D42:N49) -> 93 | AD52: =AD51+P52 -> 180
E54: =E55-D55 -> 10 | F54: =F55-E55 -> 15 | G54: 15 | H54: 15 | I54: 10 | J54: 15 | K54: 10 | L54: 15 | M54: 15 | N54: 10 | T54: =T55-S55 -> 2 | U54: 3 | V54: 4 | W54: 5 | X54: 5 | Y54: 3
A55: 3 | B55: 密林-2 | C55: 波1·怪物 | D55: 5 | E55: 15 | F55: 30 | G55: 45 | H55: 60 | I55: 70 | J55: 85 | K55: 95 | L55: 110 | M55: 125 | N55: 135 | R55: 波2·怪物 | S55: 1 | T55: 3 | U55: 6 | V55: 10 | W55: 15 | X55: 20 | Y55: 23
B56: 3.5m | C56: 8 | P56: =_xlfn.TEXTJOIN("^",,D56:D65) -> 60072 | R56: 8 | AD56: =_xlfn.TEXTJOIN("^",,S56:S65) -> 60071
C57: 6 | P57: =_xlfn.TEXTJOIN("^",,E56:E65) -> 60072^60071 | R57: 6 | AD57: =_xlfn.TEXTJOIN("^",,T56:T65) -> 60071^60072
C58: 4 | P58: =_xlfn.TEXTJOIN("^",,F56:F65) -> 60073^60072 | R58: 4 | AD58: =_xlfn.TEXTJOIN("^",,U56:U65) -> 60074^60071
C59: 2 | P59: =_xlfn.TEXTJOIN("^",,G56:G65) -> 60074^60073^60072 | R59: 2 | AD59: =_xlfn.TEXTJOIN("^",,V56:V65) -> 60072^60073^60071
C60: 1 | D60: 60072 | E60: 60072 | F60: 60073 | G60: 60074 | H60: 60071 | I60: 60074 | J60: 60071 | K60: 60074 | L60: 60071 | M60: 60072 | N60: 60071 | P60: =_xlfn.TEXTJOIN("^",,H56:H65) -> 60071^60072 | R60: 1 | S60: 60071 | T60: 60071 | U60: 60074 | V60: 60072 | W60: 60074 | X60: 60073 | Y60: 60071 | Z60: 60071 | AA60: 60073 | AD60: =_xlfn.TEXTJOIN("^",,W56:W65) -> 60074^60072
C61: 3 | E61: 60071 | F61: 60072 | G61: 60073 | H61: 60072 | I61: 60073 | J61: 60072 | K61: 60071 | M61: 60071 | N61: 60072 | P61: =_xlfn.TEXTJOIN("^",,I56:I65) -> 60074^60073 | R61: 3 | T61: 60072 | U61: 60071 | V61: 60073 | W61: 60072 | X61: 60072 | Y61: 60072 | AA61: 60072 | AD61: =_xlfn.TEXTJOIN("^",,X56:X65) -> 60073^60072
C62: 5 | G62: 60072 | K62: 60072 | N62: 60073 | P62: =_xlfn.TEXTJOIN("^",,J56:J65) -> 60071^60072 | R62: 5 | V62: 60071 | AD62: =_xlfn.TEXTJOIN("^",,Y56:Y65) -> 60071^60072
C63: 7 | P63: =_xlfn.TEXTJOIN("^",,K56:K65) -> 60074^60071^60072 | R63: 7 | AD63: =_xlfn.TEXTJOIN("^",,Z56:Z65) -> 60071
C64: 9 | P64: =_xlfn.TEXTJOIN("^",,L56:L65) -> 60071 | R64: 9 | AD64: =_xlfn.TEXTJOIN("^",,AA56:AA65) -> 60073^60072
P65: =_xlfn.TEXTJOIN("^",,M56:M65) -> 60072^60071 | AD65: =_xlfn.TEXTJOIN("^",,AB56:AB65) -> 
P66: =_xlfn.TEXTJOIN("^",,N56:N65) -> 60071^60072^60073 | AD66: =_xlfn.TEXTJOIN("^",,AC56:AC65) -> 
O67: 最终 | P67: =_xlfn.TEXTJOIN("|",,P56:P66) -> 60072|60072^60071|60073^60072|60074^60073^60072|60071^60072|60074^60073|60071^60072|60074^60071^60072|60071|60072^60071|60071^60072^60073 | AC67: 最终 | AD67: =_xlfn.TEXTJOIN("|",,AD56:AD66) -> 60071|60071^60072|60074^60071|60072^60073^60071|60074^60072|60073^60072|60071^60072|60071|60073^60072
C68: 8 | R68: 8
C69: 6 | R69: 6
C70: 4 | R70: 4
C71: 2 | R71: 2
C72: 1 | D72: 毒蜘蛛 | E72: 毒蜘蛛 | F72: 哥布林 | G72: 血树精 | H72: 树精 | I72: 血树精 | J72: 树精 | K72: 血树精 | L72: 树精 | M72: 毒蜘蛛 | N72: 树精 | R72: 1 | S72: 树精 | T72: 树精 | U72: 血树精 | V72: 毒蜘蛛 | W72: 血树精 | X72: 哥布林 | Y72: 树精 | Z72: 树精 | AA72: 哥布林
C73: 3 | E73: 树精 | F73: 毒蜘蛛 | G73: 哥布林 | H73: 毒蜘蛛 | I73: 哥布林 | J73: 毒蜘蛛 | K73: 树精 | M73: 树精 | N73: 毒蜘蛛 | R73: 3 | T73: 毒蜘蛛 | U73: 树精 | V73: 哥布林 | W73: 毒蜘蛛 | X73: 毒蜘蛛 | Y73: 毒蜘蛛 | AA73: 毒蜘蛛
C74: 5 | G74: 毒蜘蛛 | K74: 毒蜘蛛 | N74: 哥布林 | R74: 5 | V74: 树精
C75: 7 | R75: 7
C76: 9 | R76: 9
C78: 位置 | D78: 5 | E78: 15 | F78: 30 | G78: 45 | H78: 60 | I78: 70 | J78: 85 | K78: 95 | L78: 110 | M78: 125 | N78: 135 | R78: 位置 | S78: 1 | T78: 3 | U78: 6 | V78: 10 | W78: 15 | X78: 20 | Y78: 23 | AD78: =_xlfn.TEXTJOIN("^",,S79:S87) -> 0
C79: 8 | P79: =_xlfn.TEXTJOIN("^",,D79:D88) -> 0 | R79: 8 | AD79: =_xlfn.TEXTJOIN("^",,T79:T87) -> 0^0
C80: 6 | P80: =_xlfn.TEXTJOIN("^",,E79:E88) -> 0^0 | R80: 6 | AD80: =_xlfn.TEXTJOIN("^",,U79:U87) -> 0^0
C81: 4 | P81: =_xlfn.TEXTJOIN("^",,F79:F88) -> 0^0 | R81: 4 | AD81: =_xlfn.TEXTJOIN("^",,V79:V87) -> 0^0^0
C82: 2 | P82: =_xlfn.TEXTJOIN("^",,G79:G88) -> 0^0^0 | R82: 2 | AD82: =_xlfn.TEXTJOIN("^",,W79:W87) -> 0^0
C83: 1 | D83: 0 | E83: 0 | F83: 0 | G83: 0 | H83: 0 | I83: 0 | J83: 0 | K83: 0 | L83: 0 | M83: 0 | N83: 0 | P83: =_xlfn.TEXTJOIN("^",,H79:H88) -> 0^0 | R83: 1 | S83: 0 | T83: 0 | U83: 0 | V83: 0 | W83: 0 | X83: 0 | Y83: 0 | Z83: 0 | AA83: 0 | AD83: =_xlfn.TEXTJOIN("^",,X79:X87) -> 0^0
C84: 3 | E84: 0 | F84: 0 | G84: 0 | H84: 0 | I84: 0 | J84: 0 | K84: 0 | M84: 0 | N84: 0 | P84: =_xlfn.TEXTJOIN("^",,I79:I88) -> 0^0 | R84: 3 | T84: 0 | U84: 0 | V84: 0 | W84: 0 | X84: 0 | Y84: 0 | AA84: 0 | AD84: =_xlfn.TEXTJOIN("^",,Y79:Y87) -> 0^0
C85: 5 | G85: 0 | K85: 0 | N85: 0 | P85: =_xlfn.TEXTJOIN("^",,J79:J88) -> 0^0 | R85: 5 | V85: 0 | AD85: =_xlfn.TEXTJOIN("^",,Z79:Z87) -> 0
C86: 7 | P86: =_xlfn.TEXTJOIN("^",,K79:K88) -> 0^0^0 | R86: 7 | AD86: =_xlfn.TEXTJOIN("^",,AA79:AA87) -> 0^0
C87: 9 | P87: =_xlfn.TEXTJOIN("^",,L79:L88) -> 0 | R87: 9 | AD87: =_xlfn.TEXTJOIN("^",,AB79:AB87) -> 
P88: =_xlfn.TEXTJOIN("^",,M79:M88) -> 0^0 | AD88: =_xlfn.TEXTJOIN("^",,AC79:AC87) -> 
P89: =_xlfn.TEXTJOIN("^",,N79:N88) -> 0^0^0 | AC89: 最终 | AD89: =_xlfn.TEXTJOIN("|",,AD78:AD88) -> 0|0^0|0^0|0^0^0|0^0|0^0|0^0|0|0^0
O90: 最终 | P90: =_xlfn.TEXTJOIN("|",,P79:P89) -> 0|0^0|0^0|0^0^0|0^0|0^0|0^0|0^0^0|0|0^0|0^0^0
C92: 时间 | D92: 5 | E92: 15 | F92: 30 | G92: 45 | H92: 60 | I92: 70 | J92: 85 | K92: 95 | L92: 110 | M92: 125 | N92: 135 | R92: 时间 | S92: 1 | T92: 3 | U92: 6 | V92: 10 | W92: 15 | X92: 20 | Y92: 23 | AD92: =_xlfn.TEXTJOIN("^",,S93:S101) -> 25
C93: 8 | P93: =_xlfn.TEXTJOIN("^",,D93:D102) -> 4 | R93: 8 | AD93: =_xlfn.TEXTJOIN("^",,T93:T101) -> 7^3
C94: 6 | P94: =_xlfn.TEXTJOIN("^",,E93:E102) -> 2^7 | R94: 6 | AD94: =_xlfn.TEXTJOIN("^",,U93:U101) -> 2^8
C95: 4 | P95: =_xlfn.TEXTJOIN("^",,F93:F102) -> 3^4 | R95: 4 | AD95: =_xlfn.TEXTJOIN("^",,V93:V101) -> 4^2^6
C96: 2 | P96: =_xlfn.TEXTJOIN("^",,G93:G102) -> 2^2^4 | R96: 2 | AD96: =_xlfn.TEXTJOIN("^",,W93:W101) -> 3^4
C97: 1 | D97: 4 | E97: 2 | F97: 3 | G97: 2 | H97: 8 | I97: 3 | J97: 7 | K97: 3 | L97: 9 | M97: 3 | N97: 7 | P97: =_xlfn.TEXTJOIN("^",,H93:H102) -> 8^3 | R97: 1 | S97: 25 | T97: 7 | U97: 2 | V97: 4 | W97: 3 | X97: 3 | Y97: 8 | Z97: 10 | AA97: 3 | AD97: =_xlfn.TEXTJOIN("^",,X93:X101) -> 3^4
C98: 3 | E98: 7 | F98: 4 | G98: 2 | H98: 3 | I98: 3 | J98: 4 | K98: 7 | M98: 7 | N98: 4 | P98: =_xlfn.TEXTJOIN("^",,I93:I102) -> 3^3 | R98: 3 | T98: 3 | U98: 8 | V98: 2 | W98: 4 | X98: 4 | Y98: 2 | AA98: 4 | AD98: =_xlfn.TEXTJOIN("^",,Y93:Y101) -> 8^2
C99: 5 | G99: 4 | K99: 3 | N99: 2 | P99: =_xlfn.TEXTJOIN("^",,J93:J102) -> 7^4 | R99: 5 | V99: 6 | AD99: =_xlfn.TEXTJOIN("^",,Z93:Z101) -> 10
C100: 7 | P100: =_xlfn.TEXTJOIN("^",,K93:K102) -> 3^7^3 | R100: 7 | AD100: =_xlfn.TEXTJOIN("^",,AA93:AA101) -> 3^4
C101: 9 | P101: =_xlfn.TEXTJOIN("^",,L93:L102) -> 9 | R101: 9 | AD101: =_xlfn.TEXTJOIN("^",,AB93:AB101) -> 
P102: =_xlfn.TEXTJOIN("^",,M93:M102) -> 3^7 | AD102: =_xlfn.TEXTJOIN("^",,AC93:AC101) -> 
P103: =_xlfn.TEXTJOIN("^",,N93:N102) -> 7^4^2 | AC103: 最终 | AD103: =_xlfn.TEXTJOIN("|",,AD92:AD102) -> 25|7^3|2^8|4^2^6|3^4|3^4|8^2|10|3^4
O104: 最终 | P104: =_xlfn.TEXTJOIN("|",,P93:P103) -> 4|2^7|3^4|2^2^4|8^3|3^3|7^4|3^7^3|9|3^7|7^4^2 | AD104: =SUM(S94:AB101) -> 98
P105: =SUM(D95:N102) -> 101 | AD105: =AD104+P105 -> 199
E107: =E108-D108 -> 10 | F107: =F108-E108 -> 10 | G107: 10 | H107: 10 | I107: 10 | J107: 10 | K107: 10 | L107: 10 | M107: 5 | N107: 10 | T107: =T108-S108 -> 2 | U107: 3 | V107: 4 | W107: 5 | X107: 5 | Y107: 5
A108: 1 | B108: 密林-3 | C108: 波1·怪物 | D108: 5 | E108: 15 | F108: 25 | G108: 35 | H108: 45 | I108: 55 | J108: 65 | K108: 75 | L108: 85 | M108: 90 | N108: 100 | R108: 波2·怪物 | S108: 1 | T108: 3 | U108: 6 | V108: 10 | W108: 15 | X108: 20 | Y108: 25
B109: 4m | C109: 8 | M109: 60081 | P109: =_xlfn.TEXTJOIN("^",,D109:D118) -> 60082 | R109: 8 | AD109: =_xlfn.TEXTJOIN("^",,S109:S118) -> 60081^60081^60081^60081
C110: 6 | H110: 60081 | I110: 60082 | J110: 60082 | K110: 60081 | L110: 60081 | M110: 60081 | N110: 60084 | P110: =_xlfn.TEXTJOIN("^",,E109:E118) -> 60081^60082^60081 | R110: 6 | U110: 60081 | AD110: =_xlfn.TEXTJOIN("^",,T109:T118) -> 60082^60082^60084^60084
C111: 4 | F111: 60081 | G111: 60082 | I111: 60083 | K111: 60083 | L111: 60083 | M111: 60082 | N111: 60083 | P111: =_xlfn.TEXTJOIN("^",,F109:F118) -> 60081^60081^60084^60083^60083 | R111: 4 | T111: 60082 | U111: 60081 | V111: 60082 | W111: 60082 | X111: 60083 | AD111: =_xlfn.TEXTJOIN("^",,U109:U118) -> 60081^60081^60083^60083^60081^60081
C112: 2 | E112: 60081 | F112: 60081 | G112: 60083 | H112: 60082 | I112: 60081 | J112: 60081 | K112: 60082 | L112: 60081 | N112: 60082 | P112: =_xlfn.TEXTJOIN("^",,G109:G118) -> 60082^60083^60082^60083^60082 | R112: 2 | S112: 60081 | T112: 60082 | U112: 60083 | V112: 60082 | W112: 60081 | Y112: 60084 | AD112: =_xlfn.TEXTJOIN("^",,V109:V118) -> 60082^60082^60084^60081^60081
C113: 1 | D113: 60082 | E113: 60082 | F113: 60084 | G113: 60082 | H113: 60084 | I113: 60083 | J113: 60083 | K113: 60082 | L113: 60082 | M113: 60084 | N113: 60083 | P113: =_xlfn.TEXTJOIN("^",,H109:H118) -> 60081^60082^60084^60082^60081 | R113: 1 | S113: 60081 | U113: 60083 | V113: 60084 | W113: 60081 | X113: 60083 | AD113: =_xlfn.TEXTJOIN("^",,W109:W118) -> 60082^60081^60081^60081^60082
C114: 3 | E114: 60081 | F114: 60083 | G114: 60083 | H114: 60082 | I114: 60081 | J114: 60081 | K114: 60082 | L114: 60081 | N114: 60084 | P114: =_xlfn.TEXTJOIN("^",,I109:I118) -> 60082^60083^60081^60083^60081^60083^60082 | R114: 3 | S114: 60081 | T114: 60084 | U114: 60081 | V114: 60081 | W114: 60081 | Y114: 60084 | AD114: =_xlfn.TEXTJOIN("^",,X109:X118) -> 60083^60083^60083
C115: 5 | F115: 60083 | G115: 60082 | I115: 60083 | K115: 60083 | L115: 60083 | M115: 60082 | N115: 60083 | P115: =_xlfn.TEXTJOIN("^",,J109:J118) -> 60082^60081^60083^60081^60084 | R115: 5 | S115: 60081 | T115: 60084 | U115: 60081 | V115: 60081 | W115: 60082 | X115: 60083 | AD115: =_xlfn.TEXTJOIN("^",,Y109:Y118) -> 60084^60084
C116: 7 | H116: 60081 | I116: 60082 | J116: 60084 | K116: 60081 | L116: 60081 | M116: 60081 | N116: 60082 | P116: =_xlfn.TEXTJOIN("^",,K109:K118) -> 60081^60083^60082^60082^60082^60083^60081 | R116: 7 | AD116: =_xlfn.TEXTJOIN("^",,Z109:Z118) -> 
C117: 9 | M117: 60081 | P117: =_xlfn.TEXTJOIN("^",,L109:L118) -> 60081^60083^60081^60082^60081^60083^60081 | R117: 9 | AD117: =_xlfn.TEXTJOIN("^",,AA109:AA118) -> 
P118: =_xlfn.TEXTJOIN("^",,M109:M118) -> 60081^60081^60082^60084^60082^60081^60081 | AD118: =_xlfn.TEXTJOIN("^",,AB109:AB118) -> 
P119: =_xlfn.TEXTJOIN("^",,N109:N118) -> 60084^60083^60082^60083^60084^60083^60082 | AD119: =_xlfn.TEXTJOIN("^",,AC109:AC118) -> 
D120: 60081 | E120: 60082 | F120: 60083 | G120: 60084 | O120: 最终 | P120: =_xlfn.TEXTJOIN("^",,P109:P119) -> 60082^60081^60082^60081^60081^60081^60084^60083^60083^60082^60083^60082^60083^60082^60081^60082^60084^60082^60081^60082^60083^60081^60083^60081^60083^60082^60082^60081^60083^60081^60084^60081^60083^60082^60082^60082^60083^60081^60081^60083^60081^60082^60081^60083^60081^60081^60081^60082^60084^60082^60081^60081^60084^60083^60082^60083^60084^60083^60082 | AC120: 最终 | AD120: =_xlfn.TEXTJOIN("^",,AD109:AD119) -> 60081^60081^60081^60081^60082^60082^60084^60084^60081^60081^60083^60083^60081^60081^60082^60082^60084^60081^60081^60082^60081^60081^60081^60082^60083^60083^60083^60084^60084
C121: 8 | M121: 树精 | R121: 8
C122: 6 | H122: 树精 | I122: 毒蜘蛛 | J122: 毒蜘蛛 | K122: 树精 | L122: 树精 | M122: 树精 | N122: 木精灵 | R122: 6 | U122: 树精
C123: 4 | F123: 树精 | G123: 毒蜘蛛 | I123: 哥布林 | K123: 哥布林 | L123: 哥布林 | M123: 毒蜘蛛 | N123: 哥布林 | R123: 4 | T123: 毒蜘蛛 | U123: 树精 | V123: 毒蜘蛛 | W123: 毒蜘蛛 | X123: 哥布林
C124: 2 | E124: 树精 | F124: 树精 | G124: 哥布林 | H124: 毒蜘蛛 | I124: 树精 | J124: 树精 | K124: 毒蜘蛛 | L124: 树精 | N124: 毒蜘蛛 | R124: 2 | S124: 树精 | T124: 毒蜘蛛 | U124: 哥布林 | V124: 毒蜘蛛 | W124: 树精 | Y124: 木精灵
C125: 1 | D125: 毒蜘蛛 | E125: 毒蜘蛛 | F125: 木精灵 | G125: 毒蜘蛛 | H125: 木精灵 | I125: 哥布林 | J125: 哥布林 | K125: 毒蜘蛛 | L125: 毒蜘蛛 | M125: 木精灵 | N125: 哥布林 | R125: 1 | S125: 树精 | U125: 哥布林 | V125: 木精灵 | W125: 树精 | X125: 哥布林
C126: 3 | E126: 树精 | F126: 哥布林 | G126: 哥布林 | H126: 毒蜘蛛 | I126: 树精 | J126: 树精 | K126: 毒蜘蛛 | L126: 树精 | N126: 木精灵 | R126: 3 | S126: 树精 | T126: 木精灵 | U126: 树精 | V126: 树精 | W126: 树精 | Y126: 木精灵
C127: 5 | F127: 哥布林 | G127: 毒蜘蛛 | I127: 哥布林 | K127: 哥布林 | L127: 哥布林 | M127: 毒蜘蛛 | N127: 哥布林 | R127: 5 | S127: 树精 | T127: 木精灵 | U127: 树精 | V127: 树精 | W127: 毒蜘蛛 | X127: 哥布林
C128: 7 | H128: 树精 | I128: 毒蜘蛛 | J128: 木精灵 | K128: 树精 | L128: 树精 | M128: 树精 | N128: 毒蜘蛛 | R128: 7
C129: 9 | M129: 树精 | R129: 9
C131: 位置 | D131: 5 | E131: 15 | F131: 25 | G131: 35 | H131: 45 | I131: 55 | J131: 65 | K131: 75 | L131: 85 | M131: 90 | N131: 100 | R131: 位置 | S131: 1 | T131: 3 | U131: 6 | V131: 10 | W131: 15 | X131: 20 | Y131: 25 | AD131: =_xlfn.TEXTJOIN("^",,S132:S140) -> 2^1^3^5
C132: 8 | M132: =$C132 -> 8 | P132: =_xlfn.TEXTJOIN("^",,D132:D141) -> 1 | R132: 8 | AD132: =_xlfn.TEXTJOIN("^",,T132:T140) -> 4^2^3^5
C133: 6 | H133: =$C133 -> 6 | I133: =$C133 -> 6 | J133: =$C133 -> 6 | K133: 6 | L133: 6 | M133: 6 | N133: 6 | P133: =_xlfn.TEXTJOIN("^",,E132:E141) -> 2^1^3 | R133: 6 | U133: =$C133 -> 6 | AD133: =_xlfn.TEXTJOIN("^",,U132:U140) -> 6^4^2^1^3^5
C134: 4 | F134: =$C134 -> 4 | G134: 4 | I134: 4 | K134: 4 | L134: 4 | M134: 4 | N134: 4 | P134: =_xlfn.TEXTJOIN("^",,F132:F141) -> 4^2^1^3^5 | R134: 4 | T134: =$C134 -> 4 | U134: 4 | V134: 4 | W134: 4 | X134: =$C134 -> 4 | AD134: =_xlfn.TEXTJOIN("^",,V132:V140) -> 4^2^1^3^5
C135: 2 | E135: =$C135 -> 2 | F135: 2 | G135: 2 | H135: 2 | I135: 2 | J135: 2 | K135: 2 | L135: 2 | N135: 2 | P135: =_xlfn.TEXTJOIN("^",,G132:G141) -> 4^2^1^3^5 | R135: 2 | S135: =$C135 -> 2 | T135: 2 | U135: 2 | V135: 2 | W135: 2 | Y135: =$C135 -> 2 | AD135: =_xlfn.TEXTJOIN("^",,W132:W140) -> 4^2^1^3^5
C136: 1 | D136: =$C136 -> 1 | E136: 1 | F136: 1 | G136: 1 | H136: 1 | I136: 1 | J136: 1 | K136: 1 | L136: 1 | M136: =$C136 -> 1 | N136: 1 | P136: =_xlfn.TEXTJOIN("^",,H132:H141) -> 6^2^1^3^7 | R136: 1 | S136: 1 | U136: 1 | V136: 1 | W136: 1 | X136: =$C136 -> 1 | AD136: =_xlfn.TEXTJOIN("^",,X132:X140) -> 4^1^5
C137: 3 | E137: 3 | F137: 3 | G137: 3 | H137: 3 | I137: 3 | J137: 3 | K137: 3 | L137: 3 | N137: =$C137 -> 3 | P137: =_xlfn.TEXTJOIN("^",,I132:I141) -> 6^4^2^1^3^5^7 | R137: 3 | S137: 3 | T137: 3 | U137: 3 | V137: 3 | W137: 3 | Y137: =$C137 -> 3 | AD137: =_xlfn.TEXTJOIN("^",,Y132:Y140) -> 2^3
C138: 5 | F138: =$C138 -> 5 | G138: 5 | I138: 5 | K138: 5 | L138: 5 | M138: 5 | N138: 5 | P138: =_xlfn.TEXTJOIN("^",,J132:J141) -> 6^2^1^3^7 | R138: 5 | S138: 5 | T138: 5 | U138: 5 | V138: 5 | W138: 5 | X138: =$C138 -> 5 | AD138: =_xlfn.TEXTJOIN("^",,Z132:Z140) -> 
C139: 7 | H139: =$C139 -> 7 | I139: 7 | J139: =$C139 -> 7 | K139: 7 | L139: 7 | M139: 7 | N139: 7 | P139: =_xlfn.TEXTJOIN("^",,K132:K141) -> 6^4^2^1^3^5^7 | R139: 7 | AD139: =_xlfn.TEXTJOIN("^",,AA132:AA140) -> 
C140: 9 | M140: 9 | P140: =_xlfn.TEXTJOIN("^",,L132:L141) -> 6^4^2^1^3^5^7 | R140: 9 | AD140: =_xlfn.TEXTJOIN("^",,AB132:AB140) -> 
P141: =_xlfn.TEXTJOIN("^",,M132:M141) -> 8^6^4^1^5^7^9 | AD141: =_xlfn.TEXTJOIN("^",,AC132:AC140) -> 
P142: =_xlfn.TEXTJOIN("^",,N132:N141) -> 6^4^2^1^3^5^7 | AC142: 最终 | AD142: =_xlfn.TEXTJOIN("^",,AD131:AD141) -> 2^1^3^5^4^2^3^5^6^4^2^1^3^5^4^2^1^3^5^4^2^1^3^5^4^1^5^2^3
O143: 最终 | P143: =_xlfn.TEXTJOIN("^",,P132:P142) -> 1^2^1^3^4^2^1^3^5^4^2^1^3^5^6^2^1^3^7^6^4^2^1^3^5^7^6^2^1^3^7^6^4^2^1^3^5^7^6^4^2^1^3^5^7^8^6^4^1^5^7^9^6^4^2^1^3^5^7
C145: 时间 | D145: 5 | E145: 15 | F145: 25 | G145: 35 | H145: 45 | I145: 55 | J145: 65 | K145: 75 | L145: 85 | M145: 90 | N145: 100 | R145: 时间 | S145: 1 | T145: 3 | U145: 6 | V145: 10 | W145: 15 | X145: 20 | Y145: 25 | AD145: =_xlfn.TEXTJOIN("^",,S146:S154) -> 1^1^1^1
C146: 8 | M146: =M$145 -> 90 | P146: =_xlfn.TEXTJOIN("^",,D146:D155) -> 5 | R146: 8 | AD146: =_xlfn.TEXTJOIN("^",,T146:T154) -> 3^3^3^3
C147: 6 | H147: =H$145 -> 45 | I147: =I$145 -> 55 | J147: =J$145 -> 65 | K147: =K$145 -> 75 | L147: 85 | M147: 90 | N147: 100 | P147: =_xlfn.TEXTJOIN("^",,E146:E155) -> 15^15^15 | R147: 6 | U147: =U$145 -> 6 | AD147: =_xlfn.TEXTJOIN("^",,U146:U154) -> 6^6^6^6^6^6
C148: 4 | F148: =F$145 -> 25 | G148: 35 | I148: 55 | K148: 75 | L148: 85 | M148: 90 | N148: 100 | P148: =_xlfn.TEXTJOIN("^",,F146:F155) -> 25^25^25^25^25 | R148: 4 | T148: =T$145 -> 3 | U148: 6 | V148: 10 | W148: 15 | X148: =X$145 -> 20 | AD148: =_xlfn.TEXTJOIN("^",,V146:V154) -> 10^10^10^10^10
C149: 2 | E149: =E$145 -> 15 | F149: 25 | G149: 35 | H149: 45 | I149: 55 | J149: 65 | K149: 75 | L149: 85 | N149: 100 | P149: =_xlfn.TEXTJOIN("^",,G146:G155) -> 35^35^35^35^35 | R149: 2 | S149: =S$145 -> 1 | T149: 3 | U149: 6 | V149: 10 | W149: 15 | Y149: =Y$145 -> 25 | AD149: =_xlfn.TEXTJOIN("^",,W146:W154) -> 15^15^15^15^15
C150: 1 | D150: =D$145 -> 5 | E150: 15 | F150: 25 | G150: 35 | H150: 45 | I150: 55 | J150: 65 | K150: 75 | L150: 85 | M150: =M$145 -> 90 | N150: 100 | P150: =_xlfn.TEXTJOIN("^",,H146:H155) -> 45^45^45^45^45 | R150: 1 | S150: 1 | U150: 6 | V150: 10 | W150: 15 | X150: =X$145 -> 20 | AD150: =_xlfn.TEXTJOIN("^",,X146:X154) -> 20^20^20
C151: 3 | E151: 15 | F151: 25 | G151: 35 | H151: 45 | I151: 55 | J151: 65 | K151: 75 | L151: 85 | N151: =N$145 -> 100 | P151: =_xlfn.TEXTJOIN("^",,I146:I155) -> 55^55^55^55^55^55^55 | R151: 3 | S151: 1 | T151: 3 | U151: 6 | V151: 10 | W151: 15 | Y151: =Y$145 -> 25 | AD151: =_xlfn.TEXTJOIN("^",,Y146:Y154) -> 25^25
C152: 5 | F152: =F$145 -> 25 | G152: 35 | I152: 55 | K152: 75 | L152: 85 | M152: 90 | N152: 100 | P152: =_xlfn.TEXTJOIN("^",,J146:J155) -> 65^65^65^65^65 | R152: 5 | S152: 1 | T152: 3 | U152: 6 | V152: 10 | W152: 15 | X152: =X$145 -> 20 | AD152: =_xlfn.TEXTJOIN("^",,Z146:Z154) -> 
C153: 7 | H153: =H$145 -> 45 | I153: 55 | J153: =J$145 -> 65 | K153: 75 | L153: 85 | M153: 90 | N153: 100 | P153: =_xlfn.TEXTJOIN("^",,K146:K155) -> 75^75^75^75^75^75^75 | R153: 7 | AD153: =_xlfn.TEXTJOIN("^",,AA146:AA154) -> 
C154: 9 | M154: =M$145 -> 90 | P154: =_xlfn.TEXTJOIN("^",,L146:L155) -> 85^85^85^85^85^85^85 | R154: 9 | AD154: =_xlfn.TEXTJOIN("^",,AB146:AB154) -> 
P155: =_xlfn.TEXTJOIN("^",,M146:M155) -> 90^90^90^90^90^90^90 | AD155: =_xlfn.TEXTJOIN("^",,AC146:AC154) -> 
P156: =_xlfn.TEXTJOIN("^",,N146:N155) -> 100^100^100^100^100^100^100 | AC156: 最终 | AD156: =_xlfn.TEXTJOIN("^",,AD145:AD155) -> 1^1^1^1^3^3^3^3^6^6^6^6^6^6^10^10^10^10^10^15^15^15^15^15^20^20^20^25^25
O157: 最终 | P157: =_xlfn.TEXTJOIN("^",,P146:P156) -> 5^15^15^15^25^25^25^25^25^35^35^35^35^35^45^45^45^45^45^55^55^55^55^55^55^55^65^65^65^65^65^75^75^75^75^75^75^75^85^85^85^85^85^85^85^90^90^90^90^90^90^90^100^100^100^100^100^100^100 | AD157: =SUM(S147:AB154) -> 287
P158: =SUM(D148:N155) -> 3130 | AD158: =AD157+P158 -> 3417
E160: =E161-D161 -> 12 | F160: =F161-E161 -> 13 | G160: 15 | H160: 10 | I160: 15 | J160: 15 | K160: 10 | L160: 15 | M160: 10 | N160: 15 | T160: =T161-S161 -> 2 | U160: 3 | V160: 4 | W160: 5 | X160: 6 | Y160: 14
A161: 3 | B161: 密林-4 | C161: 波1·怪物 | D161: 5 | E161: 17 | F161: 30 | G161: 45 | H161: 55 | I161: 70 | J161: 85 | K161: 95 | L161: 110 | M161: 120 | N161: 135 | R161: 波2·怪物 | S161: 1 | T161: 3 | U161: 6 | V161: 10 | W161: 15 | X161: 21 | Y161: 35
B162: 4m | C162: 8 | P162: =_xlfn.TEXTJOIN("^",,D162:D171) -> 60091^60092 | R162: 8 | AD162: =_xlfn.TEXTJOIN("^",,S162:S171) -> 60091^60092
C163: 6 | P163: =_xlfn.TEXTJOIN("^",,E162:E171) -> 60091^60094 | R163: 6 | AD163: =_xlfn.TEXTJOIN("^",,T162:T171) -> 60094^60093
C164: 4 | P164: =_xlfn.TEXTJOIN("^",,F162:F171) -> 60091^60092 | R164: 4 | AD164: =_xlfn.TEXTJOIN("^",,U162:U171) -> 60091^60092
C165: 2 | P165: =_xlfn.TEXTJOIN("^",,G162:G171) -> 60093^60091^60094 | R165: 2 | AD165: =_xlfn.TEXTJOIN("^",,V162:V171) -> 60093^60092^60091
C166: 1 | D166: 60091 | E166: 60091 | F166: 60091 | G166: 60093 | H166: 60091 | I166: 60093 | J166: 60094 | K166: 60093 | L166: 60094 | M166: 60092 | N166: 60093 | P166: =_xlfn.TEXTJOIN("^",,H162:H171) -> 60091^60092 | R166: 1 | S166: 60091 | T166: 60094 | U166: 60091 | V166: 60093 | W166: 60091 | X166: 60093 | Y166: 60092 | Z166: 60093 | AD166: =_xlfn.TEXTJOIN("^",,W162:W171) -> 60091^60092^60094
C167: 3 | D167: 60092 | E167: 60094 | F167: 60092 | G167: 60091 | H167: 60092 | I167: 60092 | J167: 60092 | K167: 60092 | L167: 60091 | M167: 60091 | N167: 60092 | P167: =_xlfn.TEXTJOIN("^",,I162:I171) -> 60093^60092 | R167: 3 | S167: 60092 | T167: 60093 | U167: 60092 | V167: 60092 | W167: 60092 | X167: 60091 | Y167: 60091 | Z167: 60092 | AD167: =_xlfn.TEXTJOIN("^",,X162:X171) -> 60093^60091
C168: 5 | G168: 60094 | J168: 60091 | K168: 60091 | L168: 60092 | P168: =_xlfn.TEXTJOIN("^",,J162:J171) -> 60094^60092^60091 | R168: 5 | V168: 60091 | W168: 60094 | Z168: 60094 | AD168: =_xlfn.TEXTJOIN("^",,Y162:Y171) -> 60092^60091
C169: 7 | P169: =_xlfn.TEXTJOIN("^",,K162:K171) -> 60093^60092^60091 | R169: 7 | AD169: =_xlfn.TEXTJOIN("^",,Z162:Z171) -> 60093^60092^60094
C170: 9 | P170: =_xlfn.TEXTJOIN("^",,L162:L171) -> 60094^60091^60092 | R170: 9 | AD170: =_xlfn.TEXTJOIN("^",,AA162:AA171) -> 
P171: =_xlfn.TEXTJOIN("^",,M162:M171) -> 60092^60091 | AD171: =_xlfn.TEXTJOIN("^",,AB162:AB171) -> 
P172: =_xlfn.TEXTJOIN("^",,N162:N171) -> 60093^60092 | AD172: =_xlfn.TEXTJOIN("^",,AC162:AC171) -> 
O173: 最终 | P173: =_xlfn.TEXTJOIN("|",,P162:P172) -> 60091^60092|60091^60094|60091^60092|60093^60091^60094|60091^60092|60093^60092|60094^60092^60091|60093^60092^60091|60094^60091^60092|60092^60091|60093^60092 | AC173: 最终 | AD173: =_xlfn.TEXTJOIN("|",,AD162:AD172) -> 60091^60092|60094^60093|60091^60092|60093^60092^60091|60091^60092^60094|60093^60091|60092^60091|60093^60092^60094
C174: 8 | R174: 8
C175: 6 | R175: 6
C176: 4 | R176: 4
C177: 2 | R177: 2
C178: 1 | D178: 树精 | E178: 树精 | F178: 树精 | G178: 哥布林 | H178: 树精 | I178: 哥布林 | J178: 木精灵 | K178: 哥布林 | L178: 木精灵 | M178: 毒蜘蛛 | N178: 哥布林 | R178: 1 | S178: 树精 | T178: 木精灵 | U178: 树精 | V178: 哥布林 | W178: 树精 | X178: 哥布林 | Y178: 毒蜘蛛 | Z178: 哥布林
C179: 3 | D179: 毒蜘蛛 | E179: 木精灵 | F179: 毒蜘蛛 | G179: 树精 | H179: 毒蜘蛛 | I179: 毒蜘蛛 | J179: 毒蜘蛛 | K179: 毒蜘蛛 | L179: 树精 | M179: 树精 | N179: 毒蜘蛛 | R179: 3 | S179: 毒蜘蛛 | T179: 哥布林 | U179: 毒蜘蛛 | V179: 毒蜘蛛 | W179: 毒蜘蛛 | X179: 树精 | Y179: 树精 | Z179: 毒蜘蛛
C180: 5 | G180: 木精灵 | J180: 树精 | K180: 树精 | L180: 毒蜘蛛 | R180: 5 | V180: 树精 | W180: 木精灵 | Z180: 木精灵
C181: 7 | R181: 7
C182: 9 | R182: 9
C184: 位置 | D184: 5 | E184: 17 | F184: 30 | G184: 45 | H184: 55 | I184: 70 | J184: 85 | K184: 95 | L184: 110 | M184: 120 | N184: 135 | R184: 位置 | S184: 1 | T184: 3 | U184: 6 | V184: 10 | W184: 15 | X184: 21 | Y184: 35 | AD184: =_xlfn.TEXTJOIN("^",,S185:S193) -> 0^0
C185: 8 | P185: =_xlfn.TEXTJOIN("^",,D185:D194) -> 0^0 | R185: 8 | AD185: =_xlfn.TEXTJOIN("^",,T185:T193) -> 0^0
C186: 6 | P186: =_xlfn.TEXTJOIN("^",,E185:E194) -> 0^0 | R186: 6 | AD186: =_xlfn.TEXTJOIN("^",,U185:U193) -> 0^0
C187: 4 | P187: =_xlfn.TEXTJOIN("^",,F185:F194) -> 0^0 | R187: 4 | AD187: =_xlfn.TEXTJOIN("^",,V185:V193) -> 0^0^0
C188: 2 | P188: =_xlfn.TEXTJOIN("^",,G185:G194) -> 0^0^0 | R188: 2 | AD188: =_xlfn.TEXTJOIN("^",,W185:W193) -> 0^0^0
C189: 1 | D189: 0 | E189: 0 | F189: 0 | G189: 0 | H189: 0 | I189: 0 | J189: 0 | K189: 0 | L189: 0 | M189: 0 | N189: 0 | P189: =_xlfn.TEXTJOIN("^",,H185:H194) -> 0^0 | R189: 1 | S189: 0 | T189: 0 | U189: 0 | V189: 0 | W189: 0 | X189: 0 | Y189: 0 | Z189: 0 | AD189: =_xlfn.TEXTJOIN("^",,X185:X193) -> 0^0
C190: 3 | D190: 0 | E190: 0 | F190: 0 | G190: 0 | H190: 0 | I190: 0 | J190: 0 | K190: 0 | L190: 0 | M190: 0 | N190: 0 | P190: =_xlfn.TEXTJOIN("^",,I185:I194) -> 0^0 | R190: 3 | S190: 0 | T190: 0 | U190: 0 | V190: 0 | W190: 0 | X190: 0 | Y190: 0 | Z190: 0 | AD190: =_xlfn.TEXTJOIN("^",,Y185:Y193) -> 0^0
C191: 5 | G191: 0 | J191: 0 | K191: 0 | L191: 0 | P191: =_xlfn.TEXTJOIN("^",,J185:J194) -> 0^0^0 | R191: 5 | V191: 0 | W191: 0 | Z191: 0 | AD191: =_xlfn.TEXTJOIN("^",,Z185:Z193) -> 0^0^0
C192: 7 | P192: =_xlfn.TEXTJOIN("^",,K185:K194) -> 0^0^0 | R192: 7 | AD192: =_xlfn.TEXTJOIN("^",,AA185:AA193) -> 
C193: 9 | P193: =_xlfn.TEXTJOIN("^",,L185:L194) -> 0^0^0 | R193: 9 | AD193: =_xlfn.TEXTJOIN("^",,AB185:AB193) -> 
P194: =_xlfn.TEXTJOIN("^",,M185:M194) -> 0^0 | AD194: =_xlfn.TEXTJOIN("^",,AC185:AC193) -> 
P195: =_xlfn.TEXTJOIN("^",,N185:N194) -> 0^0 | AC195: 最终 | AD195: =_xlfn.TEXTJOIN("|",,AD184:AD194) -> 0^0|0^0|0^0|0^0^0|0^0^0|0^0|0^0|0^0^0
O196: 最终 | P196: =_xlfn.TEXTJOIN("|",,P185:P195) -> 0^0|0^0|0^0|0^0^0|0^0|0^0|0^0^0|0^0^0|0^0^0|0^0|0^0
C198: 时间 | D198: 5 | E198: 17 | F198: 30 | G198: 45 | H198: 55 | I198: 70 | J198: 85 | K198: 95 | L198: 110 | M198: 120 | N198: 135 | R198: 时间 | S198: 1 | T198: 3 | U198: 6 | V198: 10 | W198: 15 | X198: 21 | Y198: 35 | AD198: =_xlfn.TEXTJOIN("^",,S199:S207) -> 20^10
C199: 8 | P199: =_xlfn.TEXTJOIN("^",,D199:D208) -> 4^2 | R199: 8 | AD199: =_xlfn.TEXTJOIN("^",,T199:T207) -> 2^3
C200: 6 | P200: =_xlfn.TEXTJOIN("^",,E199:E208) -> 7^2 | R200: 6 | AD200: =_xlfn.TEXTJOIN("^",,U199:U207) -> 5^4
C201: 4 | P201: =_xlfn.TEXTJOIN("^",,F199:F208) -> 7^4 | R201: 4 | AD201: =_xlfn.TEXTJOIN("^",,V199:V207) -> 2^2^6
C202: 2 | P202: =_xlfn.TEXTJOIN("^",,G199:G208) -> 2^6^2 | R202: 2 | AD202: =_xlfn.TEXTJOIN("^",,W199:W207) -> 5^3^2
C203: 1 | D203: 4 | E203: 7 | F203: 7 | G203: 2 | H203: 8 | I203: 2 | J203: 2 | K203: 2 | L203: 2 | M203: 3 | N203: 3 | P203: =_xlfn.TEXTJOIN("^",,H199:H208) -> 8^3 | R203: 1 | S203: 20 | T203: 2 | U203: 5 | V203: 2 | W203: 5 | X203: 3 | Y203: 3 | Z203: 2 | AD203: =_xlfn.TEXTJOIN("^",,X199:X207) -> 3^6
C204: 3 | D204: 2 | E204: 2 | F204: 4 | G204: 6 | H204: 3 | I204: 4 | J204: 2 | K204: 3 | L204: 5 | M204: 6 | N204: 4 | P204: =_xlfn.TEXTJOIN("^",,I199:I208) -> 2^4 | R204: 3 | S204: 10 | T204: 3 | U204: 4 | V204: 2 | W204: 3 | X204: 6 | Y204: 8 | Z204: 7 | AD204: =_xlfn.TEXTJOIN("^",,Y199:Y207) -> 3^8
C205: 5 | G205: 2 | J205: 6 | K205: 5 | L205: 3 | P205: =_xlfn.TEXTJOIN("^",,J199:J208) -> 2^2^6 | R205: 5 | V205: 6 | W205: 2 | Z205: 2 | AD205: =_xlfn.TEXTJOIN("^",,Z199:Z207) -> 2^7^2
C206: 7 | P206: =_xlfn.TEXTJOIN("^",,K199:K208) -> 2^3^5 | R206: 7 | AD206: =_xlfn.TEXTJOIN("^",,AA199:AA207) -> 
C207: 9 | P207: =_xlfn.TEXTJOIN("^",,L199:L208) -> 2^5^3 | R207: 9 | AD207: =_xlfn.TEXTJOIN("^",,AB199:AB207) -> 
P208: =_xlfn.TEXTJOIN("^",,M199:M208) -> 3^6 | AD208: =_xlfn.TEXTJOIN("^",,AC199:AC207) -> 
P209: =_xlfn.TEXTJOIN("^",,N199:N208) -> 3^4 | AC209: 最终 | AD209: =_xlfn.TEXTJOIN("|",,AD198:AD208) -> 20^10|2^3|5^4|2^2^6|5^3^2|3^6|3^8|2^7^2
O210: 最终 | P210: =_xlfn.TEXTJOIN("|",,P199:P209) -> 4^2|7^2|7^4|2^6^2|8^3|2^4|2^2^6|2^3^5|2^5^3|3^6|3^4 | AD210: =SUM(S200:AB207) -> 95
P211: =SUM(D201:N208) -> 99 | AD211: =AD210+P211 -> 194
... 49 more rows

Sheet 3
E2: =E3-D3 -> 12 | F2: =F3-E3 -> 13 | G2: 15 | H2: 15 | I2: 15 | J2: 17 | K2: 18 | L2: 20 | M2: 20 | N2: 20 | T2: =T3-S3 -> 3 | U2: 3 | V2: 6 | W2: 6 | X2: 10 | Y2: 10 | Z2: 15 | AA2: 15 | AB2: 20
A3: 3 | B3: 雪原-1 | C3: 波1·怪物 | D3: 5 | E3: 17 | F3: 30 | G3: 45 | H3: 60 | I3: 75 | J3: 92 | K3: 110 | L3: 130 | M3: 150 | N3: 170 | R3: 波2·怪物 | S3: 2 | T3: 5 | U3: 8 | V3: 14 | W3: 20 | X3: 30 | Y3: 40 | Z3: 55 | AA3: 70 | AB3: 90
B4: 4.5m | C4: 8 | P4: =_xlfn.TEXTJOIN("^",,D4:D13) -> 60111 | R4: 8 | AD4: =_xlfn.TEXTJOIN("^",,S4:S13) -> 60111
C5: 6 | P5: =_xlfn.TEXTJOIN("^",,E4:E13) -> 60111^60112 | R5: 6 | AD5: =_xlfn.TEXTJOIN("^",,T4:T13) -> 60112^60114
C6: 4 | P6: =_xlfn.TEXTJOIN("^",,F4:F13) -> 60114^60111^60112 | R6: 4 | AD6: =_xlfn.TEXTJOIN("^",,U4:U13) -> 60113^60112
C7: 2 | P7: =_xlfn.TEXTJOIN("^",,G4:G13) -> 60111^60113 | R7: 2 | AD7: =_xlfn.TEXTJOIN("^",,V4:V13) -> 60111^60112
C8: 1 | D8: 60111 | E8: 60111 | F8: 60114 | G8: 60111 | H8: 60114 | I8: 60113 | J8: 60112 | K8: 60111 | L8: 60114 | M8: 60114 | N8: 60113 | P8: =_xlfn.TEXTJOIN("^",,H4:H13) -> 60114^60111^60112 | R8: 1 | S8: 60111 | T8: 60112 | U8: 60113 | V8: 60111 | W8: 60112 | X8: 60114 | Y8: 60112 | Z8: 60111 | AA8: 60113 | AB8: 60112 | AD8: =_xlfn.TEXTJOIN("^",,W4:W13) -> 60112^60113^60111
C9: 3 | E9: 60112 | F9: 60111 | G9: 60113 | H9: 60111 | I9: 60114 | J9: 60111 | K9: 60113 | L9: 60111 | M9: 60112 | N9: 60112 | P9: =_xlfn.TEXTJOIN("^",,I4:I13) -> 60113^60114 | R9: 3 | T9: 60114 | U9: 60112 | V9: 60112 | W9: 60113 | X9: 60111 | Y9: 60111 | Z9: 60114 | AA9: 60112 | AB9: 60111 | AD9: =_xlfn.TEXTJOIN("^",,X4:X13) -> 60114^60111
C10: 5 | F10: 60112 | H10: 60112 | L10: 60112 | M10: 60111 | N10: 60114 | P10: =_xlfn.TEXTJOIN("^",,J4:J13) -> 60112^60111 | R10: 5 | W10: 60111 | AA10: 60111 | AB10: 60114 | AD10: =_xlfn.TEXTJOIN("^",,Y4:Y13) -> 60112^60111
C11: 7 | P11: =_xlfn.TEXTJOIN("^",,K4:K13) -> 60111^60113 | R11: 7 | AD11: =_xlfn.TEXTJOIN("^",,Z4:Z13) -> 60111^60114
C12: 9 | P12: =_xlfn.TEXTJOIN("^",,L4:L13) -> 60114^60111^60112 | R12: 9 | AD12: =_xlfn.TEXTJOIN("^",,AA4:AA13) -> 60113^60112^60111
P13: =_xlfn.TEXTJOIN("^",,M4:M13) -> 60114^60112^60111 | AD13: =_xlfn.TEXTJOIN("^",,AB4:AB13) -> 60112^60111^60114
P14: =_xlfn.TEXTJOIN("^",,N4:N13) -> 60113^60112^60114 | AD14: =_xlfn.TEXTJOIN("^",,AC4:AC13) -> 
O15: 最终 | P15: =_xlfn.TEXTJOIN("|",,P4:P14) -> 60111|60111^60112|60114^60111^60112|60111^60113|60114^60111^60112|60113^60114|60112^60111|60111^60113|60114^60111^60112|60114^60112^60111|60113^60112^60114 | AC15: 最终 | AD15: =_xlfn.TEXTJOIN("|",,AD4:AD14) -> 60111|60112^60114|60113^60112|60111^60112|60112^60113^60111|60114^60111|60112^60111|60111^60114|60113^60112^60111|60112^60111^60114
C16: 8 | R16: 8
C17: 6 | R17: 6
C18: 4 | R18: 4
C19: 2 | R19: 2
C20: 1 | D20: 雪怪 | E20: 雪怪 | F20: 木精灵 | G20: 雪怪 | H20: 木精灵 | I20: 雪原熊 | J20: 独角兽 | K20: 雪怪 | L20: 木精灵 | M20: 木精灵 | N20: 雪原熊 | R20: 1 | S20: 雪怪 | T20: 独角兽 | U20: 雪原熊 | V20: 雪怪 | W20: 独角兽 | X20: 木精灵 | Y20: 独角兽 | Z20: 雪怪 | AA20: 雪原熊 | AB20: 独角兽
C21: 3 | E21: 独角兽 | F21: 雪怪 | G21: 雪原熊 | H21: 雪怪 | I21: 木精灵 | J21: 雪怪 | K21: 雪原熊 | L21: 雪怪 | M21: 独角兽 | N21: 独角兽 | R21: 3 | T21: 木精灵 | U21: 独角兽 | V21: 独角兽 | W21: 雪原熊 | X21: 雪怪 | Y21: 雪怪 | Z21: 木精灵 | AA21: 独角兽 | AB21: 雪怪
C22: 5 | F22: 独角兽 | H22: 独角兽 | L22: 独角兽 | M22: 雪怪 | N22: 木精灵 | R22: 5 | W22: 雪怪 | AA22: 雪怪 | AB22: 木精灵
C23: 7 | R23: 7
C24: 9 | R24: 9
C26: 位置 | D26: 5 | E26: 17 | F26: 30 | G26: 45 | H26: 60 | I26: 75 | J26: 92 | K26: 110 | L26: 130 | M26: 150 | N26: 170 | R26: 位置 | S26: 2 | T26: 5 | U26: 8 | V26: 14 | W26: 20 | X26: 30 | Y26: 40 | Z26: 55 | AA26: 70 | AB26: 90 | AD26: =_xlfn.TEXTJOIN("^",,S27:S35) -> 0
C27: 8 | P27: =_xlfn.TEXTJOIN("^",,D27:D36) -> 0 | R27: 8 | AD27: =_xlfn.TEXTJOIN("^",,T27:T35) -> 0^0
C28: 6 | P28: =_xlfn.TEXTJOIN("^",,E27:E36) -> 0^0 | R28: 6 | AD28: =_xlfn.TEXTJOIN("^",,U27:U35) -> 0^0
C29: 4 | P29: =_xlfn.TEXTJOIN("^",,F27:F36) -> 0^0^0 | R29: 4 | AD29: =_xlfn.TEXTJOIN("^",,V27:V35) -> 0^0
C30: 2 | P30: =_xlfn.TEXTJOIN("^",,G27:G36) -> 0^0 | R30: 2 | AD30: =_xlfn.TEXTJOIN("^",,W27:W35) -> 0^0^0
C31: 1 | D31: 0 | E31: 0 | F31: 0 | G31: 0 | H31: 0 | I31: 0 | J31: 0 | K31: 0 | L31: 0 | M31: 0 | N31: 0 | P31: =_xlfn.TEXTJOIN("^",,H27:H36) -> 0^0^0 | R31: 1 | S31: 0 | T31: 0 | U31: 0 | V31: 0 | W31: 0 | X31: 0 | Y31: 0 | Z31: 0 | AA31: 0 | AB31: 0 | AD31: =_xlfn.TEXTJOIN("^",,X27:X35) -> 0^0
C32: 3 | E32: 0 | F32: 0 | G32: 0 | H32: 0 | I32: 0 | J32: 0 | K32: 0 | L32: 0 | M32: 0 | N32: 0 | P32: =_xlfn.TEXTJOIN("^",,I27:I36) -> 0^0 | R32: 3 | T32: 0 | U32: 0 | V32: 0 | W32: 0 | X32: 0 | Y32: 0 | Z32: 0 | AA32: 0 | AB32: 0 | AD32: =_xlfn.TEXTJOIN("^",,Y27:Y35) -> 0^0
C33: 5 | F33: 0 | H33: 0 | L33: 0 | M33: 0 | N33: 0 | P33: =_xlfn.TEXTJOIN("^",,J27:J36) -> 0^0 | R33: 5 | W33: 0 | AA33: 0 | AB33: 0 | AD33: =_xlfn.TEXTJOIN("^",,Z27:Z35) -> 0^0
C34: 7 | P34: =_xlfn.TEXTJOIN("^",,K27:K36) -> 0^0 | R34: 7 | AD34: =_xlfn.TEXTJOIN("^",,AA27:AA35) -> 0^0^0
C35: 9 | P35: =_xlfn.TEXTJOIN("^",,L27:L36) -> 0^0^0 | R35: 9 | AD35: =_xlfn.TEXTJOIN("^",,AB27:AB35) -> 0^0^0
P36: =_xlfn.TEXTJOIN("^",,M27:M36) -> 0^0^0 | AD36: =_xlfn.TEXTJOIN("^",,AC27:AC35) -> 
P37: =_xlfn.TEXTJOIN("^",,N27:N36) -> 0^0^0 | AC37: 最终 | AD37: =_xlfn.TEXTJOIN("|",,AD26:AD36) -> 0|0^0|0^0|0^0|0^0^0|0^0|0^0|0^0|0^0^0|0^0^0
O38: 最终 | P38: =_xlfn.TEXTJOIN("|",,P27:P37) -> 0|0^0|0^0^0|0^0|0^0^0|0^0|0^0|0^0|0^0^0|0^0^0|0^0^0
C40: 时间 | D40: 5 | E40: 17 | F40: 30 | G40: 45 | H40: 60 | I40: 75 | J40: 92 | K40: 110 | L40: 130 | M40: 150 | N40: 170 | R40: 时间 | S40: 2 | T40: 5 | U40: 8 | V40: 14 | W40: 20 | X40: 30 | Y40: 40 | Z40: 55 | AA40: 70 | AB40: 90 | AD40: =_xlfn.TEXTJOIN("^",,S41:S49) -> 25
C41: 8 | P41: =_xlfn.TEXTJOIN("^",,D41:D50) -> 6 | R41: 8 | AD41: =_xlfn.TEXTJOIN("^",,T41:T49) -> 6^3
C42: 6 | P42: =_xlfn.TEXTJOIN("^",,E41:E50) -> 6^3 | R42: 6 | AD42: =_xlfn.TEXTJOIN("^",,U41:U49) -> 3^6
C43: 4 | P43: =_xlfn.TEXTJOIN("^",,F41:F50) -> 2^6^3 | R43: 4 | AD43: =_xlfn.TEXTJOIN("^",,V41:V49) -> 7^3
C44: 2 | P44: =_xlfn.TEXTJOIN("^",,G41:G50) -> 8^2 | R44: 2 | AD44: =_xlfn.TEXTJOIN("^",,W41:W49) -> 3^2^6
C45: 1 | D45: 6 | E45: 6 | F45: 2 | G45: 8 | H45: 2 | I45: 6 | J45: 4 | K45: 8 | L45: 2 | M45: 2 | N45: 2 | P45: =_xlfn.TEXTJOIN("^",,H41:H50) -> 2^5^4 | R45: 1 | S45: 25 | T45: 6 | U45: 3 | V45: 7 | W45: 3 | X45: 2 | Y45: 4 | Z45: 10 | AA45: 2 | AB45: 4 | AD45: =_xlfn.TEXTJOIN("^",,X41:X49) -> 2^9
C46: 3 | E46: 3 | F46: 6 | G46: 2 | H46: 5 | I46: 3 | J46: 6 | K46: 2 | L46: 7 | M46: 4 | N46: 8 | P46: =_xlfn.TEXTJOIN("^",,I41:I50) -> 6^3 | R46: 3 | T46: 3 | U46: 6 | V46: 3 | W46: 2 | X46: 9 | Y46: 8 | Z46: 2 | AA46: 3 | AB46: 7 | AD46: =_xlfn.TEXTJOIN("^",,Y41:Y49) -> 4^8
C47: 5 | F47: 3 | H47: 4 | L47: 3 | M47: 7 | N47: 2 | P47: =_xlfn.TEXTJOIN("^",,J41:J50) -> 4^6 | R47: 5 | W47: 6 | AA47: 6 | AB47: 2 | AD47: =_xlfn.TEXTJOIN("^",,Z41:Z49) -> 10^2
C48: 7 | P48: =_xlfn.TEXTJOIN("^",,K41:K50) -> 8^2 | R48: 7 | AD48: =_xlfn.TEXTJOIN("^",,AA41:AA49) -> 2^3^6
C49: 9 | P49: =_xlfn.TEXTJOIN("^",,L41:L50) -> 2^7^3 | R49: 9 | AD49: =_xlfn.TEXTJOIN("^",,AB41:AB49) -> 4^7^2
P50: =_xlfn.TEXTJOIN("^",,M41:M50) -> 2^4^7 | AD50: =_xlfn.TEXTJOIN("^",,AC41:AC49) -> 
P51: =_xlfn.TEXTJOIN("^",,N41:N50) -> 2^8^2 | AC51: 最终 | AD51: =_xlfn.TEXTJOIN("|",,AD40:AD50) -> 25|6^3|3^6|7^3|3^2^6|2^9|4^8|10^2|2^3^6|4^7^2
O52: 最终 | P52: =_xlfn.TEXTJOIN("|",,P41:P51) -> 6|6^3|2^6^3|8^2|2^5^4|6^3|4^6|8^2|2^7^3|2^4^7|2^8^2 | AD52: =SUM(S41:AB48) -> 123
P53: =SUM(D42:N49) -> 113 | AD53: =AD52+P53 -> 236
E55: =E56-D56 -> 12 | F55: =F56-E56 -> 13 | G55: 14 | H55: 15 | I55: 15 | J55: 17 | K55: 18 | L55: 20 | M55: 20 | N55: 20 | T55: =T56-S56 -> 3 | U55: 3 | V55: 5 | W55: 5 | X55: 10 | Y55: 12 | Z55: 14 | AA55: 16 | AB55: 20
A56: 3 | B56: 雪原-2 | C56: 波1·怪物 | D56: 6 | E56: 18 | F56: 31 | G56: 45 | H56: 60 | I56: 75 | J56: 92 | K56: 110 | L56: 130 | M56: 150 | N56: 170 | R56: 波2·怪物 | S56: 1 | T56: 4 | U56: 7 | V56: 12 | W56: 17 | X56: 27 | Y56: 39 | Z56: 53 | AA56: 69 | AB56: 89
B57: 4.5m | C57: 8 | P57: =_xlfn.TEXTJOIN("^",,D57:D66) -> 60121^60122 | R57: 8 | AD57: =_xlfn.TEXTJOIN("^",,S57:S66) -> 60121^60124
C58: 6 | P58: =_xlfn.TEXTJOIN("^",,E57:E66) -> 60122^60124 | R58: 6 | AD58: =_xlfn.TEXTJOIN("^",,T57:T66) -> 60122^60121
C59: 4 | P59: =_xlfn.TEXTJOIN("^",,F57:F66) -> 60121^60122 | R59: 4 | AD59: =_xlfn.TEXTJOIN("^",,U57:U66) -> 60123^60121
C60: 2 | P60: =_xlfn.TEXTJOIN("^",,G57:G66) -> 60123^60122^60121 | R60: 2 | AD60: =_xlfn.TEXTJOIN("^",,V57:V66) -> 60122^60121
C61: 1 | D61: 60121 | E61: 60122 | F61: 60121 | G61: 60123 | H61: 60121 | I61: 60123 | J61: 60124 | K61: 60121 | L61: 60123 | M61: 60124 | N61: 60123 | P61: =_xlfn.TEXTJOIN("^",,H57:H66) -> 60121^60124 | R61: 1 | S61: 60121 | T61: 60122 | U61: 60123 | V61: 60122 | W61: 60124 | X61: 60124 | Y61: 60123 | Z61: 60124 | AA61: 60121 | AB61: 60124 | AD61: =_xlfn.TEXTJOIN("^",,W57:W66) -> 60124^60123^60121
C62: 3 | D62: 60122 | E62: 60124 | F62: 60122 | G62: 60122 | H62: 60124 | I62: 60122 | J62: 60122 | K62: 60124 | L62: 60122 | M62: 60122 | N62: 60124 | P62: =_xlfn.TEXTJOIN("^",,I57:I66) -> 60123^60122^60121 | R62: 3 | S62: 60124 | T62: 60121 | U62: 60121 | V62: 60121 | W62: 60123 | X62: 60121 | Y62: 60122 | Z62: 60122 | AA62: 60122 | AB62: 60123 | AD62: =_xlfn.TEXTJOIN("^",,X57:X66) -> 60124^60121^60122
C63: 5 | G63: 60121 | I63: 60121 | J63: 60121 | M63: 60121 | P63: =_xlfn.TEXTJOIN("^",,J57:J66) -> 60124^60122^60121 | R63: 5 | W63: 60121 | X63: 60122 | Z63: 60121 | AB63: 60121 | AD63: =_xlfn.TEXTJOIN("^",,Y57:Y66) -> 60123^60122
C64: 7 | P64: =_xlfn.TEXTJOIN("^",,K57:K66) -> 60121^60124 | R64: 7 | AB64: 60122 | AD64: =_xlfn.TEXTJOIN("^",,Z57:Z66) -> 60124^60122^60121
C65: 9 | P65: =_xlfn.TEXTJOIN("^",,L57:L66) -> 60123^60122 | R65: 9 | AD65: =_xlfn.TEXTJOIN("^",,AA57:AA66) -> 60121^60122
P66: =_xlfn.TEXTJOIN("^",,M57:M66) -> 60124^60122^60121 | AD66: =_xlfn.TEXTJOIN("^",,AB57:AB66) -> 60124^60123^60121^60122
P67: =_xlfn.TEXTJOIN("^",,N57:N66) -> 60123^60124 | AD67: =_xlfn.TEXTJOIN("^",,AC57:AC66) -> 
O68: 最终 | P68: =_xlfn.TEXTJOIN("|",,P57:P67) -> 60121^60122|60122^60124|60121^60122|60123^60122^60121|60121^60124|60123^60122^60121|60124^60122^60121|60121^60124|60123^60122|60124^60122^60121|60123^60124 | AC68: 最终 | AD68: =_xlfn.TEXTJOIN("|",,AD57:AD67) -> 60121^60124|60122^60121|60123^60121|60122^60121|60124^60123^60121|60124^60121^60122|60123^60122|60124^60122^60121|60121^60122|60124^60123^60121^60122
C69: 8 | R69: 8
C70: 6 | R70: 6
C71: 4 | R71: 4
C72: 2 | R72: 2
C73: 1 | D73: 雪怪 | E73: 独角兽 | F73: 雪怪 | G73: 雪原熊 | H73: 雪怪 | I73: 雪原熊 | J73: 木精灵 | K73: 雪怪 | L73: 雪原熊 | M73: 木精灵 | N73: 雪原熊 | R73: 1 | S73: 雪怪 | T73: 独角兽 | U73: 雪原熊 | V73: 独角兽 | W73: 木精灵 | X73: 木精灵 | Y73: 雪原熊 | Z73: 木精灵 | AA73: 雪怪 | AB73: 木精灵
C74: 3 | D74: 独角兽 | E74: 木精灵 | F74: 独角兽 | G74: 独角兽 | H74: 木精灵 | I74: 独角兽 | J74: 独角兽 | K74: 木精灵 | L74: 独角兽 | M74: 独角兽 | N74: 木精灵 | R74: 3 | S74: 木精灵 | T74: 雪怪 | U74: 雪怪 | V74: 雪怪 | W74: 雪原熊 | X74: 雪怪 | Y74: 独角兽 | Z74: 独角兽 | AA74: 独角兽 | AB74: 雪原熊
C75: 5 | G75: 雪怪 | I75: 雪怪 | J75: 雪怪 | M75: 雪怪 | R75: 5 | W75: 雪怪 | X75: 独角兽 | Z75: 雪怪 | AB75: 雪怪
C76: 7 | R76: 7 | AB76: 独角兽
C77: 9 | R77: 9
C79: 位置 | D79: 6 | E79: 18 | F79: 31 | G79: 45 | H79: 60 | I79: 75 | J79: 92 | K79: 110 | L79: 130 | M79: 150 | N79: 170 | R79: 位置 | S79: 1 | T79: 4 | U79: 7 | V79: 12 | W79: 17 | X79: 27 | Y79: 39 | Z79: 53 | AA79: 69 | AB79: 89 | AD79: =_xlfn.TEXTJOIN("^",,S80:S88) -> 0^0
C80: 8 | P80: =_xlfn.TEXTJOIN("^",,D80:D89) -> 0^0 | R80: 8 | AD80: =_xlfn.TEXTJOIN("^",,T80:T88) -> 0^0
C81: 6 | P81: =_xlfn.TEXTJOIN("^",,E80:E89) -> 0^0 | R81: 6 | AD81: =_xlfn.TEXTJOIN("^",,U80:U88) -> 0^0
C82: 4 | P82: =_xlfn.TEXTJOIN("^",,F80:F89) -> 0^0 | R82: 4 | AD82: =_xlfn.TEXTJOIN("^",,V80:V88) -> 0^0
C83: 2 | P83: =_xlfn.TEXTJOIN("^",,G80:G89) -> 0^0^0 | R83: 2 | AD83: =_xlfn.TEXTJOIN("^",,W80:W88) -> 0^0^0
C84: 1 | D84: 0 | E84: 0 | F84: 0 | G84: 0 | H84: 0 | I84: 0 | J84: 0 | K84: 0 | L84: 0 | M84: 0 | N84: 0 | P84: =_xlfn.TEXTJOIN("^",,H80:H89) -> 0^0 | R84: 1 | S84: 0 | T84: 0 | U84: 0 | V84: 0 | W84: 0 | X84: 0 | Y84: 0 | Z84: 0 | AA84: 0 | AB84: 0 | AD84: =_xlfn.TEXTJOIN("^",,X80:X88) -> 0^0^0
C85: 3 | D85: 0 | E85: 0 | F85: 0 | G85: 0 | H85: 0 | I85: 0 | J85: 0 | K85: 0 | L85: 0 | M85: 0 | N85: 0 | P85: =_xlfn.TEXTJOIN("^",,I80:I89) -> 0^0^0 | R85: 3 | S85: 0 | T85: 0 | U85: 0 | V85: 0 | W85: 0 | X85: 0 | Y85: 0 | Z85: 0 | AA85: 0 | AB85: 0 | AD85: =_xlfn.TEXTJOIN("^",,Y80:Y88) -> 0^0
C86: 5 | G86: 0 | I86: 0 | J86: 0 | M86: 0 | P86: =_xlfn.TEXTJOIN("^",,J80:J89) -> 0^0^0 | R86: 5 | W86: 0 | X86: 0 | Z86: 0 | AB86: 0 | AD86: =_xlfn.TEXTJOIN("^",,Z80:Z88) -> 0^0^0
C87: 7 | P87: =_xlfn.TEXTJOIN("^",,K80:K89) -> 0^0 | R87: 7 | AB87: 0 | AD87: =_xlfn.TEXTJOIN("^",,AA80:AA88) -> 0^0
C88: 9 | P88: =_xlfn.TEXTJOIN("^",,L80:L89) -> 0^0 | R88: 9 | AD88: =_xlfn.TEXTJOIN("^",,AB80:AB88) -> 0^0^0^0
P89: =_xlfn.TEXTJOIN("^",,M80:M89) -> 0^0^0 | AD89: =_xlfn.TEXTJOIN("^",,AC80:AC88) -> 
P90: =_xlfn.TEXTJOIN("^",,N80:N89) -> 0^0 | AC90: 最终 | AD90: =_xlfn.TEXTJOIN("|",,AD79:AD89) -> 0^0|0^0|0^0|0^0|0^0^0|0^0^0|0^0|0^0^0|0^0|0^0^0^0
O91: 最终 | P91: =_xlfn.TEXTJOIN("|",,P80:P90) -> 0^0|0^0|0^0|0^0^0|0^0|0^0^0|0^0^0|0^0|0^0|0^0^0|0^0
C93: 时间 | D93: 6 | E93: 18 | F93: 31 | G93: 45 | H93: 60 | I93: 75 | J93: 92 | K93: 110 | L93: 130 | M93: 150 | N93: 170 | R93: 时间 | S93: 1 | T93: 4 | U93: 7 | V93: 12 | W93: 17 | X93: 27 | Y93: 39 | Z93: 53 | AA93: 69 | AB93: 89 | AD93: =_xlfn.TEXTJOIN("^",,S94:S102) -> 25^4
C94: 8 | P94: =_xlfn.TEXTJOIN("^",,D94:D103) -> 5^2 | R94: 8 | AD94: =_xlfn.TEXTJOIN("^",,T94:T102) -> 4^6
C95: 6 | P95: =_xlfn.TEXTJOIN("^",,E94:E103) -> 4^2 | R95: 6 | AD95: =_xlfn.TEXTJOIN("^",,U94:U102) -> 3^8
C96: 4 | P96: =_xlfn.TEXTJOIN("^",,F94:F103) -> 8^4 | R96: 4 | AD96: =_xlfn.TEXTJOIN("^",,V94:V102) -> 4^8
C97: 2 | P97: =_xlfn.TEXTJOIN("^",,G94:G103) -> 3^3^6 | R97: 2 | AD97: =_xlfn.TEXTJOIN("^",,W94:W102) -> 2^3^9
C98: 1 | D98: 5 | E98: 4 | F98: 8 | G98: 3 | H98: 10 | I98: 3 | J98: 2 | K98: 8 | L98: 3 | M98: 2 | N98: 4 | P98: =_xlfn.TEXTJOIN("^",,H94:H103) -> 10^2 | R98: 1 | S98: 25 | T98: 4 | U98: 3 | V98: 4 | W98: 2 | X98: 2 | Y98: 4 | Z98: 2 | AA98: 9 | AB98: 2 | AD98: =_xlfn.TEXTJOIN("^",,X94:X102) -> 2^6^4
C99: 3 | D99: 2 | E99: 2 | F99: 4 | G99: 3 | H99: 2 | I99: 3 | J99: 4 | K99: 3 | L99: 8 | M99: 4 | N99: 3 | P99: =_xlfn.TEXTJOIN("^",,I94:I103) -> 3^3^7 | R99: 3 | S99: 4 | T99: 6 | U99: 8 | V99: 8 | W99: 3 | X99: 6 | Y99: 6 | Z99: 3 | AA99: 4 | AB99: 2 | AD99: =_xlfn.TEXTJOIN("^",,Y94:Y102) -> 4^6
C100: 5 | G100: 6 | I100: 7 | J100: 8 | M100: 8 | P100: =_xlfn.TEXTJOIN("^",,J94:J103) -> 2^4^8 | R100: 5 | W100: 9 | X100: 4 | Z100: 8 | AB100: 7 | AD100: =_xlfn.TEXTJOIN("^",,Z94:Z102) -> 2^3^8
C101: 7 | P101: =_xlfn.TEXTJOIN("^",,K94:K103) -> 8^3 | R101: 7 | AB101: 3 | AD101: =_xlfn.TEXTJOIN("^",,AA94:AA102) -> 9^4
C102: 9 | P102: =_xlfn.TEXTJOIN("^",,L94:L103) -> 3^8 | R102: 9 | AD102: =_xlfn.TEXTJOIN("^",,AB94:AB102) -> 2^2^7^3
P103: =_xlfn.TEXTJOIN("^",,M94:M103) -> 2^4^8 | AD103: =_xlfn.TEXTJOIN("^",,AC94:AC102) -> 
P104: =_xlfn.TEXTJOIN("^",,N94:N103) -> 4^3 | AC104: 最终 | AD104: =_xlfn.TEXTJOIN("|",,AD93:AD103) -> 25^4|4^6|3^8|4^8|2^3^9|2^6^4|4^6|2^3^8|9^4|2^2^7^3
O105: 最终 | P105: =_xlfn.TEXTJOIN("|",,P94:P104) -> 5^2|4^2|8^4|3^3^6|10^2|3^3^7|2^4^8|8^3|3^8|2^4^8|4^3 | AD105: =SUM(S94:AB101) -> 138
P106: =SUM(D95:N102) -> 119 | AD106: =AD105+P106 -> 257
E108: =E109-D109 -> 5 | F108: =F109-E109 -> 6 | G108: 6 | H108: 10 | I108: 5 | J108: 10 | K108: 10 | L108: 10 | M108: 5 | N108: 10 | T108: =T109-S109 -> 2 | U108: 4 | V108: 5 | W108: 6 | X108: 10 | Y108: 10 | Z108: 15 | AA108: 15 | AB108: 20
A109: 1 | B109: 雪原-3 | C109: 波1·怪物 | D109: 3 | E109: 8 | F109: 14 | G109: 20 | H109: 30 | I109: 35 | J109: 45 | K109: 55 | L109: 65 | M109: 70 | N109: 80 | Q109: 3 | R109: 波2·怪物 | S109: 3 | T109: 5 | U109: 9 | V109: 14 | W109: 20 | X109: 30 | Y109: 40 | Z109: 55 | AA109: 70 | AB109: 90
B110: 4.5m | C110: 8 | H110: 60132 | L110: 60132 | P110: =_xlfn.TEXTJOIN("^",,D110:D119) -> 60131^60131^60131 | R110: 8 | AD110: =_xlfn.TEXTJOIN("^",,S110:S119) -> 60131^60132
C111: 6 | F111: 60132 | G111: 60133 | I111: 60134 | J111: 60131 | K111: 60131 | N111: 60132 | P111: =_xlfn.TEXTJOIN("^",,E110:E119) -> 60132^60134^60132 | R111: 6 | AD111: =_xlfn.TEXTJOIN("^",,T110:T119) -> 60132^60134
C112: 4 | E112: 60132 | F112: 60131 | G112: 60134 | H112: 60131 | I112: 60133 | J112: 60132 | K112: 60131 | L112: 60131 | M112: 60134 | N112: 60133 | P112: =_xlfn.TEXTJOIN("^",,F110:F119) -> 60132^60131^60133^60133^60131^60132 | R112: 4 | AD112: =_xlfn.TEXTJOIN("^",,U110:U119) -> 60131^60133
C113: 2 | D113: 60131 | F113: 60133 | G113: 60131 | H113: 60131 | J113: 60132 | K113: 60133 | L113: 60131 | M113: 60132 | P113: =_xlfn.TEXTJOIN("^",,G110:G119) -> 60133^60134^60131^60131^60134^60133 | R113: 2 | AD113: =_xlfn.TEXTJOIN("^",,V110:V119) -> 60131^60132
C114: 1 | D114: 60131 | E114: 60134 | H114: 60131 | I114: 60132 | J114: 60131 | K114: 60133 | L114: 60134 | M114: 60132 | N114: 60133 | P114: =_xlfn.TEXTJOIN("^",,H110:H119) -> 60132^60131^60131^60131^60131^60131^60132 | R114: 1 | S114: 60131 | T114: 60132 | U114: 60131 | V114: 60131 | W114: 60131 | X114: 60131 | Y114: 60133 | Z114: 60131 | AA114: 60131 | AB114: 60131 | AD114: =_xlfn.TEXTJOIN("^",,W110:W119) -> 60131^60133^60134
C115: 3 | D115: 60131 | F115: 60133 | G115: 60131 | H115: 60131 | J115: 60132 | K115: 60133 | L115: 60131 | M115: 60132 | P115: =_xlfn.TEXTJOIN("^",,I110:I119) -> 60134^60133^60132^60133^60134 | R115: 3 | S115: 60132 | T115: 60134 | U115: 60133 | V115: 60132 | W115: 60133 | X115: 60132 | Y115: 60132 | Z115: 60134 | AA115: 60132 | AB115: 60132 | AD115: =_xlfn.TEXTJOIN("^",,X110:X119) -> 60131^60132
C116: 5 | E116: 60132 | F116: 60131 | G116: 60134 | H116: 60131 | I116: 60133 | J116: 60132 | K116: 60131 | L116: 60131 | M116: 60134 | N116: 60133 | P116: =_xlfn.TEXTJOIN("^",,J110:J119) -> 60131^60132^60132^60131^60132^60132^60131 | R116: 5 | W116: 60134 | Y116: 60134 | AA116: 60133 | AB116: 60134 | AD116: =_xlfn.TEXTJOIN("^",,Y110:Y119) -> 60133^60132^60134
C117: 7 | F117: 60132 | G117: 60133 | I117: 60134 | J117: 60131 | K117: 60131 | N117: 60132 | P117: =_xlfn.TEXTJOIN("^",,K110:K119) -> 60131^60131^60133^60133^60133^60131^60131 | R117: 7 | AD117: =_xlfn.TEXTJOIN("^",,Z110:Z119) -> 60131^60134
C118: 9 | H118: 60132 | L118: 60132 | P118: =_xlfn.TEXTJOIN("^",,L110:L119) -> 60132^60131^60131^60134^60131^60131^60132 | R118: 9 | AD118: =_xlfn.TEXTJOIN("^",,AA110:AA119) -> 60131^60132^60133
P119: =_xlfn.TEXTJOIN("^",,M110:M119) -> 60134^60132^60132^60132^60134 | AD119: =_xlfn.TEXTJOIN("^",,AB110:AB119) -> 60131^60132^60134
P120: =_xlfn.TEXTJOIN("^",,N110:N119) -> 60132^60133^60133^60133^60132 | AD120: =_xlfn.TEXTJOIN("^",,AC110:AC119) -> 
O121: 最终 | P121: =_xlfn.TEXTJOIN("^",,P110:P120) -> 60131^60131^60131^60132^60134^60132^60132^60131^60133^60133^60131^60132^60133^60134^60131^60131^60134^60133^60132^60131^60131^60131^60131^60131^60132^60134^60133^60132^60133^60134^60131^60132^60132^60131^60132^60132^60131^60131^60131^60133^60133^60133^60131^60131^60132^60131^60131^60134^60131^60131^60132^60134^60132^60132^60132^60134^60132^60133^60133^60133^60132 | AC121: 最终 | AD121: =_xlfn.TEXTJOIN("|",,AD110:AD120) -> 60131^60132|60132^60134|60131^60133|60131^60132|60131^60133^60134|60131^60132|60133^60132^60134|60131^60134|60131^60132^60133|60131^60132^60134
C122: 8 | H122: 独角兽 | L122: 独角兽 | R122: 8
C123: 6 | F123: 独角兽 | G123: 雪原熊 | I123: 木精灵 | J123: 雪怪 | K123: 雪怪 | N123: 独角兽 | R123: 6
C124: 4 | E124: 独角兽 | F124: 雪怪 | G124: 木精灵 | H124: 雪怪 | I124: 雪原熊 | J124: 独角兽 | K124: 雪怪 | L124: 雪怪 | M124: 木精灵 | N124: 雪原熊 | R124: 4
C125: 2 | D125: 雪怪 | F125: 雪原熊 | G125: 雪怪 | H125: 雪怪 | J125: 独角兽 | K125: 雪原熊 | L125: 雪怪 | M125: 独角兽 | R125: 2
C126: 1 | D126: 雪怪 | E126: 木精灵 | H126: 雪怪 | I126: 独角兽 | J126: 雪怪 | K126: 雪原熊 | L126: 木精灵 | M126: 独角兽 | N126: 雪原熊 | R126: 1 | S126: 雪怪 | T126: 独角兽 | U126: 雪怪 | V126: 雪怪 | W126: 雪怪 | X126: 雪怪 | Y126: 雪原熊 | Z126: 雪怪 | AA126: 雪怪 | AB126: 雪怪
C127: 3 | D127: 雪怪 | F127: 雪原熊 | G127: 雪怪 | H127: 雪怪 | J127: 独角兽 | K127: 雪原熊 | L127: 雪怪 | M127: 独角兽 | R127: 3 | S127: 独角兽 | T127: 木精灵 | U127: 雪原熊 | V127: 独角兽 | W127: 雪原熊 | X127: 独角兽 | Y127: 独角兽 | Z127: 木精灵 | AA127: 独角兽 | AB127: 独角兽
C128: 5 | E128: 独角兽 | F128: 雪怪 | G128: 木精灵 | H128: 雪怪 | I128: 雪原熊 | J128: 独角兽 | K128: 雪怪 | L128: 雪怪 | M128: 木精灵 | N128: 雪原熊 | R128: 5 | W128: 木精灵 | Y128: 木精灵 | AA128: 雪原熊 | AB128: 木精灵
C129: 7 | F129: 独角兽 | G129: 雪原熊 | I129: 木精灵 | J129: 雪怪 | K129: 雪怪 | N129: 独角兽 | R129: 7
C130: 9 | H130: 独角兽 | L130: 独角兽 | R130: 9
C132: 位置 | D132: 3 | E132: 8 | F132: 14 | G132: 20 | H132: 30 | I132: 35 | J132: 45 | K132: 55 | L132: 65 | M132: 70 | N132: 80 | R132: 位置 | S132: 3 | T132: 5 | U132: 9 | V132: 14 | W132: 20 | X132: 30 | Y132: 40 | Z132: 55 | AA132: 70 | AB132: 90 | AD132: =_xlfn.TEXTJOIN("^",,S133:S141) -> 0^0
C133: 8 | H133: =$C133 -> 8 | L133: =$C133 -> 8 | P133: =_xlfn.TEXTJOIN("^",,D133:D142) -> 2^1^3 | R133: 8 | AD133: =_xlfn.TEXTJOIN("^",,T133:T141) -> 0^0
C134: 6 | F134: =$C134 -> 6 | G134: =$C134 -> 6 | I134: =$C134 -> 6 | J134: 6 | K134: =$C134 -> 6 | N134: =$C134 -> 6 | P134: =_xlfn.TEXTJOIN("^",,E133:E142) -> 4^1^5 | R134: 6 | AD134: =_xlfn.TEXTJOIN("^",,U133:U141) -> 0^0
C135: 4 | E135: =$C135 -> 4 | F135: 4 | G135: =$C135 -> 4 | H135: 4 | I135: 4 | J135: 4 | K135: 4 | L135: =$C135 -> 4 | M135: =$C135 -> 4 | N135: 4 | P135: =_xlfn.TEXTJOIN("^",,F133:F142) -> 6^4^2^3^5^7 | R135: 4 | AD135: =_xlfn.TEXTJOIN("^",,V133:V141) -> 0^0
C136: 2 | D136: =$C136 -> 2 | F136: =$C136 -> 2 | G136: 2 | H136: 2 | J136: 2 | K136: 2 | L136: =$C136 -> 2 | M136: 2 | P136: =_xlfn.TEXTJOIN("^",,G133:G142) -> 6^4^2^3^5^7 | R136: 2 | AD136: =_xlfn.TEXTJOIN("^",,W133:W141) -> 0^0^0
C137: 1 | D137: 1 | E137: =$C137 -> 1 | H137: 1 | I137: =$C137 -> 1 | J137: 1 | K137: 1 | L137: =$C137 -> 1 | M137: 1 | N137: =$C137 -> 1 | P137: =_xlfn.TEXTJOIN("^",,H133:H142) -> 8^4^2^1^3^5^9 | R137: 1 | S137: 0 | T137: 0 | U137: 0 | V137: 0 | W137: 0 | X137: 0 | Y137: 0 | Z137: 0 | AA137: 0 | AB137: 0 | AD137: =_xlfn.TEXTJOIN("^",,X133:X141) -> 0^0
C138: 3 | D138: 3 | F138: =$C138 -> 3 | G138: 3 | H138: 3 | J138: =$C138 -> 3 | K138: 3 | L138: =$C138 -> 3 | M138: 3 | P138: =_xlfn.TEXTJOIN("^",,I133:I142) -> 6^4^1^5^7 | R138: 3 | S138: 0 | T138: 0 | U138: 0 | V138: 0 | W138: 0 | X138: 0 | Y138: 0 | Z138: 0 | AA138: 0 | AB138: 0 | AD138: =_xlfn.TEXTJOIN("^",,Y133:Y141) -> 0^0^0
C139: 5 | E139: =$C139 -> 5 | F139: =$C139 -> 5 | G139: 5 | H139: 5 | I139: 5 | J139: 5 | K139: 5 | L139: =$C139 -> 5 | M139: 5 | N139: 5 | P139: =_xlfn.TEXTJOIN("^",,J133:J142) -> 6^4^2^1^3^5^7 | R139: 5 | W139: 0 | Y139: 0 | AA139: 0 | AB139: 0 | AD139: =_xlfn.TEXTJOIN("^",,Z133:Z141) -> 0^0
C140: 7 | F140: 7 | G140: =$C140 -> 7 | I140: 7 | J140: 7 | K140: 7 | N140: 7 | P140: =_xlfn.TEXTJOIN("^",,K133:K142) -> 6^4^2^1^3^5^7 | R140: 7 | AD140: =_xlfn.TEXTJOIN("^",,AA133:AA141) -> 0^0^0
C141: 9 | H141: =$C141 -> 9 | L141: =$C141 -> 9 | P141: =_xlfn.TEXTJOIN("^",,L133:L142) -> 8^4^2^1^3^5^9 | R141: 9 | AD141: =_xlfn.TEXTJOIN("^",,AB133:AB141) -> 0^0^0
P142: =_xlfn.TEXTJOIN("^",,M133:M142) -> 4^2^1^3^5 | AD142: =_xlfn.TEXTJOIN("^",,AC133:AC141) -> 
P143: =_xlfn.TEXTJOIN("^",,N133:N142) -> 6^4^1^5^7 | AC143: 最终 | AD143: =_xlfn.TEXTJOIN("|",,AD132:AD142) -> 0^0|0^0|0^0|0^0|0^0^0|0^0|0^0^0|0^0|0^0^0|0^0^0
O144: 最终 | P144: =_xlfn.TEXTJOIN("^",,P133:P143) -> 2^1^3^4^1^5^6^4^2^3^5^7^6^4^2^3^5^7^8^4^2^1^3^5^9^6^4^1^5^7^6^4^2^1^3^5^7^6^4^2^1^3^5^7^8^4^2^1^3^5^9^4^2^1^3^5^6^4^1^5^7
C146: 时间 | D146: 3 | E146: 8 | F146: 14 | G146: 20 | H146: 30 | I146: 35 | J146: 45 | K146: 55 | L146: 65 | M146: 70 | N146: 80 | R146: 时间 | S146: 3 | T146: 5 | U146: 9 | V146: 14 | W146: 20 | X146: 30 | Y146: 40 | Z146: 55 | AA146: 70 | AB146: 90 | AD146: =_xlfn.TEXTJOIN("^",,S147:S155) -> 22^8
C147: 8 | H147: =H$146 -> 30 | L147: =L$146 -> 65 | P147: =_xlfn.TEXTJOIN("^",,D147:D156) -> 3^3^3 | R147: 8 | AD147: =_xlfn.TEXTJOIN("^",,T147:T155) -> 6^4
C148: 6 | F148: =F$146 -> 14 | G148: =G$146 -> 20 | I148: =I$146 -> 35 | J148: 45 | K148: =K$146 -> 55 | N148: =N$146 -> 80 | P148: =_xlfn.TEXTJOIN("^",,E147:E156) -> 8^8^8 | R148: 6 | AD148: =_xlfn.TEXTJOIN("^",,U147:U155) -> 8^3
C149: 4 | E149: =E$146 -> 8 | F149: 14 | G149: =G$146 -> 20 | H149: 30 | I149: 35 | J149: 45 | K149: 55 | L149: =L$146 -> 65 | M149: =M$146 -> 70 | N149: 80 | P149: =_xlfn.TEXTJOIN("^",,F147:F156) -> 14^14^14^14^14^14 | R149: 4 | AD149: =_xlfn.TEXTJOIN("^",,V147:V155) -> 8^4
C150: 2 | D150: =D$146 -> 3 | F150: =F$146 -> 14 | G150: 20 | H150: 30 | J150: 45 | K150: 55 | L150: =L$146 -> 65 | M150: 70 | P150: =_xlfn.TEXTJOIN("^",,G147:G156) -> 20^20^20^20^20^20 | R150: 2 | AD150: =_xlfn.TEXTJOIN("^",,W147:W155) -> 9^3^2
C151: 1 | D151: =D$146 -> 3 | E151: =E$146 -> 8 | H151: 30 | I151: =I$146 -> 35 | J151: 45 | K151: 55 | L151: =L$146 -> 65 | M151: 70 | N151: =N$146 -> 80 | P151: =_xlfn.TEXTJOIN("^",,H147:H156) -> 30^30^30^30^30^30^30 | R151: 1 | S151: 22 | T151: 6 | U151: 8 | V151: 8 | W151: 9 | X151: 8 | Y151: 3 | Z151: 9 | AA151: 8 | AB151: 10 | AD151: =_xlfn.TEXTJOIN("^",,X147:X155) -> 8^4
C152: 3 | D152: 3 | F152: =F$146 -> 14 | G152: 20 | H152: 30 | J152: =J$146 -> 45 | K152: 55 | L152: =L$146 -> 65 | M152: 70 | P152: =_xlfn.TEXTJOIN("^",,I147:I156) -> 35^35^35^35^35 | R152: 3 | S152: 8 | T152: 4 | U152: 3 | V152: 4 | W152: 3 | X152: 4 | Y152: 6 | Z152: 3 | AA152: 4 | AB152: 4 | AD152: =_xlfn.TEXTJOIN("^",,Y147:Y155) -> 3^6^2
C153: 5 | E153: =E$146 -> 8 | F153: =F$146 -> 14 | G153: 20 | H153: 30 | I153: 35 | J153: 45 | K153: 55 | L153: =L$146 -> 65 | M153: 70 | N153: 80 | P153: =_xlfn.TEXTJOIN("^",,J147:J156) -> 45^45^45^45^45^45^45 | R153: 5 | W153: 2 | Y153: 2 | AA153: 3 | AB153: 2 | AD153: =_xlfn.TEXTJOIN("^",,Z147:Z155) -> 9^3
C154: 7 | F154: 14 | G154: =G$146 -> 20 | I154: 35 | J154: 45 | K154: 55 | N154: 80 | P154: =_xlfn.TEXTJOIN("^",,K147:K156) -> 55^55^55^55^55^55^55 | R154: 7 | AD154: =_xlfn.TEXTJOIN("^",,AA147:AA155) -> 8^4^3
C155: 9 | H155: =H$146 -> 30 | L155: =L$146 -> 65 | P155: =_xlfn.TEXTJOIN("^",,L147:L156) -> 65^65^65^65^65^65^65 | R155: 9 | AD155: =_xlfn.TEXTJOIN("^",,AB147:AB155) -> 10^4^2
P156: =_xlfn.TEXTJOIN("^",,M147:M156) -> 70^70^70^70^70 | AD156: =_xlfn.TEXTJOIN("^",,AC147:AC155) -> 
P157: =_xlfn.TEXTJOIN("^",,N147:N156) -> 80^80^80^80^80 | AC157: 最终 | AD157: =_xlfn.TEXTJOIN("|",,AD146:AD156) -> 22^8|6^4|8^3|8^4|9^3^2|8^4|3^6^2|9^3|8^4^3|10^4^2
O158: 最终 | P158: =_xlfn.TEXTJOIN("^",,P147:P157) -> 3^3^3^8^8^8^14^14^14^14^14^14^20^20^20^20^20^20^30^30^30^30^30^30^30^35^35^35^35^35^45^45^45^45^45^45^45^55^55^55^55^55^55^55^65^65^65^65^65^65^65^70^70^70^70^70^80^80^80^80^80
E161: =E162-D162 -> 13 | F161: =F162-E162 -> 14 | G161: 15 | H161: 15 | I161: 17 | J161: 20 | K161: 18 | L161: 18 | M161: 19 | N161: 20 | T161: =T162-S162 -> 3 | U161: 3 | V161: 6 | W161: 5 | X161: 10 | Y161: 10 | Z161: 15 | AA161: 15 | AB161: 20
A162: 3 | B162: 雪原-4 | C162: 波1·怪物 | D162: 6 | E162: 19 | F162: 33 | G162: 48 | H162: 63 | I162: 80 | J162: 100 | K162: 118 | L162: 136 | M162: 155 | N162: 175 | R162: 波2·怪物 | S162: 3 | T162: 6 | U162: 9 | V162: 15 | W162: 20 | X162: 30 | Y162: 40 | Z162: 55 | AA162: 70 | AB162: 90
B163: 4.5m | C163: 8 | P163: =_xlfn.TEXTJOIN("^",,D163:D172) -> 60142^60141 | R163: 8 | AD163: =_xlfn.TEXTJOIN("^",,S163:S172) -> 60142^60144^60141
C164: 6 | P164: =_xlfn.TEXTJOIN("^",,E163:E172) -> 60141^60142^60144 | R164: 6 | AD164: =_xlfn.TEXTJOIN("^",,T163:T172) -> 60141^60143
C165: 4 | P165: =_xlfn.TEXTJOIN("^",,F163:F172) -> 60143^60141^60142 | R165: 4 | AD165: =_xlfn.TEXTJOIN("^",,U163:U172) -> 60143^60142
C166: 2 | P166: =_xlfn.TEXTJOIN("^",,G163:G172) -> 60141^60144 | R166: 2 | AD166: =_xlfn.TEXTJOIN("^",,V163:V172) -> 60141^60142
C167: 1 | D167: 60142 | E167: 60141 | F167: 60143 | G167: 60141 | H167: 60143 | I167: 60144 | J167: 60141 | K167: 60143 | L167: 60141 | M167: 60144 | N167: 60143 | P167: =_xlfn.TEXTJOIN("^",,H163:H172) -> 60143^60142 | R167: 1 | S167: 60142 | T167: 60141 | U167: 60143 | V167: 60141 | W167: 60141 | X167: 60141 | Y167: 60143 | Z167: 60141 | AA167: 60142 | AB167: 60143 | AD167: =_xlfn.TEXTJOIN("^",,W163:W172) -> 60141^60143^60144
C168: 3 | D168: 60141 | E168: 60142 | F168: 60141 | G168: 60144 | H168: 60142 | I168: 60143 | J168: 60142 | K168: 60144 | L168: 60142 | M168: 60142 | N168: 60142 | P168: =_xlfn.TEXTJOIN("^",,I163:I172) -> 60144^60143^60141 | R168: 3 | S168: 60144 | T168: 60143 | U168: 60142 | V168: 60142 | W168: 60143 | X168: 60142 | Y168: 60141 | Z168: 60144 | AA168: 60141 | AB168: 60142 | AD168: =_xlfn.TEXTJOIN("^",,X163:X172) -> 60141^60142
C169: 5 | E169: 60144 | F169: 60142 | I169: 60141 | K169: 60141 | M169: 60141 | N169: 60144 | P169: =_xlfn.TEXTJOIN("^",,J163:J172) -> 60141^60142 | R169: 5 | S169: 60141 | W169: 60144 | Y169: 60142 | AB169: 60144 | AD169: =_xlfn.TEXTJOIN("^",,Y163:Y172) -> 60143^60141^60142
C170: 7 | P170: =_xlfn.TEXTJOIN("^",,K163:K172) -> 60143^60144^60141 | R170: 7 | AD170: =_xlfn.TEXTJOIN("^",,Z163:Z172) -> 60141^60144
C171: 9 | P171: =_xlfn.TEXTJOIN("^",,L163:L172) -> 60141^60142 | R171: 9 | AD171: =_xlfn.TEXTJOIN("^",,AA163:AA172) -> 60142^60141
P172: =_xlfn.TEXTJOIN("^",,M163:M172) -> 60144^60142^60141 | AD172: =_xlfn.TEXTJOIN("^",,AB163:AB172) -> 60143^60142^60144
P173: =_xlfn.TEXTJOIN("^",,N163:N172) -> 60143^60142^60144 | AD173: =_xlfn.TEXTJOIN("^",,AC163:AC172) -> 
O174: 最终 | P174: =_xlfn.TEXTJOIN("|",,P163:P173) -> 60142^60141|60141^60142^60144|60143^60141^60142|60141^60144|60143^60142|60144^60143^60141|60141^60142|60143^60144^60141|60141^60142|60144^60142^60141|60143^60142^60144 | AC174: 最终 | AD174: =_xlfn.TEXTJOIN("|",,AD163:AD173) -> 60142^60144^60141|60141^60143|60143^60142|60141^60142|60141^60143^60144|60141^60142|60143^60141^60142|60141^60144|60142^60141|60143^60142^60144
C175: 8 | R175: 8
C176: 6 | R176: 6
C177: 4 | R177: 4
C178: 2 | R178: 2
C179: 1 | D179: 独角兽 | E179: 雪怪 | F179: 雪原熊 | G179: 雪怪 | H179: 雪原熊 | I179: 木精灵 | J179: 雪怪 | K179: 雪原熊 | L179: 雪怪 | M179: 木精灵 | N179: 雪原熊 | R179: 1 | S179: 独角兽 | T179: 雪怪 | U179: 雪原熊 | V179: 雪怪 | W179: 雪怪 | X179: 雪怪 | Y179: 雪原熊 | Z179: 雪怪 | AA179: 独角兽 | AB179: 雪原熊
C180: 3 | D180: 雪怪 | E180: 独角兽 | F180: 雪怪 | G180: 木精灵 | H180: 独角兽 | I180: 雪原熊 | J180: 独角兽 | K180: 木精灵 | L180: 独角兽 | M180: 独角兽 | N180: 独角兽 | R180: 3 | S180: 木精灵 | T180: 雪原熊 | U180: 独角兽 | V180: 独角兽 | W180: 雪原熊 | X180: 独角兽 | Y180: 雪怪 | Z180: 木精灵 | AA180: 雪怪 | AB180: 独角兽
C181: 5 | E181: 木精灵 | F181: 独角兽 | I181: 雪怪 | K181: 雪怪 | M181: 雪怪 | N181: 木精灵 | R181: 5 | S181: 雪怪 | W181: 木精灵 | Y181: 独角兽 | AB181: 木精灵
C182: 7 | R182: 7
C183: 9 | R183: 9
C185: 位置 | D185: 6 | E185: 19 | F185: 33 | G185: 48 | H185: 63 | I185: 80 | J185: 100 | K185: 118 | L185: 136 | M185: 155 | N185: 175 | R185: 位置 | S185: 3 | T185: 6 | U185: 9 | V185: 15 | W185: 20 | X185: 30 | Y185: 40 | Z185: 55 | AA185: 70 | AB185: 90 | AD185: =_xlfn.TEXTJOIN("^",,S186:S194) -> 0^0^0
C186: 8 | P186: =_xlfn.TEXTJOIN("^",,D186:D195) -> 0^0 | R186: 8 | AD186: =_xlfn.TEXTJOIN("^",,T186:T194) -> 0^0
C187: 6 | P187: =_xlfn.TEXTJOIN("^",,E186:E195) -> 0^0^0 | R187: 6 | AD187: =_xlfn.TEXTJOIN("^",,U186:U194) -> 0^0
C188: 4 | P188: =_xlfn.TEXTJOIN("^",,F186:F195) -> 0^0^0 | R188: 4 | AD188: =_xlfn.TEXTJOIN("^",,V186:V194) -> 0^0
C189: 2 | P189: =_xlfn.TEXTJOIN("^",,G186:G195) -> 0^0 | R189: 2 | AD189: =_xlfn.TEXTJOIN("^",,W186:W194) -> 0^0^0
C190: 1 | D190: 0 | E190: 0 | F190: 0 | G190: 0 | H190: 0 | I190: 0 | J190: 0 | K190: 0 | L190: 0 | M190: 0 | N190: 0 | P190: =_xlfn.TEXTJOIN("^",,H186:H195) -> 0^0 | R190: 1 | S190: 0 | T190: 0 | U190: 0 | V190: 0 | W190: 0 | X190: 0 | Y190: 0 | Z190: 0 | AA190: 0 | AB190: 0 | AD190: =_xlfn.TEXTJOIN("^",,X186:X194) -> 0^0
C191: 3 | D191: 0 | E191: 0 | F191: 0 | G191: 0 | H191: 0 | I191: 0 | J191: 0 | K191: 0 | L191: 0 | M191: 0 | N191: 0 | P191: =_xlfn.TEXTJOIN("^",,I186:I195) -> 0^0^0 | R191: 3 | S191: 0 | T191: 0 | U191: 0 | V191: 0 | W191: 0 | X191: 0 | Y191: 0 | Z191: 0 | AA191: 0 | AB191: 0 | AD191: =_xlfn.TEXTJOIN("^",,Y186:Y194) -> 0^0^0
C192: 5 | E192: 0 | F192: 0 | I192: 0 | K192: 0 | M192: 0 | N192: 0 | P192: =_xlfn.TEXTJOIN("^",,J186:J195) -> 0^0 | R192: 5 | S192: 0 | W192: 0 | Y192: 0 | AB192: 0 | AD192: =_xlfn.TEXTJOIN("^",,Z186:Z194) -> 0^0
C193: 7 | P193: =_xlfn.TEXTJOIN("^",,K186:K195) -> 0^0^0 | R193: 7 | AD193: =_xlfn.TEXTJOIN("^",,AA186:AA194) -> 0^0
C194: 9 | P194: =_xlfn.TEXTJOIN("^",,L186:L195) -> 0^0 | R194: 9 | AD194: =_xlfn.TEXTJOIN("^",,AB186:AB194) -> 0^0^0
P195: =_xlfn.TEXTJOIN("^",,M186:M195) -> 0^0^0 | AD195: =_xlfn.TEXTJOIN("^",,AC186:AC194) -> 
P196: =_xlfn.TEXTJOIN("^",,N186:N195) -> 0^0^0 | AC196: 最终 | AD196: =_xlfn.TEXTJOIN("|",,AD185:AD195) -> 0^0^0|0^0|0^0|0^0|0^0^0|0^0|0^0^0|0^0|0^0|0^0^0
O197: 最终 | P197: =_xlfn.TEXTJOIN("|",,P186:P196) -> 0^0|0^0^0|0^0^0|0^0|0^0|0^0^0|0^0|0^0^0|0^0|0^0^0|0^0^0
C199: 时间 | D199: 6 | E199: 19 | F199: 33 | G199: 48 | H199: 63 | I199: 80 | J199: 100 | K199: 118 | L199: 136 | M199: 155 | N199: 175 | R199: 时间 | S199: 3 | T199: 6 | U199: 9 | V199: 15 | W199: 20 | X199: 30 | Y199: 40 | Z199: 55 | AA199: 70 | AB199: 90 | AD199: =_xlfn.TEXTJOIN("^",,S200:S208) -> 10^5^20
C200: 8 | P200: =_xlfn.TEXTJOIN("^",,D200:D209) -> 2^4 | R200: 8 | AD200: =_xlfn.TEXTJOIN("^",,T200:T208) -> 10^2
C201: 6 | P201: =_xlfn.TEXTJOIN("^",,E200:E209) -> 6^3^2 | R201: 6 | AD201: =_xlfn.TEXTJOIN("^",,U200:U208) -> 3^6
C202: 4 | P202: =_xlfn.TEXTJOIN("^",,F200:F209) -> 2^7^3 | R202: 4 | AD202: =_xlfn.TEXTJOIN("^",,V200:V208) -> 8^4
C203: 2 | P203: =_xlfn.TEXTJOIN("^",,G200:G209) -> 9^2 | R203: 2 | AD203: =_xlfn.TEXTJOIN("^",,W200:W208) -> 7^2^2
C204: 1 | D204: 2 | E204: 6 | F204: 2 | G204: 9 | H204: 4 | I204: 2 | J204: 8 | K204: 2 | L204: 8 | M204: 2 | N204: 4 | P204: =_xlfn.TEXTJOIN("^",,H200:H209) -> 4^6 | R204: 1 | S204: 10 | T204: 10 | U204: 3 | V204: 8 | W204: 7 | X204: 9 | Y204: 2 | Z204: 9 | AA204: 4 | AB204: 4 | AD204: =_xlfn.TEXTJOIN("^",,X200:X208) -> 9^4
C205: 3 | D205: 4 | E205: 3 | F205: 7 | G205: 2 | H205: 6 | I205: 2 | J205: 4 | K205: 2 | L205: 4 | M205: 3 | N205: 5 | P205: =_xlfn.TEXTJOIN("^",,I200:I209) -> 2^2^8 | R205: 3 | S205: 5 | T205: 2 | U205: 6 | V205: 4 | W205: 2 | X205: 4 | Y205: 7 | Z205: 2 | AA205: 10 | AB205: 6 | AD205: =_xlfn.TEXTJOIN("^",,Y200:Y208) -> 2^7^4
C206: 5 | E206: 2 | F206: 3 | I206: 8 | K206: 9 | M206: 7 | N206: 3 | P206: =_xlfn.TEXTJOIN("^",,J200:J209) -> 8^4 | R206: 5 | S206: 20 | W206: 2 | Y206: 4 | AB206: 2 | AD206: =_xlfn.TEXTJOIN("^",,Z200:Z208) -> 9^2
C207: 7 | P207: =_xlfn.TEXTJOIN("^",,K200:K209) -> 2^2^9 | R207: 7 | AD207: =_xlfn.TEXTJOIN("^",,AA200:AA208) -> 4^10
C208: 9 | P208: =_xlfn.TEXTJOIN("^",,L200:L209) -> 8^4 | R208: 9 | AD208: =_xlfn.TEXTJOIN("^",,AB200:AB208) -> 4^6^2
P209: =_xlfn.TEXTJOIN("^",,M200:M209) -> 2^3^7 | AD209: =_xlfn.TEXTJOIN("^",,AC200:AC208) -> 
P210: =_xlfn.TEXTJOIN("^",,N200:N209) -> 4^5^3 | AC210: 最终 | AD210: =_xlfn.TEXTJOIN("|",,AD199:AD209) -> 10^5^20|10^2|3^6|8^4|7^2^2|9^4|2^7^4|9^2|4^10|4^6^2
O211: 最终 | P211: =_xlfn.TEXTJOIN("|",,P200:P210) -> 2^4|6^3^2|2^7^3|9^2|4^6|2^2^8|8^4|2^2^9|8^4|2^3^7|4^5^3 | AD211: =SUM(S200:AB207) -> 142
P212: =SUM(D201:N208) -> 123 | AD212: =AD211+P212 -> 265
E214: =E215-D215 -> 3 | F214: =F215-E215 -> 4 | G214: 5 | H214: 5 | I214: 6 | J214: 7 | K214: 7 | L214: 8 | M214: 7 | N214: 5 | T214: =T215-S215 -> 3 | U214: 5 | V214: 5 | W214: 6 | X214: 6 | Y214: 8 | AH214: =AH215-AG215 -> 2 | AI214: 3 | AJ214: 4 | AK214: 5 | AL214: 10 | AM214: 5
... 48 more rows

Sheet 4
E2: =E3-D3 -> 9 | F2: =F3-E3 -> 15 | G2: 15 | H2: 15 | I2: 20 | J2: 20 | K2: 20 | L2: 20 | T2: =T3-S3 -> 11 | U2: 16 | V2: 17 | W2: 18 | X2: 19 | Y2: 20 | AH2: =AH3-AG3 -> 2 | AI2: 4 | AJ2: 6 | AK2: 6 | AL2: 5 | AM2: 5
A3: 3 | B3: 雪山-1 | C3: 波1·怪物 | D3: 6 | E3: 15 | F3: 30 | G3: 45 | H3: 60 | I3: 80 | J3: 100 | K3: 120 | L3: 140 | Q3: 3 | R3: 波2·怪物 | S3: 4 | T3: 15 | U3: 31 | V3: 48 | W3: 66 | X3: 85 | Y3: 105 | AE3: 1 | AF3: 波3·怪物 | AG3: 2 | AH3: 4 | AI3: 8 | AJ3: 14 | AK3: 20 | AL3: 25 | AM3: 30
B4: 4.5m | C4: 8 | P4: =_xlfn.TEXTJOIN("^",,D4:D13) -> 60164^60162 | R4: 8 | AD4: =_xlfn.TEXTJOIN("^",,S4:S13) -> 60161^60164^60163 | AF4: 8 | AR4: =_xlfn.TEXTJOIN("^",,AG4:AG13) -> 60164^60161^60161^60164
C5: 6 | P5: =_xlfn.TEXTJOIN("^",,E4:E13) -> 60162^60161 | R5: 6 | AD5: =_xlfn.TEXTJOIN("^",,T4:T13) -> 60162^60161 | AF5: 6 | AJ5: 60162 | AL5: 60161 | AM5: 60161 | AR5: =_xlfn.TEXTJOIN("^",,AH4:AH13) -> 60163^60163^60163
C6: 4 | P6: =_xlfn.TEXTJOIN("^",,F4:F13) -> 60162^60161 | R6: 4 | AD6: =_xlfn.TEXTJOIN("^",,U4:U13) -> 60163^60161^60162 | AF6: 4 | AG6: 60164 | AJ6: 60164 | AK6: 60161 | AL6: 60161 | AM6: 60162 | AR6: =_xlfn.TEXTJOIN("^",,AI4:AI13) -> 60162^60162^60162
C7: 2 | P7: =_xlfn.TEXTJOIN("^",,G4:G13) -> 60163^60161^60164 | R7: 2 | AD7: =_xlfn.TEXTJOIN("^",,V4:V13) -> 60164^60161^60162 | AF7: 2 | AG7: 60161 | AH7: 60163 | AI7: 60162 | AK7: 60163 | AL7: 60162 | AR7: =_xlfn.TEXTJOIN("^",,AJ4:AJ13) -> 60162^60164^60164^60162
C8: 1 | D8: 60164 | E8: 60162 | F8: 60162 | G8: 60163 | H8: 60162 | I8: 60162 | J8: 60161 | K8: 60162 | L8: 60161 | P8: =_xlfn.TEXTJOIN("^",,H4:H13) -> 60162^60161 | R8: 1 | S8: 60161 | T8: 60162 | U8: 60163 | V8: 60164 | W8: 60163 | X8: 60161 | Y8: 60163 | AD8: =_xlfn.TEXTJOIN("^",,W4:W13) -> 60163^60162^60164 | AF8: 1 | AH8: 60163 | AI8: 60162 | AK8: 60163 | AM8: 60162 | AR8: =_xlfn.TEXTJOIN("^",,AK4:AK13) -> 60161^60163^60163^60163^60161
C9: 3 | D9: 60162 | E9: 60161 | F9: 60161 | G9: 60161 | H9: 60161 | I9: 60163 | J9: 60162 | K9: 60163 | L9: 60164 | P9: =_xlfn.TEXTJOIN("^",,I4:I13) -> 60162^60163^60164 | R9: 3 | S9: 60164 | T9: 60161 | U9: 60161 | V9: 60161 | W9: 60162 | X9: 60165 | Y9: 60162 | AD9: =_xlfn.TEXTJOIN("^",,X4:X13) -> 60161^60165 | AF9: 3 | AG9: 60161 | AH9: 60163 | AI9: 60162 | AK9: 60163 | AL9: 60162 | AR9: =_xlfn.TEXTJOIN("^",,AL4:AL13) -> 60161^60161^60162^60162^60161^60161
C10: 5 | G10: 60164 | I10: 60164 | K10: 60161 | L10: 60162 | P10: =_xlfn.TEXTJOIN("^",,J4:J13) -> 60161^60162 | R10: 5 | S10: 60163 | U10: 60162 | V10: 60162 | W10: 60164 | Y10: 60164 | AD10: =_xlfn.TEXTJOIN("^",,Y4:Y13) -> 60163^60162^60164 | AF10: 5 | AG10: 60164 | AJ10: 60164 | AK10: 60161 | AL10: 60161 | AM10: 60162 | AR10: =_xlfn.TEXTJOIN("^",,AM4:AM13) -> 60161^60162^60162^60162^60161
C11: 7 | P11: =_xlfn.TEXTJOIN("^",,K4:K13) -> 60162^60163^60161 | R11: 7 | AD11: =_xlfn.TEXTJOIN("^",,Z4:Z13) ->  | AF11: 7 | AJ11: 60162 | AL11: 60161 | AM11: 60161 | AR11: =_xlfn.TEXTJOIN("^",,AN4:AN13) -> 
C12: 9 | P12: =_xlfn.TEXTJOIN("^",,L4:L13) -> 60161^60164^60162 | R12: 9 | AD12: =_xlfn.TEXTJOIN("^",,AA4:AA13) ->  | AF12: 9 | AR12: =_xlfn.TEXTJOIN("^",,AO4:AO13) -> 
P13: =_xlfn.TEXTJOIN("^",,M4:M13) ->  | AD13: =_xlfn.TEXTJOIN("^",,AB4:AB13) ->  | AR13: =_xlfn.TEXTJOIN("^",,AP4:AP13) -> 
P14: =_xlfn.TEXTJOIN("^",,N4:N13) ->  | AD14: =_xlfn.TEXTJOIN("^",,AC4:AC13) ->  | AR14: =_xlfn.TEXTJOIN("^",,AQ4:AQ13) -> 
O15: 最终 | P15: =_xlfn.TEXTJOIN("|",,P4:P14) -> 60164^60162|60162^60161|60162^60161|60163^60161^60164|60162^60161|60162^60163^60164|60161^60162|60162^60163^60161|60161^60164^60162 | AC15: 最终 | AD15: =_xlfn.TEXTJOIN("|",,AD4:AD14) -> 60161^60164^60163|60162^60161|60163^60161^60162|60164^60161^60162|60163^60162^60164|60161^60165|60163^60162^60164 | AQ15: 最终 | AR15: =_xlfn.TEXTJOIN("^",,AR4:AR14) -> 60164^60161^60161^60164^60163^60163^60163^60162^60162^60162^60162^60164^60164^60162^60161^60163^60163^60163^60161^60161^60161^60162^60162^60161^60161^60161^60162^60162^60162^60161
C16: 8 | R16: 8 | AF16: 8
C17: 6 | R17: 6 | AF17: 6 | AJ17: 独角兽 | AL17: 雪怪 | AM17: 雪怪
C18: 4 | R18: 4 | AF18: 4 | AG18: 木精灵 | AJ18: 木精灵 | AK18: 雪怪 | AL18: 雪怪 | AM18: 独角兽
C19: 2 | R19: 2 | AF19: 2 | AG19: 雪怪 | AH19: 雪原熊 | AI19: 独角兽 | AK19: 雪原熊 | AL19: 独角兽
C20: 1 | D20: 木精灵 | E20: 独角兽 | F20: 独角兽 | G20: 雪原熊 | H20: 独角兽 | I20: 独角兽 | J20: 雪怪 | K20: 独角兽 | L20: 雪怪 | R20: 1 | S20: 雪怪 | T20: 独角兽 | U20: 雪原熊 | V20: 木精灵 | W20: 雪原熊 | X20: 雪怪 | Y20: 雪原熊 | AF20: 1 | AH20: 雪原熊 | AI20: 独角兽 | AK20: 雪原熊 | AM20: 独角兽
C21: 3 | D21: 独角兽 | E21: 雪怪 | F21: 雪怪 | G21: 雪怪 | H21: 雪怪 | I21: 雪原熊 | J21: 独角兽 | K21: 雪原熊 | L21: 木精灵 | R21: 3 | S21: 木精灵 | T21: 雪怪 | U21: 雪怪 | V21: 雪怪 | W21: 独角兽 | X21: 蘑菇精英 | Y21: 独角兽 | AF21: 3 | AG21: 雪怪 | AH21: 雪原熊 | AI21: 独角兽 | AK21: 雪原熊 | AL21: 独角兽
C22: 5 | G22: 木精灵 | I22: 木精灵 | K22: 雪怪 | L22: 独角兽 | R22: 5 | S22: 雪原熊 | U22: 独角兽 | V22: 独角兽 | W22: 木精灵 | Y22: 木精灵 | AF22: 5 | AG22: 木精灵 | AJ22: 木精灵 | AK22: 雪怪 | AL22: 雪怪 | AM22: 独角兽
C23: 7 | R23: 7 | AF23: 7 | AJ23: 独角兽 | AL23: 雪怪 | AM23: 雪怪
C24: 9 | R24: 9 | AF24: 9
C26: 位置 | D26: 6 | E26: 15 | F26: 30 | G26: 45 | H26: 60 | I26: 80 | J26: 100 | K26: 120 | L26: 140 | R26: 位置 | S26: 4 | T26: 15 | U26: 31 | V26: 48 | W26: 66 | X26: 85 | Y26: 105 | AD26: =_xlfn.TEXTJOIN("^",,S27:S35) -> 0^0^0 | AF26: 位置 | AG26: 2 | AH26: 4 | AI26: 8 | AJ26: 14 | AK26: 20 | AL26: 25 | AM26: 30 | AR26: =_xlfn.TEXTJOIN("^",,AG27:AG35) -> 4^2^3^5
C27: 8 | P27: =_xlfn.TEXTJOIN("^",,D27:D36) -> 0^0 | R27: 8 | AD27: =_xlfn.TEXTJOIN("^",,T27:T35) -> 0^0 | AF27: 8 | AR27: =_xlfn.TEXTJOIN("^",,AH27:AH35) -> 2^1^3
C28: 6 | P28: =_xlfn.TEXTJOIN("^",,E27:E36) -> 0^0 | R28: 6 | AD28: =_xlfn.TEXTJOIN("^",,U27:U35) -> 0^0^0 | AF28: 6 | AJ28: =$C28 -> 6 | AL28: =$C28 -> 6 | AM28: 6 | AR28: =_xlfn.TEXTJOIN("^",,AI27:AI35) -> 2^1^3
C29: 4 | P29: =_xlfn.TEXTJOIN("^",,F27:F36) -> 0^0 | R29: 4 | AD29: =_xlfn.TEXTJOIN("^",,V27:V35) -> 0^0^0 | AF29: 4 | AG29: =$C29 -> 4 | AJ29: =$C29 -> 4 | AK29: =$C29 -> 4 | AL29: 4 | AM29: 4 | AR29: =_xlfn.TEXTJOIN("^",,AJ27:AJ35) -> 6^4^5^7
C30: 2 | P30: =_xlfn.TEXTJOIN("^",,G27:G36) -> 0^0^0 | R30: 2 | AD30: =_xlfn.TEXTJOIN("^",,W27:W35) -> 0^0^0 | AF30: 2 | AG30: 2 | AH30: =$C30 -> 2 | AI30: =$C30 -> 2 | AK30: 2 | AL30: 2 | AR30: =_xlfn.TEXTJOIN("^",,AK27:AK35) -> 4^2^1^3^5
C31: 1 | D31: 0 | E31: 0 | F31: 0 | G31: 0 | H31: 0 | I31: 0 | J31: 0 | K31: 0 | L31: 0 | P31: =_xlfn.TEXTJOIN("^",,H27:H36) -> 0^0 | R31: 1 | S31: 0 | T31: 0 | U31: 0 | V31: 0 | W31: 0 | X31: 0 | Y31: 0 | AD31: =_xlfn.TEXTJOIN("^",,X27:X35) -> 0^0 | AF31: 1 | AH31: =$C31 -> 1 | AI31: 1 | AK31: 1 | AM31: =$C31 -> 1 | AR31: =_xlfn.TEXTJOIN("^",,AL27:AL35) -> 6^4^2^3^5^7
C32: 3 | D32: 0 | E32: 0 | F32: 0 | G32: 0 | H32: 0 | I32: 0 | J32: 0 | K32: 0 | L32: 0 | P32: =_xlfn.TEXTJOIN("^",,I27:I36) -> 0^0^0 | R32: 3 | S32: 0 | T32: 0 | U32: 0 | V32: 0 | W32: 0 | X32: 0 | Y32: 0 | AD32: =_xlfn.TEXTJOIN("^",,Y27:Y35) -> 0^0^0 | AF32: 3 | AG32: =$C32 -> 3 | AH32: =$C32 -> 3 | AI32: 3 | AK32: 3 | AL32: 3 | AR32: =_xlfn.TEXTJOIN("^",,AM27:AM35) -> 6^4^1^5^7
C33: 5 | G33: 0 | I33: 0 | K33: 0 | L33: 0 | P33: =_xlfn.TEXTJOIN("^",,J27:J36) -> 0^0 | R33: 5 | S33: 0 | U33: 0 | V33: 0 | W33: 0 | Y33: 0 | AD33: =_xlfn.TEXTJOIN("^",,Z27:Z35) ->  | AF33: 5 | AG33: 5 | AJ33: =$C33 -> 5 | AK33: 5 | AL33: 5 | AM33: 5 | AR33: =_xlfn.TEXTJOIN("^",,AN27:AN35) -> 
C34: 7 | P34: =_xlfn.TEXTJOIN("^",,K27:K36) -> 0^0^0 | R34: 7 | AD34: =_xlfn.TEXTJOIN("^",,AA27:AA35) ->  | AF34: 7 | AJ34: 7 | AL34: 7 | AM34: 7 | AR34: =_xlfn.TEXTJOIN("^",,AO27:AO35) -> 
C35: 9 | P35: =_xlfn.TEXTJOIN("^",,L27:L36) -> 0^0^0 | R35: 9 | AD35: =_xlfn.TEXTJOIN("^",,AB27:AB35) ->  | AF35: 9 | AR35: =_xlfn.TEXTJOIN("^",,AP27:AP35) -> 
P36: =_xlfn.TEXTJOIN("^",,M27:M36) ->  | AD36: =_xlfn.TEXTJOIN("^",,AC27:AC35) ->  | AR36: =_xlfn.TEXTJOIN("^",,AQ27:AQ35) -> 
P37: =_xlfn.TEXTJOIN("^",,N27:N36) ->  | AC37: 最终 | AD37: =_xlfn.TEXTJOIN("|",,AD26:AD36) -> 0^0^0|0^0|0^0^0|0^0^0|0^0^0|0^0|0^0^0 | AQ37: 最终 | AR37: =_xlfn.TEXTJOIN("^",,AR26:AR36) -> 4^2^3^5^2^1^3^2^1^3^6^4^5^7^4^2^1^3^5^6^4^2^3^5^7^6^4^1^5^7
O38: 最终 | P38: =_xlfn.TEXTJOIN("|",,P27:P37) -> 0^0|0^0|0^0|0^0^0|0^0|0^0^0|0^0|0^0^0|0^0^0
C40: 时间 | D40: 6 | E40: 15 | F40: 30 | G40: 45 | H40: 60 | I40: 80 | J40: 100 | K40: 120 | L40: 140 | R40: 时间 | S40: 4 | T40: 15 | U40: 31 | V40: 48 | W40: 66 | X40: 85 | Y40: 105 | AD40: =_xlfn.TEXTJOIN("^",,S41:S49) -> 20^6^4 | AF40: 时间 | AG40: 2 | AH40: 4 | AI40: 8 | AJ40: 14 | AK40: 20 | AL40: 25 | AM40: 30 | AR40: =_xlfn.TEXTJOIN("^",,AG41:AG49) -> 2^2^2^2
C41: 8 | P41: =_xlfn.TEXTJOIN("^",,D41:D50) -> 2^4 | R41: 8 | AD41: =_xlfn.TEXTJOIN("^",,T41:T49) -> 6^8 | AF41: 8 | AR41: =_xlfn.TEXTJOIN("^",,AH41:AH49) -> 4^4^4
C42: 6 | P42: =_xlfn.TEXTJOIN("^",,E41:E50) -> 3^8 | R42: 6 | AD42: =_xlfn.TEXTJOIN("^",,U41:U49) -> 3^7^4 | AF42: 6 | AJ42: =AJ$40 -> 14 | AL42: =AL$40 -> 25 | AM42: 30 | AR42: =_xlfn.TEXTJOIN("^",,AI41:AI49) -> 8^8^8
C43: 4 | P43: =_xlfn.TEXTJOIN("^",,F41:F50) -> 4^8 | R43: 4 | AD43: =_xlfn.TEXTJOIN("^",,V41:V49) -> 3^8^4 | AF43: 4 | AG43: =AG$40 -> 2 | AJ43: 14 | AK43: 20 | AL43: 25 | AM43: 30 | AR43: =_xlfn.TEXTJOIN("^",,AJ41:AJ49) -> 14^14^14^14
C44: 2 | P44: =_xlfn.TEXTJOIN("^",,G41:G50) -> 2^8^2 | R44: 2 | AD44: =_xlfn.TEXTJOIN("^",,W41:W49) -> 4^4^4 | AF44: 2 | AG44: 2 | AH44: =AH$40 -> 4 | AI44: =AI$40 -> 8 | AK44: 20 | AL44: 25 | AR44: =_xlfn.TEXTJOIN("^",,AK41:AK49) -> 20^20^20^20^20
C45: 1 | D45: 2 | E45: 3 | F45: 4 | G45: 2 | H45: 4 | I45: 4 | J45: 9 | K45: 4 | L45: 8 | P45: =_xlfn.TEXTJOIN("^",,H41:H50) -> 4^8 | R45: 1 | S45: 20 | T45: 6 | U45: 3 | V45: 3 | W45: 4 | X45: 15 | Y45: 4 | AD45: =_xlfn.TEXTJOIN("^",,X41:X49) -> 15^1 | AF45: 1 | AH45: =AH$40 -> 4 | AI45: 8 | AK45: 20 | AM45: =AM$40 -> 30 | AR45: =_xlfn.TEXTJOIN("^",,AL41:AL49) -> 25^25^25^25^25^25
C46: 3 | D46: 4 | E46: 8 | F46: 8 | G46: 8 | H46: 8 | I46: 4 | J46: 4 | K46: 3 | L46: 2 | P46: =_xlfn.TEXTJOIN("^",,I41:I50) -> 4^4^4 | R46: 3 | S46: 6 | T46: 8 | U46: 7 | V46: 8 | W46: 4 | X46: 1 | Y46: 4 | AD46: =_xlfn.TEXTJOIN("^",,Y41:Y49) -> 4^4^2 | AF46: 3 | AG46: =AG$40 -> 2 | AH46: =AH$40 -> 4 | AI46: 8 | AK46: 20 | AL46: 25 | AR46: =_xlfn.TEXTJOIN("^",,AM41:AM49) -> 30^30^30^30^30
C47: 5 | G47: 2 | I47: 4 | K47: 7 | L47: 4 | P47: =_xlfn.TEXTJOIN("^",,J41:J50) -> 9^4 | R47: 5 | S47: 4 | U47: 4 | V47: 4 | W47: 4 | Y47: 2 | AD47: =_xlfn.TEXTJOIN("^",,Z41:Z49) ->  | AF47: 5 | AG47: 2 | AJ47: =AJ$40 -> 14 | AK47: 20 | AL47: 25 | AM47: 30 | AR47: =_xlfn.TEXTJOIN("^",,AN41:AN49) -> 
C48: 7 | P48: =_xlfn.TEXTJOIN("^",,K41:K50) -> 4^3^7 | R48: 7 | AD48: =_xlfn.TEXTJOIN("^",,AA41:AA49) ->  | AF48: 7 | AJ48: 14 | AL48: 25 | AM48: 30 | AR48: =_xlfn.TEXTJOIN("^",,AO41:AO49) -> 
C49: 9 | P49: =_xlfn.TEXTJOIN("^",,L41:L50) -> 8^2^4 | R49: 9 | AD49: =_xlfn.TEXTJOIN("^",,AB41:AB49) ->  | AF49: 9 | AR49: =_xlfn.TEXTJOIN("^",,AP41:AP49) -> 
O50: 最终 | P50: =_xlfn.TEXTJOIN("|",,P39:P49) -> 2^4|3^8|4^8|2^8^2|4^8|4^4^4|9^4|4^3^7|8^2^4 | AD50: =_xlfn.TEXTJOIN("|",,AD40:AD49) -> 20^6^4|6^8|3^7^4|3^8^4|4^4^4|15^1|4^4^2 | AQ50: 最终 | AR50: =_xlfn.TEXTJOIN("^",,AR39:AR49) -> 2^2^2^2^4^4^4^8^8^8^14^14^14^14^20^20^20^20^20^25^25^25^25^25^25^30^30^30^30^30
P51: =SUM(D42:L47) -> 106 | AD51: =SUM(S42:Z47) -> 111 | AR51: =COUNT(AG41:AM48) -> 30
AR52: =AR51+AD51+P51 -> 247
E54: =E55-D55 -> 10 | F54: =F55-E55 -> 15 | G54: 16 | H54: 17 | I54: 18 | J54: 19 | K54: 20 | L54: 20 | T54: =T55-S55 -> 12 | U54: 15 | V54: 16 | W54: 17 | X54: 18 | Y54: 19 | AH54: =AH55-AG55 -> 1 | AI54: 3 | AJ54: 5 | AK54: 7 | AL54: 10 | AM54: 15
A55: 3 | B55: 雪山-2 | C55: 波1·怪物 | D55: 5 | E55: 15 | F55: 30 | G55: 46 | H55: 63 | I55: 81 | J55: 100 | K55: 120 | L55: 140 | Q55: 3 | R55: 波2·怪物 | S55: 3 | T55: 15 | U55: 30 | V55: 46 | W55: 63 | X55: 81 | Y55: 100 | AF55: 波3·怪物 | AG55: 1 | AH55: 2 | AI55: 5 | AJ55: 10 | AK55: 17 | AL55: 27 | AM55: 42
A56: 9 | B56: 4.5m | C56: 8 | P56: =_xlfn.TEXTJOIN("^",,D56:D65) -> 60171^60172 | R56: 8 | AD56: =_xlfn.TEXTJOIN("^",,S56:S65) -> 60171^60172 | AF56: 8 | AL56: 60172 | AR56: =_xlfn.TEXTJOIN("^",,AG56:AG65) -> 60174^60171^60171^60174
C57: 6 | P57: =_xlfn.TEXTJOIN("^",,E56:E65) -> 60171^60174 | R57: 6 | AD57: =_xlfn.TEXTJOIN("^",,T56:T65) -> 60171^60172 | AF57: 6 | AJ57: 60172 | AL57: 60174 | AM57: 60171 | AR57: =_xlfn.TEXTJOIN("^",,AH56:AH65) -> 60172^60172
C58: 4 | P58: =_xlfn.TEXTJOIN("^",,F56:F65) -> 60173^60171^60172 | R58: 4 | AD58: =_xlfn.TEXTJOIN("^",,U56:U65) -> 60173^60174^60172 | AF58: 4 | AG58: 60174 | AI58: 60173 | AK58: 60172 | AL58: 60171 | AM58: 60173 | AR58: =_xlfn.TEXTJOIN("^",,AI56:AI65) -> 60173^60173^60173
C59: 2 | P59: =_xlfn.TEXTJOIN("^",,G56:G65) -> 60173^60172^60174 | R59: 2 | AD59: =_xlfn.TEXTJOIN("^",,V56:V65) -> 60171^60172 | AF59: 2 | AG59: 60171 | AH59: 60172 | AJ59: 60171 | AK59: 60173 | AR59: =_xlfn.TEXTJOIN("^",,AJ56:AJ65) -> 60172^60171^60174^60171^60172
C60: 1 | D60: 60171 | E60: 60171 | F60: 60173 | G60: 60173 | H60: 60171 | I60: 60173 | J60: 60171 | K60: 60174 | L60: 60173 | P60: =_xlfn.TEXTJOIN("^",,H56:H65) -> 60171^60172 | R60: 1 | S60: 60171 | T60: 60171 | U60: 60173 | V60: 60171 | W60: 60173 | X60: 60172 | Y60: 60173 | AD60: =_xlfn.TEXTJOIN("^",,W56:W65) -> 60173^60174^60172 | AF60: 1 | AI60: 60173 | AJ60: 60174 | AK60: 60171 | AM60: 60172 | AR60: =_xlfn.TEXTJOIN("^",,AK56:AK65) -> 60172^60173^60171^60173^60172
C61: 3 | D61: 60172 | E61: 60174 | F61: 60171 | G61: 60172 | H61: 60172 | I61: 60174 | J61: 60172 | K61: 60173 | L61: 60172 | P61: =_xlfn.TEXTJOIN("^",,I56:I65) -> 60173^60174^60172 | R61: 3 | S61: 60172 | T61: 60172 | U61: 60174 | V61: 60172 | W61: 60174 | X61: 60171 | Y61: 60172 | AD61: =_xlfn.TEXTJOIN("^",,X56:X65) -> 60172^60171 | AF61: 3 | AG61: 60171 | AH61: 60172 | AJ61: 60171 | AK61: 60173 | AR61: =_xlfn.TEXTJOIN("^",,AL56:AL65) -> 60172^60174^60171^60171^60174^60172
C62: 5 | F62: 60172 | G62: 60174 | I62: 60172 | K62: 60171 | L62: 60174 | P62: =_xlfn.TEXTJOIN("^",,J56:J65) -> 60171^60172 | R62: 5 | U62: 60172 | W62: 60172 | Y62: 60174 | AD62: =_xlfn.TEXTJOIN("^",,Y56:Y65) -> 60173^60172^60174 | AF62: 5 | AG62: 60174 | AI62: 60173 | AK62: 60172 | AL62: 60171 | AM62: 60173 | AR62: =_xlfn.TEXTJOIN("^",,AM56:AM65) -> 60171^60173^60172^60173^60171
C63: 7 | P63: =_xlfn.TEXTJOIN("^",,K56:K65) -> 60174^60173^60171 | R63: 7 | AD63: =_xlfn.TEXTJOIN("^",,Z56:Z65) ->  | AF63: 7 | AJ63: 60172 | AL63: 60174 | AM63: 60171 | AR63: =_xlfn.TEXTJOIN("^",,AN56:AN65) -> 
C64: 9 | P64: =_xlfn.TEXTJOIN("^",,L56:L65) -> 60173^60172^60174 | R64: 9 | AD64: =_xlfn.TEXTJOIN("^",,AA56:AA65) ->  | AF64: 9 | AL64: 60172 | AR64: =_xlfn.TEXTJOIN("^",,AO56:AO65) -> 
P65: =_xlfn.TEXTJOIN("^",,M56:M65) ->  | AD65: =_xlfn.TEXTJOIN("^",,AB56:AB65) ->  | AR65: =_xlfn.TEXTJOIN("^",,AP56:AP65) -> 
P66: =_xlfn.TEXTJOIN("^",,N56:N65) ->  | AD66: =_xlfn.TEXTJOIN("^",,AC56:AC65) ->  | AR66: =_xlfn.TEXTJOIN("^",,AQ56:AQ65) -> 
O67: 最终 | P67: =_xlfn.TEXTJOIN("|",,P56:P66) -> 60171^60172|60171^60174|60173^60171^60172|60173^60172^60174|60171^60172|60173^60174^60172|60171^60172|60174^60173^60171|60173^60172^60174 | AC67: 最终 | AD67: =_xlfn.TEXTJOIN("|",,AD56:AD66) -> 60171^60172|60171^60172|60173^60174^60172|60171^60172|60173^60174^60172|60172^60171|60173^60172^60174 | AQ67: 最终 | AR67: =_xlfn.TEXTJOIN("^",,AR56:AR66) -> 60174^60171^60171^60174^60172^60172^60173^60173^60173^60172^60171^60174^60171^60172^60172^60173^60171^60173^60172^60172^60174^60171^60171^60174^60172^60171^60173^60172^60173^60171
C68: 8 | R68: 8 | AF68: 8 | AL68: 独角兽
C69: 6 | R69: 6 | AF69: 6 | AJ69: 独角兽 | AL69: 木精灵 | AM69: 雪怪
C70: 4 | R70: 4 | AF70: 4 | AG70: 木精灵 | AI70: 雪原熊 | AK70: 独角兽 | AL70: 雪怪 | AM70: 雪原熊
C71: 2 | R71: 2 | AF71: 2 | AG71: 雪怪 | AH71: 独角兽 | AJ71: 雪怪 | AK71: 雪原熊
C72: 1 | D72: 雪怪 | E72: 雪怪 | F72: 雪原熊 | G72: 雪原熊 | H72: 雪怪 | I72: 雪原熊 | J72: 雪怪 | K72: 木精灵 | L72: 雪原熊 | R72: 1 | S72: 雪怪 | T72: 雪怪 | U72: 雪原熊 | V72: 雪怪 | W72: 雪原熊 | X72: 独角兽 | Y72: 雪原熊 | AF72: 1 | AI72: 雪原熊 | AJ72: 木精灵 | AK72: 雪怪 | AM72: 独角兽
C73: 3 | D73: 独角兽 | E73: 木精灵 | F73: 雪怪 | G73: 独角兽 | H73: 独角兽 | I73: 木精灵 | J73: 独角兽 | K73: 雪原熊 | L73: 独角兽 | R73: 3 | S73: 独角兽 | T73: 独角兽 | U73: 木精灵 | V73: 独角兽 | W73: 木精灵 | X73: 雪怪 | Y73: 独角兽 | AF73: 3 | AG73: 雪怪 | AH73: 独角兽 | AJ73: 雪怪 | AK73: 雪原熊
C74: 5 | F74: 独角兽 | G74: 木精灵 | I74: 独角兽 | K74: 雪怪 | L74: 木精灵 | R74: 5 | U74: 独角兽 | W74: 独角兽 | Y74: 木精灵 | AF74: 5 | AG74: 木精灵 | AI74: 雪原熊 | AK74: 独角兽 | AL74: 雪怪 | AM74: 雪原熊
C75: 7 | R75: 7 | AF75: 7 | AJ75: 独角兽 | AL75: 木精灵 | AM75: 雪怪
C76: 9 | R76: 9 | AF76: 9 | AL76: 独角兽
C78: 位置 | D78: 5 | E78: 15 | F78: 30 | G78: 46 | H78: 63 | I78: 81 | J78: 100 | K78: 120 | L78: 140 | R78: 位置 | S78: 3 | T78: 15 | U78: 30 | V78: 46 | W78: 63 | X78: 81 | Y78: 100 | AD78: =_xlfn.TEXTJOIN("^",,S79:S87) -> 0^0 | AF78: 位置 | AG78: 1 | AH78: 2 | AI78: 5 | AJ78: 10 | AK78: 17 | AL78: 27 | AM78: 42 | AR78: =_xlfn.TEXTJOIN("^",,AG79:AG87) -> 4^2^3^5
C79: 8 | P79: =_xlfn.TEXTJOIN("^",,D79:D88) -> 0^0 | R79: 8 | AD79: =_xlfn.TEXTJOIN("^",,T79:T87) -> 0^0 | AF79: 8 | AL79: =$C79 -> 8 | AR79: =_xlfn.TEXTJOIN("^",,AH79:AH87) -> 2^3
C80: 6 | P80: =_xlfn.TEXTJOIN("^",,E79:E88) -> 0^0 | R80: 6 | AD80: =_xlfn.TEXTJOIN("^",,U79:U87) -> 0^0^0 | AF80: 6 | AJ80: =$C80 -> 6 | AL80: 6 | AM80: 6 | AR80: =_xlfn.TEXTJOIN("^",,AI79:AI87) -> 4^1^5
C81: 4 | P81: =_xlfn.TEXTJOIN("^",,F79:F88) -> 0^0^0 | R81: 4 | AD81: =_xlfn.TEXTJOIN("^",,V79:V87) -> 0^0 | AF81: 4 | AG81: =$C81 -> 4 | AI81: =$C81 -> 4 | AK81: =$C81 -> 4 | AL81: 4 | AM81: 4 | AR81: =_xlfn.TEXTJOIN("^",,AJ79:AJ87) -> 6^2^1^3^7
C82: 2 | P82: =_xlfn.TEXTJOIN("^",,G79:G88) -> 0^0^0 | R82: 2 | AD82: =_xlfn.TEXTJOIN("^",,W79:W87) -> 0^0^0 | AF82: 2 | AG82: 2 | AH82: =$C82 -> 2 | AJ82: =$C82 -> 2 | AK82: 2 | AR82: =_xlfn.TEXTJOIN("^",,AK79:AK87) -> 4^2^1^3^5
C83: 1 | D83: 0 | E83: 0 | F83: 0 | G83: 0 | H83: 0 | I83: 0 | J83: 0 | K83: 0 | L83: 0 | P83: =_xlfn.TEXTJOIN("^",,H79:H88) -> 0^0 | R83: 1 | S83: 0 | T83: 0 | U83: 0 | V83: 0 | W83: 0 | X83: 0 | Y83: 0 | AD83: =_xlfn.TEXTJOIN("^",,X79:X87) -> 0^0 | AF83: 1 | AI83: =$C83 -> 1 | AJ83: 1 | AK83: 1 | AM83: =$C83 -> 1 | AR83: =_xlfn.TEXTJOIN("^",,AL79:AL87) -> 8^6^4^5^7^9
C84: 3 | D84: 0 | E84: 0 | F84: 0 | G84: 0 | H84: 0 | I84: 0 | J84: 0 | K84: 0 | L84: 0 | P84: =_xlfn.TEXTJOIN("^",,I79:I88) -> 0^0^0 | R84: 3 | S84: 0 | T84: 0 | U84: 0 | V84: 0 | W84: 0 | X84: 0 | Y84: 0 | AD84: =_xlfn.TEXTJOIN("^",,Y79:Y87) -> 0^0^0 | AF84: 3 | AG84: =$C84 -> 3 | AH84: =$C84 -> 3 | AJ84: 3 | AK84: 3 | AR84: =_xlfn.TEXTJOIN("^",,AM79:AM87) -> 6^4^1^5^7
C85: 5 | F85: 0 | G85: 0 | I85: 0 | K85: 0 | L85: 0 | P85: =_xlfn.TEXTJOIN("^",,J79:J88) -> 0^0 | R85: 5 | U85: 0 | W85: 0 | Y85: 0 | AD85: =_xlfn.TEXTJOIN("^",,Z79:Z87) ->  | AF85: 5 | AG85: 5 | AI85: =$C85 -> 5 | AK85: 5 | AL85: 5 | AM85: 5 | AR85: =_xlfn.TEXTJOIN("^",,AN79:AN87) -> 
C86: 7 | P86: =_xlfn.TEXTJOIN("^",,K79:K88) -> 0^0^0 | R86: 7 | AD86: =_xlfn.TEXTJOIN("^",,AA79:AA87) ->  | AF86: 7 | AJ86: =$C86 -> 7 | AL86: 7 | AM86: 7 | AR86: =_xlfn.TEXTJOIN("^",,AO79:AO87) -> 
C87: 9 | P87: =_xlfn.TEXTJOIN("^",,L79:L88) -> 0^0^0 | R87: 9 | AD87: =_xlfn.TEXTJOIN("^",,AB79:AB87) ->  | AF87: 9 | AL87: 9 | AR87: =_xlfn.TEXTJOIN("^",,AP79:AP87) -> 
P88: =_xlfn.TEXTJOIN("^",,M79:M88) ->  | AD88: =_xlfn.TEXTJOIN("^",,AC79:AC87) ->  | AR88: =_xlfn.TEXTJOIN("^",,AQ79:AQ87) -> 
P89: =_xlfn.TEXTJOIN("^",,N79:N88) ->  | AC89: 最终 | AD89: =_xlfn.TEXTJOIN("|",,AD78:AD88) -> 0^0|0^0|0^0^0|0^0|0^0^0|0^0|0^0^0 | AQ89: 最终 | AR89: =_xlfn.TEXTJOIN("^",,AR78:AR88) -> 4^2^3^5^2^3^4^1^5^6^2^1^3^7^4^2^1^3^5^8^6^4^5^7^9^6^4^1^5^7
O90: 最终 | P90: =_xlfn.TEXTJOIN("|",,P79:P89) -> 0^0|0^0|0^0^0|0^0^0|0^0|0^0^0|0^0|0^0^0|0^0^0
C92: 时间 | D92: 5 | E92: 15 | F92: 30 | G92: 46 | H92: 63 | I92: 81 | J92: 100 | K92: 120 | L92: 140 | R92: 时间 | S92: 3 | T92: 15 | U92: 30 | V92: 46 | W92: 63 | X92: 81 | Y92: 100 | AD92: =_xlfn.TEXTJOIN("^",,S93:S101) -> 22^8 | AF92: 时间 | AG92: 1 | AH92: 2 | AI92: 5 | AJ92: 10 | AK92: 17 | AL92: 27 | AM92: 42 | AR92: =_xlfn.TEXTJOIN("^",,AG93:AG101) -> 1^1^1^1
C93: 8 | P93: =_xlfn.TEXTJOIN("^",,D93:D102) -> 5^2 | R93: 8 | AD93: =_xlfn.TEXTJOIN("^",,T93:T101) -> 8^6 | AF93: 8 | AL93: =AL$92 -> 27 | AR93: =_xlfn.TEXTJOIN("^",,AH93:AH101) -> 2^2
C94: 6 | P94: =_xlfn.TEXTJOIN("^",,E93:E102) -> 8^3 | R94: 6 | AD94: =_xlfn.TEXTJOIN("^",,U93:U101) -> 4^2^4 | AF94: 6 | AJ94: =AJ$92 -> 10 | AL94: 27 | AM94: =AM$92 -> 42 | AR94: =_xlfn.TEXTJOIN("^",,AI93:AI101) -> 5^5^5
C95: 4 | P95: =_xlfn.TEXTJOIN("^",,F93:F102) -> 2^7^4 | R95: 4 | AD95: =_xlfn.TEXTJOIN("^",,V93:V101) -> 9^3 | AF95: 4 | AG95: =AG$92 -> 1 | AI95: =AI$92 -> 5 | AK95: =AK$92 -> 17 | AL95: 27 | AM95: =AM$92 -> 42 | AR95: =_xlfn.TEXTJOIN("^",,AJ93:AJ101) -> 10^10^10^10^10
C96: 2 | P96: =_xlfn.TEXTJOIN("^",,G93:G102) -> 3^8^2 | R96: 2 | AD96: =_xlfn.TEXTJOIN("^",,W93:W101) -> 3^2^5 | AF96: 2 | AG96: 1 | AH96: =AH$92 -> 2 | AJ96: =AJ$92 -> 10 | AK96: 17 | AR96: =_xlfn.TEXTJOIN("^",,AK93:AK101) -> 17^17^17^17^17
C97: 1 | D97: 5 | E97: 8 | F97: 2 | G97: 3 | H97: 8 | I97: 4 | J97: 10 | K97: 2 | L97: 4 | P97: =_xlfn.TEXTJOIN("^",,H93:H102) -> 8^4 | R97: 1 | S97: 22 | T97: 8 | U97: 4 | V97: 9 | W97: 3 | X97: 4 | Y97: 3 | AD97: =_xlfn.TEXTJOIN("^",,X93:X101) -> 4^10 | AF97: 1 | AI97: =AI$92 -> 5 | AJ97: 10 | AK97: 17 | AM97: =AM$92 -> 42 | AR97: =_xlfn.TEXTJOIN("^",,AL93:AL101) -> 27^27^27^27^27^27
C98: 3 | D98: 2 | E98: 3 | F98: 7 | G98: 8 | H98: 4 | I98: 4 | J98: 3 | K98: 3 | L98: 4 | P98: =_xlfn.TEXTJOIN("^",,I93:I102) -> 4^4^4 | R98: 3 | S98: 8 | T98: 6 | U98: 2 | V98: 3 | W98: 2 | X98: 10 | Y98: 4 | AD98: =_xlfn.TEXTJOIN("^",,Y93:Y101) -> 3^4^3 | AF98: 3 | AG98: =AG$92 -> 1 | AH98: =AH$92 -> 2 | AJ98: 10 | AK98: 17 | AR98: =_xlfn.TEXTJOIN("^",,AM93:AM101) -> 42^42^42^42^42
C99: 5 | F99: 4 | G99: 2 | I99: 4 | K99: 8 | L99: 4 | P99: =_xlfn.TEXTJOIN("^",,J93:J102) -> 10^3 | R99: 5 | U99: 4 | W99: 5 | Y99: 3 | AD99: =_xlfn.TEXTJOIN("^",,Z93:Z101) ->  | AF99: 5 | AG99: 1 | AI99: =AI$92 -> 5 | AK99: 17 | AL99: 27 | AM99: 42 | AR99: =_xlfn.TEXTJOIN("^",,AN93:AN101) -> 
C100: 7 | P100: =_xlfn.TEXTJOIN("^",,K93:K102) -> 2^3^8 | R100: 7 | AD100: =_xlfn.TEXTJOIN("^",,AA93:AA101) ->  | AF100: 7 | AJ100: =AJ$92 -> 10 | AL100: 27 | AM100: 42 | AR100: =_xlfn.TEXTJOIN("^",,AO93:AO101) -> 
C101: 9 | P101: =_xlfn.TEXTJOIN("^",,L93:L102) -> 4^4^4 | R101: 9 | AD101: =_xlfn.TEXTJOIN("^",,AB93:AB101) ->  | AF101: 9 | AL101: 27 | AR101: =_xlfn.TEXTJOIN("^",,AP93:AP101) -> 
O102: 最终 | P102: =_xlfn.TEXTJOIN("|",,P91:P101) -> 5^2|8^3|2^7^4|3^8^2|8^4|4^4^4|10^3|2^3^8|4^4^4 | AD102: =_xlfn.TEXTJOIN("|",,AD91:AD101) -> 22^8|8^6|4^2^4|9^3|3^2^5|4^10|3^4^3 | AR102: =_xlfn.TEXTJOIN("^",,AR92:AR101) -> 1^1^1^1^2^2^5^5^5^10^10^10^10^10^17^17^17^17^17^27^27^27^27^27^27^42^42^42^42^42
P103: =SUM(D94:N101) -> 106 | AC103: 最终 | AD103: =SUM(S94:AB99) -> 100 | AR103: =COUNT(AG93:AM101) -> 30
AR104: =AR103+AD103+P103 -> 236
E106: =E107-D107 -> 6 | F106: =F107-E107 -> 7 | G106: 8 | H106: 5 | I106: 10 | J106: 10 | K106: 10 | L106: 5 | M106: 10 | T106: =T107-S107 -> 11 | U106: 15 | V106: 15 | W106: 5 | X106: 15 | Y106: 15 | AH106: =AH107-AG107 -> 2 | AI106: 4 | AJ106: 8 | AK106: 9 | AL106: 15 | AM106: 10
A107: 1 | B107: 雪山-3 | C107: 波1·怪物 | D107: 4 | E107: 10 | F107: 17 | G107: 25 | H107: 30 | I107: 40 | J107: 50 | K107: 60 | L107: 65 | M107: 75 | Q107: 3 | R107: 波2·怪物 | S107: 4 | T107: 15 | U107: 30 | V107: 45 | W107: 50 | X107: 65 | Y107: 80 | AE107: 1 | AF107: 波3·怪物 | AG107: 2 | AH107: 4 | AI107: 8 | AJ107: 16 | AK107: 25 | AL107: 40 | AM107: 50
B108: 4.5m | C108: 8 | F108: 60182 | G108: 60182 | K108: 60182 | P108: =_xlfn.TEXTJOIN("^",,D108:D117) -> 60182^60184^60182 | R108: 8 | AD108: =_xlfn.TEXTJOIN("^",,S108:S117) -> 60181^60182^60184 | AF108: 8 | AM108: 60184 | AR108: =_xlfn.TEXTJOIN("^",,AG108:AG117) -> 60181^60184^60181
C109: 6 | F109: 60182 | G109: 60181 | I109: 60184 | J109: 60182 | K109: 60182 | L109: 60185 | M109: 60182 | P109: =_xlfn.TEXTJOIN("^",,E108:E117) -> 60181^60181^60181^60181^60181 | R109: 6 | AD109: =_xlfn.TEXTJOIN("^",,T108:T117) -> 60183^60185^60186 | AF109: 6 | AJ109: 60182 | AL109: 60181 | AM109: 60182 | AR109: =_xlfn.TEXTJOIN("^",,AH108:AH117) -> 60182^60182^60182
C110: 4 | D110: 60182 | E110: 60181 | G110: 60181 | H110: 60185 | I110: 60182 | K110: 60183 | L110: 60185 | M110: 60181 | P110: =_xlfn.TEXTJOIN("^",,F108:F117) -> 60182^60182^60183^60184^60183^60182^60182 | R110: 4 | AD110: =_xlfn.TEXTJOIN("^",,U108:U117) -> 60181^60182^60183 | AF110: 4 | AH110: 60182 | AI110: 60183 | AK110: 60184 | AL110: 60181 | AR110: =_xlfn.TEXTJOIN("^",,AI108:AI117) -> 60183^60183^60183
C111: 2 | E111: 60181 | F111: 60183 | H111: 60185 | I111: 60183 | J111: 60181 | M111: 60183 | P111: =_xlfn.TEXTJOIN("^",,G108:G117) -> 60182^60181^60181^60183^60181^60181^60182 | R111: 2 | AD111: =_xlfn.TEXTJOIN("^",,V108:V117) -> 60181^60182^60184 | AF111: 2 | AG111: 60181 | AJ111: 60181 | AK111: 60183 | AL111: 60182 | AM111: 60183 | AR111: =_xlfn.TEXTJOIN("^",,AJ108:AJ117) -> 60182^60181^60182^60181^60182
C112: 1 | D112: 60184 | E112: 60181 | F112: 60184 | G112: 60183 | H112: 60185 | I112: 60183 | J112: 60181 | K112: 60184 | L112: 60185 | M112: 60184 | P112: =_xlfn.TEXTJOIN("^",,H108:H117) -> 60185^60185^60185^60185^60185 | R112: 1 | S112: 60181 | T112: 60183 | U112: 60181 | V112: 60181 | W112: 60183 | X112: 60181 | Y112: 60183 | AD112: =_xlfn.TEXTJOIN("^",,W108:W117) -> 60183^60185 | AF112: 1 | AG112: 60184 | AH112: 60182 | AI112: 60183 | AJ112: 60182 | AK112: 60182 | AR112: =_xlfn.TEXTJOIN("^",,AK108:AK117) -> 60184^60183^60182^60183^60184
C113: 3 | E113: 60181 | F113: 60183 | H113: 60185 | I113: 60183 | J113: 60181 | L113: 60185 | M113: 60183 | P113: =_xlfn.TEXTJOIN("^",,I108:I117) -> 60184^60182^60183^60183^60183^60182^60184 | R113: 3 | S113: 60182 | T113: 60185 | U113: 60182 | V113: 60182 | W113: 60185 | X113: 60182 | Y113: 60182 | AD113: =_xlfn.TEXTJOIN("^",,X108:X117) -> 60181^60182 | AF113: 3 | AG113: 60181 | AJ113: 60181 | AK113: 60183 | AL113: 60182 | AM113: 60183 | AR113: =_xlfn.TEXTJOIN("^",,AL108:AL117) -> 60181^60181^60182^60182^60181^60181
C114: 5 | D114: 60182 | E114: 60181 | G114: 60181 | H114: 60185 | I114: 60182 | K114: 60183 | L114: 60185 | M114: 60181 | P114: =_xlfn.TEXTJOIN("^",,J108:J117) -> 60182^60181^60181^60181^60182 | R114: 5 | S114: 60184 | T114: 60186 | U114: 60183 | V114: 60184 | Y114: 60184 | AD114: =_xlfn.TEXTJOIN("^",,Y108:Y117) -> 60183^60182^60184 | AF114: 5 | AH114: 60182 | AI114: 60183 | AK114: 60184 | AL114: 60181 | AR114: =_xlfn.TEXTJOIN("^",,AM108:AM117) -> 60184^60182^60183^60183^60182^60184
C115: 7 | F115: 60182 | G115: 60181 | I115: 60184 | J115: 60182 | K115: 60182 | M115: 60182 | P115: =_xlfn.TEXTJOIN("^",,K108:K117) -> 60182^60182^60183^60184^60183^60182^60182 | R115: 7 | AD115: =_xlfn.TEXTJOIN("^",,Z108:Z117) ->  | AF115: 7 | AJ115: 60182 | AL115: 60181 | AM115: 60182 | AR115: =_xlfn.TEXTJOIN("^",,AN108:AN117) -> 
C116: 9 | F116: 60182 | G116: 60182 | K116: 60182 | P116: =_xlfn.TEXTJOIN("^",,L108:L117) -> 60185^60185^60185^60185^60185 | R116: 9 | AD116: =_xlfn.TEXTJOIN("^",,AA108:AA117) ->  | AF116: 9 | AM116: 60184 | AR116: =_xlfn.TEXTJOIN("^",,AO108:AO117) -> 
P117: =_xlfn.TEXTJOIN("^",,M108:M117) -> 60182^60181^60183^60184^60183^60181^60182 | AD117: =_xlfn.TEXTJOIN("^",,AB108:AB117) ->  | AR117: =_xlfn.TEXTJOIN("^",,AP108:AP117) -> 
P118: =_xlfn.TEXTJOIN("^",,N108:N117) ->  | AD118: =_xlfn.TEXTJOIN("^",,AC108:AC117) ->  | AR118: =_xlfn.TEXTJOIN("^",,AQ108:AQ117) -> 
O119: 最终 | P119: =_xlfn.TEXTJOIN("^",,P108:P118) -> 60182^60184^60182^60181^60181^60181^60181^60181^60182^60182^60183^60184^60183^60182^60182^60182^60181^60181^60183^60181^60181^60182^60185^60185^60185^60185^60185^60184^60182^60183^60183^60183^60182^60184^60182^60181^60181^60181^60182^60182^60182^60183^60184^60183^60182^60182^60185^60185^60185^60185^60185^60182^60181^60183^60184^60183^60181^60182 | AC119: 最终 | AD119: =_xlfn.TEXTJOIN("|",,AD108:AD118) -> 60181^60182^60184|60183^60185^60186|60181^60182^60183|60181^60182^60184|60183^60185|60181^60182|60183^60182^60184 | AQ119: 最终 | AR119: =_xlfn.TEXTJOIN("^",,AR108:AR118) -> 60181^60184^60181^60182^60182^60182^60183^60183^60183^60182^60181^60182^60181^60182^60184^60183^60182^60183^60184^60181^60181^60182^60182^60181^60181^60184^60182^60183^60183^60182^60184
C120: 8 | F120: 独角兽 | G120: 独角兽 | K120: 独角兽 | R120: 8 | AF120: 8 | AM120: 木精灵
C121: 6 | F121: 独角兽 | G121: 雪怪 | I121: 木精灵 | J121: 独角兽 | K121: 独角兽 | L121: 雪山蜘蛛 | M121: 独角兽 | R121: 6 | AF121: 6 | AJ121: 独角兽 | AL121: 雪怪 | AM121: 独角兽
C122: 4 | D122: 独角兽 | E122: 雪怪 | G122: 雪怪 | H122: 雪山蜘蛛 | I122: 独角兽 | K122: 雪原熊 | L122: 雪山蜘蛛 | M122: 雪怪 | R122: 4 | AF122: 4 | AH122: 独角兽 | AI122: 雪原熊 | AK122: 木精灵 | AL122: 雪怪
C123: 2 | E123: 雪怪 | F123: 雪原熊 | H123: 雪山蜘蛛 | I123: 雪原熊 | J123: 雪怪 | M123: 雪原熊 | R123: 2 | AF123: 2 | AG123: 雪怪 | AJ123: 雪怪 | AK123: 雪原熊 | AL123: 独角兽 | AM123: 雪原熊
C124: 1 | D124: 木精灵 | E124: 雪怪 | F124: 木精灵 | G124: 雪原熊 | H124: 雪山蜘蛛 | I124: 雪原熊 | J124: 雪怪 | K124: 木精灵 | L124: 雪山蜘蛛 | M124: 木精灵 | R124: 1 | S124: 雪怪 | T124: 雪原熊 | U124: 雪怪 | V124: 雪怪 | W124: 雪原熊 | X124: 雪怪 | Y124: 雪原熊 | AF124: 1 | AG124: 木精灵 | AH124: 独角兽 | AI124: 雪原熊 | AJ124: 独角兽 | AK124: 独角兽
C125: 3 | E125: 雪怪 | F125: 雪原熊 | H125: 雪山蜘蛛 | I125: 雪原熊 | J125: 雪怪 | L125: 雪山蜘蛛 | M125: 雪原熊 | R125: 3 | S125: 独角兽 | T125: 雪山蜘蛛 | U125: 独角兽 | V125: 独角兽 | W125: 雪山蜘蛛 | X125: 独角兽 | Y125: 独角兽 | AF125: 3 | AG125: 雪怪 | AJ125: 雪怪 | AK125: 雪原熊 | AL125: 独角兽 | AM125: 雪原熊
C126: 5 | D126: 独角兽 | E126: 雪怪 | G126: 雪怪 | H126: 雪山蜘蛛 | I126: 独角兽 | K126: 雪原熊 | L126: 雪山蜘蛛 | M126: 雪怪 | R126: 5 | S126: 木精灵 | T126: 蘑菇精英 | U126: 雪原熊 | V126: 木精灵 | Y126: 木精灵 | AF126: 5 | AH126: 独角兽 | AI126: 雪原熊 | AK126: 木精灵 | AL126: 雪怪
C127: 7 | F127: 独角兽 | G127: 雪怪 | I127: 木精灵 | J127: 独角兽 | K127: 独角兽 | M127: 独角兽 | R127: 7 | AF127: 7 | AJ127: 独角兽 | AL127: 雪怪 | AM127: 独角兽
C128: 9 | F128: 独角兽 | G128: 独角兽 | K128: 独角兽 | R128: 9 | AF128: 9 | AM128: 木精灵
C130: 位置 | D130: 4 | E130: 10 | F130: 17 | G130: 25 | H130: 30 | I130: 40 | J130: 50 | K130: 60 | L130: 65 | M130: 75 | R130: 位置 | S130: 4 | T130: 15 | U130: 30 | V130: 45 | W130: 50 | X130: 65 | Y130: 80 | AF130: 位置 | AG130: 2 | AH130: 4 | AI130: 8 | AJ130: 16 | AK130: 25 | AL130: 40 | AM130: 50 | AR130: =_xlfn.TEXTJOIN("^",,AG131:AG145) -> 2^1^3
C131: 8 | F131: =$C131 -> 8 | G131: =$C131 -> 8 | K131: =$C131 -> 8 | P131: =_xlfn.TEXTJOIN("^",,D131:D145) -> 4^1^5 | R131: 8 | AF131: 8 | AM131: =$C131 -> 8 | AR131: =_xlfn.TEXTJOIN("^",,AH131:AH145) -> 4^1^5
C132: 6 | F132: =$C132 -> 6 | G132: 6 | I132: =$C132 -> 6 | J132: =$C132 -> 6 | K132: 6 | M132: =$C132 -> 6 | P132: =_xlfn.TEXTJOIN("^",,E131:E145) -> 4^2^1^3^5 | R132: 6 | AD132: =_xlfn.TEXTJOIN("^",,S131:S145) -> 0^0^0 | AF132: 6 | AJ132: =$C132 -> 6 | AL132: =$C132 -> 6 | AM132: 6 | AR132: =_xlfn.TEXTJOIN("^",,AI131:AI145) -> 4^1^5
C133: 4 | D133: =$C133 -> 4 | E133: =$C133 -> 4 | G133: 4 | I133: 4 | K133: 4 | M133: =$C133 -> 4 | P133: =_xlfn.TEXTJOIN("^",,F131:F145) -> 8^6^2^1^3^7^9 | R133: 4 | AD133: =_xlfn.TEXTJOIN("^",,T131:T145) -> 0^100^0 | AF133: 4 | AH133: =$C133 -> 4 | AI133: =$C133 -> 4 | AK133: =$C133 -> 4 | AL133: 4 | AR133: =_xlfn.TEXTJOIN("^",,AJ131:AJ145) -> 6^2^1^3^7
C134: 2 | E134: 2 | F134: 2 | I134: 2 | J134: 2 | M134: 2 | P134: =_xlfn.TEXTJOIN("^",,G131:G145) -> 8^6^4^1^5^7^9 | R134: 2 | AD134: =_xlfn.TEXTJOIN("^",,U131:U145) -> 0^0^0 | AF134: 2 | AG134: =$C134 -> 2 | AJ134: =$C134 -> 2 | AK134: 2 | AL134: 2 | AM134: =$C134 -> 2 | AR134: =_xlfn.TEXTJOIN("^",,AK131:AK145) -> 4^2^1^3^5
C135: 1 | D135: =$C135 -> 1 | E135: 1 | F135: 1 | G135: =$C135 -> 1 | I135: 1 | J135: 1 | K135: =$C135 -> 1 | M135: 1 | P135: =_xlfn.TEXTJOIN("^",,H131:H145) -> 101^102^103^104^105 | R135: 1 | S135: 0 | T135: 0 | U135: 0 | V135: 0 | W135: 0 | X135: 0 | Y135: 0 | AD135: =_xlfn.TEXTJOIN("^",,V131:V145) -> 0^0^0 | AF135: 1 | AG135: 1 | AH135: =$C135 -> 1 | AI135: =$C135 -> 1 | AJ135: 1 | AK135: 1 | AR135: =_xlfn.TEXTJOIN("^",,AL131:AL145) -> 6^4^2^3^5^7
C136: 3 | E136: 3 | F136: 3 | I136: =$C136 -> 3 | J136: 3 | M136: 3 | P136: =_xlfn.TEXTJOIN("^",,I131:I145) -> 6^4^2^1^3^5^7 | R136: 3 | S136: 0 | T136: 100 | U136: 0 | V136: 0 | W136: 100 | X136: 0 | Y136: 0 | AD136: =_xlfn.TEXTJOIN("^",,W131:W145) -> 0^100 | AF136: 3 | AG136: 3 | AJ136: 3 | AK136: 3 | AL136: 3 | AM136: =$C136 -> 3 | AR136: =_xlfn.TEXTJOIN("^",,AM131:AM145) -> 8^6^2^3^7^9
C137: 5 | D137: =$C137 -> 5 | E137: 5 | G137: =$C137 -> 5 | I137: 5 | K137: =$C137 -> 5 | M137: 5 | P137: =_xlfn.TEXTJOIN("^",,J131:J145) -> 6^2^1^3^7 | R137: 5 | S137: 0 | T137: 0 | U137: 0 | V137: 0 | Y137: 0 | AD137: =_xlfn.TEXTJOIN("^",,X131:X145) -> 0^0 | AF137: 5 | AH137: =$C137 -> 5 | AI137: =$C137 -> 5 | AK137: 5 | AL137: 5 | AR137: =_xlfn.TEXTJOIN("^",,AN131:AN145) -> 
C138: 7 | F138: =$C138 -> 7 | G138: 7 | I138: 7 | J138: =$C138 -> 7 | K138: 7 | M138: =$C138 -> 7 | P138: =_xlfn.TEXTJOIN("^",,K131:K145) -> 8^6^4^1^5^7^9 | R138: 7 | AD138: =_xlfn.TEXTJOIN("^",,Y131:Y145) -> 0^0^0 | AF138: 7 | AJ138: =$C138 -> 7 | AL138: 7 | AM138: 7 | AR138: =_xlfn.TEXTJOIN("^",,AO131:AO145) -> 
C139: 9 | F139: =$C139 -> 9 | G139: 9 | K139: 9 | P139: =_xlfn.TEXTJOIN("^",,L131:L145) -> 101^102^103^104^105 | R139: 9 | AF139: 9 | AM139: 9 | AR139: =_xlfn.TEXTJOIN("^",,AP131:AP145) -> 
C140: 空降 | P140: =_xlfn.TEXTJOIN("^",,M131:M145) -> 6^4^2^1^3^5^7 | R140: 空降 | AF140: 空降 | AR140: =_xlfn.TEXTJOIN("^",,AQ131:AQ139) -> 
C141: 101 | H141: =$C141 -> 101 | L141: =$C141 -> 101 | P141: =_xlfn.TEXTJOIN("^",,N131:N145) ->  | R141: 101 | AD141: =_xlfn.TEXTJOIN("^",,Z131:Z145) ->  | AF141: 101
C142: 102 | H142: =$C142 -> 102 | L142: =$C142 -> 102 | R142: 102 | AD142: =_xlfn.TEXTJOIN("^",,AA131:AA145) ->  | AF142: 102
C143: 103 | H143: =$C143 -> 103 | L143: =$C143 -> 103 | R143: 103 | AD143: =_xlfn.TEXTJOIN("^",,AB131:AB145) ->  | AF143: 103
C144: 104 | H144: =$C144 -> 104 | L144: =$C144 -> 104 | R144: 104 | AF144: 104
C145: 105 | H145: =$C145 -> 105 | L145: =$C145 -> 105 | R145: 105 | AF145: 105
O146: 最终 | P146: =_xlfn.TEXTJOIN("^",,P131:P145) -> 4^1^5^4^2^1^3^5^8^6^2^1^3^7^9^8^6^4^1^5^7^9^101^102^103^104^105^6^4^2^1^3^5^7^6^2^1^3^7^8^6^4^1^5^7^9^101^102^103^104^105^6^4^2^1^3^5^7 | AC146: 最终 | AD146: =_xlfn.TEXTJOIN("|",,AD131:AD145) -> 0^0^0|0^100^0|0^0^0|0^0^0|0^100|0^0|0^0^0 | AQ146: 最终 | AR146: =_xlfn.TEXTJOIN("^",,AR130:AR145) -> 2^1^3^4^1^5^4^1^5^6^2^1^3^7^4^2^1^3^5^6^4^2^3^5^7^8^6^2^3^7^9
C148: 时间 | D148: 4 | E148: 10 | F148: 17 | G148: 25 | H148: 30 | I148: 40 | J148: 50 | K148: 60 | L148: 65 | M148: 75 | R148: 时间 | S148: 4 | T148: 15 | U148: 30 | V148: 45 | W148: 50 | X148: 65 | Y148: 80 | AD148: =_xlfn.TEXTJOIN("^",,S149:S157) -> 20^6^3 | AF148: 时间 | AG148: 2 | AH148: 4 | AI148: 8 | AJ148: 16 | AK148: 25 | AL148: 40 | AM148: 50 | AR148: =_xlfn.TEXTJOIN("^",,AG149:AG157) -> 2^2^2
C149: 8 | F149: =F$148 -> 17 | G149: 25 | K149: =K$148 -> 60 | P149: =_xlfn.TEXTJOIN("^",,D149:D158) -> 4^4^4 | R149: 8 | AD149: =_xlfn.TEXTJOIN("^",,T149:T157) -> 3^6^1 | AF149: 8 | AM149: =AM$148 -> 50 | AR149: =_xlfn.TEXTJOIN("^",,AH149:AH157) -> 4^4^4
C150: 6 | F150: =F$148 -> 17 | G150: 25 | I150: =I$148 -> 40 | J150: =J$148 -> 50 | K150: 60 | M150: =M$148 -> 75 | P150: =_xlfn.TEXTJOIN("^",,E149:E158) -> 10^10^10^10^10 | R150: 6 | AD150: =_xlfn.TEXTJOIN("^",,U149:U157) -> 6^5^3 | AF150: 6 | AJ150: =AJ$148 -> 16 | AL150: =AL$148 -> 40 | AM150: 50 | AR150: =_xlfn.TEXTJOIN("^",,AI149:AI157) -> 8^8^8
C151: 4 | D151: =D$148 -> 4 | E151: 10 | G151: 25 | H151: =H$148 -> 30 | I151: 40 | K151: 60 | L151: =L$148 -> 65 | M151: =M$148 -> 75 | P151: =_xlfn.TEXTJOIN("^",,F149:F158) -> 17^17^17^17^17^17^17 | R151: 4 | AD151: =_xlfn.TEXTJOIN("^",,V149:V157) -> 6^4^3 | AF151: 4 | AH151: =AH$148 -> 4 | AI151: =AI$148 -> 8 | AK151: =AK$148 -> 25 | AL151: 40 | AR151: =_xlfn.TEXTJOIN("^",,AJ149:AJ157) -> 16^16^16^16^16
C152: 2 | E152: 10 | F152: 17 | H152: =H$148 -> 30 | I152: 40 | J152: 50 | L152: =L$148 -> 65 | M152: =M$148 -> 75 | P152: =_xlfn.TEXTJOIN("^",,G149:G158) -> 25^25^25^25^25^25^25 | R152: 2 | AD152: =_xlfn.TEXTJOIN("^",,W149:W157) -> 3^8 | AF152: 2 | AG152: =AG$148 -> 2 | AJ152: =AJ$148 -> 16 | AK152: 25 | AL152: 40 | AM152: =AM$148 -> 50 | AR152: =_xlfn.TEXTJOIN("^",,AK149:AK157) -> 25^25^25^25^25
C153: 1 | D153: =D$148 -> 4 | E153: 10 | F153: 17 | G153: =G$148 -> 25 | H153: =H$148 -> 30 | I153: 40 | J153: 50 | K153: =K$148 -> 60 | L153: =L$148 -> 65 | M153: 75 | P153: =_xlfn.TEXTJOIN("^",,H149:H158) -> 30^30^30^30^30 | R153: 1 | S153: 20 | T153: 3 | U153: 6 | V153: 6 | W153: 3 | X153: 7 | Y153: 4 | AD153: =_xlfn.TEXTJOIN("^",,X149:X157) -> 7^5 | AF153: 1 | AG153: 2 | AH153: =AH$148 -> 4 | AI153: =AI$148 -> 8 | AJ153: 16 | AK153: 25 | AR153: =_xlfn.TEXTJOIN("^",,AL149:AL157) -> 40^40^40^40^40^40
C154: 3 | E154: 10 | F154: 17 | H154: =H$148 -> 30 | I154: =I$148 -> 40 | J154: 50 | L154: =L$148 -> 65 | M154: 75 | P154: =_xlfn.TEXTJOIN("^",,I149:I158) -> 40^40^40^40^40^40^40 | R154: 3 | S154: 6 | T154: 6 | U154: 5 | V154: 4 | W154: 8 | X154: 5 | Y154: 4 | AD154: =_xlfn.TEXTJOIN("^",,Y149:Y157) -> 4^4^3 | AF154: 3 | AG154: 2 | AJ154: 16 | AK154: 25 | AL154: 40 | AM154: =AM$148 -> 50 | AR154: =_xlfn.TEXTJOIN("^",,AM149:AM157) -> 50^50^50^50^50^50
C155: 5 | D155: =D$148 -> 4 | E155: 10 | G155: =G$148 -> 25 | H155: =H$148 -> 30 | I155: 40 | K155: =K$148 -> 60 | L155: =L$148 -> 65 | M155: =M$148 -> 75 | P155: =_xlfn.TEXTJOIN("^",,J149:J158) -> 50^50^50^50^50 | R155: 5 | S155: 3 | T155: 1 | U155: 3 | V155: 3 | Y155: 3 | AD155: =_xlfn.TEXTJOIN("^",,Z149:Z157) ->  | AF155: 5 | AH155: =AH$148 -> 4 | AI155: =AI$148 -> 8 | AK155: 25 | AL155: 40 | AR155: =_xlfn.TEXTJOIN("^",,AN149:AN157) -> 
C156: 7 | F156: =F$148 -> 17 | G156: 25 | I156: 40 | J156: =J$148 -> 50 | K156: 60 | M156: =M$148 -> 75 | P156: =_xlfn.TEXTJOIN("^",,K149:K158) -> 60^60^60^60^60^60^60 | R156: 7 | AD156: =_xlfn.TEXTJOIN("^",,AA149:AA157) ->  | AF156: 7 | AJ156: =AJ$148 -> 16 | AL156: 40 | AM156: 50 | AR156: =_xlfn.TEXTJOIN("^",,AO149:AO157) -> 
C157: 9 | F157: =F$148 -> 17 | G157: 25 | K157: 60 | P157: =_xlfn.TEXTJOIN("^",,L149:L158) -> 65^65^65^65^65 | R157: 9 | AD157: =_xlfn.TEXTJOIN("^",,AB149:AB157) ->  | AF157: 9 | AM157: 50 | AR157: =_xlfn.TEXTJOIN("^",,AP149:AP157) -> 
P158: =_xlfn.TEXTJOIN("^",,M149:M158) -> 75^75^75^75^75^75^75 | AD158: =_xlfn.TEXTJOIN("^",,AC149:AC157) ->  | AR158: =_xlfn.TEXTJOIN("^",,AQ149:AQ157) -> 
P159: =_xlfn.TEXTJOIN("^",,N149:N158) ->  | AC159: 最终 | AD159: =_xlfn.TEXTJOIN("|",,AD148:AD158) -> 20^6^3|3^6^1|6^5^3|6^4^3|3^8|7^5|4^4^3 | AQ159: 最终 | AR159: =_xlfn.TEXTJOIN("^",,AR148:AR158) -> 2^2^2^4^4^4^8^8^8^16^16^16^16^16^25^25^25^25^25^40^40^40^40^40^40^50^50^50^50^50^50
O160: 最终 | P160: =_xlfn.TEXTJOIN("^",,P149:P159) -> 4^4^4^10^10^10^10^10^17^17^17^17^17^17^17^25^25^25^25^25^25^25^30^30^30^30^30^40^40^40^40^40^40^40^50^50^50^50^50^60^60^60^60^60^60^60^65^65^65^65^65^75^75^75^75^75^75^75
E162: =E163-D163 -> 10 | F162: =F163-E163 -> 15 | G162: 15 | H162: 5 | I162: 15 | J162: 16 | K162: 16 | L162: 3 | M162: 15 | T162: =T163-S163 -> 12 | U162: 15 | V162: 15 | W162: 5 | X162: 15 | Y162: 15 | AH162: =AH163-AG163 -> 2 | AI162: 3 | AJ162: 4 | AK162: 8 | AL162: 15 | AM162: 15
A163: 3 | B163: 雪山-4 | C163: 波1·怪物 | D163: 5 | E163: 15 | F163: 30 | G163: 45 | H163: 50 | I163: 65 | J163: 81 | K163: 97 | L163: 100 | M163: 115 | Q163: 3 | R163: 波2·怪物 | S163: 3 | T163: 15 | U163: 30 | V163: 45 | W163: 50 | X163: 65 | Y163: 80 | AE163: 1 | AF163: 波3·怪物 | AG163: 3 | AH163: 5 | AI163: 8 | AJ163: 12 | AK163: 20 | AL163: 35 | AM163: 50
B164: 4.5m | C164: 8 | P164: =_xlfn.TEXTJOIN("^",,D164:D173) -> 60191^60194 | R164: 8 | AD164: =_xlfn.TEXTJOIN("^",,S164:S173) -> 60192^60191 | AF164: 8 | AR164: =_xlfn.TEXTJOIN("^",,AG164:AG173) -> 60192^60194^60192
C165: 6 | P165: =_xlfn.TEXTJOIN("^",,E164:E173) -> 60192^60191 | R165: 6 | AD165: =_xlfn.TEXTJOIN("^",,T164:T173) -> 60194^60192 | AF165: 6 | AK165: 60192 | AL165: 60191 | AR165: =_xlfn.TEXTJOIN("^",,AH164:AH173) -> 60191^60191^60191
C166: 4 | P166: =_xlfn.TEXTJOIN("^",,F164:F173) -> 60193^60191^60192 | R166: 4 | AD166: =_xlfn.TEXTJOIN("^",,U164:U173) -> 60192^60193^60194 | AF166: 4 | AG166: 60192 | AI166: 60193 | AK166: 60194 | AL166: 60191 | AM166: 60192 | AR166: =_xlfn.TEXTJOIN("^",,AI164:AI173) -> 60193^60193^60193
C167: 2 | P167: =_xlfn.TEXTJOIN("^",,G164:G173) -> 60193^60192^60194 | R167: 2 | AD167: =_xlfn.TEXTJOIN("^",,V164:V173) -> 60194^60191^60192 | AF167: 2 | AH167: 60191 | AJ167: 60195 | AK167: 60193 | AL167: 60191 | AM167: 60193 | AR167: =_xlfn.TEXTJOIN("^",,AJ164:AJ173) -> 60195^60195
C168: 1 | D168: 60191 | E168: 60192 | F168: 60193 | G168: 60193 | H168: 60195 | I168: 60191 | J168: 60192 | K168: 60194 | L168: 60195 | M168: 60194 | P168: =_xlfn.TEXTJOIN("^",,H164:H173) -> 60195^60191 | R168: 1 | S168: 60192 | T168: 60194 | U168: 60192 | V168: 60194 | W168: 60195 | X168: 60193 | Y168: 60193 | AD168: =_xlfn.TEXTJOIN("^",,W164:W173) -> 60195^60196 | AF168: 1 | AG168: 60194 | AH168: 60191 | AI168: 60193 | AM168: 60192 | AR168: =_xlfn.TEXTJOIN("^",,AK164:AK173) -> 60192^60194^60193^60193^60194^60192
C169: 3 | D169: 60194 | E169: 60191 | F169: 60191 | G169: 60192 | H169: 60191 | I169: 60193 | J169: 60191 | K169: 60193 | M169: 60192 | P169: =_xlfn.TEXTJOIN("^",,I164:I173) -> 60191^60193^60192 | R169: 3 | S169: 60191 | T169: 60192 | U169: 60193 | V169: 60191 | W169: 60196 | X169: 60191 | Y169: 60192 | AD169: =_xlfn.TEXTJOIN("^",,X164:X173) -> 60193^60191^60192 | AF169: 3 | AH169: 60191 | AJ169: 60195 | AK169: 60193 | AL169: 60191 | AM169: 60193 | AR169: =_xlfn.TEXTJOIN("^",,AL164:AL173) -> 60191^60191^60191^60191^60191^60191
C170: 5 | F170: 60192 | G170: 60194 | I170: 60192 | K170: 60191 | M170: 60191 | P170: =_xlfn.TEXTJOIN("^",,J164:J173) -> 60192^60191 | R170: 5 | U170: 60194 | V170: 60192 | X170: 60192 | Y170: 60194 | AD170: =_xlfn.TEXTJOIN("^",,Y164:Y173) -> 60193^60192^60194 | AF170: 5 | AG170: 60192 | AI170: 60193 | AK170: 60194 | AL170: 60191 | AM170: 60192 | AR170: =_xlfn.TEXTJOIN("^",,AM164:AM173) -> 60192^60193^60192^60193^60192
C171: 7 | K171: 60192 | P171: =_xlfn.TEXTJOIN("^",,K164:K173) -> 60194^60193^60191^60192 | R171: 7 | AD171: =_xlfn.TEXTJOIN("^",,Z164:Z173) ->  | AF171: 7 | AK171: 60192 | AL171: 60191 | AR171: =_xlfn.TEXTJOIN("^",,AN164:AN173) -> 
C172: 9 | P172: =_xlfn.TEXTJOIN("^",,L164:L173) -> 60195 | R172: 9 | AD172: =_xlfn.TEXTJOIN("^",,AA164:AA173) ->  | AF172: 9 | AR172: =_xlfn.TEXTJOIN("^",,AO164:AO173) -> 
P173: =_xlfn.TEXTJOIN("^",,M164:M173) -> 60194^60192^60191 | AD173: =_xlfn.TEXTJOIN("^",,AB164:AB173) ->  | AR173: =_xlfn.TEXTJOIN("^",,AP164:AP173) -> 
P174: =_xlfn.TEXTJOIN("^",,N164:N173) ->  | AD174: =_xlfn.TEXTJOIN("^",,AC164:AC173) ->  | AR174: =_xlfn.TEXTJOIN("^",,AQ164:AQ173) -> 
O175: 最终 | P175: =_xlfn.TEXTJOIN("|",,P164:P174) -> 60191^60194|60192^60191|60193^60191^60192|60193^60192^60194|60195^60191|60191^60193^60192|60192^60191|60194^60193^60191^60192|60195|60194^60192^60191 | AC175: 最终 | AD175: =_xlfn.TEXTJOIN("|",,AD164:AD174) -> 60192^60191|60194^60192|60192^60193^60194|60194^60191^60192|60195^60196|60193^60191^60192|60193^60192^60194 | AQ175: 最终 | AR175: =_xlfn.TEXTJOIN("^",,AR164:AR174) -> 60192^60194^60192^60191^60191^60191^60193^60193^60193^60195^60195^60192^60194^60193^60193^60194^60192^60191^60191^60191^60191^60191^60191^60192^60193^60192^60193^60192
C176: 8 | R176: 8 | AF176: 8
C177: 6 | R177: 6 | AF177: 6 | AK177: 独角兽 | AL177: 雪怪
C178: 4 | R178: 4 | AF178: 4 | AG178: 独角兽 | AI178: 雪原熊 | AK178: 木精灵 | AL178: 雪怪 | AM178: 独角兽
C179: 2 | R179: 2 | AF179: 2 | AH179: 雪怪 | AJ179: 雪山蜘蛛 | AK179: 雪原熊 | AL179: 雪怪 | AM179: 雪原熊
C180: 1 | D180: 雪怪 | E180: 独角兽 | F180: 雪原熊 | G180: 雪原熊 | H180: 雪山蜘蛛 | I180: 雪怪 | J180: 独角兽 | K180: 木精灵 | L180: 雪山蜘蛛 | M180: 木精灵 | R180: 1 | S180: 独角兽 | T180: 木精灵 | U180: 独角兽 | V180: 木精灵 | W180: 雪山蜘蛛 | X180: 雪原熊 | Y180: 雪原熊 | AF180: 1 | AG180: 木精灵 | AH180: 雪怪 | AI180: 雪原熊 | AM180: 独角兽
C181: 3 | D181: 木精灵 | E181: 雪怪 | F181: 雪怪 | G181: 独角兽 | H181: 雪怪 | I181: 雪原熊 | J181: 雪怪 | K181: 雪原熊 | M181: 独角兽 | R181: 3 | S181: 雪怪 | T181: 独角兽 | U181: 雪原熊 | V181: 雪怪 | W181: 蘑菇精英 | X181: 雪怪 | Y181: 独角兽 | AF181: 3 | AH181: 雪怪 | AJ181: 雪山蜘蛛 | AK181: 雪原熊 | AL181: 雪怪 | AM181: 雪原熊
C182: 5 | F182: 独角兽 | G182: 木精灵 | I182: 独角兽 | K182: 雪怪 | M182: 雪怪 | R182: 5 | U182: 木精灵 | V182: 独角兽 | X182: 独角兽 | Y182: 木精灵 | AF182: 5 | AG182: 独角兽 | AI182: 雪原熊 | AK182: 木精灵 | AL182: 雪怪 | AM182: 独角兽
C183: 7 | K183: 独角兽 | R183: 7 | AF183: 7 | AK183: 独角兽 | AL183: 雪怪
C184: 9 | R184: 9 | AF184: 9
C186: 位置 | D186: 5 | E186: 15 | F186: 30 | G186: 45 | H186: 50 | I186: 65 | J186: 81 | K186: 97 | L186: 100 | M186: 115 | R186: 位置 | S186: 3 | T186: 15 | U186: 30 | V186: 45 | W186: 50 | X186: 65 | Y186: 80 | AF186: 位置 | AG186: 3 | AH186: 5 | AI186: 8 | AJ186: 12 | AK186: 20 | AL186: 35 | AM186: 50 | AR186: =_xlfn.TEXTJOIN("^",,AG187:AG201) -> 4^1^5
C187: 8 | P187: =_xlfn.TEXTJOIN("^",,D187:D201) -> 0^0 | R187: 8 | AF187: 8 | AR187: =_xlfn.TEXTJOIN("^",,AH187:AH201) -> 2^1^3
C188: 6 | P188: =_xlfn.TEXTJOIN("^",,E187:E201) -> 0^0 | R188: 6 | AD188: =_xlfn.TEXTJOIN("^",,S187:S201) -> 0^0 | AF188: 6 | AK188: =$C188 -> 6 | AL188: 6 | AR188: =_xlfn.TEXTJOIN("^",,AI187:AI201) -> 4^1^5
C189: 4 | P189: =_xlfn.TEXTJOIN("^",,F187:F201) -> 0^0^0 | R189: 4 | AD189: =_xlfn.TEXTJOIN("^",,T187:T201) -> 0^0 | AF189: 4 | AG189: =$C189 -> 4 | AI189: =$C189 -> 4 | AK189: 4 | AL189: 4 | AM189: 4 | AR189: =_xlfn.TEXTJOIN("^",,AJ187:AJ201) -> 102^104
C190: 2 | P190: =_xlfn.TEXTJOIN("^",,G187:G201) -> 0^0^0 | R190: 2 | AD190: =_xlfn.TEXTJOIN("^",,U187:U201) -> 0^0^0 | AF190: 2 | AH190: =$C190 -> 2 | AK190: 2 | AL190: 2 | AM190: 2 | AR190: =_xlfn.TEXTJOIN("^",,AK187:AK201) -> 6^4^2^3^5^7
C191: 1 | D191: 0 | E191: 0 | F191: 0 | G191: 0 | H191: 100 | I191: 0 | J191: 0 | K191: 0 | L191: 100 | M191: 0 | P191: =_xlfn.TEXTJOIN("^",,H187:H201) -> 100^0 | R191: 1 | S191: 0 | T191: 0 | U191: 0 | V191: 0 | W191: 100 | X191: 0 | Y191: 0 | AD191: =_xlfn.TEXTJOIN("^",,V187:V201) -> 0^0^0 | AF191: 1 | AG191: =$C191 -> 1 | AH191: 1 | AI191: =$C191 -> 1 | AM191: 1 | AR191: =_xlfn.TEXTJOIN("^",,AL187:AL201) -> 6^4^2^3^5^7
C192: 3 | D192: 0 | E192: 0 | F192: 0 | G192: 0 | H192: 0 | I192: 0 | J192: 0 | K192: 0 | M192: 0 | P192: =_xlfn.TEXTJOIN("^",,I187:I201) -> 0^0^0 | R192: 3 | S192: 0 | T192: 0 | U192: 0 | V192: 0 | W192: 0 | X192: 0 | Y192: 0 | AD192: =_xlfn.TEXTJOIN("^",,W187:W201) -> 100^0 | AF192: 3 | AH192: 3 | AK192: =$C192 -> 3 | AL192: 3 | AM192: 3 | AR192: =_xlfn.TEXTJOIN("^",,AM187:AM201) -> 4^2^1^3^5
C193: 5 | F193: 0 | G193: 0 | I193: 0 | K193: 0 | M193: 0 | P193: =_xlfn.TEXTJOIN("^",,J187:J201) -> 0^0 | R193: 5 | U193: 0 | V193: 0 | X193: 0 | Y193: 0 | AD193: =_xlfn.TEXTJOIN("^",,X187:X201) -> 0^0^0 | AF193: 5 | AG193: =$C193 -> 5 | AI193: =$C193 -> 5 | AK193: 5 | AL193: 5 | AM193: 5 | AR193: =_xlfn.TEXTJOIN("^",,AN187:AN201) -> 
C194: 7 | K194: 0 | P194: =_xlfn.TEXTJOIN("^",,K187:K201) -> 0^0^0^0 | R194: 7 | AD194: =_xlfn.TEXTJOIN("^",,Y187:Y201) -> 0^0^0 | AF194: 7 | AK194: 7 | AL194: 7 | AR194: =_xlfn.TEXTJOIN("^",,AO187:AO201) -> 
C195: 9 | P195: =_xlfn.TEXTJOIN("^",,L187:L201) -> 100 | R195: 9 | AF195: 9 | AR195: =_xlfn.TEXTJOIN("^",,AP187:AP201) -> 
C196: 空降 | P196: =_xlfn.TEXTJOIN("^",,M187:M201) -> 0^0^0 | R196: 空降 | AF196: 空降 | AR196: =_xlfn.TEXTJOIN("^",,AQ187:AQ195) -> 
C197: 101 | P197: =_xlfn.TEXTJOIN("^",,N187:N201) ->  | R197: 101 | AD197: =_xlfn.TEXTJOIN("^",,Z187:Z201) ->  | AF197: 101
C198: 102 | R198: 102 | AD198: =_xlfn.TEXTJOIN("^",,AA187:AA201) ->  | AF198: 102 | AJ198: =$C198 -> 102
C199: 103 | R199: 103 | AD199: =_xlfn.TEXTJOIN("^",,AB187:AB201) ->  | AF199: 103
C200: 104 | R200: 104 | AF200: 104 | AJ200: =$C200 -> 104
C201: 105 | R201: 105 | AF201: 105
O202: 最终 | P202: =_xlfn.TEXTJOIN("|",,P187:P201) -> 0^0|0^0|0^0^0|0^0^0|100^0|0^0^0|0^0|0^0^0^0|100|0^0^0 | AC202: 最终 | AD202: =_xlfn.TEXTJOIN("|",,AD187:AD201) -> 0^0|0^0|0^0^0|0^0^0|100^0|0^0^0|0^0^0 | AQ202: 最终 | AR202: =_xlfn.TEXTJOIN("^",,AR186:AR201) -> 4^1^5^2^1^3^4^1^5^102^104^6^4^2^3^5^7^6^4^2^3^5^7^4^2^1^3^5
C204: 时间 | D204: 5 | E204: 15 | F204: 30 | G204: 45 | H204: 50 | I204: 65 | J204: 81 | K204: 97 | L204: 100 | M204: 115 | R204: 时间 | S204: 3 | T204: 15 | U204: 30 | V204: 45 | W204: 50 | X204: 65 | Y204: 80 | AD204: =_xlfn.TEXTJOIN("^",,S205:S213) -> 8^20 | AF204: 时间 | AG204: 3 | AH204: 5 | AI204: 8 | AJ204: 12 | AK204: 20 | AL204: 35 | AM204: 50 | AR204: =_xlfn.TEXTJOIN("^",,AG205:AG213) -> 3^3^3
C205: 8 | P205: =_xlfn.TEXTJOIN("^",,D205:D214) -> 5^2 | R205: 8 | AD205: =_xlfn.TEXTJOIN("^",,T205:T213) -> 4^6 | AF205: 8 | AR205: =_xlfn.TEXTJOIN("^",,AH205:AH213) -> 5^5^5
C206: 6 | P206: =_xlfn.TEXTJOIN("^",,E205:E214) -> 3^8 | R206: 6 | AD206: =_xlfn.TEXTJOIN("^",,U205:U213) -> 4^3^2 | AF206: 6 | AK206: =AK$204 -> 20 | AL206: 35 | AR206: =_xlfn.TEXTJOIN("^",,AI205:AI213) -> 8^8^8
C207: 4 | P207: =_xlfn.TEXTJOIN("^",,F205:F214) -> 2^7^3 | R207: 4 | AD207: =_xlfn.TEXTJOIN("^",,V205:V213) -> 2^8^3 | AF207: 4 | AG207: =AG$204 -> 3 | AI207: =AI$204 -> 8 | AK207: 20 | AL207: 35 | AM207: =AM$204 -> 50 | AR207: =_xlfn.TEXTJOIN("^",,AJ205:AJ213) -> 12^12
C208: 2 | P208: =_xlfn.TEXTJOIN("^",,G205:G214) -> 3^4^3 | R208: 2 | AD208: =_xlfn.TEXTJOIN("^",,W205:W213) -> 7^1 | AF208: 2 | AH208: =AH$204 -> 5 | AJ208: =AJ$204 -> 12 | AK208: 20 | AL208: 35 | AM208: 50 | AR208: =_xlfn.TEXTJOIN("^",,AK205:AK213) -> 20^20^20^20^20^20
C209: 1 | D209: 5 | E209: 3 | F209: 2 | G209: 3 | H209: 6 | I209: 8 | J209: 4 | K209: 2 | L209: 6 | M209: 2 | P209: =_xlfn.TEXTJOIN("^",,H205:H214) -> 6^6 | R209: 1 | S209: 8 | T209: 4 | U209: 4 | V209: 2 | W209: 7 | X209: 2 | Y209: 3 | AD209: =_xlfn.TEXTJOIN("^",,X205:X213) -> 2^8^3 | AF209: 1 | AG209: =AG$204 -> 3 | AH209: 5 | AI209: =AI$204 -> 8 | AM209: 50 | AR209: =_xlfn.TEXTJOIN("^",,AL205:AL213) -> 35^35^35^35^35^35
C210: 3 | D210: 2 | E210: 8 | F210: 7 | G210: 4 | H210: 6 | I210: 2 | J210: 7 | K210: 3 | M210: 4 | P210: =_xlfn.TEXTJOIN("^",,I205:I214) -> 8^2^4 | R210: 3 | S210: 20 | T210: 6 | U210: 3 | V210: 8 | W210: 1 | X210: 8 | Y210: 4 | AD210: =_xlfn.TEXTJOIN("^",,Y205:Y213) -> 3^4^3 | AF210: 3 | AH210: 5 | AJ210: =AJ$204 -> 12 | AK210: =AK$204 -> 20 | AL210: 35 | AM210: 50 | AR210: =_xlfn.TEXTJOIN("^",,AM205:AM213) -> 50^50^50^50^50
C211: 5 | F211: 3 | G211: 3 | I211: 4 | K211: 7 | M211: 7 | P211: =_xlfn.TEXTJOIN("^",,J205:J214) -> 4^7 | R211: 5 | U211: 2 | V211: 3 | X211: 3 | Y211: 3 | AD211: =_xlfn.TEXTJOIN("^",,Z205:Z213) ->  | AF211: 5 | AG211: =AG$204 -> 3 | AI211: =AI$204 -> 8 | AK211: 20 | AL211: 35 | AM211: 50 | AR211: =_xlfn.TEXTJOIN("^",,AN205:AN213) -> 
C212: 7 | K212: 3 | P212: =_xlfn.TEXTJOIN("^",,K205:K214) -> 2^3^7^3 | R212: 7 | AD212: =_xlfn.TEXTJOIN("^",,AA205:AA213) ->  | AF212: 7 | AK212: 20 | AL212: 35 | AR212: =_xlfn.TEXTJOIN("^",,AO205:AO213) -> 
... 59 more rows

Sheet 5
E2: =E3-D3 -> 10 | F2: =F3-E3 -> 15 | G2: 16 | H2: 17 | I2: 7 | J2: 15 | K2: 18 | L2: 2 | M2: 15 | T2: =T3-S3 -> 11 | U2: 15 | V2: 16 | W2: 4 | X2: 15 | Y2: 20 | AH2: =AH3-AG3 -> 2 | AI2: 4 | AJ2: 6 | AK2: 8 | AL2: 7 | AM2: 10
A3: 3 | B3: 火山-1 | C3: 波1·怪物 | D3: 5 | E3: 15 | F3: 30 | G3: 46 | H3: 63 | I3: 70 | J3: 85 | K3: 103 | L3: 105 | M3: 120 | Q3: 3 | R3: 波2·怪物 | S3: 4 | T3: 15 | U3: 30 | V3: 46 | W3: 50 | X3: 65 | Y3: 85 | AE3: 1 | AF3: 波3·怪物 | AG3: 3 | AH3: 5 | AI3: 9 | AJ3: 15 | AK3: 23 | AL3: 30 | AM3: 40
B4: 5m | C4: 8 | P4: =_xlfn.TEXTJOIN("^",,D4:D13) -> 60211 | R4: 8 | AD4: =_xlfn.TEXTJOIN("^",,S4:S13) -> 60214^60211^60213 | AF4: 8 | AR4: =_xlfn.TEXTJOIN("^",,AG4:AG13) -> 60214^60211^60211^60214
C5: 6 | P5: =_xlfn.TEXTJOIN("^",,E4:E13) -> 60212^60211 | R5: 6 | AD5: =_xlfn.TEXTJOIN("^",,T4:T13) -> 60212^60211 | AF5: 6 | AK5: 60212 | AL5: 60212 | AM5: 60214 | AR5: =_xlfn.TEXTJOIN("^",,AH4:AH13) -> 60212^60212^60212
C6: 4 | P6: =_xlfn.TEXTJOIN("^",,F4:F13) -> 60214^60213^60212 | R6: 4 | AD6: =_xlfn.TEXTJOIN("^",,U4:U13) -> 60213^60211^60214 | AF6: 4 | AG6: 60214 | AH6: 60212 | AJ6: 60211 | AK6: 60214 | AL6: 60211 | AM6: 60212 | AR6: =_xlfn.TEXTJOIN("^",,AI4:AI13) -> 60215^60215^60215
C7: 2 | P7: =_xlfn.TEXTJOIN("^",,G4:G13) -> 60213^60211^60212^60214 | R7: 2 | AD7: =_xlfn.TEXTJOIN("^",,V4:V13) -> 60212^60211 | AF7: 2 | AG7: 60211 | AI7: 60215 | AJ7: 60213 | AK7: 60213 | AL7: 60211 | AR7: =_xlfn.TEXTJOIN("^",,AJ4:AJ13) -> 60211^60213^60213^60211
C8: 1 | D8: 60211 | E8: 60212 | F8: 60214 | G8: 60213 | H8: 60211 | I8: 60215 | J8: 60213 | K8: 60214 | L8: 60215 | M8: 60213 | P8: =_xlfn.TEXTJOIN("^",,H4:H13) -> 60211^60212 | R8: 1 | S8: 60214 | T8: 60212 | U8: 60213 | V8: 60212 | W8: 60215 | X8: 60214 | Y8: 60213 | AD8: =_xlfn.TEXTJOIN("^",,W4:W13) -> 60215 | AF8: 1 | AH8: 60212 | AI8: 60215 | AM8: 60212 | AR8: =_xlfn.TEXTJOIN("^",,AK4:AK13) -> 60212^60214^60213^60213^60214^60212
C9: 3 | E9: 60211 | F9: 60213 | G9: 60211 | H9: 60212 | J9: 60212 | K9: 60211 | M9: 60211 | P9: =_xlfn.TEXTJOIN("^",,I4:I13) -> 60215 | R9: 3 | S9: 60211 | T9: 60211 | U9: 60211 | V9: 60211 | X9: 60211 | Y9: 60211 | AD9: =_xlfn.TEXTJOIN("^",,X4:X13) -> 60214^60211^60212 | AF9: 3 | AG9: 60211 | AI9: 60215 | AJ9: 60213 | AK9: 60213 | AL9: 60211 | AR9: =_xlfn.TEXTJOIN("^",,AL4:AL13) -> 60212^60211^60211^60211^60211^60212
C10: 5 | F10: 60212 | G10: 60212 | J10: 60214 | K10: 60212 | M10: 60214 | P10: =_xlfn.TEXTJOIN("^",,J4:J13) -> 60213^60212^60214 | R10: 5 | S10: 60213 | U10: 60214 | X10: 60212 | Y10: 60212 | AD10: =_xlfn.TEXTJOIN("^",,Y4:Y13) -> 60213^60211^60212 | AF10: 5 | AG10: 60214 | AH10: 60212 | AJ10: 60211 | AK10: 60214 | AL10: 60211 | AM10: 60212 | AR10: =_xlfn.TEXTJOIN("^",,AM4:AM13) -> 60214^60212^60212^60212^60214
C11: 7 | G11: 60214 | P11: =_xlfn.TEXTJOIN("^",,K4:K13) -> 60214^60211^60212 | R11: 7 | AD11: =_xlfn.TEXTJOIN("^",,Z4:Z13) ->  | AF11: 7 | AK11: 60212 | AL11: 60212 | AM11: 60214 | AR11: =_xlfn.TEXTJOIN("^",,AN4:AN13) -> 
C12: 9 | P12: =_xlfn.TEXTJOIN("^",,L4:L13) -> 60215 | R12: 9 | AD12: =_xlfn.TEXTJOIN("^",,AA4:AA13) ->  | AF12: 9 | AR12: =_xlfn.TEXTJOIN("^",,AO4:AO13) -> 
P13: =_xlfn.TEXTJOIN("^",,M4:M13) -> 60213^60211^60214 | AD13: =_xlfn.TEXTJOIN("^",,AB4:AB13) ->  | AR13: =_xlfn.TEXTJOIN("^",,AP4:AP13) -> 
P14: =_xlfn.TEXTJOIN("^",,N4:N13) ->  | AD14: =_xlfn.TEXTJOIN("^",,AC4:AC13) ->  | AR14: =_xlfn.TEXTJOIN("^",,AQ4:AQ13) -> 
O15: 最终 | P15: =_xlfn.TEXTJOIN("|",,P4:P14) -> 60211|60212^60211|60214^60213^60212|60213^60211^60212^60214|60211^60212|60215|60213^60212^60214|60214^60211^60212|60215|60213^60211^60214 | AC15: 最终 | AD15: =_xlfn.TEXTJOIN("|",,AD4:AD14) -> 60214^60211^60213|60212^60211|60213^60211^60214|60212^60211|60215|60214^60211^60212|60213^60211^60212 | AQ15: 最终 | AR15: =_xlfn.TEXTJOIN("^",,AR4:AR14) -> 60214^60211^60211^60214^60212^60212^60212^60215^60215^60215^60211^60213^60213^60211^60212^60214^60213^60213^60214^60212^60212^60211^60211^60211^60211^60212^60214^60212^60212^60212^60214
C16: 8 | R16: 8 | AF16: 8
C17: 6 | R17: 6 | AF17: 6 | AK17: 岩浆人 | AL17: 岩浆人 | AM17: 火精灵
C18: 4 | R18: 4 | AF18: 4 | AG18: 火精灵 | AH18: 岩浆人 | AJ18: 岩浆蝎 | AK18: 火精灵 | AL18: 岩浆蝎 | AM18: 岩浆人
C19: 2 | R19: 2 | AF19: 2 | AG19: 岩浆蝎 | AI19: 火山蜘蛛 | AJ19: 岩浆战士 | AK19: 岩浆战士 | AL19: 岩浆蝎
C20: 1 | D20: 岩浆蝎 | E20: 岩浆人 | F20: 火精灵 | G20: 岩浆战士 | H20: 岩浆蝎 | I20: 火山蜘蛛 | J20: 岩浆战士 | K20: 火精灵 | L20: 火山蜘蛛 | M20: 岩浆战士 | R20: 1 | S20: 火精灵 | T20: 岩浆人 | U20: 岩浆战士 | V20: 岩浆人 | W20: 火山蜘蛛 | X20: 火精灵 | Y20: 岩浆战士 | AF20: 1 | AH20: 岩浆人 | AI20: 火山蜘蛛 | AM20: 岩浆人
C21: 3 | E21: 岩浆蝎 | F21: 岩浆战士 | G21: 岩浆蝎 | H21: 岩浆人 | J21: 岩浆人 | K21: 岩浆蝎 | M21: 岩浆蝎 | R21: 3 | S21: 岩浆蝎 | T21: 岩浆蝎 | U21: 岩浆蝎 | V21: 岩浆蝎 | X21: 岩浆蝎 | Y21: 岩浆蝎 | AF21: 3 | AG21: 岩浆蝎 | AI21: 火山蜘蛛 | AJ21: 岩浆战士 | AK21: 岩浆战士 | AL21: 岩浆蝎
C22: 5 | F22: 岩浆人 | G22: 岩浆人 | J22: 火精灵 | K22: 岩浆人 | M22: 火精灵 | R22: 5 | S22: 岩浆战士 | U22: 火精灵 | X22: 岩浆人 | Y22: 岩浆人 | AF22: 5 | AG22: 火精灵 | AH22: 岩浆人 | AJ22: 岩浆蝎 | AK22: 火精灵 | AL22: 岩浆蝎 | AM22: 岩浆人
C23: 7 | G23: 火精灵 | R23: 7 | AF23: 7 | AK23: 岩浆人 | AL23: 岩浆人 | AM23: 火精灵
C24: 9 | R24: 9 | AF24: 9
C26: 位置 | D26: 5 | E26: 15 | F26: 30 | G26: 46 | H26: 63 | I26: 70 | J26: 85 | K26: 103 | L26: 105 | M26: 120 | R26: 位置 | S26: 4 | T26: 15 | U26: 30 | V26: 46 | W26: 50 | X26: 65 | Y26: 85 | AF26: 位置 | AG26: 3 | AH26: 5 | AI26: 9 | AJ26: 15 | AK26: 23 | AL26: 30 | AM26: 40 | AR26: =_xlfn.TEXTJOIN("^",,AG27:AG41) -> 4^2^3^5
C27: 8 | P27: =_xlfn.TEXTJOIN("^",,D27:D41) -> 0 | R27: 8 | AF27: 8 | AR27: =_xlfn.TEXTJOIN("^",,AH27:AH41) -> 4^1^5
C28: 6 | P28: =_xlfn.TEXTJOIN("^",,E27:E41) -> 0^0 | R28: 6 | AD28: =_xlfn.TEXTJOIN("^",,S27:S41) -> 0^0^0 | AF28: 6 | AK28: =$C28 -> 6 | AL28: 6 | AM28: 6 | AR28: =_xlfn.TEXTJOIN("^",,AI27:AI41) -> 102^103^104
C29: 4 | P29: =_xlfn.TEXTJOIN("^",,F27:F41) -> 0^0^0 | R29: 4 | AD29: =_xlfn.TEXTJOIN("^",,T27:T41) -> 0^0 | AF29: 4 | AG29: =$C29 -> 4 | AH29: =$C29 -> 4 | AJ29: =$C29 -> 4 | AK29: 4 | AL29: 4 | AM29: 4 | AR29: =_xlfn.TEXTJOIN("^",,AJ27:AJ41) -> 4^2^3^5
C30: 2 | P30: =_xlfn.TEXTJOIN("^",,G27:G41) -> 0^0^0^0 | R30: 2 | AD30: =_xlfn.TEXTJOIN("^",,U27:U41) -> 0^0^0 | AF30: 2 | AG30: 2 | AJ30: 2 | AK30: 2 | AL30: 2 | AR30: =_xlfn.TEXTJOIN("^",,AK27:AK41) -> 6^4^2^3^5^7
C31: 1 | D31: 0 | E31: 0 | F31: 0 | G31: 0 | H31: 0 | I31: 100 | J31: 0 | K31: 0 | L31: 100 | M31: 0 | P31: =_xlfn.TEXTJOIN("^",,H27:H41) -> 0^0 | R31: 1 | S31: 0 | T31: 0 | U31: 0 | V31: 0 | W31: 100 | X31: 0 | Y31: 0 | AD31: =_xlfn.TEXTJOIN("^",,V27:V41) -> 0^0 | AF31: 1 | AH31: =$C31 -> 1 | AM31: =$C31 -> 1 | AR31: =_xlfn.TEXTJOIN("^",,AL27:AL41) -> 6^4^2^3^5^7
C32: 3 | E32: 0 | F32: 0 | G32: 0 | H32: 0 | J32: 0 | K32: 0 | M32: 0 | P32: =_xlfn.TEXTJOIN("^",,I27:I41) -> 100 | R32: 3 | S32: 0 | T32: 0 | U32: 0 | V32: 0 | X32: 0 | Y32: 0 | AD32: =_xlfn.TEXTJOIN("^",,W27:W41) -> 100 | AF32: 3 | AG32: =$C32 -> 3 | AJ32: =$C32 -> 3 | AK32: 3 | AL32: 3 | AR32: =_xlfn.TEXTJOIN("^",,AM27:AM41) -> 6^4^1^5^7
C33: 5 | F33: 0 | G33: 0 | J33: 0 | K33: 0 | M33: 0 | P33: =_xlfn.TEXTJOIN("^",,J27:J41) -> 0^0^0 | R33: 5 | S33: 0 | U33: 0 | X33: 0 | Y33: 0 | AD33: =_xlfn.TEXTJOIN("^",,X27:X41) -> 0^0^0 | AF33: 5 | AG33: 5 | AH33: =$C33 -> 5 | AJ33: 5 | AK33: 5 | AL33: 5 | AM33: 5 | AR33: =_xlfn.TEXTJOIN("^",,AN27:AN41) -> 
C34: 7 | G34: 0 | P34: =_xlfn.TEXTJOIN("^",,K27:K41) -> 0^0^0 | R34: 7 | AD34: =_xlfn.TEXTJOIN("^",,Y27:Y41) -> 0^0^0 | AF34: 7 | AK34: 7 | AL34: 7 | AM34: 7 | AR34: =_xlfn.TEXTJOIN("^",,AO27:AO41) -> 
C35: 9 | P35: =_xlfn.TEXTJOIN("^",,L27:L41) -> 100 | R35: 9 | AF35: 9 | AR35: =_xlfn.TEXTJOIN("^",,AP27:AP41) -> 
C36: 空降 | P36: =_xlfn.TEXTJOIN("^",,M27:M41) -> 0^0^0 | R36: 空降 | AF36: 空降 | AR36: =_xlfn.TEXTJOIN("^",,AQ27:AQ35) -> 
C37: 101 | P37: =_xlfn.TEXTJOIN("^",,N27:N41) ->  | R37: 101 | AD37: =_xlfn.TEXTJOIN("^",,Z27:Z41) ->  | AF37: 101
C38: 102 | R38: 102 | AD38: =_xlfn.TEXTJOIN("^",,AA27:AA41) ->  | AF38: 102 | AI38: =$C38 -> 102
C39: 103 | R39: 103 | AD39: =_xlfn.TEXTJOIN("^",,AB27:AB41) ->  | AF39: 103 | AI39: =$C39 -> 103
C40: 104 | R40: 104 | AF40: 104 | AI40: =$C40 -> 104
C41: 105 | R41: 105 | AF41: 105
O42: 最终 | P42: =_xlfn.TEXTJOIN("|",,P27:P41) -> 0|0^0|0^0^0|0^0^0^0|0^0|100|0^0^0|0^0^0|100|0^0^0 | AC42: 最终 | AD42: =_xlfn.TEXTJOIN("|",,AD27:AD41) -> 0^0^0|0^0|0^0^0|0^0|100|0^0^0|0^0^0 | AQ42: 最终 | AR42: =_xlfn.TEXTJOIN("^",,AR26:AR41) -> 4^2^3^5^4^1^5^102^103^104^4^2^3^5^6^4^2^3^5^7^6^4^2^3^5^7^6^4^1^5^7
C44: 时间 | D44: 5 | E44: 15 | F44: 30 | G44: 46 | H44: 63 | I44: 70 | J44: 85 | K44: 103 | L44: 105 | M44: 120 | R44: 时间 | S44: 4 | T44: 15 | U44: 30 | V44: 46 | W44: 50 | X44: 65 | Y44: 85 | AD44: =_xlfn.TEXTJOIN("^",,S45:S53) -> 6^22^4 | AF44: 时间 | AG44: 3 | AH44: 5 | AI44: 9 | AJ44: 15 | AK44: 23 | AL44: 30 | AM44: 40 | AR44: =_xlfn.TEXTJOIN("^",,AG45:AG53) -> 3^3^3^3
C45: 8 | P45: =_xlfn.TEXTJOIN("^",,D45:D54) -> 7 | R45: 8 | AD45: =_xlfn.TEXTJOIN("^",,T45:T53) -> 4^7 | AF45: 8 | AR45: =_xlfn.TEXTJOIN("^",,AH45:AH53) -> 5^5^5
C46: 6 | P46: =_xlfn.TEXTJOIN("^",,E45:E54) -> 3^6 | R46: 6 | AD46: =_xlfn.TEXTJOIN("^",,U45:U53) -> 3^8^2 | AF46: 6 | AK46: =AK$44 -> 23 | AL46: 30 | AM46: 40 | AR46: =_xlfn.TEXTJOIN("^",,AI45:AI53) -> 9^9^9
C47: 4 | P47: =_xlfn.TEXTJOIN("^",,F45:F54) -> 2^3^4 | R47: 4 | AD47: =_xlfn.TEXTJOIN("^",,V45:V53) -> 4^8 | AF47: 4 | AG47: =AG$44 -> 3 | AH47: =AH$44 -> 5 | AJ47: =AJ$44 -> 15 | AK47: 23 | AL47: 30 | AM47: 40 | AR47: =_xlfn.TEXTJOIN("^",,AJ45:AJ53) -> 15^15^15^15
C48: 2 | P48: =_xlfn.TEXTJOIN("^",,G45:G54) -> 2^6^3^2 | R48: 2 | AD48: =_xlfn.TEXTJOIN("^",,W45:W53) -> 7 | AF48: 2 | AG48: 3 | AI48: =AI$44 -> 9 | AJ48: 15 | AK48: 23 | AL48: 30 | AR48: =_xlfn.TEXTJOIN("^",,AK45:AK53) -> 23^23^23^23^23^23
C49: 1 | D49: 7 | E49: 3 | F49: 2 | G49: 2 | H49: 8 | I49: 7 | J49: 4 | K49: 2 | L49: 8 | M49: 4 | P49: =_xlfn.TEXTJOIN("^",,H45:H54) -> 8^4 | R49: 1 | S49: 6 | T49: 4 | U49: 3 | V49: 4 | W49: 7 | X49: 2 | Y49: 2 | AD49: =_xlfn.TEXTJOIN("^",,X45:X53) -> 2^9^3 | AF49: 1 | AH49: =AH$44 -> 5 | AI49: =AI$44 -> 9 | AM49: =AM$44 -> 40 | AR49: =_xlfn.TEXTJOIN("^",,AL45:AL53) -> 30^30^30^30^30^30
C50: 3 | E50: 6 | F50: 3 | G50: 6 | H50: 4 | J50: 4 | K50: 8 | M50: 8 | P50: =_xlfn.TEXTJOIN("^",,I45:I54) -> 7 | R50: 3 | S50: 22 | T50: 7 | U50: 8 | V50: 8 | X50: 9 | Y50: 8 | AD50: =_xlfn.TEXTJOIN("^",,Y45:Y53) -> 2^8^4 | AF50: 3 | AG50: =AG$44 -> 3 | AI50: =AI$44 -> 9 | AJ50: =AJ$44 -> 15 | AK50: 23 | AL50: 30 | AR50: =_xlfn.TEXTJOIN("^",,AM45:AM53) -> 40^40^40^40^40
C51: 5 | F51: 4 | G51: 3 | J51: 2 | K51: 3 | M51: 2 | P51: =_xlfn.TEXTJOIN("^",,J45:J54) -> 4^4^2 | R51: 5 | S51: 4 | U51: 2 | X51: 3 | Y51: 4 | AD51: =_xlfn.TEXTJOIN("^",,Z45:Z53) ->  | AF51: 5 | AG51: 3 | AH51: =AH$44 -> 5 | AJ51: 15 | AK51: 23 | AL51: 30 | AM51: 40 | AR51: =_xlfn.TEXTJOIN("^",,AN45:AN53) -> 
C52: 7 | G52: 2 | P52: =_xlfn.TEXTJOIN("^",,K45:K54) -> 2^8^3 | R52: 7 | AD52: =_xlfn.TEXTJOIN("^",,AA45:AA53) ->  | AF52: 7 | AK52: 23 | AL52: 30 | AM52: 40 | AR52: =_xlfn.TEXTJOIN("^",,AO45:AO53) -> 
C53: 9 | P53: =_xlfn.TEXTJOIN("^",,L45:L54) -> 8 | R53: 9 | AD53: =_xlfn.TEXTJOIN("^",,AB45:AB53) ->  | AF53: 9 | AR53: =_xlfn.TEXTJOIN("^",,AP45:AP53) -> 
P54: =_xlfn.TEXTJOIN("^",,M45:M54) -> 4^8^2 | AD54: =_xlfn.TEXTJOIN("^",,AC45:AC53) ->  | AR54: =_xlfn.TEXTJOIN("^",,AQ45:AQ53) -> 
P55: =_xlfn.TEXTJOIN("^",,N45:N54) ->  | AC55: 最终 | AD55: =_xlfn.TEXTJOIN("|",,AD44:AD54) -> 6^22^4|4^7|3^8^2|4^8|7|2^9^3|2^8^4 | AQ55: 最终 | AR55: =_xlfn.TEXTJOIN("^",,AR44:AR54) -> 3^3^3^3^5^5^5^9^9^9^15^15^15^15^23^23^23^23^23^23^30^30^30^30^30^30^40^40^40^40^40
O56: 最终 | P56: =_xlfn.TEXTJOIN("|",,P45:P55) -> 7|3^6|2^3^4|2^6^3^2|8^4|7|4^4^2|2^8^3|8|4^8^2
P57: =SUM(D46:N53) -> 102 | AD57: =SUM(S46:AB51) -> 103 | AR57: =COUNT(AG46:AM53) -> 31
AR58: =AR57+AD57+P57 -> 236
E60: =E61-D61 -> 10 | F60: =F61-E61 -> 15 | G60: 16 | H60: 17 | I60: 7 | J60: 12 | K60: 18 | L60: 5 | M60: 15 | T60: =T61-S61 -> 11 | U60: 15 | V60: 16 | W60: 4 | X60: 15 | Y60: 20 | AH60: =AH61-AG61 -> 2 | AI60: 4 | AJ60: 5 | AK60: 5 | AL60: 5 | AM60: 5
A61: 3 | B61: 火山-2 | C61: 波1·怪物 | D61: 5 | E61: 15 | F61: 30 | G61: 46 | H61: 63 | I61: 70 | J61: 82 | K61: 100 | L61: 105 | M61: 120 | Q61: 3 | R61: 波2·怪物 | S61: 4 | T61: 15 | U61: 30 | V61: 46 | W61: 50 | X61: 65 | Y61: 85 | AE61: 1 | AF61: 波3·怪物 | AG61: 4 | AH61: 6 | AI61: 10 | AJ61: 15 | AK61: 20 | AL61: 25 | AM61: 30
B62: 5m | C62: 8 | P62: =_xlfn.TEXTJOIN("^",,D62:D71) -> 60224^60221 | R62: 8 | AD62: =_xlfn.TEXTJOIN("^",,S62:S71) -> 60224^60222^60221 | AF62: 8 | AR62: =_xlfn.TEXTJOIN("^",,AG62:AG71) -> 60224^60222^60222^60224
C63: 6 | P63: =_xlfn.TEXTJOIN("^",,E62:E71) -> 60222^60221 | R63: 6 | AD63: =_xlfn.TEXTJOIN("^",,T62:T71) -> 60221^60222 | AF63: 6 | AK63: 60222 | AL63: 60222 | AM63: 60224 | AR63: =_xlfn.TEXTJOIN("^",,AH62:AH71) -> 60221^60221^60221
C64: 4 | P64: =_xlfn.TEXTJOIN("^",,F62:F71) -> 60224^60223^60221 | R64: 4 | AD64: =_xlfn.TEXTJOIN("^",,U62:U71) -> 60223^60221^60222 | AF64: 4 | AG64: 60224 | AH64: 60221 | AJ64: 60222 | AK64: 60224 | AL64: 60221 | AM64: 60222 | AR64: =_xlfn.TEXTJOIN("^",,AI62:AI71) -> 60225^60225
C65: 2 | P65: =_xlfn.TEXTJOIN("^",,G62:G71) -> 60224^60222^60221 | R65: 2 | AD65: =_xlfn.TEXTJOIN("^",,V62:V71) -> 60222^60224^60226 | AF65: 2 | AG65: 60222 | AI65: 60225 | AJ65: 60223 | AK65: 60221 | AL65: 60221 | AR65: =_xlfn.TEXTJOIN("^",,AJ62:AJ71) -> 60222^60223^60226^60223^60222
C66: 1 | D66: 60224 | E66: 60222 | F66: 60224 | G66: 60224 | H66: 60221 | I66: 60225 | J66: 60223 | K66: 60222 | L66: 60225 | M66: 60223 | P66: =_xlfn.TEXTJOIN("^",,H62:H71) -> 60221^60222^60223 | R66: 1 | S66: 60224 | T66: 60221 | U66: 60223 | V66: 60222 | W66: 60225 | X66: 60221 | Y66: 60223 | AD66: =_xlfn.TEXTJOIN("^",,W62:W71) -> 60225 | AF66: 1 | AH66: 60221 | AJ66: 60226 | AK66: 60221 | AM66: 60222 | AR66: =_xlfn.TEXTJOIN("^",,AK62:AK71) -> 60222^60224^60221^60221^60221^60224^60222
C67: 3 | D67: 60221 | E67: 60221 | F67: 60223 | G67: 60222 | H67: 60222 | J67: 60221 | K67: 60221 | L67: 60226 | M67: 60221 | P67: =_xlfn.TEXTJOIN("^",,I62:I71) -> 60225 | R67: 3 | S67: 60222 | T67: 60222 | U67: 60221 | V67: 60224 | X67: 60222 | Y67: 60222 | AD67: =_xlfn.TEXTJOIN("^",,X62:X71) -> 60221^60222 | AF67: 3 | AG67: 60222 | AI67: 60225 | AJ67: 60223 | AK67: 60221 | AL67: 60221 | AR67: =_xlfn.TEXTJOIN("^",,AL62:AL71) -> 60222^60221^60221^60221^60221^60222
C68: 5 | F68: 60221 | G68: 60221 | H68: 60223 | J68: 60222 | M68: 60222 | P68: =_xlfn.TEXTJOIN("^",,J62:J71) -> 60223^60221^60222 | R68: 5 | S68: 60221 | U68: 60222 | V68: 60226 | Y68: 60224 | AD68: =_xlfn.TEXTJOIN("^",,Y62:Y71) -> 60223^60222^60224 | AF68: 5 | AG68: 60224 | AH68: 60221 | AJ68: 60222 | AK68: 60224 | AL68: 60221 | AM68: 60222 | AR68: =_xlfn.TEXTJOIN("^",,AM62:AM71) -> 60224^60222^60222^60222^60224
C69: 7 | P69: =_xlfn.TEXTJOIN("^",,K62:K71) -> 60222^60221 | R69: 7 | AD69: =_xlfn.TEXTJOIN("^",,Z62:Z71) ->  | AF69: 7 | AK69: 60222 | AL69: 60222 | AM69: 60224 | AR69: =_xlfn.TEXTJOIN("^",,AN62:AN71) -> 
C70: 9 | P70: =_xlfn.TEXTJOIN("^",,L62:L71) -> 60225^60226 | R70: 9 | AD70: =_xlfn.TEXTJOIN("^",,AA62:AA71) ->  | AF70: 9 | AR70: =_xlfn.TEXTJOIN("^",,AO62:AO71) -> 
P71: =_xlfn.TEXTJOIN("^",,M62:M71) -> 60223^60221^60222 | AD71: =_xlfn.TEXTJOIN("^",,AB62:AB71) ->  | AR71: =_xlfn.TEXTJOIN("^",,AP62:AP71) -> 
P72: =_xlfn.TEXTJOIN("^",,N62:N71) ->  | AD72: =_xlfn.TEXTJOIN("^",,AC62:AC71) ->  | AR72: =_xlfn.TEXTJOIN("^",,AQ62:AQ71) -> 
O73: 最终 | P73: =_xlfn.TEXTJOIN("|",,P62:P72) -> 60224^60221|60222^60221|60224^60223^60221|60224^60222^60221|60221^60222^60223|60225|60223^60221^60222|60222^60221|60225^60226|60223^60221^60222 | AC73: 最终 | AD73: =_xlfn.TEXTJOIN("|",,AD62:AD72) -> 60224^60222^60221|60221^60222|60223^60221^60222|60222^60224^60226|60225|60221^60222|60223^60222^60224 | AQ73: 最终 | AR73: =_xlfn.TEXTJOIN("^",,AR62:AR72) -> 60224^60222^60222^60224^60221^60221^60221^60225^60225^60222^60223^60226^60223^60222^60222^60224^60221^60221^60221^60224^60222^60222^60221^60221^60221^60221^60222^60224^60222^60222^60222^60224
C74: 8 | R74: 8 | AF74: 8
C75: 6 | R75: 6 | AF75: 6 | AK75: 岩浆人 | AL75: 岩浆人 | AM75: 火精灵
C76: 4 | R76: 4 | AF76: 4 | AG76: 火精灵 | AH76: 岩浆蝎 | AJ76: 岩浆人 | AK76: 火精灵 | AL76: 岩浆蝎 | AM76: 岩浆人
C77: 2 | R77: 2 | AF77: 2 | AG77: 岩浆人 | AI77: 火山蜘蛛 | AJ77: 岩浆战士 | AK77: 岩浆蝎 | AL77: 岩浆蝎
C78: 1 | D78: 火精灵 | E78: 岩浆人 | F78: 火精灵 | G78: 火精灵 | H78: 岩浆蝎 | I78: 火山蜘蛛 | J78: 岩浆战士 | K78: 岩浆人 | L78: 火山蜘蛛 | M78: 岩浆战士 | R78: 1 | S78: 火精灵 | T78: 岩浆蝎 | U78: 岩浆战士 | V78: 岩浆人 | W78: 火山蜘蛛 | X78: 岩浆蝎 | Y78: 岩浆战士 | AF78: 1 | AH78: 岩浆蝎 | AJ78: 蘑菇王 | AK78: 岩浆蝎 | AM78: 岩浆人
C79: 3 | D79: 岩浆蝎 | E79: 岩浆蝎 | F79: 岩浆战士 | G79: 岩浆人 | H79: 岩浆人 | J79: 岩浆蝎 | K79: 岩浆蝎 | L79: 蘑菇王 | M79: 岩浆蝎 | R79: 3 | S79: 岩浆人 | T79: 岩浆人 | U79: 岩浆蝎 | V79: 火精灵 | X79: 岩浆人 | Y79: 岩浆人 | AF79: 3 | AG79: 岩浆人 | AI79: 火山蜘蛛 | AJ79: 岩浆战士 | AK79: 岩浆蝎 | AL79: 岩浆蝎
C80: 5 | F80: 岩浆蝎 | G80: 岩浆蝎 | H80: 岩浆战士 | J80: 岩浆人 | M80: 岩浆人 | R80: 5 | S80: 岩浆蝎 | U80: 岩浆人 | V80: 蘑菇王 | Y80: 火精灵 | AF80: 5 | AG80: 火精灵 | AH80: 岩浆蝎 | AJ80: 岩浆人 | AK80: 火精灵 | AL80: 岩浆蝎 | AM80: 岩浆人
C81: 7 | R81: 7 | AF81: 7 | AK81: 岩浆人 | AL81: 岩浆人 | AM81: 火精灵
C82: 9 | R82: 9 | AF82: 9
C84: 位置 | D84: 5 | E84: 15 | F84: 30 | G84: 46 | H84: 63 | I84: 70 | J84: 82 | K84: 100 | L84: 105 | M84: 120 | R84: 位置 | S84: 4 | T84: 15 | U84: 30 | V84: 46 | W84: 50 | X84: 65 | Y84: 85 | AF84: 位置 | AG84: 4 | AH84: 6 | AI84: 10 | AJ84: 15 | AK84: 20 | AL84: 25 | AM84: 30 | AR84: =_xlfn.TEXTJOIN("^",,AG85:AG99) -> 4^2^3^5
C85: 8 | P85: =_xlfn.TEXTJOIN("^",,D85:D99) -> 0^0 | R85: 8 | AF85: 8 | AR85: =_xlfn.TEXTJOIN("^",,AH85:AH99) -> 4^1^5
C86: 6 | P86: =_xlfn.TEXTJOIN("^",,E85:E99) -> 0^0 | R86: 6 | AD86: =_xlfn.TEXTJOIN("^",,S85:S99) -> 0^0^0 | AF86: 6 | AK86: =$C86 -> 6 | AL86: 6 | AM86: 6 | AR86: =_xlfn.TEXTJOIN("^",,AI85:AI99) -> 102^104
C87: 4 | P87: =_xlfn.TEXTJOIN("^",,F85:F99) -> 0^0^0 | R87: 4 | AD87: =_xlfn.TEXTJOIN("^",,T85:T99) -> 0^0 | AF87: 4 | AG87: =$C87 -> 4 | AH87: 4 | AJ87: =$C87 -> 4 | AK87: 4 | AL87: 4 | AM87: 4 | AR87: =_xlfn.TEXTJOIN("^",,AJ85:AJ99) -> 4^2^1^3^5
C88: 2 | P88: =_xlfn.TEXTJOIN("^",,G85:G99) -> 0^0^0 | R88: 2 | AD88: =_xlfn.TEXTJOIN("^",,U85:U99) -> 0^0^0 | AF88: 2 | AG88: 2 | AJ88: 2 | AK88: 2 | AL88: 2 | AR88: =_xlfn.TEXTJOIN("^",,AK85:AK99) -> 6^4^2^1^3^5^7
C89: 1 | D89: 0 | E89: 0 | F89: 0 | G89: 0 | H89: 0 | I89: 100 | J89: 0 | K89: 0 | L89: 100 | M89: 0 | P89: =_xlfn.TEXTJOIN("^",,H85:H99) -> 0^0^0 | R89: 1 | S89: 0 | T89: 0 | U89: 0 | V89: 0 | W89: 100 | X89: 0 | Y89: 0 | AD89: =_xlfn.TEXTJOIN("^",,V85:V99) -> 0^0^0 | AF89: 1 | AH89: =$C89 -> 1 | AJ89: 1 | AK89: 1 | AM89: =$C89 -> 1 | AR89: =_xlfn.TEXTJOIN("^",,AL85:AL99) -> 6^4^2^3^5^7
C90: 3 | D90: 0 | E90: 0 | F90: 0 | G90: 0 | H90: 0 | J90: 0 | K90: 0 | L90: 0 | M90: 0 | P90: =_xlfn.TEXTJOIN("^",,I85:I99) -> 100 | R90: 3 | S90: 0 | T90: 0 | U90: 0 | V90: 0 | X90: 0 | Y90: 0 | AD90: =_xlfn.TEXTJOIN("^",,W85:W99) -> 100 | AF90: 3 | AG90: =$C90 -> 3 | AJ90: =$C90 -> 3 | AK90: 3 | AL90: 3 | AR90: =_xlfn.TEXTJOIN("^",,AM85:AM99) -> 6^4^1^5^7
C91: 5 | F91: 0 | G91: 0 | H91: 0 | J91: 0 | M91: 0 | P91: =_xlfn.TEXTJOIN("^",,J85:J99) -> 0^0^0 | R91: 5 | S91: 0 | U91: 0 | V91: 0 | Y91: 0 | AD91: =_xlfn.TEXTJOIN("^",,X85:X99) -> 0^0 | AF91: 5 | AG91: 5 | AH91: 5 | AJ91: 5 | AK91: 5 | AL91: 5 | AM91: 5 | AR91: =_xlfn.TEXTJOIN("^",,AN85:AN99) -> 
C92: 7 | P92: =_xlfn.TEXTJOIN("^",,K85:K99) -> 0^0 | R92: 7 | AD92: =_xlfn.TEXTJOIN("^",,Y85:Y99) -> 0^0^0 | AF92: 7 | AK92: 7 | AL92: 7 | AM92: 7 | AR92: =_xlfn.TEXTJOIN("^",,AO85:AO99) -> 
C93: 9 | P93: =_xlfn.TEXTJOIN("^",,L85:L99) -> 100^0 | R93: 9 | AF93: 9 | AR93: =_xlfn.TEXTJOIN("^",,AP85:AP99) -> 
C94: 空降 | P94: =_xlfn.TEXTJOIN("^",,M85:M99) -> 0^0^0 | R94: 空降 | AF94: 空降 | AR94: =_xlfn.TEXTJOIN("^",,AQ85:AQ93) -> 
C95: 101 | P95: =_xlfn.TEXTJOIN("^",,N85:N99) ->  | R95: 101 | AD95: =_xlfn.TEXTJOIN("^",,Z85:Z99) ->  | AF95: 101
C96: 102 | R96: 102 | AD96: =_xlfn.TEXTJOIN("^",,AA85:AA99) ->  | AF96: 102 | AI96: =$C96 -> 102
C97: 103 | R97: 103 | AD97: =_xlfn.TEXTJOIN("^",,AB85:AB99) ->  | AF97: 103
C98: 104 | R98: 104 | AF98: 104 | AI98: =$C98 -> 104
C99: 105 | R99: 105 | AF99: 105
O100: 最终 | P100: =_xlfn.TEXTJOIN("|",,P85:P99) -> 0^0|0^0|0^0^0|0^0^0|0^0^0|100|0^0^0|0^0|100^0|0^0^0 | AC100: 最终 | AD100: =_xlfn.TEXTJOIN("|",,AD85:AD99) -> 0^0^0|0^0|0^0^0|0^0^0|100|0^0|0^0^0 | AQ100: 最终 | AR100: =_xlfn.TEXTJOIN("^",,AR84:AR99) -> 4^2^3^5^4^1^5^102^104^4^2^1^3^5^6^4^2^1^3^5^7^6^4^2^3^5^7^6^4^1^5^7
C102: 时间 | D102: 5 | E102: 15 | F102: 30 | G102: 46 | H102: 63 | I102: 70 | J102: 82 | K102: 100 | L102: 105 | M102: 120 | R102: 时间 | S102: 4 | T102: 15 | U102: 30 | V102: 46 | W102: 50 | X102: 65 | Y102: 85 | AD102: =_xlfn.TEXTJOIN("^",,S103:S111) -> 6^8^18 | AF102: 时间 | AG102: 4 | AH102: 6 | AI102: 10 | AJ102: 15 | AK102: 20 | AL102: 25 | AM102: 30 | AR102: =_xlfn.TEXTJOIN("^",,AG103:AG111) -> 4^4^4^4
C103: 8 | P103: =_xlfn.TEXTJOIN("^",,D103:D112) -> 2^5 | R103: 8 | AD103: =_xlfn.TEXTJOIN("^",,T103:T111) -> 6^4 | AF103: 8 | AR103: =_xlfn.TEXTJOIN("^",,AH103:AH111) -> 6^6^6
C104: 6 | P104: =_xlfn.TEXTJOIN("^",,E103:E112) -> 4^5 | R104: 6 | AD104: =_xlfn.TEXTJOIN("^",,U103:U111) -> 3^8^3 | AF104: 6 | AK104: =AK$102 -> 20 | AL104: 25 | AM104: 30 | AR104: =_xlfn.TEXTJOIN("^",,AI103:AI111) -> 10^10
C105: 4 | P105: =_xlfn.TEXTJOIN("^",,F103:F112) -> 2^2^6 | R105: 4 | AD105: =_xlfn.TEXTJOIN("^",,V103:V111) -> 6^3^2 | AF105: 4 | AG105: =AG$102 -> 4 | AH105: =AH$102 -> 6 | AJ105: =AJ$102 -> 15 | AK105: 20 | AL105: 25 | AM105: 30 | AR105: =_xlfn.TEXTJOIN("^",,AJ103:AJ111) -> 15^15^15^15^15
C106: 2 | P106: =_xlfn.TEXTJOIN("^",,G103:G112) -> 2^3^6 | R106: 2 | AD106: =_xlfn.TEXTJOIN("^",,W103:W111) -> 7 | AF106: 2 | AG106: 4 | AI106: =AI$102 -> 10 | AJ106: 15 | AK106: 20 | AL106: 25 | AR106: =_xlfn.TEXTJOIN("^",,AK103:AK111) -> 20^20^20^20^20^20^20
C107: 1 | D107: 2 | E107: 4 | F107: 2 | G107: 2 | H107: 7 | I107: 7 | J107: 4 | K107: 4 | L107: 8 | M107: 3 | P107: =_xlfn.TEXTJOIN("^",,H103:H112) -> 7^3^3 | R107: 1 | S107: 6 | T107: 6 | U107: 3 | V107: 6 | W107: 7 | X107: 7 | Y107: 3 | AD107: =_xlfn.TEXTJOIN("^",,X103:X111) -> 7^4 | AF107: 1 | AH107: =AH$102 -> 6 | AJ107: 15 | AK107: 20 | AM107: =AM$102 -> 30 | AR107: =_xlfn.TEXTJOIN("^",,AL103:AL111) -> 25^25^25^25^25^25
C108: 3 | D108: 5 | E108: 5 | F108: 2 | G108: 3 | H108: 3 | J108: 6 | K108: 8 | L108: 1 | M108: 8 | P108: =_xlfn.TEXTJOIN("^",,I103:I112) -> 7 | R108: 3 | S108: 8 | T108: 4 | U108: 8 | V108: 3 | X108: 4 | Y108: 4 | AD108: =_xlfn.TEXTJOIN("^",,Y103:Y111) -> 3^4^2 | AF108: 3 | AG108: =AG$102 -> 4 | AI108: =AI$102 -> 10 | AJ108: =AJ$102 -> 15 | AK108: 20 | AL108: 25 | AR108: =_xlfn.TEXTJOIN("^",,AM103:AM111) -> 30^30^30^30^30
C109: 5 | F109: 6 | G109: 6 | H109: 3 | J109: 3 | M109: 3 | P109: =_xlfn.TEXTJOIN("^",,J103:J112) -> 4^6^3 | R109: 5 | S109: 18 | U109: 3 | V109: 2 | Y109: 2 | AD109: =_xlfn.TEXTJOIN("^",,Z103:Z111) ->  | AF109: 5 | AG109: 4 | AH109: =AH$102 -> 6 | AJ109: 15 | AK109: 20 | AL109: 25 | AM109: 30 | AR109: =_xlfn.TEXTJOIN("^",,AN103:AN111) -> 
C110: 7 | P110: =_xlfn.TEXTJOIN("^",,K103:K112) -> 4^8 | R110: 7 | AD110: =_xlfn.TEXTJOIN("^",,AA103:AA111) ->  | AF110: 7 | AK110: 20 | AL110: 25 | AM110: 30 | AR110: =_xlfn.TEXTJOIN("^",,AO103:AO111) -> 
C111: 9 | P111: =_xlfn.TEXTJOIN("^",,L103:L112) -> 8^1 | R111: 9 | AD111: =_xlfn.TEXTJOIN("^",,AB103:AB111) ->  | AF111: 9 | AR111: =_xlfn.TEXTJOIN("^",,AP103:AP111) -> 
P112: =_xlfn.TEXTJOIN("^",,M103:M112) -> 3^8^3 | AD112: =_xlfn.TEXTJOIN("^",,AC103:AC111) ->  | AR112: =_xlfn.TEXTJOIN("^",,AQ103:AQ111) -> 
P113: =_xlfn.TEXTJOIN("^",,N103:N112) ->  | AC113: 最终 | AD113: =_xlfn.TEXTJOIN("|",,AD102:AD112) -> 6^8^18|6^4|3^8^3|6^3^2|7|7^4|3^4^2 | AQ113: 最终 | AR113: =_xlfn.TEXTJOIN("^",,AR102:AR112) -> 4^4^4^4^6^6^6^10^10^15^15^15^15^15^20^20^20^20^20^20^20^25^25^25^25^25^25^30^30^30^30^30
O114: 最终 | P114: =_xlfn.TEXTJOIN("|",,P103:P113) -> 2^5|4^5|2^2^6|2^3^6|7^3^3|7|4^6^3|4^8|8^1|3^8^3
P115: =SUM(D104:N111) -> 105 | AD115: =SUM(S104:AB109) -> 94 | AR115: =COUNT(AG104:AM111) -> 32
AR116: =AR115+AD115+P115 -> 231
E118: =E119-D119 -> 5 | F118: =F119-E119 -> 6 | G118: 7 | H118: 7 | I118: 5 | J118: 8 | K118: 9 | L118: 8 | M118: 5 | T118: =T119-S119 -> 4 | U118: 6 | V118: 7 | W118: 5 | X118: 7 | Y118: 8 | AH118: =AH119-AG119 -> 2 | AI118: 5 | AJ118: 5 | AK118: 10 | AL118: 15 | AM118: 15
A119: 1 | B119: 火山-3 | C119: 波1·怪物 | D119: 5 | E119: 10 | F119: 16 | G119: 23 | H119: 30 | I119: 35 | J119: 43 | K119: 52 | L119: 60 | M119: 65 | Q119: 1 | R119: 波2·怪物 | S119: 3 | T119: 7 | U119: 13 | V119: 20 | W119: 25 | X119: 32 | Y119: 40 | AE119: 3 | AF119: 波3·怪物 | AG119: 3 | AH119: 5 | AI119: 10 | AJ119: 15 | AK119: 25 | AL119: 40 | AM119: 55
B120: 5m | C120: 8 | F120: 60232 | L120: 60234 | P120: =_xlfn.TEXTJOIN("^",,D120:D129) -> 60232^60231^60231^60231^60232 | R120: 8 | AD120: =_xlfn.TEXTJOIN("^",,S120:S129) -> 60232^60231^60231^60231^60231^60232^60232 | AF120: 8 | AR120: =_xlfn.TEXTJOIN("^",,AG120:AG129) -> 60231^60232
C121: 6 | G121: 60234 | J121: 60234 | K121: 60232 | L121: 60232 | P121: =_xlfn.TEXTJOIN("^",,E120:E129) -> 60234^60232^60232^60234 | R121: 6 | S121: 60232 | U121: 60234 | V121: 60231 | X121: 60231 | Y121: 60232 | AD121: =_xlfn.TEXTJOIN("^",,T120:T129) -> 60233^60232^60234^60232^60233 | AF121: 6 | AR121: =_xlfn.TEXTJOIN("^",,AH120:AH129) -> 60234^60232^60233
C122: 4 | D122: 60232 | E122: 60234 | G122: 60232 | H122: 60232 | I122: 60235 | J122: 60232 | K122: 60231 | M122: 60235 | P122: =_xlfn.TEXTJOIN("^",,F120:F129) -> 60232^60233^60234^60233^60232 | R122: 4 | S122: 60231 | T122: 60233 | U122: 60231 | V122: 60231 | W122: 60235 | X122: 60234 | Y122: 60231 | AD122: =_xlfn.TEXTJOIN("^",,U120:U129) -> 60234^60231^60233^60236^60233^60231^60234 | AF122: 4 | AR122: =_xlfn.TEXTJOIN("^",,AI120:AI129) -> 60235
C123: 2 | D123: 60231 | E123: 60232 | F123: 60233 | G123: 60231 | H123: 60231 | I123: 60235 | J123: 60233 | K123: 60231 | L123: 60233 | M123: 60235 | P123: =_xlfn.TEXTJOIN("^",,G120:G129) -> 60234^60232^60231^60231^60231^60232^60234 | R123: 2 | S123: 60231 | T123: 60232 | U123: 60233 | V123: 60232 | W123: 60235 | X123: 60231 | Y123: 60233 | AD123: =_xlfn.TEXTJOIN("^",,V120:V129) -> 60231^60231^60232^60232^60231^60231 | AF123: 2 | AR123: =_xlfn.TEXTJOIN("^",,AJ120:AJ129) -> 60232^60233^60231
C124: 1 | D124: 60231 | F124: 60234 | G124: 60231 | H124: 60231 | I124: 60235 | K124: 60232 | L124: 60236 | M124: 60235 | P124: =_xlfn.TEXTJOIN("^",,H120:H129) -> 60232^60231^60231^60231^60232 | R124: 1 | S124: 60231 | T124: 60234 | U124: 60236 | W124: 60235 | X124: 60231 | Y124: 60233 | AD124: =_xlfn.TEXTJOIN("^",,W120:W129) -> 60235^60235^60235^60235^60235 | AF124: 1 | AG124: 60231 | AH124: 60234 | AI124: 60235 | AJ124: 60232 | AK124: 60231 | AL124: 60233 | AM124: 60232 | AR124: =_xlfn.TEXTJOIN("^",,AK120:AK129) -> 60231^60232^60234
C125: 3 | D125: 60231 | E125: 60232 | F125: 60233 | G125: 60231 | H125: 60231 | I125: 60235 | J125: 60233 | K125: 60231 | L125: 60233 | M125: 60235 | P125: =_xlfn.TEXTJOIN("^",,I120:I129) -> 60235^60235^60235^60235^60235 | R125: 3 | S125: 60231 | T125: 60232 | U125: 60233 | V125: 60232 | W125: 60235 | X125: 60231 | Y125: 60233 | AD125: =_xlfn.TEXTJOIN("^",,X120:X129) -> 60231^60234^60231^60231^60231^60234^60231 | AF125: 3 | AG125: 60232 | AH125: 60232 | AJ125: 60233 | AK125: 60232 | AL125: 60231 | AM125: 60234 | AR125: =_xlfn.TEXTJOIN("^",,AL120:AL129) -> 60233^60231^60232
C126: 5 | D126: 60232 | E126: 60234 | G126: 60232 | H126: 60232 | I126: 60235 | J126: 60232 | K126: 60231 | M126: 60235 | P126: =_xlfn.TEXTJOIN("^",,J120:J129) -> 60234^60232^60233^60233^60232^60234 | R126: 5 | S126: 60232 | T126: 60233 | U126: 60231 | V126: 60231 | W126: 60235 | X126: 60234 | Y126: 60231 | AD126: =_xlfn.TEXTJOIN("^",,Y120:Y129) -> 60232^60231^60233^60233^60233^60231^60232 | AF126: 5 | AH126: 60233 | AJ126: 60231 | AK126: 60234 | AL126: 60232 | AR126: =_xlfn.TEXTJOIN("^",,AM120:AM129) -> 60232^60234
C127: 7 | G127: 60234 | J127: 60234 | K127: 60232 | L127: 60232 | P127: =_xlfn.TEXTJOIN("^",,K120:K129) -> 60232^60231^60231^60232^60231^60231^60232 | R127: 7 | S127: 60232 | U127: 60234 | V127: 60231 | X127: 60231 | Y127: 60232 | AD127: =_xlfn.TEXTJOIN("^",,Z120:Z129) ->  | AF127: 7 | AR127: =_xlfn.TEXTJOIN("^",,AN120:AN129) -> 
C128: 9 | F128: 60232 | L128: 60234 | P128: =_xlfn.TEXTJOIN("^",,L120:L129) -> 60234^60232^60233^60236^60233^60232^60234 | R128: 9 | AD128: =_xlfn.TEXTJOIN("^",,AA120:AA129) ->  | AF128: 9 | AR128: =_xlfn.TEXTJOIN("^",,AO120:AO129) -> 
P129: =_xlfn.TEXTJOIN("^",,M120:M129) -> 60235^60235^60235^60235^60235 | AD129: =_xlfn.TEXTJOIN("^",,AB120:AB129) ->  | AR129: =_xlfn.TEXTJOIN("^",,AP120:AP129) -> 
P130: =_xlfn.TEXTJOIN("^",,N120:N129) ->  | AD130: =_xlfn.TEXTJOIN("^",,AC120:AC129) ->  | AR130: =_xlfn.TEXTJOIN("^",,AQ120:AQ129) -> 
O131: 最终 | P131: =_xlfn.TEXTJOIN("^",,P120:P130) -> 60232^60231^60231^60231^60232^60234^60232^60232^60234^60232^60233^60234^60233^60232^60234^60232^60231^60231^60231^60232^60234^60232^60231^60231^60231^60232^60235^60235^60235^60235^60235^60234^60232^60233^60233^60232^60234^60232^60231^60231^60232^60231^60231^60232^60234^60232^60233^60236^60233^60232^60234^60235^60235^60235^60235^60235 | AC131: 最终 | AD131: =_xlfn.TEXTJOIN("^",,AD120:AD130) -> 60232^60231^60231^60231^60231^60232^60232^60233^60232^60234^60232^60233^60234^60231^60233^60236^60233^60231^60234^60231^60231^60232^60232^60231^60231^60235^60235^60235^60235^60235^60231^60234^60231^60231^60231^60234^60231^60232^60231^60233^60233^60233^60231^60232 | AQ131: 最终 | AR131: =_xlfn.TEXTJOIN("|",,AR120:AR130) -> 60231^60232|60234^60232^60233|60235|60232^60233^60231|60231^60232^60234|60233^60231^60232|60232^60234
C132: 8 | F132: 岩浆人 | L132: 火精灵 | R132: 8 | AF132: 8
C133: 6 | G133: 火精灵 | J133: 火精灵 | K133: 岩浆人 | L133: 岩浆人 | R133: 6 | S133: 岩浆人 | U133: 火精灵 | V133: 岩浆蝎 | X133: 岩浆蝎 | Y133: 岩浆人 | AF133: 6
C134: 4 | D134: 岩浆人 | E134: 火精灵 | G134: 岩浆人 | H134: 岩浆人 | I134: 火山蜘蛛 | J134: 岩浆人 | K134: 岩浆蝎 | M134: 火山蜘蛛 | R134: 4 | S134: 岩浆蝎 | T134: 岩浆战士 | U134: 岩浆蝎 | V134: 岩浆蝎 | W134: 火山蜘蛛 | X134: 火精灵 | Y134: 岩浆蝎 | AF134: 4
C135: 2 | D135: 岩浆蝎 | E135: 岩浆人 | F135: 岩浆战士 | G135: 岩浆蝎 | H135: 岩浆蝎 | I135: 火山蜘蛛 | J135: 岩浆战士 | K135: 岩浆蝎 | L135: 岩浆战士 | M135: 火山蜘蛛 | R135: 2 | S135: 岩浆蝎 | T135: 岩浆人 | U135: 岩浆战士 | V135: 岩浆人 | W135: 火山蜘蛛 | X135: 岩浆蝎 | Y135: 岩浆战士 | AF135: 2
C136: 1 | D136: 岩浆蝎 | F136: 火精灵 | G136: 岩浆蝎 | H136: 岩浆蝎 | I136: 火山蜘蛛 | K136: 岩浆人 | L136: 蘑菇王 | M136: 火山蜘蛛 | R136: 1 | S136: 岩浆蝎 | T136: 火精灵 | U136: 蘑菇王 | W136: 火山蜘蛛 | X136: 岩浆蝎 | Y136: 岩浆战士 | AF136: 1 | AG136: 岩浆蝎 | AH136: 火精灵 | AI136: 火山蜘蛛 | AJ136: 岩浆人 | AK136: 岩浆蝎 | AL136: 岩浆战士 | AM136: 岩浆人
C137: 3 | D137: 岩浆蝎 | E137: 岩浆人 | F137: 岩浆战士 | G137: 岩浆蝎 | H137: 岩浆蝎 | I137: 火山蜘蛛 | J137: 岩浆战士 | K137: 岩浆蝎 | L137: 岩浆战士 | M137: 火山蜘蛛 | R137: 3 | S137: 岩浆蝎 | T137: 岩浆人 | U137: 岩浆战士 | V137: 岩浆人 | W137: 火山蜘蛛 | X137: 岩浆蝎 | Y137: 岩浆战士 | AF137: 3 | AG137: 岩浆人 | AH137: 岩浆人 | AJ137: 岩浆战士 | AK137: 岩浆人 | AL137: 岩浆蝎 | AM137: 火精灵
C138: 5 | D138: 岩浆人 | E138: 火精灵 | G138: 岩浆人 | H138: 岩浆人 | I138: 火山蜘蛛 | J138: 岩浆人 | K138: 岩浆蝎 | M138: 火山蜘蛛 | R138: 5 | S138: 岩浆人 | T138: 岩浆战士 | U138: 岩浆蝎 | V138: 岩浆蝎 | W138: 火山蜘蛛 | X138: 火精灵 | Y138: 岩浆蝎 | AF138: 5 | AH138: 岩浆战士 | AJ138: 岩浆蝎 | AK138: 火精灵 | AL138: 岩浆人
C139: 7 | G139: 火精灵 | J139: 火精灵 | K139: 岩浆人 | L139: 岩浆人 | R139: 7 | S139: 岩浆人 | U139: 火精灵 | V139: 岩浆蝎 | X139: 岩浆蝎 | Y139: 岩浆人 | AF139: 7
C140: 9 | F140: 岩浆人 | L140: 火精灵 | R140: 9 | AF140: 9
C142: 位置 | D142: 5 | E142: 10 | F142: 16 | G142: 23 | H142: 30 | I142: 35 | J142: 43 | K142: 52 | L142: 60 | M142: 65 | R142: 位置 | S142: 3 | T142: 7 | U142: 13 | V142: 20 | W142: 25 | X142: 32 | Y142: 40 | AF142: 位置 | AG142: 3 | AH142: 5 | AI142: 10 | AJ142: 15 | AK142: 25 | AL142: 40 | AM142: 55 | AR142: =_xlfn.TEXTJOIN("^",,AG143:AG157) -> 0^0
C143: 8 | F143: =$AF143 -> 8 | L143: =$AF143 -> 8 | P143: =_xlfn.TEXTJOIN("^",,D143:D157) -> 4^2^1^3^5 | R143: 8 | AF143: 8 | AR143: =_xlfn.TEXTJOIN("^",,AH143:AH157) -> 0^0^0
C144: 6 | G144: =$AF144 -> 6 | J144: =$AF144 -> 6 | K144: 6 | L144: 6 | P144: =_xlfn.TEXTJOIN("^",,E143:E157) -> 4^2^3^5 | R144: 6 | S144: =$AF144 -> 6 | U144: =$AF144 -> 6 | V144: =$AF144 -> 6 | X144: =$AF144 -> 6 | Y144: 6 | AD144: =_xlfn.TEXTJOIN("^",,S143:S157) -> 6^4^2^1^3^5^7 | AF144: 6 | AR144: =_xlfn.TEXTJOIN("^",,AI143:AI157) -> 100
C145: 4 | D145: =$AF145 -> 4 | E145: =$AF145 -> 4 | G145: 4 | H145: =$AF145 -> 4 | J145: 4 | K145: 4 | P145: =_xlfn.TEXTJOIN("^",,F143:F157) -> 8^2^1^3^9 | R145: 4 | S145: 4 | T145: 4 | U145: 4 | V145: =$AF145 -> 4 | X145: 4 | Y145: 4 | AD145: =_xlfn.TEXTJOIN("^",,T143:T157) -> 4^2^1^3^5 | AF145: 4 | AR145: =_xlfn.TEXTJOIN("^",,AJ143:AJ157) -> 0^0^0
C146: 2 | D146: 2 | E146: =$AF146 -> 2 | F146: =$AF146 -> 2 | G146: 2 | H146: 2 | J146: 2 | K146: 2 | L146: =$AF146 -> 2 | P146: =_xlfn.TEXTJOIN("^",,G143:G157) -> 6^4^2^1^3^5^7 | R146: 2 | S146: 2 | T146: 2 | U146: 2 | V146: 2 | X146: 2 | Y146: 2 | AD146: =_xlfn.TEXTJOIN("^",,U143:U157) -> 6^4^2^1^3^5^7 | AF146: 2 | AR146: =_xlfn.TEXTJOIN("^",,AK143:AK157) -> 0^0^0
C147: 1 | D147: 1 | F147: 1 | G147: 1 | H147: 1 | K147: 1 | L147: =$AF147 -> 1 | P147: =_xlfn.TEXTJOIN("^",,H143:H157) -> 4^2^1^3^5 | R147: 1 | S147: 1 | T147: 1 | U147: 1 | X147: 1 | Y147: 1 | AD147: =_xlfn.TEXTJOIN("^",,V143:V157) -> 6^4^2^3^5^7 | AF147: 1 | AG147: 0 | AH147: 0 | AI147: 100 | AJ147: 0 | AK147: 0 | AL147: 0 | AM147: 0 | AR147: =_xlfn.TEXTJOIN("^",,AL143:AL157) -> 0^0^0
C148: 3 | D148: =$AF148 -> 3 | E148: =$AF148 -> 3 | F148: 3 | G148: 3 | H148: 3 | J148: 3 | K148: 3 | L148: =$AF148 -> 3 | P148: =_xlfn.TEXTJOIN("^",,I143:I157) -> 101^102^103^104^105 | R148: 3 | S148: 3 | T148: 3 | U148: 3 | V148: =$AF148 -> 3 | X148: 3 | Y148: 3 | AD148: =_xlfn.TEXTJOIN("^",,W143:W157) -> 101^102^103^104^105 | AF148: 3 | AG148: 0 | AH148: 0 | AJ148: 0 | AK148: 0 | AL148: 0 | AM148: 0 | AR148: =_xlfn.TEXTJOIN("^",,AM143:AM157) -> 0^0
C149: 5 | D149: 5 | E149: =$AF149 -> 5 | G149: 5 | H149: 5 | J149: =$AF149 -> 5 | K149: 5 | P149: =_xlfn.TEXTJOIN("^",,J143:J157) -> 6^4^2^3^5^7 | R149: 5 | S149: 5 | T149: 5 | U149: 5 | V149: =$AF149 -> 5 | X149: 5 | Y149: 5 | AD149: =_xlfn.TEXTJOIN("^",,X143:X157) -> 6^4^2^1^3^5^7 | AF149: 5 | AH149: 0 | AJ149: 0 | AK149: 0 | AL149: 0 | AR149: =_xlfn.TEXTJOIN("^",,AN143:AN157) -> 
C150: 7 | G150: 7 | J150: 7 | K150: 7 | L150: 7 | P150: =_xlfn.TEXTJOIN("^",,K143:K157) -> 6^4^2^1^3^5^7 | R150: 7 | S150: 7 | U150: 7 | V150: =$AF150 -> 7 | X150: 7 | Y150: 7 | AD150: =_xlfn.TEXTJOIN("^",,Y143:Y157) -> 6^4^2^1^3^5^7 | AF150: 7 | AR150: =_xlfn.TEXTJOIN("^",,AO143:AO157) -> 
C151: 9 | F151: =$AF151 -> 9 | L151: 9 | P151: =_xlfn.TEXTJOIN("^",,L143:L157) -> 8^6^2^1^3^7^9 | R151: 9 | AF151: 9 | AR151: =_xlfn.TEXTJOIN("^",,AP143:AP157) -> 
C152: 空降 | P152: =_xlfn.TEXTJOIN("^",,M143:M157) -> 101^102^103^104^105 | R152: 空降 | AF152: 空降 | AR152: =_xlfn.TEXTJOIN("^",,AQ143:AQ151) -> 
C153: 101 | I153: =$AF153 -> 101 | M153: =$AF153 -> 101 | P153: =_xlfn.TEXTJOIN("^",,N143:N157) ->  | R153: 101 | W153: =$AF153 -> 101 | AD153: =_xlfn.TEXTJOIN("^",,Z143:Z157) ->  | AF153: 101
C154: 102 | I154: =$AF154 -> 102 | M154: =$AF154 -> 102 | R154: 102 | W154: =$AF154 -> 102 | AD154: =_xlfn.TEXTJOIN("^",,AA143:AA157) ->  | AF154: 102
C155: 103 | I155: 103 | M155: =$AF155 -> 103 | R155: 103 | W155: =$AF155 -> 103 | AD155: =_xlfn.TEXTJOIN("^",,AB143:AB157) ->  | AF155: 103
C156: 104 | I156: 104 | M156: 104 | R156: 104 | W156: =$AF156 -> 104 | AF156: 104
C157: 105 | I157: =$AF157 -> 105 | M157: =$AF157 -> 105 | R157: 105 | W157: =$AF157 -> 105 | AF157: 105
O158: 最终 | P158: =_xlfn.TEXTJOIN("^",,P143:P157) -> 4^2^1^3^5^4^2^3^5^8^2^1^3^9^6^4^2^1^3^5^7^4^2^1^3^5^101^102^103^104^105^6^4^2^3^5^7^6^4^2^1^3^5^7^8^6^2^1^3^7^9^101^102^103^104^105 | AC158: 最终 | AD158: =_xlfn.TEXTJOIN("^",,AD143:AD157) -> 6^4^2^1^3^5^7^4^2^1^3^5^6^4^2^1^3^5^7^6^4^2^3^5^7^101^102^103^104^105^6^4^2^1^3^5^7^6^4^2^1^3^5^7 | AQ158: 最终 | AR158: =_xlfn.TEXTJOIN("|",,AR142:AR157) -> 0^0|0^0^0|100|0^0^0|0^0^0|0^0^0|0^0
C160: 时间 | D160: 5 | E160: 10 | F160: 16 | G160: 23 | H160: 30 | I160: 35 | J160: 43 | K160: 52 | L160: 60 | M160: 65 | R160: 时间 | S160: 3 | T160: 7 | U160: 13 | V160: 20 | W160: 25 | X160: 32 | Y160: 40 | AD160: =_xlfn.TEXTJOIN("^",,S161:S169) -> 3^3^3^3^3^3^3 | AF160: 时间 | AG160: 3 | AH160: 5 | AI160: 10 | AJ160: 15 | AK160: 25 | AL160: 40 | AM160: 55 | AR160: =_xlfn.TEXTJOIN("^",,AG161:AG169) -> 25^8
C161: 8 | F161: =F$160 -> 16 | L161: =L$160 -> 60 | P161: =_xlfn.TEXTJOIN("^",,D161:D170) -> 5^5^5^5^5 | R161: 8 | AD161: =_xlfn.TEXTJOIN("^",,T161:T169) -> 7^7^7^7^7 | AF161: 8 | AR161: =_xlfn.TEXTJOIN("^",,AH161:AH169) -> 2^4^4
C162: 6 | G162: =G$160 -> 23 | J162: =J$160 -> 43 | K162: 52 | L162: 60 | P162: =_xlfn.TEXTJOIN("^",,E161:E170) -> 10^10^10^10 | R162: 6 | S162: =S$160 -> 3 | U162: =U$160 -> 13 | V162: =V$160 -> 20 | X162: =X$160 -> 32 | Y162: 40 | AD162: =_xlfn.TEXTJOIN("^",,U161:U169) -> 13^13^13^13^13^13^13 | AF162: 6 | AR162: =_xlfn.TEXTJOIN("^",,AI161:AI169) -> 8
C163: 4 | D163: =D$160 -> 5 | E163: =E$160 -> 10 | G163: 23 | H163: =H$160 -> 30 | I163: =I$160 -> 35 | J163: 43 | K163: 52 | M163: =M$160 -> 65 | P163: =_xlfn.TEXTJOIN("^",,F161:F170) -> 16^16^16^16^16 | R163: 4 | S163: 3 | T163: 7 | U163: 13 | V163: 20 | W163: =W$160 -> 25 | X163: 32 | Y163: 40 | AD163: =_xlfn.TEXTJOIN("^",,V161:V169) -> 20^20^20^20^20^20 | AF163: 4 | AR163: =_xlfn.TEXTJOIN("^",,AJ161:AJ169) -> 3^3^7
C164: 2 | D164: =D$160 -> 5 | E164: =E$160 -> 10 | F164: =F$160 -> 16 | G164: 23 | H164: 30 | I164: 35 | J164: 43 | K164: 52 | L164: =L$160 -> 60 | M164: =M$160 -> 65 | P164: =_xlfn.TEXTJOIN("^",,G161:G170) -> 23^23^23^23^23^23^23 | R164: 2 | S164: 3 | T164: 7 | U164: 13 | V164: 20 | W164: 25 | X164: 32 | Y164: 40 | AD164: =_xlfn.TEXTJOIN("^",,W161:W169) -> 25^25^25^25^25 | AF164: 2 | AR164: =_xlfn.TEXTJOIN("^",,AK161:AK169) -> 6^4^2
C165: 1 | D165: =D$160 -> 5 | F165: 16 | G165: 23 | H165: 30 | I165: =I$160 -> 35 | K165: 52 | L165: =L$160 -> 60 | M165: 65 | P165: =_xlfn.TEXTJOIN("^",,H161:H170) -> 30^30^30^30^30 | R165: 1 | S165: 3 | T165: 7 | U165: 13 | W165: 25 | X165: 32 | Y165: 40 | AD165: =_xlfn.TEXTJOIN("^",,X161:X169) -> 32^32^32^32^32^32^32 | AF165: 1 | AG165: 25 | AH165: 2 | AI165: 8 | AJ165: 3 | AK165: 6 | AL165: 3 | AM165: 6 | AR165: =_xlfn.TEXTJOIN("^",,AL161:AL169) -> 3^8^3
C166: 3 | D166: =D$160 -> 5 | E166: 10 | F166: 16 | G166: 23 | H166: 30 | I166: =I$160 -> 35 | J166: =J$160 -> 43 | K166: 52 | L166: =L$160 -> 60 | M166: 65 | P166: =_xlfn.TEXTJOIN("^",,I161:I170) -> 35^35^35^35^35 | R166: 3 | S166: 3 | T166: 7 | U166: 13 | V166: 20 | W166: 25 | X166: 32 | Y166: 40 | AD166: =_xlfn.TEXTJOIN("^",,Y161:Y169) -> 40^40^40^40^40^40^40 | AF166: 3 | AG166: 8 | AH166: 4 | AJ166: 3 | AK166: 4 | AL166: 8 | AM166: 4 | AR166: =_xlfn.TEXTJOIN("^",,AM161:AM169) -> 6^4
C167: 5 | D167: 5 | E167: =E$160 -> 10 | G167: 23 | H167: 30 | I167: =I$160 -> 35 | J167: 43 | K167: 52 | M167: =M$160 -> 65 | P167: =_xlfn.TEXTJOIN("^",,J161:J170) -> 43^43^43^43^43^43 | R167: 5 | S167: 3 | T167: 7 | U167: 13 | V167: 20 | W167: =W$160 -> 25 | X167: 32 | Y167: 40 | AD167: =_xlfn.TEXTJOIN("^",,Z161:Z169) ->  | AF167: 5 | AH167: 4 | AJ167: 7 | AK167: 2 | AL167: 3 | AR167: =_xlfn.TEXTJOIN("^",,AN161:AN169) -> 
C168: 7 | G168: 23 | J168: 43 | K168: 52 | L168: 60 | P168: =_xlfn.TEXTJOIN("^",,K161:K170) -> 52^52^52^52^52^52^52 | R168: 7 | S168: 3 | U168: 13 | V168: 20 | X168: 32 | Y168: 40 | AD168: =_xlfn.TEXTJOIN("^",,AA161:AA169) ->  | AF168: 7 | AR168: =_xlfn.TEXTJOIN("^",,AO161:AO169) -> 
C169: 9 | F169: =F$160 -> 16 | L169: 60 | P169: =_xlfn.TEXTJOIN("^",,L161:L170) -> 60^60^60^60^60^60^60 | R169: 9 | AD169: =_xlfn.TEXTJOIN("^",,AB161:AB169) ->  | AF169: 9 | AR169: =_xlfn.TEXTJOIN("^",,AP161:AP169) -> 
P170: =_xlfn.TEXTJOIN("^",,M161:M170) -> 65^65^65^65^65 | AD170: =_xlfn.TEXTJOIN("^",,AC161:AC169) ->  | AR170: =_xlfn.TEXTJOIN("^",,AQ161:AQ169) -> 
P171: =_xlfn.TEXTJOIN("^",,N161:N170) ->  | AC171: 最终 | AD171: =_xlfn.TEXTJOIN("^",,AD160:AD170) -> 3^3^3^3^3^3^3^7^7^7^7^7^13^13^13^13^13^13^13^20^20^20^20^20^20^25^25^25^25^25^32^32^32^32^32^32^32^40^40^40^40^40^40^40 | AQ171: 最终 | AR171: =_xlfn.TEXTJOIN("|",,AR160:AR170) -> 25^8|2^4^4|8|3^3^7|6^4^2|3^8^3|6^4
O172: 最终 | P172: =_xlfn.TEXTJOIN("^",,P161:P171) -> 5^5^5^5^5^10^10^10^10^16^16^16^16^16^23^23^23^23^23^23^23^30^30^30^30^30^35^35^35^35^35^43^43^43^43^43^43^52^52^52^52^52^52^52^60^60^60^60^60^60^60^65^65^65^65^65
P173: =COUNT(D161:M169) -> 56 | AC173: =COUNT(S161:Z169) -> 44 | AR173: =SUM(AG161:AM168) -> 100
AR174: =AR173+AC173+P173 -> 200
E176: =E177-D177 -> 9 | F176: =F177-E177 -> 15 | G176: 16 | H176: 17 | I176: 7 | J176: 13 | K176: 17 | L176: 5 | M176: 15 | T176: =T177-S177 -> 7 | U176: 15 | V176: 15 | W176: 5 | X176: 15 | Y176: 15 | AH176: =AH177-AG177 -> 2 | AI176: 5 | AJ176: 5 | AK176: 6 | AL176: 7 | AM176: 7
